{"text_format":"1","workbook":"xlsx","n_sheets":10,"sheets":["原価","予算","損益分岐点売上高・投資","支出項目","パネル","日記帳","売上高分析","現金出納帳","損益計算書","予算実績比較"],"not_rendered":{"charts":15,"images":0,"macros":1,"external_links":1,"defined_names":0,"comments":0,"pivot_tables":0},"unopened":[],"bounds":{"document_bytes":16777216,"sheet_cells":100000,"rows_first":2000,"rows_last":500,"rows_between":2000,"halvings":0,"cell_chars":16384,"cell_head_chars":4096},"cells_cut":0,"cells_raw":0,"read":"whole","date_system":"1900"}

{"sheet":"原価","index":0,"n_rows":30,"n_cols":6,"rows_kept":30,"cut":false,"hidden":false,"merged":[]}
[]
["原価","醤油ラーメン１杯"]
[null,"数量",null,"単価","原価"]
[{"$f":"予算!B8","v":"生ラーメン細麺5人前"},0.2,"×",{"$f":"予算!E8","v":199},{"$f":"B4*D4","v":39.800000000000004}]
[{"$f":"予算!B9","v":"ごく太メンマ"},{"$f":"1/40","v":2.5000000000000001E-2},"×",{"$f":"予算!E9","v":1026},{"$f":"B5*D5","v":25.650000000000002},"１袋４０杯１杯２つ入れる"]
[{"$f":"予算!B10","v":"冷凍ホウレンソウ"},{"$f":"1/40","v":2.5000000000000001E-2},"×",{"$f":"予算!E10","v":224},5.6000000000000005,"１袋から４０袋箸１つまみ強"]
["豚肩ロース",{"$f":"1/35","v":2.8571428571428571E-2},"×",900,25.714285714285712,"豚肩ロース900円で計算１ブロックにつき３５枚作れる"]
["たれ",{"$f":"1/50","v":0.02},"×",{"$f":"予算!E11+予算!E12+予算!E14+予算!E23","v":833},16.66,"50杯醤油１リットル、日本酒0.5リットル"]
["冷凍青ネギ",{"$f":"1/50","v":0.02},"×",{"$f":"予算!E13","v":192},3.84,"１袋50杯箸１つまみ"]
["鳥丸ガラスープの素",{"$f":"1/17","v":5.8823529411764705E-2},"×",372,21.882352941176471,"372円÷17回≒17円"]
["割り箸",{"$f":"1/500","v":2E-3},"×",985,1.97,"500膳で985円"]
["容器",{"$f":"1/50","v":0.02},"×",775,15.5,"５０枚入り７１５円"]
["合計",null,null,null,{"$f":"SUM(E4:E12)","v":156.61663865546217}]
[]
["原価","ねぎ醤油ラーメン１杯"]
[null,"数量",null,"単価","原価"]
[{"$f":"A4","v":"生ラーメン細麺5人前"},0.2,"×",{"$f":"D4","v":199},{"$f":"B17*D17","v":39.800000000000004}]
["ごく太メンマ",{"$f":"1/40","v":2.5000000000000001E-2},"×",1026,{"$f":"B18*D18","v":25.650000000000002}]
["冷凍ホウレンソウ",{"$f":"1/40","v":2.5000000000000001E-2},"×",224,{"$f":"B19*D19","v":5.6000000000000005}]
["豚肩ロース",{"$f":"1/35","v":2.8571428571428571E-2},"×",900,25.714285714285712]
["たれ",{"$f":"1/50","v":0.02},"×",833,16.66]
["冷凍青ネギ",{"$f":"1/50","v":0.02},"×",192,3.84]
["鳥丸ガラスープの素",{"$f":"1/17","v":5.8823529411764705E-2},"×",{"$f":"D10","v":372},21.882352941176471]
["割り箸",{"$f":"1/500","v":2E-3},"×",985,1.97]
["容器",{"$f":"1/50","v":0.02},"×",775,15.5]
["合計",null,null,null,{"$f":"SUM(E17:E25)","v":156.61663865546217}]
[]
["販売単価(原価30％を達成するための販売単価）"]
["醤油ラーメン",{"$f":"E13/0.3","v":522.05546218487393}]
["ねぎ醤油ラーメン",{"$f":"E26/0.3","v":522.05546218487393}]

{"sheet":"予算","index":1,"n_rows":41,"n_cols":15,"rows_kept":41,"cut":false,"hidden":false,"merged":[[1,7,1,9],[39,1,39,4],[4,1,4,4],[8,7,8,8],[27,1,27,4],[35,7,35,9]]}
[null,"予算編成"]
[null,"売上に関する項目：販売予測",null,null,null,null,null,"予算損益計算書",null,null,null,"元手が回収できる売上高と販売量（損益分岐点分析）"]
[null,"醤油ラーメン",350,"杯",500,{"$f":"C3*E3","v":175000},null,"売上高",1,{"$f":"F5","v":337500},null,"項　目","計算","割　合","金　　額"]
[null,"ねぎ醤油ラーメン",325,"杯",500,{"$f":"C4*E4","v":162500},null,"変動費",{"$f":"J4/$J$3","v":0.33986074074074074},{"$f":"F28","v":114703},null,"売上高","①",1,{"$f":"O6+O5","v":183343}]
[null,"合　　　　　計",null,null,null,{"$f":"F3+F4","v":337500},null,"貢献利益",{"$f":"J5/$J$3","v":0.66013925925925931},{"$f":"J3-J4","v":222797},null,"変動費","②",{"$f":"O5/$O$4","v":0.62561974005007004},{"$f":"J4","v":114703}]
[null,"材料費等に関する項目：原価予測（変動費）",null,null,null,"(税込み)",null,"固定費",null,{"$f":"F40","v":68640},null,"貢献利益","①－②＝③",{"$f":"O6/$O$4","v":0.37438025994992991},{"$f":"O8+O7","v":68640}]
["No.","費　目","数　量","協賛","単　価","金　　　　額",null,"営業利益",null,{"$f":"J5-J6","v":154157},null,"固定費","④",0.37438025994992991,{"$f":"J6","v":68640}]
[1,"生ラーメン細麺5人前",140,null,199,{"$f":"IF(B8=\"\",\"\",IF(D8=\"〇\",0,C8*E8))","v":27860},null,null,null,null,null,"営業利益","③－④＝⑤",0,0]
[2,"ごく太メンマ",18,null,1026,18468,null,"協賛品"]
[3,"冷凍ホウレンソウ",18,null,224,4032,null,{"$f":"IF(D8=\"〇\",B8,\"\")","v":""},{"$f":"IF(H10=\"\",\"\",C8*E8)","v":""},null,null,"元手が回収できる販売量",null,{"$f":"O4/E4","v":366.68599999999998},"を超えれば儲けがでる！！"]
[4,"上級本醸造しょうゆ1.8L",8,null,253,2024,null,"","",null,null,"協賛品を加えて元手が回収できる販売量",null,{"$f":"(J40+J38)/E4","v":366.68599999999998},"を超えれば儲けがでる！！"]
[5,"日の出業務料理酒1.5L",7,null,340,2380,null,"","",null,null,"出店に必要な出資額",{"$f":"O4","v":183343}]
[6,"青ネギ冷凍",18,null,192,3456,null,"",""]
[7,"しょうが",20,null,100,2000,null,"",""]
[8,"E-2Rどんぶり",15,null,775,11625,null,"",""]
[9,"アスペン元禄バシ５００膳",2,null,985,1970,null,"",""]
[10,"豚肩ロース",20,null,900,18000,null,"",""]
[11,"チャッカマン",1,null,0,0,null,"",""]
[12,"たわし",2,null,365,730,null,"",""]
[13,"鳥丸ガラスープの素",41,null,372,15252,null,"",""]
[14,"キッチンタイマー",5,null,0,0,null,"",""]
[15,"キッチンペーパー、軍手、ゴム手袋、衛生費",1,null,4106,4106,null,"",""]
[16,"長ネギ",20,null,140,2800,null,"",""]
[17,null,null,null,null,"",null,"",""]
[18,null,null,null,null,"",null,"",""]
[19,null,null,null,null,"",null,"",""]
[20,null,null,null,null,"",null,"",""]
[null,"合    計",null,null,null,{"$f":"SUM(F8:F27)","v":114703},null,"",""]
[null,null,null,null,null,null,null,"　合　　　計",{"$f":"SUM(I10:I28)","v":0}]
[null,"レンタル品等に関する項目：原価予測（固定費）"]
["No.","費　目","数　量","協賛","単　価","金　　　　額",null,"予算営業利益－協賛品原価"]
[1,"ガスボンベLPG",4,null,7920,{"$f":"IF(B32=\"\",\"\",C32*E32)","v":31680},null,"予算営業利益",{"$f":"J7","v":154157}]
[2,"ガスコンロ特大",3,null,6160,{"$f":"IF(B33=\"\",\"\",C33*E33)","v":18480},null,"協賛品原価",{"$f":"I29","v":0}]
[3,"寸胴鍋45L",3,null,6160,18480,null,"営業利益",{"$f":"I32-I33","v":154157}]
[4,null,null,null,null,""]
[5,null,null,null,null,"",null,"予算実質的損益計算書"]
[6,null,null,null,null,"",null,"売上高",1,{"$f":"F5","v":337500}]
[7,null,null,null,null,"",null,"変動費",{"$f":"J38/$J$3","v":0.33986074074074074},{"$f":"F28+I29","v":114703}]
[8,null,null,null,null,"",null,"貢献利益",{"$f":"J39/$J$3","v":0.66013925925925931},{"$f":"J37-J38","v":222797}]
[null,"合　　　計",null,null,null,{"$f":"SUM(F32:F39)","v":68640},null,"固定費",null,{"$f":"F40","v":68640}]
[null,null,null,null,null,null,null,"営業利益",null,{"$f":"J39-J40","v":154157}]

{"sheet":"損益分岐点売上高・投資","index":2,"n_rows":12,"n_cols":26,"rows_kept":12,"cut":false,"hidden":false,"merged":[]}
["　　　　　　　　損益分岐点　損益計算書　　　　　（単位：円）",null,null,"投資状況      店舗名","自家製ラーメン"]
[{"$f":"IF(E1=\"\",\"\",E1)","v":"自家製ラーメン"},"2024年11月３日～2024年11月４日",null,"出資者（学生数）","渡邉",null,null,null,null,null,null,null,null,null,null,null,null,null,null,null,null,null,null,null,{"$f":"IF(E2=\"\",\"\",COUNTA(E2:X2))","v":1},"名"]
["損益分岐点売上高",{"$f":"B5+B4","v":68640},null,"初期投資",{"$f":"183000","v":183000},null,null,null,null,null,null,null,null,null,null,null,null,null,null,null,null,null,null,null,{"$f":"IF(E3=\"\",\"\",SUM(E3:X3))","v":183000}]
["変 動 費",{"$f":"支出項目!F30","v":0},null,"文化祭前追加投資",null,null,null,null,null,null,null,null,null,null,null,null,null,null,null,null,null,null,null,null,{"$f":"SUM(E4:X4)","v":0}]
["貢献利益",{"$f":"B6+B7","v":68640},null,"追加投資11月3日",null,null,null,null,null,null,null,null,null,null,null,null,null,null,null,null,null,null,null,null,{"$f":"SUM(E5:X5)","v":0}]
["固 定 費",{"$f":"支出項目!F44","v":68640},null,"追加投資11月4日",null,null,null,null,null,null,null,null,null,null,null,null,null,null,null,null,null,null,null,null,0]
["営業利益",0,null,"追加投資11月5日",null,null,null,null,null,null,null,null,null,null,null,null,null,null,null,null,null,null,null,null,0]
[null,null,null,"合計",{"$f":"IF(E$2=\"\",\"\",SUM(E3:E7))","v":183000},{"$f":"IF(F$2=\"\",\"\",SUM(F3:F7))","v":""},"","","","","","","","","","","","","","","","","","",183000]
["文化祭開催期間","月　　　日",null,"1人あたりの分配金",{"$f":"IF(E8=\"\",\"\",現金出納帳!$E$15*E8/$Y$8)","v":114360},{"$f":"IF(F8=\"\",\"\",現金出納帳!$E$15*F8/$Y$8)","v":""},{"$f":"IF(G8=\"\",\"\",現金出納帳!$E$15*G8/$Y$8)","v":""},{"$f":"IF(H8=\"\",\"\",現金出納帳!$E$15*H8/$Y$8)","v":""},{"$f":"IF(I8=\"\",\"\",現金出納帳!$E$15*I8/$Y$8)","v":""},{"$f":"IF(J8=\"\",\"\",現金出納帳!$E$15*J8/$Y$8)","v":""},{"$f":"IF(K8=\"\",\"\",現金出納帳!$E$15*K8/$Y$8)","v":""},{"$f":"IF(L8=\"\",\"\",現金出納帳!$E$15*L8/$Y$8)","v":""},{"$f":"IF(M8=\"\",\"\",現金出納帳!$E$15*M8/$Y$8)","v":""},{"$f":"IF(N8=\"\",\"\",現金出納帳!$E$15*N8/$Y$8)","v":""},{"$f":"IF(O8=\"\",\"\",現金出納帳!$E$15*O8/$Y$8)","v":""},{"$f":"IF(P8=\"\",\"\",現金出納帳!$E$15*P8/$Y$8)","v":""},{"$f":"IF(Q8=\"\",\"\",現金出納帳!$E$15*Q8/$Y$8)","v":""},{"$f":"IF(R8=\"\",\"\",現金出納帳!$E$15*R8/$Y$8)","v":""},{"$f":"IF(S8=\"\",\"\",現金出納帳!$E$15*S8/$Y$8)","v":""},{"$f":"IF(T8=\"\",\"\",現金出納帳!$E$15*T8/$Y$8)","v":""},{"$f":"IF(U8=\"\",\"\",現金出納帳!$E$15*U8/$Y$8)","v":""},{"$f":"IF(V8=\"\",\"\",現金出納帳!$E$15*V8/$Y$8)","v":""},{"$f":"IF(W8=\"\",\"\",現金出納帳!$E$15*W8/$Y$8)","v":""},{"$f":"IF(X8=\"\",\"\",現金出納帳!$E$15*X8/$Y$8)","v":""},{"$f":"SUM(E9:X9)","v":114360}]
["１日目","2023-11-03",null,"1人あたりの還元額",{"$f":"IF(E8=\"\",\"\",IF(E9>=E8,損益計算書!$E$7*E8/$Y$8,\"0\"))","v":"0"},{"$f":"IF(F8=\"\",\"\",IF(F9>=F8,損益計算書!$E$7*F8/$Y$8,\"0\"))","v":""},{"$f":"IF(G8=\"\",\"\",IF(G9>=G8,損益計算書!$E$7*G8/$Y$8,\"0\"))","v":""},{"$f":"IF(H8=\"\",\"\",IF(H9>=H8,損益計算書!$E$7*H8/$Y$8,\"0\"))","v":""},{"$f":"IF(I8=\"\",\"\",IF(I9>=I8,損益計算書!$E$7*I8/$Y$8,\"0\"))","v":""},{"$f":"IF(J8=\"\",\"\",IF(J9>=J8,損益計算書!$B$7*J8/$Y$8,\"0\"))","v":""},{"$f":"IF(K8=\"\",\"\",IF(K9>=K8,損益計算書!$B$7*K8/$Y$8,\"0\"))","v":""},{"$f":"IF(L8=\"\",\"\",IF(L9>=L8,損益計算書!$B$7*L8/$Y$8,\"0\"))","v":""},{"$f":"IF(M8=\"\",\"\",IF(M9>=M8,損益計算書!$B$7*M8/$Y$8,\"0\"))","v":""},{"$f":"IF(N8=\"\",\"\",IF(N9>=N8,損益計算書!$B$7*N8/$Y$8,\"0\"))","v":""},{"$f":"IF(O8=\"\",\"\",IF(O9>=O8,損益計算書!$B$7*O8/$Y$8,\"0\"))","v":""},{"$f":"IF(P8=\"\",\"\",IF(P9>=P8,損益計算書!$B$7*P8/$Y$8,\"0\"))","v":""},{"$f":"IF(Q8=\"\",\"\",IF(Q9>=Q8,損益計算書!$B$7*Q8/$Y$8,\"0\"))","v":""},{"$f":"IF(R8=\"\",\"\",IF(R9>=R8,損益計算書!$B$7*R8/$Y$8,\"0\"))","v":""},{"$f":"IF(S8=\"\",\"\",IF(S9>=S8,損益計算書!$B$7*S8/$Y$8,\"0\"))","v":""},{"$f":"IF(T8=\"\",\"\",IF(T9>=T8,損益計算書!$B$7*T8/$Y$8,\"0\"))","v":""},{"$f":"IF(U8=\"\",\"\",IF(U9>=U8,損益計算書!$B$7*U8/$Y$8,\"0\"))","v":""},{"$f":"IF(V8=\"\",\"\",IF(V9>=V8,損益計算書!$B$7*V8/$Y$8,\"0\"))","v":""},{"$f":"IF(W8=\"\",\"\",IF(W9>=W8,損益計算書!$B$7*W8/$Y$8,\"0\"))","v":""},{"$f":"IF(X8=\"\",\"\",IF(X9>=X8,損益計算書!$B$7*X8/$Y$8,\"0\"))","v":""},{"$f":"SUM(E10:X10)","v":0}]
["２日目","2023-11-04",null,"1人あたりの投下資本利益率",{"$f":"IF(E8=\"\",\"\",E10/E8)","v":0},{"$f":"IF(F8=\"\",\"\",F10/F8)","v":""},"","","","","","","","","","","","","","","","","",""]
[null,null,null,"1番多く出資している人",{"$f":"IF(E8=\"\",\"\",IF(MAX($E$8:$X$8)=E8,\"大株主！\",\"\"))","v":"大株主！"},{"$f":"IF(F8=\"\",\"\",IF(MAX($E$8:$X$8)=F8,\"大株主！\",\"\"))","v":""},"","","","","","","","","","","","","","","","","",""]

{"sheet":"支出項目","index":3,"n_rows":56,"n_cols":7,"rows_kept":56,"cut":false,"hidden":false,"merged":[]}
["支出項目"]
["材料購入（変動費）","予　　算","文化祭前",{"$f":"IF(損益分岐点売上高・投資!B10=\"\",\"\",損益分岐点売上高・投資!B10)","v":"2023-11-03"},{"$f":"IF(損益分岐点売上高・投資!B11=\"\",\"\",損益分岐点売上高・投資!B11)","v":"2023-11-04"},"合計","差　　異"]
[{"$f":"IF(予算!B8=\"\",\"\",予算!B8)","v":"生ラーメン細麺5人前"},{"$f":"IF(予算!F8=\"\",\"\",予算!F8)","v":27860},null,null,null,{"$f":"IF($A3=\"\",\"\",SUM(C3:E3))","v":0},{"$f":"IF(B3=\"\",\"\",B3-F3)","v":27860}]
[{"$f":"IF(予算!B9=\"\",\"\",予算!B9)","v":"ごく太メンマ"},{"$f":"IF(予算!F9=\"\",\"\",予算!F9)","v":18468},null,null,null,0,{"$f":"IF(B4=\"\",\"\",B4-F4)","v":18468}]
[{"$f":"IF(予算!B10=\"\",\"\",予算!B10)","v":"冷凍ホウレンソウ"},{"$f":"IF(予算!F10=\"\",\"\",予算!F10)","v":4032},null,null,null,0,4032]
[{"$f":"IF(予算!B11=\"\",\"\",予算!B11)","v":"上級本醸造しょうゆ1.8L"},{"$f":"IF(予算!F11=\"\",\"\",予算!F11)","v":2024},null,null,null,0,2024]
[{"$f":"IF(予算!B12=\"\",\"\",予算!B12)","v":"日の出業務料理酒1.5L"},{"$f":"IF(予算!F12=\"\",\"\",予算!F12)","v":2380},null,null,null,0,2380]
[{"$f":"IF(予算!B13=\"\",\"\",予算!B13)","v":"青ネギ冷凍"},{"$f":"IF(予算!F13=\"\",\"\",予算!F13)","v":3456},null,null,null,0,3456]
[{"$f":"IF(予算!B14=\"\",\"\",予算!B14)","v":"しょうが"},{"$f":"IF(予算!F14=\"\",\"\",予算!F14)","v":2000},null,null,null,0,2000]
[{"$f":"IF(予算!B15=\"\",\"\",予算!B15)","v":"E-2Rどんぶり"},{"$f":"IF(予算!F15=\"\",\"\",予算!F15)","v":11625},null,null,null,0,11625]
[{"$f":"IF(予算!B16=\"\",\"\",予算!B16)","v":"アスペン元禄バシ５００膳"},{"$f":"IF(予算!F16=\"\",\"\",予算!F16)","v":1970},null,null,null,0,1970]
[{"$f":"IF(予算!B17=\"\",\"\",予算!B17)","v":"豚肩ロース"},{"$f":"IF(予算!F17=\"\",\"\",予算!F17)","v":18000},null,null,null,0,18000]
[{"$f":"IF(予算!B18=\"\",\"\",予算!B18)","v":"チャッカマン"},{"$f":"IF(予算!F18=\"\",\"\",予算!F18)","v":0},null,null,null,0,0]
[{"$f":"IF(予算!B19=\"\",\"\",予算!B19)","v":"たわし"},{"$f":"IF(予算!F19=\"\",\"\",予算!F19)","v":730},null,null,null,0,730]
[{"$f":"IF(予算!B20=\"\",\"\",予算!B20)","v":"鳥丸ガラスープの素"},{"$f":"IF(予算!F20=\"\",\"\",予算!F20)","v":15252},null,null,null,0,15252]
[{"$f":"IF(予算!B21=\"\",\"\",予算!B21)","v":"キッチンタイマー"},{"$f":"IF(予算!F21=\"\",\"\",予算!F21)","v":0},null,null,null,0,0]
[{"$f":"IF(予算!B22=\"\",\"\",予算!B22)","v":"キッチンペーパー、軍手、ゴム手袋、衛生費"},{"$f":"IF(予算!F22=\"\",\"\",予算!F22)","v":4106},null,null,null,0,4106]
[{"$f":"IF(予算!B23=\"\",\"\",予算!B23)","v":"長ネギ"},{"$f":"IF(予算!F23=\"\",\"\",予算!F23)","v":2800},null,null,null,0,2800]
[{"$f":"IF(予算!B24=\"\",\"\",予算!B24)","v":""},{"$f":"IF(予算!F24=\"\",\"\",予算!F24)","v":""},null,null,null,"",""]
[{"$f":"IF(予算!B25=\"\",\"\",予算!B25)","v":""},{"$f":"IF(予算!F25=\"\",\"\",予算!F25)","v":""},null,null,null,"",""]
[{"$f":"IF(予算!B26=\"\",\"\",予算!B26)","v":""},{"$f":"IF(予算!F26=\"\",\"\",予算!F26)","v":""},null,null,null,"",""]
[{"$f":"IF(予算!B27=\"\",\"\",予算!B27)","v":""},{"$f":"IF(予算!F27=\"\",\"\",予算!F27)","v":""},null,null,null,"",""]
["生食ラーメン（賄い）",{"$f":"IF(A23=\"\",\"\",0)","v":0},null,null,null,0,0]
["こしょう・七味とうがらし・ガーリック",{"$f":"IF(A24=\"\",\"\",0)","v":0},null,null,null,0,0]
["おわん・タッパー",0,null,null,null,0,0]
["飲料",0,null,null,null,0,0]
["キッチンタイマー・バケツ・手袋・消耗品",0,null,null,null,0,0]
[null,"",null,null,null,"",""]
["消費税",{"$f":"予算!#REF!","v":{"$error":"#REF!"}},null,null,null,0,{"$error":"#REF!"}]
["材料費合計",{"$f":"SUM(B3:B29)","v":{"$error":"#REF!"}},{"$f":"IF(C$2=\"\",\"\",SUM(C3:C29))","v":0},{"$f":"IF(D$2=\"\",\"\",SUM(D3:D29))","v":0},{"$f":"IF(E$2=\"\",\"\",SUM(E3:E29))","v":0},{"$f":"IF(F$2=\"\",\"\",SUM(F3:F29))","v":0},{"$f":"IF(G$2=\"\",\"\",SUM(G3:G29))","v":{"$error":"#REF!"}}]
[]
["レンタル器具類（固定費）","予　　算","文化祭前",{"$f":"IF(日記帳!K$13=\"\",\"\",日記帳!K$13)","v":"2023-11-03"},{"$f":"IF(日記帳!L$13=\"\",\"\",日記帳!L$13)","v":"2023-11-04"},"合計","差　　異"]
[{"$f":"IF(予算!B32=\"\",\"\",予算!B32)","v":"ガスボンベLPG"},{"$f":"IF(予算!F32=\"\",\"\",予算!F32)","v":31680},31680,null,null,{"$f":"IF($A33=\"\",\"\",SUM(C33:E33))","v":31680},{"$f":"IF(B33=\"\",\"\",B33-F33)","v":0}]
[{"$f":"IF(予算!B33=\"\",\"\",予算!B33)","v":"ガスコンロ特大"},{"$f":"IF(予算!F33=\"\",\"\",予算!F33)","v":18480},18480,null,null,18480,{"$f":"IF(B34=\"\",\"\",B34-F34)","v":0}]
[{"$f":"IF(予算!B34=\"\",\"\",予算!B34)","v":"寸胴鍋45L"},{"$f":"IF(予算!F34=\"\",\"\",予算!F34)","v":18480},18480,null,null,18480,0]
[{"$f":"IF(予算!B35=\"\",\"\",予算!B35)","v":""},{"$f":"IF(予算!F35=\"\",\"\",予算!F35)","v":""},null,null,null,"",""]
[{"$f":"IF(予算!B36=\"\",\"\",予算!B36)","v":""},{"$f":"IF(予算!F36=\"\",\"\",予算!F36)","v":""},null,null,null,"",""]
[{"$f":"IF(予算!B37=\"\",\"\",予算!B37)","v":""},{"$f":"IF(予算!F37=\"\",\"\",予算!F37)","v":""},null,null,null,"",""]
[{"$f":"IF(予算!B38=\"\",\"\",予算!B38)","v":""},{"$f":"IF(予算!F38=\"\",\"\",予算!F38)","v":""},null,null,null,"",""]
[{"$f":"IF(予算!B39=\"\",\"\",予算!B39)","v":""},{"$f":"IF(予算!F39=\"\",\"\",予算!F39)","v":""},null,null,null,"",""]
[null,{"$f":"IF(A41=\"\",\"\",0)","v":""},null,null,null,"",""]
[null,"",null,null,null,"",""]
[null,"",null,null,null,"",""]
["レンタル器具類合計",{"$f":"IF(B$2=\"\",\"\",SUM(B33:B43))","v":68640},{"$f":"IF(C$2=\"\",\"\",SUM(C33:C43))","v":68640},{"$f":"IF(D$2=\"\",\"\",SUM(D33:D43))","v":0},0,68640,0]
[]
["払い戻し・利益処分項目","予　　算","文化祭前",{"$f":"IF([1]日記帳!K$13=\"\",\"\",[1]日記帳!K$13)","v":"2018-11-03"},{"$f":"IF([1]日記帳!L$13=\"\",\"\",[1]日記帳!L$13)","v":"2018-11-04"},"合計"]
["払い戻し",null,null,null,null,{"$f":"IF($A47=\"\",\"\",SUM(C47:E47))","v":0}]
["お花",null,null,null,null,0]
["お菓子",null,null,null,null,0]
["払い戻し・利益処分項目合計",{"$f":"IF(B$2=\"\",\"\",SUM(B47:B49))","v":0},{"$f":"IF(C$2=\"\",\"\",SUM(C47:C49))","v":0},{"$f":"IF(D$2=\"\",\"\",SUM(D47:D49))","v":0},0,0]
[]
[null,"予　　算","文化祭前",{"$f":"IF(日記帳!K$13=\"\",\"\",日記帳!K$13)","v":"2023-11-03"},{"$f":"IF(日記帳!L$13=\"\",\"\",日記帳!L$13)","v":"2023-11-04"},"合計","差　　異"]
["支出合計",{"$f":"B30+B44+B50","v":{"$error":"#REF!"}},{"$f":"IF(C$52=\"\",\"\",C30+C44+C50)","v":68640},{"$f":"IF(D$52=\"\",\"\",D30+D44+D50)","v":0},{"$f":"IF(E$52=\"\",\"\",E30+E44+E50)","v":0},{"$f":"IF(F$52=\"\",\"\",F30+F44+F50)","v":68640},{"$f":"IF(G$52=\"\",\"\",G30+G44)","v":{"$error":"#REF!"}}]
[]
["請求書または領収証（レシート）の金額を見ながら入力してください。"]
["該当する項目がなければ、適当な項目名と金額を入力してください。"]

{"sheet":"パネル","index":4,"n_rows":20,"n_cols":38,"rows_kept":20,"cut":false,"hidden":false,"merged":[]}
[]
[null,{"$f":"TODAY()","v":"2024-08-10"},{"$f":"TIMEVALUE(TEXT(NOW(),\"hh:mm:ss\"))","v":"16:59:19"},"現在",null,null,null,null,null,null,null,null,null,null,"客　　　層"]
[]
[]
[null,null,null,null,null,null,null,null,null,"杯",500,"円／杯",{"$f":"I5*K5","v":0}]
[null,null,null,null,null,null,null,null,null,null,null,null,null,null,null,null,"日付","時間","商品名","数量","単価","販売代金"]
[null,null,null,null,null,null,null,null,null,null,null,null,null,null,null,null,{"$f":"$B$2","v":"2024-08-10"},{"$f":"TIMEVALUE(TEXT(NOW(),\"hh:mm:ss\"))","v":"16:59:19"},{"$f":"IF(Q17=\"\",\"\",Q17)","v":"醤油ラーメン"},{"$f":"I5","v":0},{"$f":"K5","v":500},{"$f":"T7*U7","v":0}]
[null,null,null,null,null,null,null,null,null,null,null,null,null,null,null,null,{"$f":"$B$2","v":"2024-08-10"},{"$f":"TIMEVALUE(TEXT(NOW(),\"hh:mm:ss\"))","v":"16:59:19"},{"$f":"IF(Q18=\"\",\"\",Q18)","v":"ねぎ醤油ラーメン"},{"$f":"I12","v":0},{"$f":"K12","v":500},{"$f":"T8*U8","v":0}]
[]
[]
[]
[null,null,null,null,null,null,null,null,null,"杯",500,"円／杯",{"$f":"I12*K12","v":0}]
[]
[]
[null,null,null,null,null,null,null,null,null,null,null,"代  金",{"$f":"M5+M12","v":0}]
[null,null,null,null,null,null,null,null,null,null,null,null,null,null,null,null,"商品名","通常価格","前売り券","値下価格"]
[null,null,null,null,null,null,null,null,null,null,null,null,null,null,null,null,"醤油ラーメン",500,300,250,240,230,220,210,200,190,180,170,160,150,140,130,120,110,100,90,80,0]
[null,null,null,null,null,null,null,null,null,null,null,null,null,null,null,null,"ねぎ醤油ラーメン",500,300,250,240,230,220,210,200,190,180,170,160,150,140,130,120,110,100,90,80,0]
[null,"目標売上高まであと、、、、"]
[null,{"$f":"損益計算書!B3-損益分岐点売上高・投資!B3","v":-68640},"円",{"$f":"IF(B20>=0,\"目標達成おめでとう！！！（＾V＾）やったね！！\",\"気合い入れて頑張れ！！！！（＾▽＾）風邪ひかないでね\")","v":"気合い入れて頑張れ！！！！（＾▽＾）風邪ひかないでね"}]

{"sheet":"日記帳","index":5,"n_rows":10003,"n_cols":13,"rows_kept":10003,"cut":false,"hidden":false,"merged":[]}
["日記帳"]
[null,null,null,null,null,null,null,null,null,"各店舗で、商品名、客層を入力してください。"]
["日付","時間","商品名","販売数","販売単価","売上高","客層","メモ",null,"商品名","客層設定"]
[null,null,null,null,null,null,null,null,null,{"$f":"IF(パネル!Q17=\"\",\"\",パネル!Q17)","v":"醤油ラーメン"},"中学生以下"]
[null,null,null,null,null,null,null,null,null,{"$f":"IF(パネル!Q18=\"\",\"\",パネル!Q18)","v":"ねぎ醤油ラーメン"},"高校生"]
[null,null,null,null,null,null,null,null,null,{"$f":"IF(パネル!Q19=\"\",\"\",パネル!Q19)","v":""},"大学生"]
[null,null,null,null,null,null,null,null,null,{"$f":"IF(パネル!Q20=\"\",\"\",パネル!Q20)","v":""},"地域の方"]
[null,null,null,null,null,null,null,null,null,{"$f":"IF(パネル!Q21=\"\",\"\",パネル!Q21)","v":""}]
[null,null,null,null,null,null,null,null,null,{"$f":"IF(パネル!Q22=\"\",\"\",パネル!Q22)","v":""}]
[null,null,null,null,null,null,null,null,null,{"$f":"IF(パネル!Q23=\"\",\"\",パネル!Q23)","v":""}]
[]
[]
[null,null,null,null,null,null,null,null,null,"販売個数",{"$f":"IF(損益分岐点売上高・投資!B10=\"\",\"\",損益分岐点売上高・投資!B10)","v":"2023-11-03"},{"$f":"IF(損益分岐点売上高・投資!B11=\"\",\"\",損益分岐点売上高・投資!B11)","v":"2023-11-04"},"合計"]
[null,null,null,null,null,null,null,null,null,{"$f":"IF(J4=\"\",\"\",J4)","v":"醤油ラーメン"},{"$f":"IF(OR($J14=\"\",K$13=\"\"),\"\",SUMIFS($D$4:$D$10003,$C$4:$C$10003,$J14,$A$4:$A$10003,K$13))","v":0},0,{"$f":"IF($J14=\"\",\"\",SUM(K14:L14))","v":0}]
[null,null,null,null,null,null,null,null,null,"ねぎ醤油ラーメン",0,0,0]
[null,null,null,null,null,null,null,null,null,"","","",""]
[null,null,null,null,null,null,null,null,null,"","","",""]
[null,null,null,null,null,null,null,null,null,"","","",""]
[null,null,null,null,null,null,null,null,null,"","","",""]
[null,null,null,null,null,null,null,null,null,"","","",""]
[null,null,null,null,null,null,null,null,null,"合計",{"$f":"IF(K$13=\"\",\"\",SUM(K14:K20))","v":0},{"$f":"IF(L$13=\"\",\"\",SUM(L14:L20))","v":0},{"$f":"IF(M$13=\"\",\"\",SUM(M14:M20))","v":0}]
[]
[null,null,null,null,null,null,null,null,null,"天候",{"$f":"IF(損益分岐点売上高・投資!B10=\"\",\"\",損益分岐点売上高・投資!B10)","v":"2023-11-03"},{"$f":"IF(損益分岐点売上高・投資!B11=\"\",\"\",損益分岐点売上高・投資!B11)","v":"2023-11-04"}]
[null,null,null,null,null,null,null,null,null,"午前"]
[null,null,null,null,null,null,null,null,null,"午後"]
[null,null,null,null,null,null,null,null,null,"平均気温℃"]
[]
[]
[]
[]
[]
[]
[]
[]
[]
[]
[]
[]
[]
[]
[]
[]
[]
[]
[]
[]
[]
[]
[]
[]
[]
[]
[]
[]
[]
[]
[]
[]
[]
[]
[]
[]
[]
[]
[]
[]
[]
[]
[]
[]
[]
[]
[]
[]
[]
[]
[]
[]
[]
[]
[]
[]
[]
[]
[]
[]
[]
[]
[]
[]
[]
[]
[]
[]
[]
[]
[null,null,null,null,{"$f":"IF(C97=\"\",\"\",VLOOKUP(C97,$J$4:$J$10,2,FALSE))","v":""},{"$f":"IF(E97=\"\",\"\",D97*E97)","v":""}]
[null,null,null,null,"",""]
[null,null,null,null,"",""]
[null,null,null,null,"",""]
[null,null,null,null,"",""]
[null,null,null,null,"",""]
[null,null,null,null,"",""]
[null,null,null,null,"",""]
[null,null,null,null,"",""]
[null,null,null,null,"",""]
[null,null,null,null,"",""]
[null,null,null,null,"",""]
[null,null,null,null,"",""]
[null,null,null,null,"",""]
[null,null,null,null,{"$f":"IF(C111=\"\",\"\",VLOOKUP(C111,$J$4:$J$10,2,FALSE))","v":""},""]
[null,null,null,null,"",""]
[null,null,null,null,"",""]
[null,null,null,null,"",""]
[null,null,null,null,"",""]
[null,null,null,null,"",""]
[null,null,null,null,"",""]
[null,null,null,null,"",""]
[null,null,null,null,"",""]
[null,null,null,null,"",""]
[null,null,null,null,"",""]
[null,null,null,null,"",""]
[null,null,null,null,"",""]
[null,null,null,null,"",""]
[null,null,null,null,"",""]
[null,null,null,null,"",""]
[null,null,null,null,"",{"$f":"IF(E127=\"\",\"\",D127*E127)","v":""}]
[null,null,null,null,"",{"$f":"IF(E128=\"\",\"\",D128*E128)","v":""}]
[null,null,null,null,"",""]
[null,null,null,null,"",""]
[null,null,null,null,"",""]
[null,null,null,null,"",""]
[null,null,null,null,"",""]
[null,null,null,null,"",""]
[null,null,null,null,"",""]
[null,null,null,null,"",""]
[null,null,null,null,"",""]
[null,null,null,null,"",""]
[null,null,null,null,"",""]
[null,null,null,null,"",""]
[null,null,null,null,"",""]
[null,null,null,null,"",""]
[null,null,null,null,"",""]
[null,null,null,null,"",""]
[null,null,null,null,"",""]
[null,null,null,null,"",""]
[null,null,null,null,"",""]
[null,null,null,null,"",""]
[null,null,null,null,"",""]
[null,null,null,null,"",""]
[null,null,null,null,"",""]
[null,null,null,null,"",""]
[null,null,null,null,"",""]
[null,null,null,null,"",{"$f":"IF(E154=\"\",\"\",D154*E154)","v":""}]
[null,null,null,null,"",{"$f":"IF(E155=\"\",\"\",D155*E155)","v":""}]
[null,null,null,null,"",""]
[null,null,null,null,"",""]
[null,null,null,null,"",""]
[null,null,null,null,"",""]
[null,null,null,null,"",""]
[null,null,null,null,"",""]
[null,null,null,null,"",""]
[null,null,null,null,"",""]
[null,null,null,null,"",""]
[null,null,null,null,"",""]
[null,null,null,null,"",""]
[null,null,null,null,"",""]
[null,null,null,null,"",""]
[null,null,null,null,"",""]
[null,null,null,null,"",""]
[null,null,null,null,"",""]
[null,null,null,null,"",""]
[null,null,null,null,"",""]
[null,null,null,null,"",""]
[null,null,null,null,{"$f":"IF(C175=\"\",\"\",VLOOKUP(C175,$J$4:$J$10,2,FALSE))","v":""},""]
[null,null,null,null,"",""]
[null,null,null,null,"",""]
[null,null,null,null,"",""]
[null,null,null,null,"",""]
[null,null,null,null,"",""]
[null,null,null,null,"",{"$f":"IF(E181=\"\",\"\",D181*E181)","v":""}]
[null,null,null,null,"",{"$f":"IF(E182=\"\",\"\",D182*E182)","v":""}]
[null,null,null,null,"",""]
[null,null,null,null,"",""]
[null,null,null,null,"",""]
[null,null,null,null,"",""]
[null,null,null,null,"",""]
[null,null,null,null,"",""]
[null,null,null,null,"",""]
[null,null,null,null,"",""]
[null,null,null,null,"",""]
[null,null,null,null,"",""]
[null,null,null,null,"",""]
[null,null,null,null,"",""]
[null,null,null,null,"",""]
[null,null,null,null,"",""]
[null,null,null,null,"",""]
[null,null,null,null,"",""]
[null,null,null,null,"",""]
[null,null,null,null,"",""]
[null,null,null,null,"",""]
[null,null,null,null,"",""]
[null,null,null,null,"",""]
[null,null,null,null,"",""]
[null,null,null,null,"",""]
[null,null,null,null,"",""]
[null,null,null,null,"",""]
[null,null,null,null,"",""]
[null,null,null,null,"",""]
[null,null,null,null,"",""]
[null,null,null,null,"",""]
[null,null,null,null,"",""]
[null,null,null,null,"",""]
[null,null,null,null,"",""]
[null,null,null,null,"",""]
[null,null,null,null,"",""]
[null,null,null,null,"",""]
[null,null,null,null,"",""]
[null,null,null,null,"",""]
[null,null,null,null,"",{"$f":"IF(E220=\"\",\"\",D220*E220)","v":""}]
[null,null,null,null,"",{"$f":"IF(E221=\"\",\"\",D221*E221)","v":""}]
[null,null,null,null,"",""]
[null,null,null,null,"",""]
[null,null,null,null,"",""]
[null,null,null,null,"",""]
[null,null,null,null,"",""]
[null,null,null,null,"",""]
[null,null,null,null,"",""]
[null,null,null,null,"",""]
[null,null,null,null,"",""]
[null,null,null,null,"",""]
[null,null,null,null,"",""]
[null,null,null,null,"",""]
[null,null,null,null,"",""]
[null,null,null,null,"",""]
[null,null,null,null,"",""]
[null,null,null,null,"",""]
[null,null,null,null,"",""]
[null,null,null,null,{"$f":"IF(C239=\"\",\"\",VLOOKUP(C239,$J$4:$J$10,2,FALSE))","v":""},""]
[null,null,null,null,"",""]
[null,null,null,null,"",""]
[null,null,null,null,"",""]
[null,null,null,null,"",""]
[null,null,null,null,"",""]
[null,null,null,null,"",""]
[null,null,null,null,"",""]
[null,null,null,null,"",{"$f":"IF(E247=\"\",\"\",D247*E247)","v":""}]
[null,null,null,null,"",{"$f":"IF(E248=\"\",\"\",D248*E248)","v":""}]
[null,null,null,null,"",""]
[null,null,null,null,"",""]
[null,null,null,null,"",""]
[null,null,null,null,"",""]
[null,null,null,null,"",""]
[null,null,null,null,"",""]
[null,null,null,null,"",""]
[null,null,null,null,"",""]
[null,null,null,null,"",""]
[null,null,null,null,"",""]
[null,null,null,null,"",""]
[null,null,null,null,"",""]
[null,null,null,null,"",""]
[null,null,null,null,"",""]
[null,null,null,null,"",""]
[null,null,null,null,"",""]
[null,null,null,null,"",""]
[null,null,null,null,"",""]
[null,null,null,null,"",""]
[null,null,null,null,"",""]
[null,null,null,null,"",""]
[null,null,null,null,"",""]
[null,null,null,null,"",""]
[null,null,null,null,"",""]
[null,null,null,null,"",""]
[null,null,null,null,"",{"$f":"IF(E274=\"\",\"\",D274*E274)","v":""}]
[null,null,null,null,"",{"$f":"IF(E275=\"\",\"\",D275*E275)","v":""}]
[null,null,null,null,"",""]
[null,null,null,null,"",""]
[null,null,null,null,"",""]
[null,null,null,null,"",""]
[null,null,null,null,"",""]
[null,null,null,null,"",""]
[null,null,null,null,"",""]
[null,null,null,null,"",""]
[null,null,null,null,"",""]
[null,null,null,null,"",""]
[null,null,null,null,"",""]
[null,null,null,null,"",""]
[null,null,null,null,"",""]
[null,null,null,null,"",""]
[null,null,null,null,"",""]
[null,null,null,null,"",""]
[null,null,null,null,"",""]
[null,null,null,null,"",""]
[null,null,null,null,"",{"$f":"IF(E294=\"\",\"\",D294*E294)","v":""}]
[null,null,null,null,"",""]
[null,null,null,null,"",""]
[null,null,null,null,"",""]
[null,null,null,null,"",""]
[null,null,null,null,"",""]
[null,null,null,null,"",""]
[null,null,null,null,"",""]
[null,null,null,null,"",""]
[null,null,null,null,{"$f":"IF(C303=\"\",\"\",VLOOKUP(C303,$J$4:$J$10,2,FALSE))","v":""},""]
[null,null,null,null,"",""]
[null,null,null,null,"",""]
[null,null,null,null,"",""]
[null,null,null,null,"",""]
[null,null,null,null,"",""]
[null,null,null,null,"",""]
[null,null,null,null,"",""]
[null,null,null,null,"",""]
[null,null,null,null,"",""]
[null,null,null,null,"",""]
[null,null,null,null,"",""]
[null,null,null,null,"",""]
[null,null,null,null,"",""]
[null,null,null,null,"",""]
[null,null,null,null,"",""]
[null,null,null,null,"",""]
[null,null,null,null,"",""]
[null,null,null,null,"",""]
[null,null,null,null,"",""]
[null,null,null,null,"",""]
[null,null,null,null,"",""]
[null,null,null,null,"",""]
[null,null,null,null,"",""]
[null,null,null,null,"",""]
[null,null,null,null,"",{"$f":"IF(E328=\"\",\"\",D328*E328)","v":""}]
[null,null,null,null,"",""]
[null,null,null,null,"",""]
[null,null,null,null,"",""]
[null,null,null,null,"",""]
[null,null,null,null,"",""]
[null,null,null,null,"",""]
[null,null,null,null,"",""]
[null,null,null,null,"",""]
[null,null,null,null,"",""]
[null,null,null,null,"",""]
[null,null,null,null,"",""]
[null,null,null,null,"",""]
[null,null,null,null,"",""]
[null,null,null,null,"",""]
[null,null,null,null,"",""]
[null,null,null,null,"",""]
[null,null,null,null,"",""]
[null,null,null,null,"",""]
[null,null,null,null,"",""]
[null,null,null,null,"",""]
[null,null,null,null,"",""]
[null,null,null,null,"",""]
[null,null,null,null,"",""]
[null,null,null,null,"",""]
[null,null,null,null,"",""]
[null,null,null,null,"",""]
[null,null,null,null,"",""]
[null,null,null,null,"",""]
[null,null,null,null,"",""]
[null,null,null,null,"",""]
[null,null,null,null,"",""]
[null,null,null,null,"",""]
[null,null,null,null,"",""]
[null,null,null,null,"",""]
[null,null,null,null,"",""]
[null,null,null,null,"",""]
[null,null,null,null,"",""]
[null,null,null,null,"",""]
[null,null,null,null,{"$f":"IF(C367=\"\",\"\",VLOOKUP(C367,$J$4:$J$10,2,FALSE))","v":""},""]
[null,null,null,null,"",""]
[null,null,null,null,"",""]
[null,null,null,null,"",""]
[null,null,null,null,"",""]
[null,null,null,null,"",""]
[null,null,null,null,"",""]
[null,null,null,null,"",""]
[null,null,null,null,"",""]
[null,null,null,null,"",""]
[null,null,null,null,"",""]
[null,null,null,null,"",""]
[null,null,null,null,"",""]
[null,null,null,null,"",""]
[null,null,null,null,"",""]
[null,null,null,null,"",""]
[null,null,null,null,"",""]
[null,null,null,null,"",""]
[null,null,null,null,"",""]
[null,null,null,null,"",""]
[null,null,null,null,"",""]
[null,null,null,null,"",""]
[null,null,null,null,"",""]
[null,null,null,null,"",""]
[null,null,null,null,"",""]
[null,null,null,null,"",{"$f":"IF(E392=\"\",\"\",D392*E392)","v":""}]
[null,null,null,null,"",""]
[null,null,null,null,"",""]
[null,null,null,null,"",""]
[null,null,null,null,"",""]
[null,null,null,null,"",""]
[null,null,null,null,"",""]
[null,null,null,null,"",""]
[null,null,null,null,"",""]
[null,null,null,null,"",""]
[null,null,null,null,"",""]
[null,null,null,null,"",""]
[null,null,null,null,"",""]
[null,null,null,null,"",""]
[null,null,null,null,"",""]
[null,null,null,null,"",""]
[null,null,null,null,"",""]
[null,null,null,null,"",""]
[null,null,null,null,"",""]
[null,null,null,null,"",""]
[null,null,null,null,"",""]
[null,null,null,null,"",""]
[null,null,null,null,"",""]
[null,null,null,null,"",""]
[null,null,null,null,"",""]
[null,null,null,null,"",""]
[null,null,null,null,"",""]
[null,null,null,null,"",""]
[null,null,null,null,"",""]
[null,null,null,null,"",""]
[null,null,null,null,"",""]
[null,null,null,null,"",""]
[null,null,null,null,"",""]
[null,null,null,null,"",""]
[null,null,null,null,"",""]
[null,null,null,null,"",""]
[null,null,null,null,"",""]
[null,null,null,null,"",""]
[null,null,null,null,"",""]
[null,null,null,null,{"$f":"IF(C431=\"\",\"\",VLOOKUP(C431,$J$4:$J$10,2,FALSE))","v":""},""]
[null,null,null,null,"",""]
[null,null,null,null,"",""]
[null,null,null,null,"",""]
[null,null,null,null,"",""]
[null,null,null,null,"",""]
[null,null,null,null,"",""]
[null,null,null,null,"",""]
[null,null,null,null,"",""]
[null,null,null,null,"",""]
[null,null,null,null,"",""]
[null,null,null,null,"",""]
[null,null,null,null,"",""]
[null,null,null,null,"",""]
[null,null,null,null,"",""]
[null,null,null,null,"",""]
[null,null,null,null,"",""]
[null,null,null,null,"",""]
[null,null,null,null,"",""]
[null,null,null,null,"",""]
[null,null,null,null,"",""]
[null,null,null,null,"",""]
[null,null,null,null,"",""]
[null,null,null,null,"",""]
[null,null,null,null,"",""]
[null,null,null,null,"",{"$f":"IF(E456=\"\",\"\",D456*E456)","v":""}]
[null,null,null,null,"",""]
[null,null,null,null,"",""]
[null,null,null,null,"",""]
[null,null,null,null,"",""]
[null,null,null,null,"",""]
[null,null,null,null,"",""]
[null,null,null,null,"",""]
[null,null,null,null,"",""]
[null,null,null,null,"",""]
[null,null,null,null,"",""]
[null,null,null,null,"",""]
[null,null,null,null,"",""]
[null,null,null,null,"",""]
[null,null,null,null,"",""]
[null,null,null,null,"",""]
[null,null,null,null,"",""]
[null,null,null,null,"",""]
[null,null,null,null,"",""]
[null,null,null,null,"",""]
[null,null,null,null,"",""]
[null,null,null,null,"",""]
[null,null,null,null,"",""]
[null,null,null,null,"",""]
[null,null,null,null,"",""]
[null,null,null,null,"",""]
[null,null,null,null,"",""]
[null,null,null,null,"",""]
[null,null,null,null,"",""]
[null,null,null,null,"",""]
[null,null,null,null,"",""]
[null,null,null,null,"",""]
[null,null,null,null,"",""]
[null,null,null,null,"",""]
[null,null,null,null,"",""]
[null,null,null,null,"",""]
[null,null,null,null,"",""]
[null,null,null,null,"",""]
[null,null,null,null,"",""]
[null,null,null,null,{"$f":"IF(C495=\"\",\"\",VLOOKUP(C495,$J$4:$J$10,2,FALSE))","v":""},""]
[null,null,null,null,"",""]
[null,null,null,null,"",""]
[null,null,null,null,"",""]
[null,null,null,null,"",""]
[null,null,null,null,"",""]
[null,null,null,null,"",""]
[null,null,null,null,"",""]
[null,null,null,null,"",""]
[null,null,null,null,"",""]
[null,null,null,null,"",""]
[null,null,null,null,"",""]
[null,null,null,null,"",""]
[null,null,null,null,"",""]
[null,null,null,null,"",""]
[null,null,null,null,"",""]
[null,null,null,null,"",""]
[null,null,null,null,"",""]
[null,null,null,null,"",""]
[null,null,null,null,"",""]
[null,null,null,null,"",""]
[null,null,null,null,"",""]
[null,null,null,null,"",""]
[null,null,null,null,"",""]
[null,null,null,null,"",""]
[null,null,null,null,"",{"$f":"IF(E520=\"\",\"\",D520*E520)","v":""}]
[null,null,null,null,"",""]
[null,null,null,null,"",""]
[null,null,null,null,"",""]
[null,null,null,null,"",""]
[null,null,null,null,"",""]
[null,null,null,null,"",""]
[null,null,null,null,"",""]
[null,null,null,null,"",""]
[null,null,null,null,"",""]
[null,null,null,null,"",""]
[null,null,null,null,"",""]
[null,null,null,null,"",""]
[null,null,null,null,"",""]
[null,null,null,null,"",""]
[null,null,null,null,"",""]
[null,null,null,null,"",""]
[null,null,null,null,"",""]
[null,null,null,null,"",""]
[null,null,null,null,"",""]
[null,null,null,null,"",""]
[null,null,null,null,"",""]
[null,null,null,null,"",""]
[null,null,null,null,"",""]
[null,null,null,null,"",""]
[null,null,null,null,"",""]
[null,null,null,null,"",""]
[null,null,null,null,"",""]
[null,null,null,null,"",""]
[null,null,null,null,"",""]
[null,null,null,null,"",""]
[null,null,null,null,"",""]
[null,null,null,null,"",""]
[null,null,null,null,"",""]
[null,null,null,null,"",""]
[null,null,null,null,"",""]
[null,null,null,null,"",""]
[null,null,null,null,"",""]
[null,null,null,null,"",""]
[null,null,null,null,{"$f":"IF(C559=\"\",\"\",VLOOKUP(C559,$J$4:$J$10,2,FALSE))","v":""},""]
[null,null,null,null,"",""]
[null,null,null,null,"",""]
[null,null,null,null,"",""]
[null,null,null,null,"",""]
[null,null,null,null,"",""]
[null,null,null,null,"",""]
[null,null,null,null,"",""]
[null,null,null,null,"",""]
[null,null,null,null,"",""]
[null,null,null,null,"",""]
[null,null,null,null,"",""]
[null,null,null,null,"",""]
[null,null,null,null,"",""]
[null,null,null,null,"",""]
[null,null,null,null,"",""]
[null,null,null,null,"",""]
[null,null,null,null,"",""]
[null,null,null,null,"",""]
[null,null,null,null,"",""]
[null,null,null,null,"",""]
[null,null,null,null,"",""]
[null,null,null,null,"",""]
[null,null,null,null,"",""]
[null,null,null,null,"",""]
[null,null,null,null,"",{"$f":"IF(E584=\"\",\"\",D584*E584)","v":""}]
[null,null,null,null,"",""]
[null,null,null,null,"",""]
[null,null,null,null,"",""]
[null,null,null,null,"",""]
[null,null,null,null,"",""]
[null,null,null,null,"",""]
[null,null,null,null,"",""]
[null,null,null,null,"",""]
[null,null,null,null,"",""]
[null,null,null,null,"",""]
[null,null,null,null,"",""]
[null,null,null,null,"",""]
[null,null,null,null,"",""]
[null,null,null,null,"",""]
[null,null,null,null,"",""]
[null,null,null,null,"",""]
[null,null,null,null,"",""]
[null,null,null,null,"",""]
[null,null,null,null,"",""]
[null,null,null,null,"",""]
[null,null,null,null,"",""]
[null,null,null,null,"",""]
[null,null,null,null,"",""]
[null,null,null,null,"",""]
[null,null,null,null,"",""]
[null,null,null,null,"",""]
[null,null,null,null,"",""]
[null,null,null,null,"",""]
[null,null,null,null,"",""]
[null,null,null,null,"",""]
[null,null,null,null,"",""]
[null,null,null,null,"",""]
[null,null,null,null,"",""]
[null,null,null,null,"",""]
[null,null,null,null,"",""]
[null,null,null,null,"",""]
[null,null,null,null,"",""]
[null,null,null,null,"",""]
[null,null,null,null,{"$f":"IF(C623=\"\",\"\",VLOOKUP(C623,$J$4:$J$10,2,FALSE))","v":""},""]
[null,null,null,null,"",""]
[null,null,null,null,"",""]
[null,null,null,null,"",""]
[null,null,null,null,"",""]
[null,null,null,null,"",""]
[null,null,null,null,"",""]
[null,null,null,null,"",""]
[null,null,null,null,"",""]
[null,null,null,null,"",""]
[null,null,null,null,"",""]
[null,null,null,null,"",""]
[null,null,null,null,"",""]
[null,null,null,null,"",""]
[null,null,null,null,"",""]
[null,null,null,null,"",""]
[null,null,null,null,"",""]
[null,null,null,null,"",""]
[null,null,null,null,"",""]
[null,null,null,null,"",""]
[null,null,null,null,"",""]
[null,null,null,null,"",""]
[null,null,null,null,"",""]
[null,null,null,null,"",""]
[null,null,null,null,"",""]
[null,null,null,null,"",{"$f":"IF(E648=\"\",\"\",D648*E648)","v":""}]
[null,null,null,null,"",""]
[null,null,null,null,"",""]
[null,null,null,null,"",""]
[null,null,null,null,"",""]
[null,null,null,null,"",""]
[null,null,null,null,"",""]
[null,null,null,null,"",""]
[null,null,null,null,"",""]
[null,null,null,null,"",""]
[null,null,null,null,"",""]
[null,null,null,null,"",""]
[null,null,null,null,"",""]
[null,null,null,null,"",""]
[null,null,null,null,"",""]
[null,null,null,null,"",""]
[null,null,null,null,"",""]
[null,null,null,null,"",""]
[null,null,null,null,"",""]
[null,null,null,null,"",""]
[null,null,null,null,"",""]
[null,null,null,null,"",""]
[null,null,null,null,"",""]
[null,null,null,null,"",""]
[null,null,null,null,"",""]
[null,null,null,null,"",""]
[null,null,null,null,"",""]
[null,null,null,null,"",""]
[null,null,null,null,"",""]
[null,null,null,null,"",""]
[null,null,null,null,"",""]
[null,null,null,null,"",""]
[null,null,null,null,"",""]
[null,null,null,null,"",""]
[null,null,null,null,"",""]
[null,null,null,null,"",""]
[null,null,null,null,"",""]
[null,null,null,null,"",""]
[null,null,null,null,"",""]
[null,null,null,null,{"$f":"IF(C687=\"\",\"\",VLOOKUP(C687,$J$4:$J$10,2,FALSE))","v":""},""]
[null,null,null,null,"",""]
[null,null,null,null,"",""]
[null,null,null,null,"",""]
[null,null,null,null,"",""]
[null,null,null,null,"",""]
[null,null,null,null,"",""]
[null,null,null,null,"",""]
[null,null,null,null,"",""]
[null,null,null,null,"",""]
[null,null,null,null,"",""]
[null,null,null,null,"",""]
[null,null,null,null,"",""]
[null,null,null,null,"",""]
[null,null,null,null,"",""]
[null,null,null,null,"",""]
[null,null,null,null,"",""]
[null,null,null,null,"",""]
[null,null,null,null,"",""]
[null,null,null,null,"",""]
[null,null,null,null,"",""]
[null,null,null,null,"",""]
[null,null,null,null,"",""]
[null,null,null,null,"",""]
[null,null,null,null,"",""]
[null,null,null,null,"",{"$f":"IF(E712=\"\",\"\",D712*E712)","v":""}]
[null,null,null,null,"",""]
[null,null,null,null,"",""]
[null,null,null,null,"",""]
[null,null,null,null,"",""]
[null,null,null,null,"",""]
[null,null,null,null,"",""]
[null,null,null,null,"",""]
[null,null,null,null,"",""]
[null,null,null,null,"",""]
[null,null,null,null,"",""]
[null,null,null,null,"",""]
[null,null,null,null,"",""]
[null,null,null,null,"",""]
[null,null,null,null,"",""]
[null,null,null,null,"",""]
[null,null,null,null,"",""]
[null,null,null,null,"",""]
[null,null,null,null,"",""]
[null,null,null,null,"",""]
[null,null,null,null,"",""]
[null,null,null,null,"",""]
[null,null,null,null,"",""]
[null,null,null,null,"",""]
[null,null,null,null,"",""]
[null,null,null,null,"",""]
[null,null,null,null,"",""]
[null,null,null,null,"",""]
[null,null,null,null,"",""]
[null,null,null,null,"",""]
[null,null,null,null,"",""]
[null,null,null,null,"",""]
[null,null,null,null,"",""]
[null,null,null,null,"",""]
[null,null,null,null,"",""]
[null,null,null,null,"",""]
[null,null,null,null,"",""]
[null,null,null,null,"",""]
[null,null,null,null,"",""]
[null,null,null,null,{"$f":"IF(C751=\"\",\"\",VLOOKUP(C751,$J$4:$J$10,2,FALSE))","v":""},""]
[null,null,null,null,"",""]
[null,null,null,null,"",""]
[null,null,null,null,"",""]
[null,null,null,null,"",""]
[null,null,null,null,"",""]
[null,null,null,null,"",""]
[null,null,null,null,"",""]
[null,null,null,null,"",""]
[null,null,null,null,"",""]
[null,null,null,null,"",""]
[null,null,null,null,"",""]
[null,null,null,null,"",""]
[null,null,null,null,"",""]
[null,null,null,null,"",""]
[null,null,null,null,"",""]
[null,null,null,null,"",""]
[null,null,null,null,"",""]
[null,null,null,null,"",""]
[null,null,null,null,"",""]
[null,null,null,null,"",""]
[null,null,null,null,"",""]
[null,null,null,null,"",""]
[null,null,null,null,"",""]
[null,null,null,null,"",""]
[null,null,null,null,"",{"$f":"IF(E776=\"\",\"\",D776*E776)","v":""}]
[null,null,null,null,"",""]
[null,null,null,null,"",""]
[null,null,null,null,"",""]
[null,null,null,null,"",""]
[null,null,null,null,"",""]
[null,null,null,null,"",""]
[null,null,null,null,"",""]
[null,null,null,null,"",""]
[null,null,null,null,"",""]
[null,null,null,null,"",""]
[null,null,null,null,"",""]
[null,null,null,null,"",""]
[null,null,null,null,"",""]
[null,null,null,null,"",""]
[null,null,null,null,"",""]
[null,null,null,null,"",""]
[null,null,null,null,"",""]
[null,null,null,null,"",""]
[null,null,null,null,"",""]
[null,null,null,null,"",""]
[null,null,null,null,"",""]
[null,null,null,null,"",""]
[null,null,null,null,"",""]
[null,null,null,null,"",""]
[null,null,null,null,"",""]
[null,null,null,null,"",""]
[null,null,null,null,"",""]
[null,null,null,null,"",""]
[null,null,null,null,"",""]
[null,null,null,null,"",""]
[null,null,null,null,"",""]
[null,null,null,null,"",""]
[null,null,null,null,"",""]
[null,null,null,null,"",""]
[null,null,null,null,"",""]
[null,null,null,null,"",""]
[null,null,null,null,"",""]
[null,null,null,null,"",""]
[null,null,null,null,{"$f":"IF(C815=\"\",\"\",VLOOKUP(C815,$J$4:$J$10,2,FALSE))","v":""},""]
[null,null,null,null,"",""]
[null,null,null,null,"",""]
[null,null,null,null,"",""]
[null,null,null,null,"",""]
[null,null,null,null,"",""]
[null,null,null,null,"",""]
[null,null,null,null,"",""]
[null,null,null,null,"",""]
[null,null,null,null,"",""]
[null,null,null,null,"",""]
[null,null,null,null,"",""]
[null,null,null,null,"",""]
[null,null,null,null,"",""]
[null,null,null,null,"",""]
[null,null,null,null,"",""]
[null,null,null,null,"",""]
[null,null,null,null,"",""]
[null,null,null,null,"",""]
[null,null,null,null,"",""]
[null,null,null,null,"",""]
[null,null,null,null,"",""]
[null,null,null,null,"",""]
[null,null,null,null,"",""]
[null,null,null,null,"",""]
[null,null,null,null,"",{"$f":"IF(E840=\"\",\"\",D840*E840)","v":""}]
[null,null,null,null,"",""]
[null,null,null,null,"",""]
[null,null,null,null,"",""]
[null,null,null,null,"",""]
[null,null,null,null,"",""]
[null,null,null,null,"",""]
[null,null,null,null,"",""]
[null,null,null,null,"",""]
[null,null,null,null,"",""]
[null,null,null,null,"",""]
[null,null,null,null,"",""]
[null,null,null,null,"",""]
[null,null,null,null,"",""]
[null,null,null,null,"",""]
[null,null,null,null,"",""]
[null,null,null,null,"",""]
[null,null,null,null,"",""]
[null,null,null,null,"",""]
[null,null,null,null,"",""]
[null,null,null,null,"",""]
[null,null,null,null,"",""]
[null,null,null,null,"",""]
[null,null,null,null,"",""]
[null,null,null,null,"",""]
[null,null,null,null,"",""]
[null,null,null,null,"",""]
[null,null,null,null,"",""]
[null,null,null,null,"",""]
[null,null,null,null,"",""]
[null,null,null,null,"",""]
[null,null,null,null,"",""]
[null,null,null,null,"",""]
[null,null,null,null,"",""]
[null,null,null,null,"",""]
[null,null,null,null,"",""]
[null,null,null,null,"",""]
[null,null,null,null,"",""]
[null,null,null,null,"",""]
[null,null,null,null,{"$f":"IF(C879=\"\",\"\",VLOOKUP(C879,$J$4:$J$10,2,FALSE))","v":""},""]
[null,null,null,null,"",""]
[null,null,null,null,"",""]
[null,null,null,null,"",""]
[null,null,null,null,"",""]
[null,null,null,null,"",""]
[null,null,null,null,"",""]
[null,null,null,null,"",""]
[null,null,null,null,"",""]
[null,null,null,null,"",""]
[null,null,null,null,"",""]
[null,null,null,null,"",""]
[null,null,null,null,"",""]
[null,null,null,null,"",""]
[null,null,null,null,"",""]
[null,null,null,null,"",""]
[null,null,null,null,"",""]
[null,null,null,null,"",""]
[null,null,null,null,"",""]
[null,null,null,null,"",""]
[null,null,null,null,"",""]
[null,null,null,null,"",""]
[null,null,null,null,"",""]
[null,null,null,null,"",""]
[null,null,null,null,"",""]
[null,null,null,null,"",{"$f":"IF(E904=\"\",\"\",D904*E904)","v":""}]
[null,null,null,null,"",""]
[null,null,null,null,"",""]
[null,null,null,null,"",""]
[null,null,null,null,"",""]
[null,null,null,null,"",""]
[null,null,null,null,"",""]
[null,null,null,null,"",""]
[null,null,null,null,"",""]
[null,null,null,null,"",""]
[null,null,null,null,"",""]
[null,null,null,null,"",""]
[null,null,null,null,"",""]
[null,null,null,null,"",""]
[null,null,null,null,"",""]
[null,null,null,null,"",""]
[null,null,null,null,"",""]
[null,null,null,null,"",""]
[null,null,null,null,"",""]
[null,null,null,null,"",""]
[null,null,null,null,"",""]
[null,null,null,null,"",""]
[null,null,null,null,"",""]
[null,null,null,null,"",""]
[null,null,null,null,"",""]
[null,null,null,null,"",""]
[null,null,null,null,"",""]
[null,null,null,null,"",""]
[null,null,null,null,"",""]
[null,null,null,null,"",""]
[null,null,null,null,"",""]
[null,null,null,null,"",""]
[null,null,null,null,"",""]
[null,null,null,null,"",""]
[null,null,null,null,"",""]
[null,null,null,null,"",""]
[null,null,null,null,"",""]
[null,null,null,null,"",""]
[null,null,null,null,"",""]
[null,null,null,null,{"$f":"IF(C943=\"\",\"\",VLOOKUP(C943,$J$4:$J$10,2,FALSE))","v":""},""]
[null,null,null,null,"",""]
[null,null,null,null,"",""]
[null,null,null,null,"",""]
[null,null,null,null,"",""]
[null,null,null,null,"",""]
[null,null,null,null,"",""]
[null,null,null,null,"",""]
[null,null,null,null,"",""]
[null,null,null,null,"",""]
[null,null,null,null,"",""]
[null,null,null,null,"",""]
[null,null,null,null,"",""]
[null,null,null,null,"",""]
[null,null,null,null,"",""]
[null,null,null,null,"",""]
[null,null,null,null,"",""]
[null,null,null,null,"",""]
[null,null,null,null,"",""]
[null,null,null,null,"",""]
[null,null,null,null,"",""]
[null,null,null,null,"",""]
[null,null,null,null,"",""]
[null,null,null,null,"",""]
[null,null,null,null,"",""]
[null,null,null,null,"",{"$f":"IF(E968=\"\",\"\",D968*E968)","v":""}]
[null,null,null,null,"",""]
[null,null,null,null,"",""]
[null,null,null,null,"",""]
[null,null,null,null,"",""]
[null,null,null,null,"",""]
[null,null,null,null,"",""]
[null,null,null,null,"",""]
[null,null,null,null,"",""]
[null,null,null,null,"",""]
[null,null,null,null,"",""]
[null,null,null,null,"",""]
[null,null,null,null,"",""]
[null,null,null,null,"",""]
[null,null,null,null,"",""]
[null,null,null,null,"",""]
[null,null,null,null,"",""]
[null,null,null,null,"",""]
[null,null,null,null,"",""]
[null,null,null,null,"",""]
[null,null,null,null,"",""]
[null,null,null,null,"",""]
[null,null,null,null,"",""]
[null,null,null,null,"",""]
[null,null,null,null,"",""]
[null,null,null,null,"",""]
[null,null,null,null,"",""]
[null,null,null,null,"",""]
[null,null,null,null,"",""]
[null,null,null,null,"",""]
[null,null,null,null,"",""]
[null,null,null,null,"",""]
[null,null,null,null,"",""]
[null,null,null,null,"",""]
[null,null,null,null,"",""]
[null,null,null,null,"",""]
[null,null,null,null,"",""]
[null,null,null,null,"",""]
[null,null,null,null,"",""]
[null,null,null,null,{"$f":"IF(C1007=\"\",\"\",VLOOKUP(C1007,$J$4:$J$10,2,FALSE))","v":""},""]
[null,null,null,null,"",""]
[null,null,null,null,"",""]
[null,null,null,null,"",""]
[null,null,null,null,"",""]
[null,null,null,null,"",""]
[null,null,null,null,"",""]
[null,null,null,null,"",""]
[null,null,null,null,"",""]
[null,null,null,null,"",""]
[null,null,null,null,"",""]
[null,null,null,null,"",""]
[null,null,null,null,"",""]
[null,null,null,null,"",""]
[null,null,null,null,"",""]
[null,null,null,null,"",""]
[null,null,null,null,"",""]
[null,null,null,null,"",""]
[null,null,null,null,"",""]
[null,null,null,null,"",""]
[null,null,null,null,"",""]
[null,null,null,null,"",""]
[null,null,null,null,"",""]
[null,null,null,null,"",""]
[null,null,null,null,"",""]
[null,null,null,null,"",{"$f":"IF(E1032=\"\",\"\",D1032*E1032)","v":""}]
[null,null,null,null,"",""]
[null,null,null,null,"",""]
[null,null,null,null,"",""]
[null,null,null,null,"",""]
[null,null,null,null,"",""]
[null,null,null,null,"",""]
[null,null,null,null,"",""]
[null,null,null,null,"",""]
[null,null,null,null,"",""]
[null,null,null,null,"",""]
[null,null,null,null,"",""]
[null,null,null,null,"",""]
[null,null,null,null,"",""]
[null,null,null,null,"",""]
[null,null,null,null,"",""]
[null,null,null,null,"",""]
[null,null,null,null,"",""]
[null,null,null,null,"",""]
[null,null,null,null,"",""]
[null,null,null,null,"",""]
[null,null,null,null,"",""]
[null,null,null,null,"",""]
[null,null,null,null,"",""]
[null,null,null,null,"",""]
[null,null,null,null,"",""]
[null,null,null,null,"",""]
[null,null,null,null,"",""]
[null,null,null,null,"",""]
[null,null,null,null,"",""]
[null,null,null,null,"",""]
[null,null,null,null,"",""]
[null,null,null,null,"",""]
[null,null,null,null,"",""]
[null,null,null,null,"",""]
[null,null,null,null,"",""]
[null,null,null,null,"",""]
[null,null,null,null,"",""]
[null,null,null,null,"",""]
[null,null,null,null,{"$f":"IF(C1071=\"\",\"\",VLOOKUP(C1071,$J$4:$J$10,2,FALSE))","v":""},""]
[null,null,null,null,"",""]
[null,null,null,null,"",""]
[null,null,null,null,"",""]
[null,null,null,null,"",""]
[null,null,null,null,"",""]
[null,null,null,null,"",""]
[null,null,null,null,"",""]
[null,null,null,null,"",""]
[null,null,null,null,"",""]
[null,null,null,null,"",""]
[null,null,null,null,"",""]
[null,null,null,null,"",""]
[null,null,null,null,"",""]
[null,null,null,null,"",""]
[null,null,null,null,"",""]
[null,null,null,null,"",""]
[null,null,null,null,"",""]
[null,null,null,null,"",""]
[null,null,null,null,"",""]
[null,null,null,null,"",""]
[null,null,null,null,"",""]
[null,null,null,null,"",""]
[null,null,null,null,"",""]
[null,null,null,null,"",""]
[null,null,null,null,"",{"$f":"IF(E1096=\"\",\"\",D1096*E1096)","v":""}]
[null,null,null,null,"",""]
[null,null,null,null,"",""]
[null,null,null,null,"",""]
[null,null,null,null,"",""]
[null,null,null,null,"",""]
[null,null,null,null,"",""]
[null,null,null,null,"",""]
[null,null,null,null,"",""]
[null,null,null,null,"",""]
[null,null,null,null,"",""]
[null,null,null,null,"",""]
[null,null,null,null,"",""]
[null,null,null,null,"",""]
[null,null,null,null,"",""]
[null,null,null,null,"",""]
[null,null,null,null,"",""]
[null,null,null,null,"",""]
[null,null,null,null,"",""]
[null,null,null,null,"",""]
[null,null,null,null,"",""]
[null,null,null,null,"",""]
[null,null,null,null,"",""]
[null,null,null,null,"",""]
[null,null,null,null,"",""]
[null,null,null,null,"",""]
[null,null,null,null,"",""]
[null,null,null,null,"",""]
[null,null,null,null,"",""]
[null,null,null,null,"",""]
[null,null,null,null,"",""]
[null,null,null,null,"",""]
[null,null,null,null,"",""]
[null,null,null,null,"",""]
[null,null,null,null,"",""]
[null,null,null,null,"",""]
[null,null,null,null,"",""]
[null,null,null,null,"",""]
[null,null,null,null,"",""]
[null,null,null,null,{"$f":"IF(C1135=\"\",\"\",VLOOKUP(C1135,$J$4:$J$10,2,FALSE))","v":""},""]
[null,null,null,null,"",""]
[null,null,null,null,"",""]
[null,null,null,null,"",""]
[null,null,null,null,"",""]
[null,null,null,null,"",""]
[null,null,null,null,"",""]
[null,null,null,null,"",""]
[null,null,null,null,"",""]
[null,null,null,null,"",""]
[null,null,null,null,"",""]
[null,null,null,null,"",""]
[null,null,null,null,"",""]
[null,null,null,null,"",""]
[null,null,null,null,"",""]
[null,null,null,null,"",""]
[null,null,null,null,"",""]
[null,null,null,null,"",""]
[null,null,null,null,"",""]
[null,null,null,null,"",""]
[null,null,null,null,"",""]
[null,null,null,null,"",""]
[null,null,null,null,"",""]
[null,null,null,null,"",""]
[null,null,null,null,"",""]
[null,null,null,null,"",{"$f":"IF(E1160=\"\",\"\",D1160*E1160)","v":""}]
[null,null,null,null,"",""]
[null,null,null,null,"",""]
[null,null,null,null,"",""]
[null,null,null,null,"",""]
[null,null,null,null,"",""]
[null,null,null,null,"",""]
[null,null,null,null,"",""]
[null,null,null,null,"",""]
[null,null,null,null,"",""]
[null,null,null,null,"",""]
[null,null,null,null,"",""]
[null,null,null,null,"",""]
[null,null,null,null,"",""]
[null,null,null,null,"",""]
[null,null,null,null,"",""]
[null,null,null,null,"",""]
[null,null,null,null,"",""]
[null,null,null,null,"",""]
[null,null,null,null,"",""]
[null,null,null,null,"",""]
[null,null,null,null,"",""]
[null,null,null,null,"",""]
[null,null,null,null,"",""]
[null,null,null,null,"",""]
[null,null,null,null,"",""]
[null,null,null,null,"",""]
[null,null,null,null,"",""]
[null,null,null,null,"",""]
[null,null,null,null,"",""]
[null,null,null,null,"",""]
[null,null,null,null,"",""]
[null,null,null,null,"",""]
[null,null,null,null,"",""]
[null,null,null,null,"",""]
[null,null,null,null,"",""]
[null,null,null,null,"",""]
[null,null,null,null,"",""]
[null,null,null,null,"",""]
[null,null,null,null,{"$f":"IF(C1199=\"\",\"\",VLOOKUP(C1199,$J$4:$J$10,2,FALSE))","v":""},""]
[null,null,null,null,"",""]
[null,null,null,null,"",""]
[null,null,null,null,"",""]
[null,null,null,null,"",""]
[null,null,null,null,"",""]
[null,null,null,null,"",""]
[null,null,null,null,"",""]
[null,null,null,null,"",""]
[null,null,null,null,"",""]
[null,null,null,null,"",""]
[null,null,null,null,"",""]
[null,null,null,null,"",""]
[null,null,null,null,"",""]
[null,null,null,null,"",""]
[null,null,null,null,"",""]
[null,null,null,null,"",""]
[null,null,null,null,"",""]
[null,null,null,null,"",""]
[null,null,null,null,"",""]
[null,null,null,null,"",""]
[null,null,null,null,"",""]
[null,null,null,null,"",""]
[null,null,null,null,"",""]
[null,null,null,null,"",""]
[null,null,null,null,"",{"$f":"IF(E1224=\"\",\"\",D1224*E1224)","v":""}]
[null,null,null,null,"",""]
[null,null,null,null,"",""]
[null,null,null,null,"",""]
[null,null,null,null,"",""]
[null,null,null,null,"",""]
[null,null,null,null,"",""]
[null,null,null,null,"",""]
[null,null,null,null,"",""]
[null,null,null,null,"",""]
[null,null,null,null,"",""]
[null,null,null,null,"",""]
[null,null,null,null,"",""]
[null,null,null,null,"",""]
[null,null,null,null,"",""]
[null,null,null,null,"",""]
[null,null,null,null,"",""]
[null,null,null,null,"",""]
[null,null,null,null,"",""]
[null,null,null,null,"",""]
[null,null,null,null,"",""]
[null,null,null,null,"",""]
[null,null,null,null,"",""]
[null,null,null,null,"",""]
[null,null,null,null,"",""]
[null,null,null,null,"",""]
[null,null,null,null,"",""]
[null,null,null,null,"",""]
[null,null,null,null,"",""]
[null,null,null,null,"",""]
[null,null,null,null,"",""]
[null,null,null,null,"",""]
[null,null,null,null,"",""]
[null,null,null,null,"",""]
[null,null,null,null,"",""]
[null,null,null,null,"",""]
[null,null,null,null,"",""]
[null,null,null,null,"",""]
[null,null,null,null,"",""]
[null,null,null,null,{"$f":"IF(C1263=\"\",\"\",VLOOKUP(C1263,$J$4:$J$10,2,FALSE))","v":""},""]
[null,null,null,null,"",""]
[null,null,null,null,"",""]
[null,null,null,null,"",""]
[null,null,null,null,"",""]
[null,null,null,null,"",""]
[null,null,null,null,"",""]
[null,null,null,null,"",""]
[null,null,null,null,"",""]
[null,null,null,null,"",""]
[null,null,null,null,"",""]
[null,null,null,null,"",""]
[null,null,null,null,"",""]
[null,null,null,null,"",""]
[null,null,null,null,"",""]
[null,null,null,null,"",""]
[null,null,null,null,"",""]
[null,null,null,null,"",""]
[null,null,null,null,"",""]
[null,null,null,null,"",""]
[null,null,null,null,"",""]
[null,null,null,null,"",""]
[null,null,null,null,"",""]
[null,null,null,null,"",""]
[null,null,null,null,"",""]
[null,null,null,null,"",{"$f":"IF(E1288=\"\",\"\",D1288*E1288)","v":""}]
[null,null,null,null,"",""]
[null,null,null,null,"",""]
[null,null,null,null,"",""]
[null,null,null,null,"",""]
[null,null,null,null,"",""]
[null,null,null,null,"",""]
[null,null,null,null,"",""]
[null,null,null,null,"",""]
[null,null,null,null,"",""]
[null,null,null,null,"",""]
[null,null,null,null,"",""]
[null,null,null,null,"",""]
[null,null,null,null,"",""]
[null,null,null,null,"",""]
[null,null,null,null,"",""]
[null,null,null,null,"",""]
[null,null,null,null,"",""]
[null,null,null,null,"",""]
[null,null,null,null,"",""]
[null,null,null,null,"",""]
[null,null,null,null,"",""]
[null,null,null,null,"",""]
[null,null,null,null,"",""]
[null,null,null,null,"",""]
[null,null,null,null,"",""]
[null,null,null,null,"",""]
[null,null,null,null,"",""]
[null,null,null,null,"",""]
[null,null,null,null,"",""]
[null,null,null,null,"",""]
[null,null,null,null,"",""]
[null,null,null,null,"",""]
[null,null,null,null,"",""]
[null,null,null,null,"",""]
[null,null,null,null,"",""]
[null,null,null,null,"",""]
[null,null,null,null,"",""]
[null,null,null,null,"",""]
[null,null,null,null,{"$f":"IF(C1327=\"\",\"\",VLOOKUP(C1327,$J$4:$J$10,2,FALSE))","v":""},""]
[null,null,null,null,"",""]
[null,null,null,null,"",""]
[null,null,null,null,"",""]
[null,null,null,null,"",""]
[null,null,null,null,"",""]
[null,null,null,null,"",""]
[null,null,null,null,"",""]
[null,null,null,null,"",""]
[null,null,null,null,"",""]
[null,null,null,null,"",""]
[null,null,null,null,"",""]
[null,null,null,null,"",""]
[null,null,null,null,"",""]
[null,null,null,null,"",""]
[null,null,null,null,"",""]
[null,null,null,null,"",""]
[null,null,null,null,"",""]
[null,null,null,null,"",""]
[null,null,null,null,"",""]
[null,null,null,null,"",""]
[null,null,null,null,"",""]
[null,null,null,null,"",""]
[null,null,null,null,"",""]
[null,null,null,null,"",""]
[null,null,null,null,"",{"$f":"IF(E1352=\"\",\"\",D1352*E1352)","v":""}]
[null,null,null,null,"",""]
[null,null,null,null,"",""]
[null,null,null,null,"",""]
[null,null,null,null,"",""]
[null,null,null,null,"",""]
[null,null,null,null,"",""]
[null,null,null,null,"",""]
[null,null,null,null,"",""]
[null,null,null,null,"",""]
[null,null,null,null,"",""]
[null,null,null,null,"",""]
[null,null,null,null,"",""]
[null,null,null,null,"",""]
[null,null,null,null,"",""]
[null,null,null,null,"",""]
[null,null,null,null,"",""]
[null,null,null,null,"",""]
[null,null,null,null,"",""]
[null,null,null,null,"",""]
[null,null,null,null,"",""]
[null,null,null,null,"",""]
[null,null,null,null,"",""]
[null,null,null,null,"",""]
[null,null,null,null,"",""]
[null,null,null,null,"",""]
[null,null,null,null,"",""]
[null,null,null,null,"",""]
[null,null,null,null,"",""]
[null,null,null,null,"",""]
[null,null,null,null,"",""]
[null,null,null,null,"",""]
[null,null,null,null,"",""]
[null,null,null,null,"",""]
[null,null,null,null,"",""]
[null,null,null,null,"",""]
[null,null,null,null,"",""]
[null,null,null,null,"",""]
[null,null,null,null,"",""]
[null,null,null,null,{"$f":"IF(C1391=\"\",\"\",VLOOKUP(C1391,$J$4:$J$10,2,FALSE))","v":""},""]
[null,null,null,null,"",""]
[null,null,null,null,"",""]
[null,null,null,null,"",""]
[null,null,null,null,"",""]
[null,null,null,null,"",""]
[null,null,null,null,"",""]
[null,null,null,null,"",""]
[null,null,null,null,"",""]
[null,null,null,null,"",""]
[null,null,null,null,"",""]
[null,null,null,null,"",""]
[null,null,null,null,"",""]
[null,null,null,null,"",""]
[null,null,null,null,"",""]
[null,null,null,null,"",""]
[null,null,null,null,"",""]
[null,null,null,null,"",""]
[null,null,null,null,"",""]
[null,null,null,null,"",""]
[null,null,null,null,"",""]
[null,null,null,null,"",""]
[null,null,null,null,"",""]
[null,null,null,null,"",""]
[null,null,null,null,"",""]
[null,null,null,null,"",{"$f":"IF(E1416=\"\",\"\",D1416*E1416)","v":""}]
[null,null,null,null,"",""]
[null,null,null,null,"",""]
[null,null,null,null,"",""]
[null,null,null,null,"",""]
[null,null,null,null,"",""]
[null,null,null,null,"",""]
[null,null,null,null,"",""]
[null,null,null,null,"",""]
[null,null,null,null,"",""]
[null,null,null,null,"",""]
[null,null,null,null,"",""]
[null,null,null,null,"",""]
[null,null,null,null,"",""]
[null,null,null,null,"",""]
[null,null,null,null,"",""]
[null,null,null,null,"",""]
[null,null,null,null,"",""]
[null,null,null,null,"",""]
[null,null,null,null,"",""]
[null,null,null,null,"",""]
[null,null,null,null,"",""]
[null,null,null,null,"",""]
[null,null,null,null,"",""]
[null,null,null,null,"",""]
[null,null,null,null,"",""]
[null,null,null,null,"",""]
[null,null,null,null,"",""]
[null,null,null,null,"",""]
[null,null,null,null,"",""]
[null,null,null,null,"",""]
[null,null,null,null,"",""]
[null,null,null,null,"",""]
[null,null,null,null,"",""]
[null,null,null,null,"",""]
[null,null,null,null,"",""]
[null,null,null,null,"",""]
[null,null,null,null,"",""]
[null,null,null,null,"",""]
[null,null,null,null,{"$f":"IF(C1455=\"\",\"\",VLOOKUP(C1455,$J$4:$J$10,2,FALSE))","v":""},""]
[null,null,null,null,"",""]
[null,null,null,null,"",""]
[null,null,null,null,"",""]
[null,null,null,null,"",""]
[null,null,null,null,"",""]
[null,null,null,null,"",""]
[null,null,null,null,"",""]
[null,null,null,null,"",""]
[null,null,null,null,"",""]
[null,null,null,null,"",""]
[null,null,null,null,"",""]
[null,null,null,null,"",""]
[null,null,null,null,"",""]
[null,null,null,null,"",""]
[null,null,null,null,"",""]
[null,null,null,null,"",""]
[null,null,null,null,"",""]
[null,null,null,null,"",""]
[null,null,null,null,"",""]
[null,null,null,null,"",""]
[null,null,null,null,"",""]
[null,null,null,null,"",""]
[null,null,null,null,"",""]
[null,null,null,null,"",""]
[null,null,null,null,"",{"$f":"IF(E1480=\"\",\"\",D1480*E1480)","v":""}]
[null,null,null,null,"",""]
[null,null,null,null,"",""]
[null,null,null,null,"",""]
[null,null,null,null,"",""]
[null,null,null,null,"",""]
[null,null,null,null,"",""]
[null,null,null,null,"",""]
[null,null,null,null,"",""]
[null,null,null,null,"",""]
[null,null,null,null,"",""]
[null,null,null,null,"",""]
[null,null,null,null,"",""]
[null,null,null,null,"",""]
[null,null,null,null,"",""]
[null,null,null,null,"",""]
[null,null,null,null,"",""]
[null,null,null,null,"",""]
[null,null,null,null,"",""]
[null,null,null,null,"",""]
[null,null,null,null,"",""]
[null,null,null,null,"",""]
[null,null,null,null,"",""]
[null,null,null,null,"",""]
[null,null,null,null,"",""]
[null,null,null,null,"",""]
[null,null,null,null,"",""]
[null,null,null,null,"",""]
[null,null,null,null,"",""]
[null,null,null,null,"",""]
[null,null,null,null,"",""]
[null,null,null,null,"",""]
[null,null,null,null,"",""]
[null,null,null,null,"",""]
[null,null,null,null,"",""]
[null,null,null,null,"",""]
[null,null,null,null,"",""]
[null,null,null,null,"",""]
[null,null,null,null,"",""]
[null,null,null,null,{"$f":"IF(C1519=\"\",\"\",VLOOKUP(C1519,$J$4:$J$10,2,FALSE))","v":""},""]
[null,null,null,null,"",""]
[null,null,null,null,"",""]
[null,null,null,null,"",""]
[null,null,null,null,"",""]
[null,null,null,null,"",""]
[null,null,null,null,"",""]
[null,null,null,null,"",""]
[null,null,null,null,"",""]
[null,null,null,null,"",""]
[null,null,null,null,"",""]
[null,null,null,null,"",""]
[null,null,null,null,"",""]
[null,null,null,null,"",""]
[null,null,null,null,"",""]
[null,null,null,null,"",""]
[null,null,null,null,"",""]
[null,null,null,null,"",""]
[null,null,null,null,"",""]
[null,null,null,null,"",""]
[null,null,null,null,"",""]
[null,null,null,null,"",""]
[null,null,null,null,"",""]
[null,null,null,null,"",""]
[null,null,null,null,"",""]
[null,null,null,null,"",{"$f":"IF(E1544=\"\",\"\",D1544*E1544)","v":""}]
[null,null,null,null,"",""]
[null,null,null,null,"",""]
[null,null,null,null,"",""]
[null,null,null,null,"",""]
[null,null,null,null,"",""]
[null,null,null,null,"",""]
[null,null,null,null,"",""]
[null,null,null,null,"",""]
[null,null,null,null,"",""]
[null,null,null,null,"",""]
[null,null,null,null,"",""]
[null,null,null,null,"",""]
[null,null,null,null,"",""]
[null,null,null,null,"",""]
[null,null,null,null,"",""]
[null,null,null,null,"",""]
[null,null,null,null,"",""]
[null,null,null,null,"",""]
[null,null,null,null,"",""]
[null,null,null,null,"",""]
[null,null,null,null,"",""]
[null,null,null,null,"",""]
[null,null,null,null,"",""]
[null,null,null,null,"",""]
[null,null,null,null,"",""]
[null,null,null,null,"",""]
[null,null,null,null,"",""]
[null,null,null,null,"",""]
[null,null,null,null,"",""]
[null,null,null,null,"",""]
[null,null,null,null,"",""]
[null,null,null,null,"",""]
[null,null,null,null,"",""]
[null,null,null,null,"",""]
[null,null,null,null,"",""]
[null,null,null,null,"",""]
[null,null,null,null,"",""]
[null,null,null,null,"",""]
[null,null,null,null,{"$f":"IF(C1583=\"\",\"\",VLOOKUP(C1583,$J$4:$J$10,2,FALSE))","v":""},""]
[null,null,null,null,"",""]
[null,null,null,null,"",""]
[null,null,null,null,"",""]
[null,null,null,null,"",""]
[null,null,null,null,"",""]
[null,null,null,null,"",""]
[null,null,null,null,"",""]
[null,null,null,null,"",""]
[null,null,null,null,"",""]
[null,null,null,null,"",""]
[null,null,null,null,"",""]
[null,null,null,null,"",""]
[null,null,null,null,"",""]
[null,null,null,null,"",""]
[null,null,null,null,"",""]
[null,null,null,null,"",""]
[null,null,null,null,"",""]
[null,null,null,null,"",""]
[null,null,null,null,"",""]
[null,null,null,null,"",""]
[null,null,null,null,"",""]
[null,null,null,null,"",""]
[null,null,null,null,"",""]
[null,null,null,null,"",""]
[null,null,null,null,"",{"$f":"IF(E1608=\"\",\"\",D1608*E1608)","v":""}]
[null,null,null,null,"",""]
[null,null,null,null,"",""]
[null,null,null,null,"",""]
[null,null,null,null,"",""]
[null,null,null,null,"",""]
[null,null,null,null,"",""]
[null,null,null,null,"",""]
[null,null,null,null,"",""]
[null,null,null,null,"",""]
[null,null,null,null,"",""]
[null,null,null,null,"",""]
[null,null,null,null,"",""]
[null,null,null,null,"",""]
[null,null,null,null,"",""]
[null,null,null,null,"",""]
[null,null,null,null,"",""]
[null,null,null,null,"",""]
[null,null,null,null,"",""]
[null,null,null,null,"",""]
[null,null,null,null,"",""]
[null,null,null,null,"",""]
[null,null,null,null,"",""]
[null,null,null,null,"",""]
[null,null,null,null,"",""]
[null,null,null,null,"",""]
[null,null,null,null,"",""]
[null,null,null,null,"",""]
[null,null,null,null,"",""]
[null,null,null,null,"",""]
[null,null,null,null,"",""]
[null,null,null,null,"",""]
[null,null,null,null,"",""]
[null,null,null,null,"",""]
[null,null,null,null,"",""]
[null,null,null,null,"",""]
[null,null,null,null,"",""]
[null,null,null,null,"",""]
[null,null,null,null,"",""]
[null,null,null,null,{"$f":"IF(C1647=\"\",\"\",VLOOKUP(C1647,$J$4:$J$10,2,FALSE))","v":""},""]
[null,null,null,null,"",""]
[null,null,null,null,"",""]
[null,null,null,null,"",""]
[null,null,null,null,"",""]
[null,null,null,null,"",""]
[null,null,null,null,"",""]
[null,null,null,null,"",""]
[null,null,null,null,"",""]
[null,null,null,null,"",""]
[null,null,null,null,"",""]
[null,null,null,null,"",""]
[null,null,null,null,"",""]
[null,null,null,null,"",""]
[null,null,null,null,"",""]
[null,null,null,null,"",""]
[null,null,null,null,"",""]
[null,null,null,null,"",""]
[null,null,null,null,"",""]
[null,null,null,null,"",""]
[null,null,null,null,"",""]
[null,null,null,null,"",""]
[null,null,null,null,"",""]
[null,null,null,null,"",""]
[null,null,null,null,"",""]
[null,null,null,null,"",{"$f":"IF(E1672=\"\",\"\",D1672*E1672)","v":""}]
[null,null,null,null,"",""]
[null,null,null,null,"",""]
[null,null,null,null,"",""]
[null,null,null,null,"",""]
[null,null,null,null,"",""]
[null,null,null,null,"",""]
[null,null,null,null,"",""]
[null,null,null,null,"",""]
[null,null,null,null,"",""]
[null,null,null,null,"",""]
[null,null,null,null,"",""]
[null,null,null,null,"",""]
[null,null,null,null,"",""]
[null,null,null,null,"",""]
[null,null,null,null,"",""]
[null,null,null,null,"",""]
[null,null,null,null,"",""]
[null,null,null,null,"",""]
[null,null,null,null,"",""]
[null,null,null,null,"",""]
[null,null,null,null,"",""]
[null,null,null,null,"",""]
[null,null,null,null,"",""]
[null,null,null,null,"",""]
[null,null,null,null,"",""]
[null,null,null,null,"",""]
[null,null,null,null,"",""]
[null,null,null,null,"",""]
[null,null,null,null,"",""]
[null,null,null,null,"",""]
[null,null,null,null,"",""]
[null,null,null,null,"",""]
[null,null,null,null,"",""]
[null,null,null,null,"",""]
[null,null,null,null,"",""]
[null,null,null,null,"",""]
[null,null,null,null,"",""]
[null,null,null,null,"",""]
[null,null,null,null,{"$f":"IF(C1711=\"\",\"\",VLOOKUP(C1711,$J$4:$J$10,2,FALSE))","v":""},""]
[null,null,null,null,"",""]
[null,null,null,null,"",""]
[null,null,null,null,"",""]
[null,null,null,null,"",""]
[null,null,null,null,"",""]
[null,null,null,null,"",""]
[null,null,null,null,"",""]
[null,null,null,null,"",""]
[null,null,null,null,"",""]
[null,null,null,null,"",""]
[null,null,null,null,"",""]
[null,null,null,null,"",""]
[null,null,null,null,"",""]
[null,null,null,null,"",""]
[null,null,null,null,"",""]
[null,null,null,null,"",""]
[null,null,null,null,"",""]
[null,null,null,null,"",""]
[null,null,null,null,"",""]
[null,null,null,null,"",""]
[null,null,null,null,"",""]
[null,null,null,null,"",""]
[null,null,null,null,"",""]
[null,null,null,null,"",""]
[null,null,null,null,"",{"$f":"IF(E1736=\"\",\"\",D1736*E1736)","v":""}]
[null,null,null,null,"",""]
[null,null,null,null,"",""]
[null,null,null,null,"",""]
[null,null,null,null,"",""]
[null,null,null,null,"",""]
[null,null,null,null,"",""]
[null,null,null,null,"",""]
[null,null,null,null,"",""]
[null,null,null,null,"",""]
[null,null,null,null,"",""]
[null,null,null,null,"",""]
[null,null,null,null,"",""]
[null,null,null,null,"",""]
[null,null,null,null,"",""]
[null,null,null,null,"",""]
[null,null,null,null,"",""]
[null,null,null,null,"",""]
[null,null,null,null,"",""]
[null,null,null,null,"",""]
[null,null,null,null,"",""]
[null,null,null,null,"",""]
[null,null,null,null,"",""]
[null,null,null,null,"",""]
[null,null,null,null,"",""]
[null,null,null,null,"",""]
[null,null,null,null,"",""]
[null,null,null,null,"",""]
[null,null,null,null,"",""]
[null,null,null,null,"",""]
[null,null,null,null,"",""]
[null,null,null,null,"",""]
[null,null,null,null,"",""]
[null,null,null,null,"",""]
[null,null,null,null,"",""]
[null,null,null,null,"",""]
[null,null,null,null,"",""]
[null,null,null,null,"",""]
[null,null,null,null,"",""]
[null,null,null,null,{"$f":"IF(C1775=\"\",\"\",VLOOKUP(C1775,$J$4:$J$10,2,FALSE))","v":""},""]
[null,null,null,null,"",""]
[null,null,null,null,"",""]
[null,null,null,null,"",""]
[null,null,null,null,"",""]
[null,null,null,null,"",""]
[null,null,null,null,"",""]
[null,null,null,null,"",""]
[null,null,null,null,"",""]
[null,null,null,null,"",""]
[null,null,null,null,"",""]
[null,null,null,null,"",""]
[null,null,null,null,"",""]
[null,null,null,null,"",""]
[null,null,null,null,"",""]
[null,null,null,null,"",""]
[null,null,null,null,"",""]
[null,null,null,null,"",""]
[null,null,null,null,"",""]
[null,null,null,null,"",""]
[null,null,null,null,"",""]
[null,null,null,null,"",""]
[null,null,null,null,"",""]
[null,null,null,null,"",""]
[null,null,null,null,"",""]
[null,null,null,null,"",{"$f":"IF(E1800=\"\",\"\",D1800*E1800)","v":""}]
[null,null,null,null,"",""]
[null,null,null,null,"",""]
[null,null,null,null,"",""]
[null,null,null,null,"",""]
[null,null,null,null,"",""]
[null,null,null,null,"",""]
[null,null,null,null,"",""]
[null,null,null,null,"",""]
[null,null,null,null,"",""]
[null,null,null,null,"",""]
[null,null,null,null,"",""]
[null,null,null,null,"",""]
[null,null,null,null,"",""]
[null,null,null,null,"",""]
[null,null,null,null,"",""]
[null,null,null,null,"",""]
[null,null,null,null,"",""]
[null,null,null,null,"",""]
[null,null,null,null,"",""]
[null,null,null,null,"",""]
[null,null,null,null,"",""]
[null,null,null,null,"",""]
[null,null,null,null,"",""]
[null,null,null,null,"",""]
[null,null,null,null,"",""]
[null,null,null,null,"",""]
[null,null,null,null,"",""]
[null,null,null,null,"",""]
[null,null,null,null,"",""]
[null,null,null,null,"",""]
[null,null,null,null,"",""]
[null,null,null,null,"",""]
[null,null,null,null,"",""]
[null,null,null,null,"",""]
[null,null,null,null,"",""]
[null,null,null,null,"",""]
[null,null,null,null,"",""]
[null,null,null,null,"",""]
[null,null,null,null,{"$f":"IF(C1839=\"\",\"\",VLOOKUP(C1839,$J$4:$J$10,2,FALSE))","v":""},""]
[null,null,null,null,"",""]
[null,null,null,null,"",""]
[null,null,null,null,"",""]
[null,null,null,null,"",""]
[null,null,null,null,"",""]
[null,null,null,null,"",""]
[null,null,null,null,"",""]
[null,null,null,null,"",""]
[null,null,null,null,"",""]
[null,null,null,null,"",""]
[null,null,null,null,"",""]
[null,null,null,null,"",""]
[null,null,null,null,"",""]
[null,null,null,null,"",""]
[null,null,null,null,"",""]
[null,null,null,null,"",""]
[null,null,null,null,"",""]
[null,null,null,null,"",""]
[null,null,null,null,"",""]
[null,null,null,null,"",""]
[null,null,null,null,"",""]
[null,null,null,null,"",""]
[null,null,null,null,"",""]
[null,null,null,null,"",""]
[null,null,null,null,"",{"$f":"IF(E1864=\"\",\"\",D1864*E1864)","v":""}]
[null,null,null,null,"",""]
[null,null,null,null,"",""]
[null,null,null,null,"",""]
[null,null,null,null,"",""]
[null,null,null,null,"",""]
[null,null,null,null,"",""]
[null,null,null,null,"",""]
[null,null,null,null,"",""]
[null,null,null,null,"",""]
[null,null,null,null,"",""]
[null,null,null,null,"",""]
[null,null,null,null,"",""]
[null,null,null,null,"",""]
[null,null,null,null,"",""]
[null,null,null,null,"",""]
[null,null,null,null,"",""]
[null,null,null,null,"",""]
[null,null,null,null,"",""]
[null,null,null,null,"",""]
[null,null,null,null,"",""]
[null,null,null,null,"",""]
[null,null,null,null,"",""]
[null,null,null,null,"",""]
[null,null,null,null,"",""]
[null,null,null,null,"",""]
[null,null,null,null,"",""]
[null,null,null,null,"",""]
[null,null,null,null,"",""]
[null,null,null,null,"",""]
[null,null,null,null,"",""]
[null,null,null,null,"",""]
[null,null,null,null,"",""]
[null,null,null,null,"",""]
[null,null,null,null,"",""]
[null,null,null,null,"",""]
[null,null,null,null,"",""]
[null,null,null,null,"",""]
[null,null,null,null,"",""]
[null,null,null,null,{"$f":"IF(C1903=\"\",\"\",VLOOKUP(C1903,$J$4:$J$10,2,FALSE))","v":""},""]
[null,null,null,null,"",""]
[null,null,null,null,"",""]
[null,null,null,null,"",""]
[null,null,null,null,"",""]
[null,null,null,null,"",""]
[null,null,null,null,"",""]
[null,null,null,null,"",""]
[null,null,null,null,"",""]
[null,null,null,null,"",""]
[null,null,null,null,"",""]
[null,null,null,null,"",""]
[null,null,null,null,"",""]
[null,null,null,null,"",""]
[null,null,null,null,"",""]
[null,null,null,null,"",""]
[null,null,null,null,"",""]
[null,null,null,null,"",""]
[null,null,null,null,"",""]
[null,null,null,null,"",""]
[null,null,null,null,"",""]
[null,null,null,null,"",""]
[null,null,null,null,"",""]
[null,null,null,null,"",""]
[null,null,null,null,"",""]
[null,null,null,null,"",{"$f":"IF(E1928=\"\",\"\",D1928*E1928)","v":""}]
[null,null,null,null,"",""]
[null,null,null,null,"",""]
[null,null,null,null,"",""]
[null,null,null,null,"",""]
[null,null,null,null,"",""]
[null,null,null,null,"",""]
[null,null,null,null,"",""]
[null,null,null,null,"",""]
[null,null,null,null,"",""]
[null,null,null,null,"",""]
[null,null,null,null,"",""]
[null,null,null,null,"",""]
[null,null,null,null,"",""]
[null,null,null,null,"",""]
[null,null,null,null,"",""]
[null,null,null,null,"",""]
[null,null,null,null,"",""]
[null,null,null,null,"",""]
[null,null,null,null,"",""]
[null,null,null,null,"",""]
[null,null,null,null,"",""]
[null,null,null,null,"",""]
[null,null,null,null,"",""]
[null,null,null,null,"",""]
[null,null,null,null,"",""]
[null,null,null,null,"",""]
[null,null,null,null,"",""]
[null,null,null,null,"",""]
[null,null,null,null,"",""]
[null,null,null,null,"",""]
[null,null,null,null,"",""]
[null,null,null,null,"",""]
[null,null,null,null,"",""]
[null,null,null,null,"",""]
[null,null,null,null,"",""]
[null,null,null,null,"",""]
[null,null,null,null,"",""]
[null,null,null,null,"",""]
[null,null,null,null,{"$f":"IF(C1967=\"\",\"\",VLOOKUP(C1967,$J$4:$J$10,2,FALSE))","v":""},""]
[null,null,null,null,"",""]
[null,null,null,null,"",""]
[null,null,null,null,"",""]
[null,null,null,null,"",""]
[null,null,null,null,"",""]
[null,null,null,null,"",""]
[null,null,null,null,"",""]
[null,null,null,null,"",""]
[null,null,null,null,"",""]
[null,null,null,null,"",""]
[null,null,null,null,"",""]
[null,null,null,null,"",""]
[null,null,null,null,"",""]
[null,null,null,null,"",""]
[null,null,null,null,"",""]
[null,null,null,null,"",""]
[null,null,null,null,"",""]
[null,null,null,null,"",""]
[null,null,null,null,"",""]
[null,null,null,null,"",""]
[null,null,null,null,"",""]
[null,null,null,null,"",""]
[null,null,null,null,"",""]
[null,null,null,null,"",""]
[null,null,null,null,"",{"$f":"IF(E1992=\"\",\"\",D1992*E1992)","v":""}]
[null,null,null,null,"",""]
[null,null,null,null,"",""]
[null,null,null,null,"",""]
[null,null,null,null,"",""]
[null,null,null,null,"",""]
[null,null,null,null,"",""]
[null,null,null,null,"",""]
[null,null,null,null,"",""]
[null,null,null,null,"",""]
[null,null,null,null,"",""]
[null,null,null,null,"",""]
[null,null,null,null,"",""]
[null,null,null,null,"",""]
[null,null,null,null,"",""]
[null,null,null,null,"",""]
[null,null,null,null,"",""]
[null,null,null,null,"",""]
[null,null,null,null,"",""]
[null,null,null,null,"",""]
[null,null,null,null,"",""]
[null,null,null,null,"",""]
[null,null,null,null,"",""]
[null,null,null,null,"",""]
[null,null,null,null,"",""]
[null,null,null,null,"",""]
[null,null,null,null,"",""]
[null,null,null,null,"",""]
[null,null,null,null,"",""]
[null,null,null,null,"",""]
[null,null,null,null,"",""]
[null,null,null,null,"",""]
[null,null,null,null,"",""]
[null,null,null,null,"",""]
[null,null,null,null,"",""]
[null,null,null,null,"",""]
[null,null,null,null,"",""]
[null,null,null,null,"",""]
[null,null,null,null,"",""]
[null,null,null,null,{"$f":"IF(C2031=\"\",\"\",VLOOKUP(C2031,$J$4:$J$10,2,FALSE))","v":""},""]
[null,null,null,null,"",""]
[null,null,null,null,"",""]
[null,null,null,null,"",""]
[null,null,null,null,"",""]
[null,null,null,null,"",""]
[null,null,null,null,"",""]
[null,null,null,null,"",""]
[null,null,null,null,"",""]
[null,null,null,null,"",""]
[null,null,null,null,"",""]
[null,null,null,null,"",""]
[null,null,null,null,"",""]
[null,null,null,null,"",""]
[null,null,null,null,"",""]
[null,null,null,null,"",""]
[null,null,null,null,"",""]
[null,null,null,null,"",""]
[null,null,null,null,"",""]
[null,null,null,null,"",""]
[null,null,null,null,"",""]
[null,null,null,null,"",""]
[null,null,null,null,"",""]
[null,null,null,null,"",""]
[null,null,null,null,"",""]
[null,null,null,null,"",{"$f":"IF(E2056=\"\",\"\",D2056*E2056)","v":""}]
[null,null,null,null,"",""]
[null,null,null,null,"",""]
[null,null,null,null,"",""]
[null,null,null,null,"",""]
[null,null,null,null,"",""]
[null,null,null,null,"",""]
[null,null,null,null,"",""]
[null,null,null,null,"",""]
[null,null,null,null,"",""]
[null,null,null,null,"",""]
[null,null,null,null,"",""]
[null,null,null,null,"",""]
[null,null,null,null,"",""]
[null,null,null,null,"",""]
[null,null,null,null,"",""]
[null,null,null,null,"",""]
[null,null,null,null,"",""]
[null,null,null,null,"",""]
[null,null,null,null,"",""]
[null,null,null,null,"",""]
[null,null,null,null,"",""]
[null,null,null,null,"",""]
[null,null,null,null,"",""]
[null,null,null,null,"",""]
[null,null,null,null,"",""]
[null,null,null,null,"",""]
[null,null,null,null,"",""]
[null,null,null,null,"",""]
[null,null,null,null,"",""]
[null,null,null,null,"",""]
[null,null,null,null,"",""]
[null,null,null,null,"",""]
[null,null,null,null,"",""]
[null,null,null,null,"",""]
[null,null,null,null,"",""]
[null,null,null,null,"",""]
[null,null,null,null,"",""]
[null,null,null,null,"",""]
[null,null,null,null,{"$f":"IF(C2095=\"\",\"\",VLOOKUP(C2095,$J$4:$J$10,2,FALSE))","v":""},""]
[null,null,null,null,"",""]
[null,null,null,null,"",""]
[null,null,null,null,"",""]
[null,null,null,null,"",""]
[null,null,null,null,"",""]
[null,null,null,null,"",""]
[null,null,null,null,"",""]
[null,null,null,null,"",""]
[null,null,null,null,"",""]
[null,null,null,null,"",""]
[null,null,null,null,"",""]
[null,null,null,null,"",""]
[null,null,null,null,"",""]
[null,null,null,null,"",""]
[null,null,null,null,"",""]
[null,null,null,null,"",""]
[null,null,null,null,"",""]
[null,null,null,null,"",""]
[null,null,null,null,"",""]
[null,null,null,null,"",""]
[null,null,null,null,"",""]
[null,null,null,null,"",""]
[null,null,null,null,"",""]
[null,null,null,null,"",""]
[null,null,null,null,"",{"$f":"IF(E2120=\"\",\"\",D2120*E2120)","v":""}]
[null,null,null,null,"",""]
[null,null,null,null,"",""]
[null,null,null,null,"",""]
[null,null,null,null,"",""]
[null,null,null,null,"",""]
[null,null,null,null,"",""]
[null,null,null,null,"",""]
[null,null,null,null,"",""]
[null,null,null,null,"",""]
[null,null,null,null,"",""]
[null,null,null,null,"",""]
[null,null,null,null,"",""]
[null,null,null,null,"",""]
[null,null,null,null,"",""]
[null,null,null,null,"",""]
[null,null,null,null,"",""]
[null,null,null,null,"",""]
[null,null,null,null,"",""]
[null,null,null,null,"",""]
[null,null,null,null,"",""]
[null,null,null,null,"",""]
[null,null,null,null,"",""]
[null,null,null,null,"",""]
[null,null,null,null,"",""]
[null,null,null,null,"",""]
[null,null,null,null,"",""]
[null,null,null,null,"",""]
[null,null,null,null,"",""]
[null,null,null,null,"",""]
[null,null,null,null,"",""]
[null,null,null,null,"",""]
[null,null,null,null,"",""]
[null,null,null,null,"",""]
[null,null,null,null,"",""]
[null,null,null,null,"",""]
[null,null,null,null,"",""]
[null,null,null,null,"",""]
[null,null,null,null,"",""]
[null,null,null,null,{"$f":"IF(C2159=\"\",\"\",VLOOKUP(C2159,$J$4:$J$10,2,FALSE))","v":""},""]
[null,null,null,null,"",""]
[null,null,null,null,"",""]
[null,null,null,null,"",""]
[null,null,null,null,"",""]
[null,null,null,null,"",""]
[null,null,null,null,"",""]
[null,null,null,null,"",""]
[null,null,null,null,"",""]
[null,null,null,null,"",""]
[null,null,null,null,"",""]
[null,null,null,null,"",""]
[null,null,null,null,"",""]
[null,null,null,null,"",""]
[null,null,null,null,"",""]
[null,null,null,null,"",""]
[null,null,null,null,"",""]
[null,null,null,null,"",""]
[null,null,null,null,"",""]
[null,null,null,null,"",""]
[null,null,null,null,"",""]
[null,null,null,null,"",""]
[null,null,null,null,"",""]
[null,null,null,null,"",""]
[null,null,null,null,"",""]
[null,null,null,null,"",{"$f":"IF(E2184=\"\",\"\",D2184*E2184)","v":""}]
[null,null,null,null,"",""]
[null,null,null,null,"",""]
[null,null,null,null,"",""]
[null,null,null,null,"",""]
[null,null,null,null,"",""]
[null,null,null,null,"",""]
[null,null,null,null,"",""]
[null,null,null,null,"",""]
[null,null,null,null,"",""]
[null,null,null,null,"",""]
[null,null,null,null,"",""]
[null,null,null,null,"",""]
[null,null,null,null,"",""]
[null,null,null,null,"",""]
[null,null,null,null,"",""]
[null,null,null,null,"",""]
[null,null,null,null,"",""]
[null,null,null,null,"",""]
[null,null,null,null,"",""]
[null,null,null,null,"",""]
[null,null,null,null,"",""]
[null,null,null,null,"",""]
[null,null,null,null,"",""]
[null,null,null,null,"",""]
[null,null,null,null,"",""]
[null,null,null,null,"",""]
[null,null,null,null,"",""]
[null,null,null,null,"",""]
[null,null,null,null,"",""]
[null,null,null,null,"",""]
[null,null,null,null,"",""]
[null,null,null,null,"",""]
[null,null,null,null,"",""]
[null,null,null,null,"",""]
[null,null,null,null,"",""]
[null,null,null,null,"",""]
[null,null,null,null,"",""]
[null,null,null,null,"",""]
[null,null,null,null,{"$f":"IF(C2223=\"\",\"\",VLOOKUP(C2223,$J$4:$J$10,2,FALSE))","v":""},""]
[null,null,null,null,"",""]
[null,null,null,null,"",""]
[null,null,null,null,"",""]
[null,null,null,null,"",""]
[null,null,null,null,"",""]
[null,null,null,null,"",""]
[null,null,null,null,"",""]
[null,null,null,null,"",""]
[null,null,null,null,"",""]
[null,null,null,null,"",""]
[null,null,null,null,"",""]
[null,null,null,null,"",""]
[null,null,null,null,"",""]
[null,null,null,null,"",""]
[null,null,null,null,"",""]
[null,null,null,null,"",""]
[null,null,null,null,"",""]
[null,null,null,null,"",""]
[null,null,null,null,"",""]
[null,null,null,null,"",""]
[null,null,null,null,"",""]
[null,null,null,null,"",""]
[null,null,null,null,"",""]
[null,null,null,null,"",""]
[null,null,null,null,"",{"$f":"IF(E2248=\"\",\"\",D2248*E2248)","v":""}]
[null,null,null,null,"",""]
[null,null,null,null,"",""]
[null,null,null,null,"",""]
[null,null,null,null,"",""]
[null,null,null,null,"",""]
[null,null,null,null,"",""]
[null,null,null,null,"",""]
[null,null,null,null,"",""]
[null,null,null,null,"",""]
[null,null,null,null,"",""]
[null,null,null,null,"",""]
[null,null,null,null,"",""]
[null,null,null,null,"",""]
[null,null,null,null,"",""]
[null,null,null,null,"",""]
[null,null,null,null,"",""]
[null,null,null,null,"",""]
[null,null,null,null,"",""]
[null,null,null,null,"",""]
[null,null,null,null,"",""]
[null,null,null,null,"",""]
[null,null,null,null,"",""]
[null,null,null,null,"",""]
[null,null,null,null,"",""]
[null,null,null,null,"",""]
[null,null,null,null,"",""]
[null,null,null,null,"",""]
[null,null,null,null,"",""]
[null,null,null,null,"",""]
[null,null,null,null,"",""]
[null,null,null,null,"",""]
[null,null,null,null,"",""]
[null,null,null,null,"",""]
[null,null,null,null,"",""]
[null,null,null,null,"",""]
[null,null,null,null,"",""]
[null,null,null,null,"",""]
[null,null,null,null,"",""]
[null,null,null,null,{"$f":"IF(C2287=\"\",\"\",VLOOKUP(C2287,$J$4:$J$10,2,FALSE))","v":""},""]
[null,null,null,null,"",""]
[null,null,null,null,"",""]
[null,null,null,null,"",""]
[null,null,null,null,"",""]
[null,null,null,null,"",""]
[null,null,null,null,"",""]
[null,null,null,null,"",""]
[null,null,null,null,"",""]
[null,null,null,null,"",""]
[null,null,null,null,"",""]
[null,null,null,null,"",""]
[null,null,null,null,"",""]
[null,null,null,null,"",""]
[null,null,null,null,"",""]
[null,null,null,null,"",""]
[null,null,null,null,"",""]
[null,null,null,null,"",""]
[null,null,null,null,"",""]
[null,null,null,null,"",""]
[null,null,null,null,"",""]
[null,null,null,null,"",""]
[null,null,null,null,"",""]
[null,null,null,null,"",""]
[null,null,null,null,"",""]
[null,null,null,null,"",{"$f":"IF(E2312=\"\",\"\",D2312*E2312)","v":""}]
[null,null,null,null,"",""]
[null,null,null,null,"",""]
[null,null,null,null,"",""]
[null,null,null,null,"",""]
[null,null,null,null,"",""]
[null,null,null,null,"",""]
[null,null,null,null,"",""]
[null,null,null,null,"",""]
[null,null,null,null,"",""]
[null,null,null,null,"",""]
[null,null,null,null,"",""]
[null,null,null,null,"",""]
[null,null,null,null,"",""]
[null,null,null,null,"",""]
[null,null,null,null,"",""]
[null,null,null,null,"",""]
[null,null,null,null,"",""]
[null,null,null,null,"",""]
[null,null,null,null,"",""]
[null,null,null,null,"",""]
[null,null,null,null,"",""]
[null,null,null,null,"",""]
[null,null,null,null,"",""]
[null,null,null,null,"",""]
[null,null,null,null,"",""]
[null,null,null,null,"",""]
[null,null,null,null,"",""]
[null,null,null,null,"",""]
[null,null,null,null,"",""]
[null,null,null,null,"",""]
[null,null,null,null,"",""]
[null,null,null,null,"",""]
[null,null,null,null,"",""]
[null,null,null,null,"",""]
[null,null,null,null,"",""]
[null,null,null,null,"",""]
[null,null,null,null,"",""]
[null,null,null,null,"",""]
[null,null,null,null,{"$f":"IF(C2351=\"\",\"\",VLOOKUP(C2351,$J$4:$J$10,2,FALSE))","v":""},""]
[null,null,null,null,"",""]
[null,null,null,null,"",""]
[null,null,null,null,"",""]
[null,null,null,null,"",""]
[null,null,null,null,"",""]
[null,null,null,null,"",""]
[null,null,null,null,"",""]
[null,null,null,null,"",""]
[null,null,null,null,"",""]
[null,null,null,null,"",""]
[null,null,null,null,"",""]
[null,null,null,null,"",""]
[null,null,null,null,"",""]
[null,null,null,null,"",""]
[null,null,null,null,"",""]
[null,null,null,null,"",""]
[null,null,null,null,"",""]
[null,null,null,null,"",""]
[null,null,null,null,"",""]
[null,null,null,null,"",""]
[null,null,null,null,"",""]
[null,null,null,null,"",""]
[null,null,null,null,"",""]
[null,null,null,null,"",""]
[null,null,null,null,"",{"$f":"IF(E2376=\"\",\"\",D2376*E2376)","v":""}]
[null,null,null,null,"",""]
[null,null,null,null,"",""]
[null,null,null,null,"",""]
[null,null,null,null,"",""]
[null,null,null,null,"",""]
[null,null,null,null,"",""]
[null,null,null,null,"",""]
[null,null,null,null,"",""]
[null,null,null,null,"",""]
[null,null,null,null,"",""]
[null,null,null,null,"",""]
[null,null,null,null,"",""]
[null,null,null,null,"",""]
[null,null,null,null,"",""]
[null,null,null,null,"",""]
[null,null,null,null,"",""]
[null,null,null,null,"",""]
[null,null,null,null,"",""]
[null,null,null,null,"",""]
[null,null,null,null,"",""]
[null,null,null,null,"",""]
[null,null,null,null,"",""]
[null,null,null,null,"",""]
[null,null,null,null,"",""]
[null,null,null,null,"",""]
[null,null,null,null,"",""]
[null,null,null,null,"",""]
[null,null,null,null,"",""]
[null,null,null,null,"",""]
[null,null,null,null,"",""]
[null,null,null,null,"",""]
[null,null,null,null,"",""]
[null,null,null,null,"",""]
[null,null,null,null,"",""]
[null,null,null,null,"",""]
[null,null,null,null,"",""]
[null,null,null,null,"",""]
[null,null,null,null,"",""]
[null,null,null,null,{"$f":"IF(C2415=\"\",\"\",VLOOKUP(C2415,$J$4:$J$10,2,FALSE))","v":""},""]
[null,null,null,null,"",""]
[null,null,null,null,"",""]
[null,null,null,null,"",""]
[null,null,null,null,"",""]
[null,null,null,null,"",""]
[null,null,null,null,"",""]
[null,null,null,null,"",""]
[null,null,null,null,"",""]
[null,null,null,null,"",""]
[null,null,null,null,"",""]
[null,null,null,null,"",""]
[null,null,null,null,"",""]
[null,null,null,null,"",""]
[null,null,null,null,"",""]
[null,null,null,null,"",""]
[null,null,null,null,"",""]
[null,null,null,null,"",""]
[null,null,null,null,"",""]
[null,null,null,null,"",""]
[null,null,null,null,"",""]
[null,null,null,null,"",""]
[null,null,null,null,"",""]
[null,null,null,null,"",""]
[null,null,null,null,"",""]
[null,null,null,null,"",{"$f":"IF(E2440=\"\",\"\",D2440*E2440)","v":""}]
[null,null,null,null,"",""]
[null,null,null,null,"",""]
[null,null,null,null,"",""]
[null,null,null,null,"",""]
[null,null,null,null,"",""]
[null,null,null,null,"",""]
[null,null,null,null,"",""]
[null,null,null,null,"",""]
[null,null,null,null,"",""]
[null,null,null,null,"",""]
[null,null,null,null,"",""]
[null,null,null,null,"",""]
[null,null,null,null,"",""]
[null,null,null,null,"",""]
[null,null,null,null,"",""]
[null,null,null,null,"",""]
[null,null,null,null,"",""]
[null,null,null,null,"",""]
[null,null,null,null,"",""]
[null,null,null,null,"",""]
[null,null,null,null,"",""]
[null,null,null,null,"",""]
[null,null,null,null,"",""]
[null,null,null,null,"",""]
[null,null,null,null,"",""]
[null,null,null,null,"",""]
[null,null,null,null,"",""]
[null,null,null,null,"",""]
[null,null,null,null,"",""]
[null,null,null,null,"",""]
[null,null,null,null,"",""]
[null,null,null,null,"",""]
[null,null,null,null,"",""]
[null,null,null,null,"",""]
[null,null,null,null,"",""]
[null,null,null,null,"",""]
[null,null,null,null,"",""]
[null,null,null,null,"",""]
[null,null,null,null,{"$f":"IF(C2479=\"\",\"\",VLOOKUP(C2479,$J$4:$J$10,2,FALSE))","v":""},""]
[null,null,null,null,"",""]
[null,null,null,null,"",""]
[null,null,null,null,"",""]
[null,null,null,null,"",""]
[null,null,null,null,"",""]
[null,null,null,null,"",""]
[null,null,null,null,"",""]
[null,null,null,null,"",""]
[null,null,null,null,"",""]
[null,null,null,null,"",""]
[null,null,null,null,"",""]
[null,null,null,null,"",""]
[null,null,null,null,"",""]
[null,null,null,null,"",""]
[null,null,null,null,"",""]
[null,null,null,null,"",""]
[null,null,null,null,"",""]
[null,null,null,null,"",""]
[null,null,null,null,"",""]
[null,null,null,null,"",""]
[null,null,null,null,"",""]
[null,null,null,null,"",""]
[null,null,null,null,"",""]
[null,null,null,null,"",""]
[null,null,null,null,"",{"$f":"IF(E2504=\"\",\"\",D2504*E2504)","v":""}]
[null,null,null,null,"",""]
[null,null,null,null,"",""]
[null,null,null,null,"",""]
[null,null,null,null,"",""]
[null,null,null,null,"",""]
[null,null,null,null,"",""]
[null,null,null,null,"",""]
[null,null,null,null,"",""]
[null,null,null,null,"",""]
[null,null,null,null,"",""]
[null,null,null,null,"",""]
[null,null,null,null,"",""]
[null,null,null,null,"",""]
[null,null,null,null,"",""]
[null,null,null,null,"",""]
[null,null,null,null,"",""]
[null,null,null,null,"",""]
[null,null,null,null,"",""]
[null,null,null,null,"",""]
[null,null,null,null,"",""]
[null,null,null,null,"",""]
[null,null,null,null,"",""]
[null,null,null,null,"",""]
[null,null,null,null,"",""]
[null,null,null,null,"",""]
[null,null,null,null,"",""]
[null,null,null,null,"",""]
[null,null,null,null,"",""]
[null,null,null,null,"",""]
[null,null,null,null,"",""]
[null,null,null,null,"",""]
[null,null,null,null,"",""]
[null,null,null,null,"",""]
[null,null,null,null,"",""]
[null,null,null,null,"",""]
[null,null,null,null,"",""]
[null,null,null,null,"",""]
[null,null,null,null,"",""]
[null,null,null,null,{"$f":"IF(C2543=\"\",\"\",VLOOKUP(C2543,$J$4:$J$10,2,FALSE))","v":""},""]
[null,null,null,null,"",""]
[null,null,null,null,"",""]
[null,null,null,null,"",""]
[null,null,null,null,"",""]
[null,null,null,null,"",""]
[null,null,null,null,"",""]
[null,null,null,null,"",""]
[null,null,null,null,"",""]
[null,null,null,null,"",""]
[null,null,null,null,"",""]
[null,null,null,null,"",""]
[null,null,null,null,"",""]
[null,null,null,null,"",""]
[null,null,null,null,"",""]
[null,null,null,null,"",""]
[null,null,null,null,"",""]
[null,null,null,null,"",""]
[null,null,null,null,"",""]
[null,null,null,null,"",""]
[null,null,null,null,"",""]
[null,null,null,null,"",""]
[null,null,null,null,"",""]
[null,null,null,null,"",""]
[null,null,null,null,"",""]
[null,null,null,null,"",{"$f":"IF(E2568=\"\",\"\",D2568*E2568)","v":""}]
[null,null,null,null,"",""]
[null,null,null,null,"",""]
[null,null,null,null,"",""]
[null,null,null,null,"",""]
[null,null,null,null,"",""]
[null,null,null,null,"",""]
[null,null,null,null,"",""]
[null,null,null,null,"",""]
[null,null,null,null,"",""]
[null,null,null,null,"",""]
[null,null,null,null,"",""]
[null,null,null,null,"",""]
[null,null,null,null,"",""]
[null,null,null,null,"",""]
[null,null,null,null,"",""]
[null,null,null,null,"",""]
[null,null,null,null,"",""]
[null,null,null,null,"",""]
[null,null,null,null,"",""]
[null,null,null,null,"",""]
[null,null,null,null,"",""]
[null,null,null,null,"",""]
[null,null,null,null,"",""]
[null,null,null,null,"",""]
[null,null,null,null,"",""]
[null,null,null,null,"",""]
[null,null,null,null,"",""]
[null,null,null,null,"",""]
[null,null,null,null,"",""]
[null,null,null,null,"",""]
[null,null,null,null,"",""]
[null,null,null,null,"",""]
[null,null,null,null,"",""]
[null,null,null,null,"",""]
[null,null,null,null,"",""]
[null,null,null,null,"",""]
[null,null,null,null,"",""]
[null,null,null,null,"",""]
[null,null,null,null,{"$f":"IF(C2607=\"\",\"\",VLOOKUP(C2607,$J$4:$J$10,2,FALSE))","v":""},""]
[null,null,null,null,"",""]
[null,null,null,null,"",""]
[null,null,null,null,"",""]
[null,null,null,null,"",""]
[null,null,null,null,"",""]
[null,null,null,null,"",""]
[null,null,null,null,"",""]
[null,null,null,null,"",""]
[null,null,null,null,"",""]
[null,null,null,null,"",""]
[null,null,null,null,"",""]
[null,null,null,null,"",""]
[null,null,null,null,"",""]
[null,null,null,null,"",""]
[null,null,null,null,"",""]
[null,null,null,null,"",""]
[null,null,null,null,"",""]
[null,null,null,null,"",""]
[null,null,null,null,"",""]
[null,null,null,null,"",""]
[null,null,null,null,"",""]
[null,null,null,null,"",""]
[null,null,null,null,"",""]
[null,null,null,null,"",""]
[null,null,null,null,"",{"$f":"IF(E2632=\"\",\"\",D2632*E2632)","v":""}]
[null,null,null,null,"",""]
[null,null,null,null,"",""]
[null,null,null,null,"",""]
[null,null,null,null,"",""]
[null,null,null,null,"",""]
[null,null,null,null,"",""]
[null,null,null,null,"",""]
[null,null,null,null,"",""]
[null,null,null,null,"",""]
[null,null,null,null,"",""]
[null,null,null,null,"",""]
[null,null,null,null,"",""]
[null,null,null,null,"",""]
[null,null,null,null,"",""]
[null,null,null,null,"",""]
[null,null,null,null,"",""]
[null,null,null,null,"",""]
[null,null,null,null,"",""]
[null,null,null,null,"",""]
[null,null,null,null,"",""]
[null,null,null,null,"",""]
[null,null,null,null,"",""]
[null,null,null,null,"",""]
[null,null,null,null,"",""]
[null,null,null,null,"",""]
[null,null,null,null,"",""]
[null,null,null,null,"",""]
[null,null,null,null,"",""]
[null,null,null,null,"",""]
[null,null,null,null,"",""]
[null,null,null,null,"",""]
[null,null,null,null,"",""]
[null,null,null,null,"",""]
[null,null,null,null,"",""]
[null,null,null,null,"",""]
[null,null,null,null,"",""]
[null,null,null,null,"",""]
[null,null,null,null,"",""]
[null,null,null,null,{"$f":"IF(C2671=\"\",\"\",VLOOKUP(C2671,$J$4:$J$10,2,FALSE))","v":""},""]
[null,null,null,null,"",""]
[null,null,null,null,"",""]
[null,null,null,null,"",""]
[null,null,null,null,"",""]
[null,null,null,null,"",""]
[null,null,null,null,"",""]
[null,null,null,null,"",""]
[null,null,null,null,"",""]
[null,null,null,null,"",""]
[null,null,null,null,"",""]
[null,null,null,null,"",""]
[null,null,null,null,"",""]
[null,null,null,null,"",""]
[null,null,null,null,"",""]
[null,null,null,null,"",""]
[null,null,null,null,"",""]
[null,null,null,null,"",""]
[null,null,null,null,"",""]
[null,null,null,null,"",""]
[null,null,null,null,"",""]
[null,null,null,null,"",""]
[null,null,null,null,"",""]
[null,null,null,null,"",""]
[null,null,null,null,"",""]
[null,null,null,null,"",{"$f":"IF(E2696=\"\",\"\",D2696*E2696)","v":""}]
[null,null,null,null,"",""]
[null,null,null,null,"",""]
[null,null,null,null,"",""]
[null,null,null,null,"",""]
[null,null,null,null,"",""]
[null,null,null,null,"",""]
[null,null,null,null,"",""]
[null,null,null,null,"",""]
[null,null,null,null,"",""]
[null,null,null,null,"",""]
[null,null,null,null,"",""]
[null,null,null,null,"",""]
[null,null,null,null,"",""]
[null,null,null,null,"",""]
[null,null,null,null,"",""]
[null,null,null,null,"",""]
[null,null,null,null,"",""]
[null,null,null,null,"",""]
[null,null,null,null,"",""]
[null,null,null,null,"",""]
[null,null,null,null,"",""]
[null,null,null,null,"",""]
[null,null,null,null,"",""]
[null,null,null,null,"",""]
[null,null,null,null,"",""]
[null,null,null,null,"",""]
[null,null,null,null,"",""]
[null,null,null,null,"",""]
[null,null,null,null,"",""]
[null,null,null,null,"",""]
[null,null,null,null,"",""]
[null,null,null,null,"",""]
[null,null,null,null,"",""]
[null,null,null,null,"",""]
[null,null,null,null,"",""]
[null,null,null,null,"",""]
[null,null,null,null,"",""]
[null,null,null,null,"",""]
[null,null,null,null,{"$f":"IF(C2735=\"\",\"\",VLOOKUP(C2735,$J$4:$J$10,2,FALSE))","v":""},""]
[null,null,null,null,"",""]
[null,null,null,null,"",""]
[null,null,null,null,"",""]
[null,null,null,null,"",""]
[null,null,null,null,"",""]
[null,null,null,null,"",""]
[null,null,null,null,"",""]
[null,null,null,null,"",""]
[null,null,null,null,"",""]
[null,null,null,null,"",""]
[null,null,null,null,"",""]
[null,null,null,null,"",""]
[null,null,null,null,"",""]
[null,null,null,null,"",""]
[null,null,null,null,"",""]
[null,null,null,null,"",""]
[null,null,null,null,"",""]
[null,null,null,null,"",""]
[null,null,null,null,"",""]
[null,null,null,null,"",""]
[null,null,null,null,"",""]
[null,null,null,null,"",""]
[null,null,null,null,"",""]
[null,null,null,null,"",""]
[null,null,null,null,"",{"$f":"IF(E2760=\"\",\"\",D2760*E2760)","v":""}]
[null,null,null,null,"",""]
[null,null,null,null,"",""]
[null,null,null,null,"",""]
[null,null,null,null,"",""]
[null,null,null,null,"",""]
[null,null,null,null,"",""]
[null,null,null,null,"",""]
[null,null,null,null,"",""]
[null,null,null,null,"",""]
[null,null,null,null,"",""]
[null,null,null,null,"",""]
[null,null,null,null,"",""]
[null,null,null,null,"",""]
[null,null,null,null,"",""]
[null,null,null,null,"",""]
[null,null,null,null,"",""]
[null,null,null,null,"",""]
[null,null,null,null,"",""]
[null,null,null,null,"",""]
[null,null,null,null,"",""]
[null,null,null,null,"",""]
[null,null,null,null,"",""]
[null,null,null,null,"",""]
[null,null,null,null,"",""]
[null,null,null,null,"",""]
[null,null,null,null,"",""]
[null,null,null,null,"",""]
[null,null,null,null,"",""]
[null,null,null,null,"",""]
[null,null,null,null,"",""]
[null,null,null,null,"",""]
[null,null,null,null,"",""]
[null,null,null,null,"",""]
[null,null,null,null,"",""]
[null,null,null,null,"",""]
[null,null,null,null,"",""]
[null,null,null,null,"",""]
[null,null,null,null,"",""]
[null,null,null,null,{"$f":"IF(C2799=\"\",\"\",VLOOKUP(C2799,$J$4:$J$10,2,FALSE))","v":""},""]
[null,null,null,null,"",""]
[null,null,null,null,"",""]
[null,null,null,null,"",""]
[null,null,null,null,"",""]
[null,null,null,null,"",""]
[null,null,null,null,"",""]
[null,null,null,null,"",""]
[null,null,null,null,"",""]
[null,null,null,null,"",""]
[null,null,null,null,"",""]
[null,null,null,null,"",""]
[null,null,null,null,"",""]
[null,null,null,null,"",""]
[null,null,null,null,"",""]
[null,null,null,null,"",""]
[null,null,null,null,"",""]
[null,null,null,null,"",""]
[null,null,null,null,"",""]
[null,null,null,null,"",""]
[null,null,null,null,"",""]
[null,null,null,null,"",""]
[null,null,null,null,"",""]
[null,null,null,null,"",""]
[null,null,null,null,"",""]
[null,null,null,null,"",{"$f":"IF(E2824=\"\",\"\",D2824*E2824)","v":""}]
[null,null,null,null,"",""]
[null,null,null,null,"",""]
[null,null,null,null,"",""]
[null,null,null,null,"",""]
[null,null,null,null,"",""]
[null,null,null,null,"",""]
[null,null,null,null,"",""]
[null,null,null,null,"",""]
[null,null,null,null,"",""]
[null,null,null,null,"",""]
[null,null,null,null,"",""]
[null,null,null,null,"",""]
[null,null,null,null,"",""]
[null,null,null,null,"",""]
[null,null,null,null,"",""]
[null,null,null,null,"",""]
[null,null,null,null,"",""]
[null,null,null,null,"",""]
[null,null,null,null,"",""]
[null,null,null,null,"",""]
[null,null,null,null,"",""]
[null,null,null,null,"",""]
[null,null,null,null,"",""]
[null,null,null,null,"",""]
[null,null,null,null,"",""]
[null,null,null,null,"",""]
[null,null,null,null,"",""]
[null,null,null,null,"",""]
[null,null,null,null,"",""]
[null,null,null,null,"",""]
[null,null,null,null,"",""]
[null,null,null,null,"",""]
[null,null,null,null,"",""]
[null,null,null,null,"",""]
[null,null,null,null,"",""]
[null,null,null,null,"",""]
[null,null,null,null,"",""]
[null,null,null,null,"",""]
[null,null,null,null,{"$f":"IF(C2863=\"\",\"\",VLOOKUP(C2863,$J$4:$J$10,2,FALSE))","v":""},""]
[null,null,null,null,"",""]
[null,null,null,null,"",""]
[null,null,null,null,"",""]
[null,null,null,null,"",""]
[null,null,null,null,"",""]
[null,null,null,null,"",""]
[null,null,null,null,"",""]
[null,null,null,null,"",""]
[null,null,null,null,"",""]
[null,null,null,null,"",""]
[null,null,null,null,"",""]
[null,null,null,null,"",""]
[null,null,null,null,"",""]
[null,null,null,null,"",""]
[null,null,null,null,"",""]
[null,null,null,null,"",""]
[null,null,null,null,"",""]
[null,null,null,null,"",""]
[null,null,null,null,"",""]
[null,null,null,null,"",""]
[null,null,null,null,"",""]
[null,null,null,null,"",""]
[null,null,null,null,"",""]
[null,null,null,null,"",""]
[null,null,null,null,"",{"$f":"IF(E2888=\"\",\"\",D2888*E2888)","v":""}]
[null,null,null,null,"",""]
[null,null,null,null,"",""]
[null,null,null,null,"",""]
[null,null,null,null,"",""]
[null,null,null,null,"",""]
[null,null,null,null,"",""]
[null,null,null,null,"",""]
[null,null,null,null,"",""]
[null,null,null,null,"",""]
[null,null,null,null,"",""]
[null,null,null,null,"",""]
[null,null,null,null,"",""]
[null,null,null,null,"",""]
[null,null,null,null,"",""]
[null,null,null,null,"",""]
[null,null,null,null,"",""]
[null,null,null,null,"",""]
[null,null,null,null,"",""]
[null,null,null,null,"",""]
[null,null,null,null,"",""]
[null,null,null,null,"",""]
[null,null,null,null,"",""]
[null,null,null,null,"",""]
[null,null,null,null,"",""]
[null,null,null,null,"",""]
[null,null,null,null,"",""]
[null,null,null,null,"",""]
[null,null,null,null,"",""]
[null,null,null,null,"",""]
[null,null,null,null,"",""]
[null,null,null,null,"",""]
[null,null,null,null,"",""]
[null,null,null,null,"",""]
[null,null,null,null,"",""]
[null,null,null,null,"",""]
[null,null,null,null,"",""]
[null,null,null,null,"",""]
[null,null,null,null,"",""]
[null,null,null,null,{"$f":"IF(C2927=\"\",\"\",VLOOKUP(C2927,$J$4:$J$10,2,FALSE))","v":""},""]
[null,null,null,null,"",""]
[null,null,null,null,"",""]
[null,null,null,null,"",""]
[null,null,null,null,"",""]
[null,null,null,null,"",""]
[null,null,null,null,"",""]
[null,null,null,null,"",""]
[null,null,null,null,"",""]
[null,null,null,null,"",""]
[null,null,null,null,"",""]
[null,null,null,null,"",""]
[null,null,null,null,"",""]
[null,null,null,null,"",""]
[null,null,null,null,"",""]
[null,null,null,null,"",""]
[null,null,null,null,"",""]
[null,null,null,null,"",""]
[null,null,null,null,"",""]
[null,null,null,null,"",""]
[null,null,null,null,"",""]
[null,null,null,null,"",""]
[null,null,null,null,"",""]
[null,null,null,null,"",""]
[null,null,null,null,"",""]
[null,null,null,null,"",{"$f":"IF(E2952=\"\",\"\",D2952*E2952)","v":""}]
[null,null,null,null,"",""]
[null,null,null,null,"",""]
[null,null,null,null,"",""]
[null,null,null,null,"",""]
[null,null,null,null,"",""]
[null,null,null,null,"",""]
[null,null,null,null,"",""]
[null,null,null,null,"",""]
[null,null,null,null,"",""]
[null,null,null,null,"",""]
[null,null,null,null,"",""]
[null,null,null,null,"",""]
[null,null,null,null,"",""]
[null,null,null,null,"",""]
[null,null,null,null,"",""]
[null,null,null,null,"",""]
[null,null,null,null,"",""]
[null,null,null,null,"",""]
[null,null,null,null,"",""]
[null,null,null,null,"",""]
[null,null,null,null,"",""]
[null,null,null,null,"",""]
[null,null,null,null,"",""]
[null,null,null,null,"",""]
[null,null,null,null,"",""]
[null,null,null,null,"",""]
[null,null,null,null,"",""]
[null,null,null,null,"",""]
[null,null,null,null,"",""]
[null,null,null,null,"",""]
[null,null,null,null,"",""]
[null,null,null,null,"",""]
[null,null,null,null,"",""]
[null,null,null,null,"",""]
[null,null,null,null,"",""]
[null,null,null,null,"",""]
[null,null,null,null,"",""]
[null,null,null,null,"",""]
[null,null,null,null,{"$f":"IF(C2991=\"\",\"\",VLOOKUP(C2991,$J$4:$J$10,2,FALSE))","v":""},""]
[null,null,null,null,"",""]
[null,null,null,null,"",""]
[null,null,null,null,"",""]
[null,null,null,null,"",""]
[null,null,null,null,"",""]
[null,null,null,null,"",""]
[null,null,null,null,"",""]
[null,null,null,null,"",""]
[null,null,null,null,"",""]
[null,null,null,null,"",""]
[null,null,null,null,"",""]
[null,null,null,null,"",""]
[null,null,null,null,"",""]
[null,null,null,null,"",""]
[null,null,null,null,"",""]
[null,null,null,null,"",""]
[null,null,null,null,"",""]
[null,null,null,null,"",""]
[null,null,null,null,"",""]
[null,null,null,null,"",""]
[null,null,null,null,"",""]
[null,null,null,null,"",""]
[null,null,null,null,"",""]
[null,null,null,null,"",""]
[null,null,null,null,"",{"$f":"IF(E3016=\"\",\"\",D3016*E3016)","v":""}]
[null,null,null,null,"",""]
[null,null,null,null,"",""]
[null,null,null,null,"",""]
[null,null,null,null,"",""]
[null,null,null,null,"",""]
[null,null,null,null,"",""]
[null,null,null,null,"",""]
[null,null,null,null,"",""]
[null,null,null,null,"",""]
[null,null,null,null,"",""]
[null,null,null,null,"",""]
[null,null,null,null,"",""]
[null,null,null,null,"",""]
[null,null,null,null,"",""]
[null,null,null,null,"",""]
[null,null,null,null,"",""]
[null,null,null,null,"",""]
[null,null,null,null,"",""]
[null,null,null,null,"",""]
[null,null,null,null,"",""]
[null,null,null,null,"",""]
[null,null,null,null,"",""]
[null,null,null,null,"",""]
[null,null,null,null,"",""]
[null,null,null,null,"",""]
[null,null,null,null,"",""]
[null,null,null,null,"",""]
[null,null,null,null,"",""]
[null,null,null,null,"",""]
[null,null,null,null,"",""]
[null,null,null,null,"",""]
[null,null,null,null,"",""]
[null,null,null,null,"",""]
[null,null,null,null,"",""]
[null,null,null,null,"",""]
[null,null,null,null,"",""]
[null,null,null,null,"",""]
[null,null,null,null,"",""]
[null,null,null,null,{"$f":"IF(C3055=\"\",\"\",VLOOKUP(C3055,$J$4:$J$10,2,FALSE))","v":""},""]
[null,null,null,null,"",""]
[null,null,null,null,"",""]
[null,null,null,null,"",""]
[null,null,null,null,"",""]
[null,null,null,null,"",""]
[null,null,null,null,"",""]
[null,null,null,null,"",""]
[null,null,null,null,"",""]
[null,null,null,null,"",""]
[null,null,null,null,"",""]
[null,null,null,null,"",""]
[null,null,null,null,"",""]
[null,null,null,null,"",""]
[null,null,null,null,"",""]
[null,null,null,null,"",""]
[null,null,null,null,"",""]
[null,null,null,null,"",""]
[null,null,null,null,"",""]
[null,null,null,null,"",""]
[null,null,null,null,"",""]
[null,null,null,null,"",""]
[null,null,null,null,"",""]
[null,null,null,null,"",""]
[null,null,null,null,"",""]
[null,null,null,null,"",{"$f":"IF(E3080=\"\",\"\",D3080*E3080)","v":""}]
[null,null,null,null,"",""]
[null,null,null,null,"",""]
[null,null,null,null,"",""]
[null,null,null,null,"",""]
[null,null,null,null,"",""]
[null,null,null,null,"",""]
[null,null,null,null,"",""]
[null,null,null,null,"",""]
[null,null,null,null,"",""]
[null,null,null,null,"",""]
[null,null,null,null,"",""]
[null,null,null,null,"",""]
[null,null,null,null,"",""]
[null,null,null,null,"",""]
[null,null,null,null,"",""]
[null,null,null,null,"",""]
[null,null,null,null,"",""]
[null,null,null,null,"",""]
[null,null,null,null,"",""]
[null,null,null,null,"",""]
[null,null,null,null,"",""]
[null,null,null,null,"",""]
[null,null,null,null,"",""]
[null,null,null,null,"",""]
[null,null,null,null,"",""]
[null,null,null,null,"",""]
[null,null,null,null,"",""]
[null,null,null,null,"",""]
[null,null,null,null,"",""]
[null,null,null,null,"",""]
[null,null,null,null,"",""]
[null,null,null,null,"",""]
[null,null,null,null,"",""]
[null,null,null,null,"",""]
[null,null,null,null,"",""]
[null,null,null,null,"",""]
[null,null,null,null,"",""]
[null,null,null,null,"",""]
[null,null,null,null,{"$f":"IF(C3119=\"\",\"\",VLOOKUP(C3119,$J$4:$J$10,2,FALSE))","v":""},""]
[null,null,null,null,"",""]
[null,null,null,null,"",""]
[null,null,null,null,"",""]
[null,null,null,null,"",""]
[null,null,null,null,"",""]
[null,null,null,null,"",""]
[null,null,null,null,"",""]
[null,null,null,null,"",""]
[null,null,null,null,"",""]
[null,null,null,null,"",""]
[null,null,null,null,"",""]
[null,null,null,null,"",""]
[null,null,null,null,"",""]
[null,null,null,null,"",""]
[null,null,null,null,"",""]
[null,null,null,null,"",""]
[null,null,null,null,"",""]
[null,null,null,null,"",""]
[null,null,null,null,"",""]
[null,null,null,null,"",""]
[null,null,null,null,"",""]
[null,null,null,null,"",""]
[null,null,null,null,"",""]
[null,null,null,null,"",""]
[null,null,null,null,"",{"$f":"IF(E3144=\"\",\"\",D3144*E3144)","v":""}]
[null,null,null,null,"",""]
[null,null,null,null,"",""]
[null,null,null,null,"",""]
[null,null,null,null,"",""]
[null,null,null,null,"",""]
[null,null,null,null,"",""]
[null,null,null,null,"",""]
[null,null,null,null,"",""]
[null,null,null,null,"",""]
[null,null,null,null,"",""]
[null,null,null,null,"",""]
[null,null,null,null,"",""]
[null,null,null,null,"",""]
[null,null,null,null,"",""]
[null,null,null,null,"",""]
[null,null,null,null,"",""]
[null,null,null,null,"",""]
[null,null,null,null,"",""]
[null,null,null,null,"",""]
[null,null,null,null,"",""]
[null,null,null,null,"",""]
[null,null,null,null,"",""]
[null,null,null,null,"",""]
[null,null,null,null,"",""]
[null,null,null,null,"",""]
[null,null,null,null,"",""]
[null,null,null,null,"",""]
[null,null,null,null,"",""]
[null,null,null,null,"",""]
[null,null,null,null,"",""]
[null,null,null,null,"",""]
[null,null,null,null,"",""]
[null,null,null,null,"",""]
[null,null,null,null,"",""]
[null,null,null,null,"",""]
[null,null,null,null,"",""]
[null,null,null,null,"",""]
[null,null,null,null,"",""]
[null,null,null,null,{"$f":"IF(C3183=\"\",\"\",VLOOKUP(C3183,$J$4:$J$10,2,FALSE))","v":""},""]
[null,null,null,null,"",""]
[null,null,null,null,"",""]
[null,null,null,null,"",""]
[null,null,null,null,"",""]
[null,null,null,null,"",""]
[null,null,null,null,"",""]
[null,null,null,null,"",""]
[null,null,null,null,"",""]
[null,null,null,null,"",""]
[null,null,null,null,"",""]
[null,null,null,null,"",""]
[null,null,null,null,"",""]
[null,null,null,null,"",""]
[null,null,null,null,"",""]
[null,null,null,null,"",""]
[null,null,null,null,"",""]
[null,null,null,null,"",""]
[null,null,null,null,"",""]
[null,null,null,null,"",""]
[null,null,null,null,"",""]
[null,null,null,null,"",""]
[null,null,null,null,"",""]
[null,null,null,null,"",""]
[null,null,null,null,"",""]
[null,null,null,null,"",{"$f":"IF(E3208=\"\",\"\",D3208*E3208)","v":""}]
[null,null,null,null,"",""]
[null,null,null,null,"",""]
[null,null,null,null,"",""]
[null,null,null,null,"",""]
[null,null,null,null,"",""]
[null,null,null,null,"",""]
[null,null,null,null,"",""]
[null,null,null,null,"",""]
[null,null,null,null,"",""]
[null,null,null,null,"",""]
[null,null,null,null,"",""]
[null,null,null,null,"",""]
[null,null,null,null,"",""]
[null,null,null,null,"",""]
[null,null,null,null,"",""]
[null,null,null,null,"",""]
[null,null,null,null,"",""]
[null,null,null,null,"",""]
[null,null,null,null,"",""]
[null,null,null,null,"",""]
[null,null,null,null,"",""]
[null,null,null,null,"",""]
[null,null,null,null,"",""]
[null,null,null,null,"",""]
[null,null,null,null,"",""]
[null,null,null,null,"",""]
[null,null,null,null,"",""]
[null,null,null,null,"",""]
[null,null,null,null,"",""]
[null,null,null,null,"",""]
[null,null,null,null,"",""]
[null,null,null,null,"",""]
[null,null,null,null,"",""]
[null,null,null,null,"",""]
[null,null,null,null,"",""]
[null,null,null,null,"",""]
[null,null,null,null,"",""]
[null,null,null,null,"",""]
[null,null,null,null,{"$f":"IF(C3247=\"\",\"\",VLOOKUP(C3247,$J$4:$J$10,2,FALSE))","v":""},""]
[null,null,null,null,"",""]
[null,null,null,null,"",""]
[null,null,null,null,"",""]
[null,null,null,null,"",""]
[null,null,null,null,"",""]
[null,null,null,null,"",""]
[null,null,null,null,"",""]
[null,null,null,null,"",""]
[null,null,null,null,"",""]
[null,null,null,null,"",""]
[null,null,null,null,"",""]
[null,null,null,null,"",""]
[null,null,null,null,"",""]
[null,null,null,null,"",""]
[null,null,null,null,"",""]
[null,null,null,null,"",""]
[null,null,null,null,"",""]
[null,null,null,null,"",""]
[null,null,null,null,"",""]
[null,null,null,null,"",""]
[null,null,null,null,"",""]
[null,null,null,null,"",""]
[null,null,null,null,"",""]
[null,null,null,null,"",""]
[null,null,null,null,"",{"$f":"IF(E3272=\"\",\"\",D3272*E3272)","v":""}]
[null,null,null,null,"",""]
[null,null,null,null,"",""]
[null,null,null,null,"",""]
[null,null,null,null,"",""]
[null,null,null,null,"",""]
[null,null,null,null,"",""]
[null,null,null,null,"",""]
[null,null,null,null,"",""]
[null,null,null,null,"",""]
[null,null,null,null,"",""]
[null,null,null,null,"",""]
[null,null,null,null,"",""]
[null,null,null,null,"",""]
[null,null,null,null,"",""]
[null,null,null,null,"",""]
[null,null,null,null,"",""]
[null,null,null,null,"",""]
[null,null,null,null,"",""]
[null,null,null,null,"",""]
[null,null,null,null,"",""]
[null,null,null,null,"",""]
[null,null,null,null,"",""]
[null,null,null,null,"",""]
[null,null,null,null,"",""]
[null,null,null,null,"",""]
[null,null,null,null,"",""]
[null,null,null,null,"",""]
[null,null,null,null,"",""]
[null,null,null,null,"",""]
[null,null,null,null,"",""]
[null,null,null,null,"",""]
[null,null,null,null,"",""]
[null,null,null,null,"",""]
[null,null,null,null,"",""]
[null,null,null,null,"",""]
[null,null,null,null,"",""]
[null,null,null,null,"",""]
[null,null,null,null,"",""]
[null,null,null,null,{"$f":"IF(C3311=\"\",\"\",VLOOKUP(C3311,$J$4:$J$10,2,FALSE))","v":""},""]
[null,null,null,null,"",""]
[null,null,null,null,"",""]
[null,null,null,null,"",""]
[null,null,null,null,"",""]
[null,null,null,null,"",""]
[null,null,null,null,"",""]
[null,null,null,null,"",""]
[null,null,null,null,"",""]
[null,null,null,null,"",""]
[null,null,null,null,"",""]
[null,null,null,null,"",""]
[null,null,null,null,"",""]
[null,null,null,null,"",""]
[null,null,null,null,"",""]
[null,null,null,null,"",""]
[null,null,null,null,"",""]
[null,null,null,null,"",""]
[null,null,null,null,"",""]
[null,null,null,null,"",""]
[null,null,null,null,"",""]
[null,null,null,null,"",""]
[null,null,null,null,"",""]
[null,null,null,null,"",""]
[null,null,null,null,"",""]
[null,null,null,null,"",{"$f":"IF(E3336=\"\",\"\",D3336*E3336)","v":""}]
[null,null,null,null,"",""]
[null,null,null,null,"",""]
[null,null,null,null,"",""]
[null,null,null,null,"",""]
[null,null,null,null,"",""]
[null,null,null,null,"",""]
[null,null,null,null,"",""]
[null,null,null,null,"",""]
[null,null,null,null,"",""]
[null,null,null,null,"",""]
[null,null,null,null,"",""]
[null,null,null,null,"",""]
[null,null,null,null,"",""]
[null,null,null,null,"",""]
[null,null,null,null,"",""]
[null,null,null,null,"",""]
[null,null,null,null,"",""]
[null,null,null,null,"",""]
[null,null,null,null,"",""]
[null,null,null,null,"",""]
[null,null,null,null,"",""]
[null,null,null,null,"",""]
[null,null,null,null,"",""]
[null,null,null,null,"",""]
[null,null,null,null,"",""]
[null,null,null,null,"",""]
[null,null,null,null,"",""]
[null,null,null,null,"",""]
[null,null,null,null,"",""]
[null,null,null,null,"",""]
[null,null,null,null,"",""]
[null,null,null,null,"",""]
[null,null,null,null,"",""]
[null,null,null,null,"",""]
[null,null,null,null,"",""]
[null,null,null,null,"",""]
[null,null,null,null,"",""]
[null,null,null,null,"",""]
[null,null,null,null,{"$f":"IF(C3375=\"\",\"\",VLOOKUP(C3375,$J$4:$J$10,2,FALSE))","v":""},""]
[null,null,null,null,"",""]
[null,null,null,null,"",""]
[null,null,null,null,"",""]
[null,null,null,null,"",""]
[null,null,null,null,"",""]
[null,null,null,null,"",""]
[null,null,null,null,"",""]
[null,null,null,null,"",""]
[null,null,null,null,"",""]
[null,null,null,null,"",""]
[null,null,null,null,"",""]
[null,null,null,null,"",""]
[null,null,null,null,"",""]
[null,null,null,null,"",""]
[null,null,null,null,"",""]
[null,null,null,null,"",""]
[null,null,null,null,"",""]
[null,null,null,null,"",""]
[null,null,null,null,"",""]
[null,null,null,null,"",""]
[null,null,null,null,"",""]
[null,null,null,null,"",""]
[null,null,null,null,"",""]
[null,null,null,null,"",""]
[null,null,null,null,"",{"$f":"IF(E3400=\"\",\"\",D3400*E3400)","v":""}]
[null,null,null,null,"",""]
[null,null,null,null,"",""]
[null,null,null,null,"",""]
[null,null,null,null,"",""]
[null,null,null,null,"",""]
[null,null,null,null,"",""]
[null,null,null,null,"",""]
[null,null,null,null,"",""]
[null,null,null,null,"",""]
[null,null,null,null,"",""]
[null,null,null,null,"",""]
[null,null,null,null,"",""]
[null,null,null,null,"",""]
[null,null,null,null,"",""]
[null,null,null,null,"",""]
[null,null,null,null,"",""]
[null,null,null,null,"",""]
[null,null,null,null,"",""]
[null,null,null,null,"",""]
[null,null,null,null,"",""]
[null,null,null,null,"",""]
[null,null,null,null,"",""]
[null,null,null,null,"",""]
[null,null,null,null,"",""]
[null,null,null,null,"",""]
[null,null,null,null,"",""]
[null,null,null,null,"",""]
[null,null,null,null,"",""]
[null,null,null,null,"",""]
[null,null,null,null,"",""]
[null,null,null,null,"",""]
[null,null,null,null,"",""]
[null,null,null,null,"",""]
[null,null,null,null,"",""]
[null,null,null,null,"",""]
[null,null,null,null,"",""]
[null,null,null,null,"",""]
[null,null,null,null,"",""]
[null,null,null,null,{"$f":"IF(C3439=\"\",\"\",VLOOKUP(C3439,$J$4:$J$10,2,FALSE))","v":""},""]
[null,null,null,null,"",""]
[null,null,null,null,"",""]
[null,null,null,null,"",""]
[null,null,null,null,"",""]
[null,null,null,null,"",""]
[null,null,null,null,"",""]
[null,null,null,null,"",""]
[null,null,null,null,"",""]
[null,null,null,null,"",""]
[null,null,null,null,"",""]
[null,null,null,null,"",""]
[null,null,null,null,"",""]
[null,null,null,null,"",""]
[null,null,null,null,"",""]
[null,null,null,null,"",""]
[null,null,null,null,"",""]
[null,null,null,null,"",""]
[null,null,null,null,"",""]
[null,null,null,null,"",""]
[null,null,null,null,"",""]
[null,null,null,null,"",""]
[null,null,null,null,"",""]
[null,null,null,null,"",""]
[null,null,null,null,"",""]
[null,null,null,null,"",{"$f":"IF(E3464=\"\",\"\",D3464*E3464)","v":""}]
[null,null,null,null,"",""]
[null,null,null,null,"",""]
[null,null,null,null,"",""]
[null,null,null,null,"",""]
[null,null,null,null,"",""]
[null,null,null,null,"",""]
[null,null,null,null,"",""]
[null,null,null,null,"",""]
[null,null,null,null,"",""]
[null,null,null,null,"",""]
[null,null,null,null,"",""]
[null,null,null,null,"",""]
[null,null,null,null,"",""]
[null,null,null,null,"",""]
[null,null,null,null,"",""]
[null,null,null,null,"",""]
[null,null,null,null,"",""]
[null,null,null,null,"",""]
[null,null,null,null,"",""]
[null,null,null,null,"",""]
[null,null,null,null,"",""]
[null,null,null,null,"",""]
[null,null,null,null,"",""]
[null,null,null,null,"",""]
[null,null,null,null,"",""]
[null,null,null,null,"",""]
[null,null,null,null,"",""]
[null,null,null,null,"",""]
[null,null,null,null,"",""]
[null,null,null,null,"",""]
[null,null,null,null,"",""]
[null,null,null,null,"",""]
[null,null,null,null,"",""]
[null,null,null,null,"",""]
[null,null,null,null,"",""]
[null,null,null,null,"",""]
[null,null,null,null,"",""]
[null,null,null,null,"",""]
[null,null,null,null,{"$f":"IF(C3503=\"\",\"\",VLOOKUP(C3503,$J$4:$J$10,2,FALSE))","v":""},""]
[null,null,null,null,"",""]
[null,null,null,null,"",""]
[null,null,null,null,"",""]
[null,null,null,null,"",""]
[null,null,null,null,"",""]
[null,null,null,null,"",""]
[null,null,null,null,"",""]
[null,null,null,null,"",""]
[null,null,null,null,"",""]
[null,null,null,null,"",""]
[null,null,null,null,"",""]
[null,null,null,null,"",""]
[null,null,null,null,"",""]
[null,null,null,null,"",""]
[null,null,null,null,"",""]
[null,null,null,null,"",""]
[null,null,null,null,"",""]
[null,null,null,null,"",""]
[null,null,null,null,"",""]
[null,null,null,null,"",""]
[null,null,null,null,"",""]
[null,null,null,null,"",""]
[null,null,null,null,"",""]
[null,null,null,null,"",""]
[null,null,null,null,"",{"$f":"IF(E3528=\"\",\"\",D3528*E3528)","v":""}]
[null,null,null,null,"",""]
[null,null,null,null,"",""]
[null,null,null,null,"",""]
[null,null,null,null,"",""]
[null,null,null,null,"",""]
[null,null,null,null,"",""]
[null,null,null,null,"",""]
[null,null,null,null,"",""]
[null,null,null,null,"",""]
[null,null,null,null,"",""]
[null,null,null,null,"",""]
[null,null,null,null,"",""]
[null,null,null,null,"",""]
[null,null,null,null,"",""]
[null,null,null,null,"",""]
[null,null,null,null,"",""]
[null,null,null,null,"",""]
[null,null,null,null,"",""]
[null,null,null,null,"",""]
[null,null,null,null,"",""]
[null,null,null,null,"",""]
[null,null,null,null,"",""]
[null,null,null,null,"",""]
[null,null,null,null,"",""]
[null,null,null,null,"",""]
[null,null,null,null,"",""]
[null,null,null,null,"",""]
[null,null,null,null,"",""]
[null,null,null,null,"",""]
[null,null,null,null,"",""]
[null,null,null,null,"",""]
[null,null,null,null,"",""]
[null,null,null,null,"",""]
[null,null,null,null,"",""]
[null,null,null,null,"",""]
[null,null,null,null,"",""]
[null,null,null,null,"",""]
[null,null,null,null,"",""]
[null,null,null,null,{"$f":"IF(C3567=\"\",\"\",VLOOKUP(C3567,$J$4:$J$10,2,FALSE))","v":""},""]
[null,null,null,null,"",""]
[null,null,null,null,"",""]
[null,null,null,null,"",""]
[null,null,null,null,"",""]
[null,null,null,null,"",""]
[null,null,null,null,"",""]
[null,null,null,null,"",""]
[null,null,null,null,"",""]
[null,null,null,null,"",""]
[null,null,null,null,"",""]
[null,null,null,null,"",""]
[null,null,null,null,"",""]
[null,null,null,null,"",""]
[null,null,null,null,"",""]
[null,null,null,null,"",""]
[null,null,null,null,"",""]
[null,null,null,null,"",""]
[null,null,null,null,"",""]
[null,null,null,null,"",""]
[null,null,null,null,"",""]
[null,null,null,null,"",""]
[null,null,null,null,"",""]
[null,null,null,null,"",""]
[null,null,null,null,"",""]
[null,null,null,null,"",{"$f":"IF(E3592=\"\",\"\",D3592*E3592)","v":""}]
[null,null,null,null,"",""]
[null,null,null,null,"",""]
[null,null,null,null,"",""]
[null,null,null,null,"",""]
[null,null,null,null,"",""]
[null,null,null,null,"",""]
[null,null,null,null,"",""]
[null,null,null,null,"",""]
[null,null,null,null,"",""]
[null,null,null,null,"",""]
[null,null,null,null,"",""]
[null,null,null,null,"",""]
[null,null,null,null,"",""]
[null,null,null,null,"",""]
[null,null,null,null,"",""]
[null,null,null,null,"",""]
[null,null,null,null,"",""]
[null,null,null,null,"",""]
[null,null,null,null,"",""]
[null,null,null,null,"",""]
[null,null,null,null,"",""]
[null,null,null,null,"",""]
[null,null,null,null,"",""]
[null,null,null,null,"",""]
[null,null,null,null,"",""]
[null,null,null,null,"",""]
[null,null,null,null,"",""]
[null,null,null,null,"",""]
[null,null,null,null,"",""]
[null,null,null,null,"",""]
[null,null,null,null,"",""]
[null,null,null,null,"",""]
[null,null,null,null,"",""]
[null,null,null,null,"",""]
[null,null,null,null,"",""]
[null,null,null,null,"",""]
[null,null,null,null,"",""]
[null,null,null,null,"",""]
[null,null,null,null,{"$f":"IF(C3631=\"\",\"\",VLOOKUP(C3631,$J$4:$J$10,2,FALSE))","v":""},""]
[null,null,null,null,"",""]
[null,null,null,null,"",""]
[null,null,null,null,"",""]
[null,null,null,null,"",""]
[null,null,null,null,"",""]
[null,null,null,null,"",""]
[null,null,null,null,"",""]
[null,null,null,null,"",""]
[null,null,null,null,"",""]
[null,null,null,null,"",""]
[null,null,null,null,"",""]
[null,null,null,null,"",""]
[null,null,null,null,"",""]
[null,null,null,null,"",""]
[null,null,null,null,"",""]
[null,null,null,null,"",""]
[null,null,null,null,"",""]
[null,null,null,null,"",""]
[null,null,null,null,"",""]
[null,null,null,null,"",""]
[null,null,null,null,"",""]
[null,null,null,null,"",""]
[null,null,null,null,"",""]
[null,null,null,null,"",""]
[null,null,null,null,"",{"$f":"IF(E3656=\"\",\"\",D3656*E3656)","v":""}]
[null,null,null,null,"",""]
[null,null,null,null,"",""]
[null,null,null,null,"",""]
[null,null,null,null,"",""]
[null,null,null,null,"",""]
[null,null,null,null,"",""]
[null,null,null,null,"",""]
[null,null,null,null,"",""]
[null,null,null,null,"",""]
[null,null,null,null,"",""]
[null,null,null,null,"",""]
[null,null,null,null,"",""]
[null,null,null,null,"",""]
[null,null,null,null,"",""]
[null,null,null,null,"",""]
[null,null,null,null,"",""]
[null,null,null,null,"",""]
[null,null,null,null,"",""]
[null,null,null,null,"",""]
[null,null,null,null,"",""]
[null,null,null,null,"",""]
[null,null,null,null,"",""]
[null,null,null,null,"",""]
[null,null,null,null,"",""]
[null,null,null,null,"",""]
[null,null,null,null,"",""]
[null,null,null,null,"",""]
[null,null,null,null,"",""]
[null,null,null,null,"",""]
[null,null,null,null,"",""]
[null,null,null,null,"",""]
[null,null,null,null,"",""]
[null,null,null,null,"",""]
[null,null,null,null,"",""]
[null,null,null,null,"",""]
[null,null,null,null,"",""]
[null,null,null,null,"",""]
[null,null,null,null,"",""]
[null,null,null,null,{"$f":"IF(C3695=\"\",\"\",VLOOKUP(C3695,$J$4:$J$10,2,FALSE))","v":""},""]
[null,null,null,null,"",""]
[null,null,null,null,"",""]
[null,null,null,null,"",""]
[null,null,null,null,"",""]
[null,null,null,null,"",""]
[null,null,null,null,"",""]
[null,null,null,null,"",""]
[null,null,null,null,"",""]
[null,null,null,null,"",""]
[null,null,null,null,"",""]
[null,null,null,null,"",""]
[null,null,null,null,"",""]
[null,null,null,null,"",""]
[null,null,null,null,"",""]
[null,null,null,null,"",""]
[null,null,null,null,"",""]
[null,null,null,null,"",""]
[null,null,null,null,"",""]
[null,null,null,null,"",""]
[null,null,null,null,"",""]
[null,null,null,null,"",""]
[null,null,null,null,"",""]
[null,null,null,null,"",""]
[null,null,null,null,"",""]
[null,null,null,null,"",{"$f":"IF(E3720=\"\",\"\",D3720*E3720)","v":""}]
[null,null,null,null,"",""]
[null,null,null,null,"",""]
[null,null,null,null,"",""]
[null,null,null,null,"",""]
[null,null,null,null,"",""]
[null,null,null,null,"",""]
[null,null,null,null,"",""]
[null,null,null,null,"",""]
[null,null,null,null,"",""]
[null,null,null,null,"",""]
[null,null,null,null,"",""]
[null,null,null,null,"",""]
[null,null,null,null,"",""]
[null,null,null,null,"",""]
[null,null,null,null,"",""]
[null,null,null,null,"",""]
[null,null,null,null,"",""]
[null,null,null,null,"",""]
[null,null,null,null,"",""]
[null,null,null,null,"",""]
[null,null,null,null,"",""]
[null,null,null,null,"",""]
[null,null,null,null,"",""]
[null,null,null,null,"",""]
[null,null,null,null,"",""]
[null,null,null,null,"",""]
[null,null,null,null,"",""]
[null,null,null,null,"",""]
[null,null,null,null,"",""]
[null,null,null,null,"",""]
[null,null,null,null,"",""]
[null,null,null,null,"",""]
[null,null,null,null,"",""]
[null,null,null,null,"",""]
[null,null,null,null,"",""]
[null,null,null,null,"",""]
[null,null,null,null,"",""]
[null,null,null,null,"",""]
[null,null,null,null,{"$f":"IF(C3759=\"\",\"\",VLOOKUP(C3759,$J$4:$J$10,2,FALSE))","v":""},""]
[null,null,null,null,"",""]
[null,null,null,null,"",""]
[null,null,null,null,"",""]
[null,null,null,null,"",""]
[null,null,null,null,"",""]
[null,null,null,null,"",""]
[null,null,null,null,"",""]
[null,null,null,null,"",""]
[null,null,null,null,"",""]
[null,null,null,null,"",""]
[null,null,null,null,"",""]
[null,null,null,null,"",""]
[null,null,null,null,"",""]
[null,null,null,null,"",""]
[null,null,null,null,"",""]
[null,null,null,null,"",""]
[null,null,null,null,"",""]
[null,null,null,null,"",""]
[null,null,null,null,"",""]
[null,null,null,null,"",""]
[null,null,null,null,"",""]
[null,null,null,null,"",""]
[null,null,null,null,"",""]
[null,null,null,null,"",""]
[null,null,null,null,"",{"$f":"IF(E3784=\"\",\"\",D3784*E3784)","v":""}]
[null,null,null,null,"",""]
[null,null,null,null,"",""]
[null,null,null,null,"",""]
[null,null,null,null,"",""]
[null,null,null,null,"",""]
[null,null,null,null,"",""]
[null,null,null,null,"",""]
[null,null,null,null,"",""]
[null,null,null,null,"",""]
[null,null,null,null,"",""]
[null,null,null,null,"",""]
[null,null,null,null,"",""]
[null,null,null,null,"",""]
[null,null,null,null,"",""]
[null,null,null,null,"",""]
[null,null,null,null,"",""]
[null,null,null,null,"",""]
[null,null,null,null,"",""]
[null,null,null,null,"",""]
[null,null,null,null,"",""]
[null,null,null,null,"",""]
[null,null,null,null,"",""]
[null,null,null,null,"",""]
[null,null,null,null,"",""]
[null,null,null,null,"",""]
[null,null,null,null,"",""]
[null,null,null,null,"",""]
[null,null,null,null,"",""]
[null,null,null,null,"",""]
[null,null,null,null,"",""]
[null,null,null,null,"",""]
[null,null,null,null,"",""]
[null,null,null,null,"",""]
[null,null,null,null,"",""]
[null,null,null,null,"",""]
[null,null,null,null,"",""]
[null,null,null,null,"",""]
[null,null,null,null,"",""]
[null,null,null,null,{"$f":"IF(C3823=\"\",\"\",VLOOKUP(C3823,$J$4:$J$10,2,FALSE))","v":""},""]
[null,null,null,null,"",""]
[null,null,null,null,"",""]
[null,null,null,null,"",""]
[null,null,null,null,"",""]
[null,null,null,null,"",""]
[null,null,null,null,"",""]
[null,null,null,null,"",""]
[null,null,null,null,"",""]
[null,null,null,null,"",""]
[null,null,null,null,"",""]
[null,null,null,null,"",""]
[null,null,null,null,"",""]
[null,null,null,null,"",""]
[null,null,null,null,"",""]
[null,null,null,null,"",""]
[null,null,null,null,"",""]
[null,null,null,null,"",""]
[null,null,null,null,"",""]
[null,null,null,null,"",""]
[null,null,null,null,"",""]
[null,null,null,null,"",""]
[null,null,null,null,"",""]
[null,null,null,null,"",""]
[null,null,null,null,"",""]
[null,null,null,null,"",{"$f":"IF(E3848=\"\",\"\",D3848*E3848)","v":""}]
[null,null,null,null,"",""]
[null,null,null,null,"",""]
[null,null,null,null,"",""]
[null,null,null,null,"",""]
[null,null,null,null,"",""]
[null,null,null,null,"",""]
[null,null,null,null,"",""]
[null,null,null,null,"",""]
[null,null,null,null,"",""]
[null,null,null,null,"",""]
[null,null,null,null,"",""]
[null,null,null,null,"",""]
[null,null,null,null,"",""]
[null,null,null,null,"",""]
[null,null,null,null,"",""]
[null,null,null,null,"",""]
[null,null,null,null,"",""]
[null,null,null,null,"",""]
[null,null,null,null,"",""]
[null,null,null,null,"",""]
[null,null,null,null,"",""]
[null,null,null,null,"",""]
[null,null,null,null,"",""]
[null,null,null,null,"",""]
[null,null,null,null,"",""]
[null,null,null,null,"",""]
[null,null,null,null,"",""]
[null,null,null,null,"",""]
[null,null,null,null,"",""]
[null,null,null,null,"",""]
[null,null,null,null,"",""]
[null,null,null,null,"",""]
[null,null,null,null,"",""]
[null,null,null,null,"",""]
[null,null,null,null,"",""]
[null,null,null,null,"",""]
[null,null,null,null,"",""]
[null,null,null,null,"",""]
[null,null,null,null,{"$f":"IF(C3887=\"\",\"\",VLOOKUP(C3887,$J$4:$J$10,2,FALSE))","v":""},""]
[null,null,null,null,"",""]
[null,null,null,null,"",""]
[null,null,null,null,"",""]
[null,null,null,null,"",""]
[null,null,null,null,"",""]
[null,null,null,null,"",""]
[null,null,null,null,"",""]
[null,null,null,null,"",""]
[null,null,null,null,"",""]
[null,null,null,null,"",""]
[null,null,null,null,"",""]
[null,null,null,null,"",""]
[null,null,null,null,"",""]
[null,null,null,null,"",""]
[null,null,null,null,"",""]
[null,null,null,null,"",""]
[null,null,null,null,"",""]
[null,null,null,null,"",""]
[null,null,null,null,"",""]
[null,null,null,null,"",""]
[null,null,null,null,"",""]
[null,null,null,null,"",""]
[null,null,null,null,"",""]
[null,null,null,null,"",""]
[null,null,null,null,"",{"$f":"IF(E3912=\"\",\"\",D3912*E3912)","v":""}]
[null,null,null,null,"",""]
[null,null,null,null,"",""]
[null,null,null,null,"",""]
[null,null,null,null,"",""]
[null,null,null,null,"",""]
[null,null,null,null,"",""]
[null,null,null,null,"",""]
[null,null,null,null,"",""]
[null,null,null,null,"",""]
[null,null,null,null,"",""]
[null,null,null,null,"",""]
[null,null,null,null,"",""]
[null,null,null,null,"",""]
[null,null,null,null,"",""]
[null,null,null,null,"",""]
[null,null,null,null,"",""]
[null,null,null,null,"",""]
[null,null,null,null,"",""]
[null,null,null,null,"",""]
[null,null,null,null,"",""]
[null,null,null,null,"",""]
[null,null,null,null,"",""]
[null,null,null,null,"",""]
[null,null,null,null,"",""]
[null,null,null,null,"",""]
[null,null,null,null,"",""]
[null,null,null,null,"",""]
[null,null,null,null,"",""]
[null,null,null,null,"",""]
[null,null,null,null,"",""]
[null,null,null,null,"",""]
[null,null,null,null,"",""]
[null,null,null,null,"",""]
[null,null,null,null,"",""]
[null,null,null,null,"",""]
[null,null,null,null,"",""]
[null,null,null,null,"",""]
[null,null,null,null,"",""]
[null,null,null,null,{"$f":"IF(C3951=\"\",\"\",VLOOKUP(C3951,$J$4:$J$10,2,FALSE))","v":""},""]
[null,null,null,null,"",""]
[null,null,null,null,"",""]
[null,null,null,null,"",""]
[null,null,null,null,"",""]
[null,null,null,null,"",""]
[null,null,null,null,"",""]
[null,null,null,null,"",""]
[null,null,null,null,"",""]
[null,null,null,null,"",""]
[null,null,null,null,"",""]
[null,null,null,null,"",""]
[null,null,null,null,"",""]
[null,null,null,null,"",""]
[null,null,null,null,"",""]
[null,null,null,null,"",""]
[null,null,null,null,"",""]
[null,null,null,null,"",""]
[null,null,null,null,"",""]
[null,null,null,null,"",""]
[null,null,null,null,"",""]
[null,null,null,null,"",""]
[null,null,null,null,"",""]
[null,null,null,null,"",""]
[null,null,null,null,"",""]
[null,null,null,null,"",{"$f":"IF(E3976=\"\",\"\",D3976*E3976)","v":""}]
[null,null,null,null,"",""]
[null,null,null,null,"",""]
[null,null,null,null,"",""]
[null,null,null,null,"",""]
[null,null,null,null,"",""]
[null,null,null,null,"",""]
[null,null,null,null,"",""]
[null,null,null,null,"",""]
[null,null,null,null,"",""]
[null,null,null,null,"",""]
[null,null,null,null,"",""]
[null,null,null,null,"",""]
[null,null,null,null,"",""]
[null,null,null,null,"",""]
[null,null,null,null,"",""]
[null,null,null,null,"",""]
[null,null,null,null,"",""]
[null,null,null,null,"",""]
[null,null,null,null,"",""]
[null,null,null,null,"",""]
[null,null,null,null,"",""]
[null,null,null,null,"",""]
[null,null,null,null,"",""]
[null,null,null,null,"",""]
[null,null,null,null,"",""]
[null,null,null,null,"",""]
[null,null,null,null,"",""]
[null,null,null,null,"",""]
[null,null,null,null,"",""]
[null,null,null,null,"",""]
[null,null,null,null,"",""]
[null,null,null,null,"",""]
[null,null,null,null,"",""]
[null,null,null,null,"",""]
[null,null,null,null,"",""]
[null,null,null,null,"",""]
[null,null,null,null,"",""]
[null,null,null,null,"",""]
[null,null,null,null,{"$f":"IF(C4015=\"\",\"\",VLOOKUP(C4015,$J$4:$J$10,2,FALSE))","v":""},""]
[null,null,null,null,"",""]
[null,null,null,null,"",""]
[null,null,null,null,"",""]
[null,null,null,null,"",""]
[null,null,null,null,"",""]
[null,null,null,null,"",""]
[null,null,null,null,"",""]
[null,null,null,null,"",""]
[null,null,null,null,"",""]
[null,null,null,null,"",""]
[null,null,null,null,"",""]
[null,null,null,null,"",""]
[null,null,null,null,"",""]
[null,null,null,null,"",""]
[null,null,null,null,"",""]
[null,null,null,null,"",""]
[null,null,null,null,"",""]
[null,null,null,null,"",""]
[null,null,null,null,"",""]
[null,null,null,null,"",""]
[null,null,null,null,"",""]
[null,null,null,null,"",""]
[null,null,null,null,"",""]
[null,null,null,null,"",""]
[null,null,null,null,"",{"$f":"IF(E4040=\"\",\"\",D4040*E4040)","v":""}]
[null,null,null,null,"",""]
[null,null,null,null,"",""]
[null,null,null,null,"",""]
[null,null,null,null,"",""]
[null,null,null,null,"",""]
[null,null,null,null,"",""]
[null,null,null,null,"",""]
[null,null,null,null,"",""]
[null,null,null,null,"",""]
[null,null,null,null,"",""]
[null,null,null,null,"",""]
[null,null,null,null,"",""]
[null,null,null,null,"",""]
[null,null,null,null,"",""]
[null,null,null,null,"",""]
[null,null,null,null,"",""]
[null,null,null,null,"",""]
[null,null,null,null,"",""]
[null,null,null,null,"",""]
[null,null,null,null,"",""]
[null,null,null,null,"",""]
[null,null,null,null,"",""]
[null,null,null,null,"",""]
[null,null,null,null,"",""]
[null,null,null,null,"",""]
[null,null,null,null,"",""]
[null,null,null,null,"",""]
[null,null,null,null,"",""]
[null,null,null,null,"",""]
[null,null,null,null,"",""]
[null,null,null,null,"",""]
[null,null,null,null,"",""]
[null,null,null,null,"",""]
[null,null,null,null,"",""]
[null,null,null,null,"",""]
[null,null,null,null,"",""]
[null,null,null,null,"",""]
[null,null,null,null,"",""]
[null,null,null,null,{"$f":"IF(C4079=\"\",\"\",VLOOKUP(C4079,$J$4:$J$10,2,FALSE))","v":""},""]
[null,null,null,null,"",""]
[null,null,null,null,"",""]
[null,null,null,null,"",""]
[null,null,null,null,"",""]
[null,null,null,null,"",""]
[null,null,null,null,"",""]
[null,null,null,null,"",""]
[null,null,null,null,"",""]
[null,null,null,null,"",""]
[null,null,null,null,"",""]
[null,null,null,null,"",""]
[null,null,null,null,"",""]
[null,null,null,null,"",""]
[null,null,null,null,"",""]
[null,null,null,null,"",""]
[null,null,null,null,"",""]
[null,null,null,null,"",""]
[null,null,null,null,"",""]
[null,null,null,null,"",""]
[null,null,null,null,"",""]
[null,null,null,null,"",""]
[null,null,null,null,"",""]
[null,null,null,null,"",""]
[null,null,null,null,"",""]
[null,null,null,null,"",{"$f":"IF(E4104=\"\",\"\",D4104*E4104)","v":""}]
[null,null,null,null,"",""]
[null,null,null,null,"",""]
[null,null,null,null,"",""]
[null,null,null,null,"",""]
[null,null,null,null,"",""]
[null,null,null,null,"",""]
[null,null,null,null,"",""]
[null,null,null,null,"",""]
[null,null,null,null,"",""]
[null,null,null,null,"",""]
[null,null,null,null,"",""]
[null,null,null,null,"",""]
[null,null,null,null,"",""]
[null,null,null,null,"",""]
[null,null,null,null,"",""]
[null,null,null,null,"",""]
[null,null,null,null,"",""]
[null,null,null,null,"",""]
[null,null,null,null,"",""]
[null,null,null,null,"",""]
[null,null,null,null,"",""]
[null,null,null,null,"",""]
[null,null,null,null,"",""]
[null,null,null,null,"",""]
[null,null,null,null,"",""]
[null,null,null,null,"",""]
[null,null,null,null,"",""]
[null,null,null,null,"",""]
[null,null,null,null,"",""]
[null,null,null,null,"",""]
[null,null,null,null,"",""]
[null,null,null,null,"",""]
[null,null,null,null,"",""]
[null,null,null,null,"",""]
[null,null,null,null,"",""]
[null,null,null,null,"",""]
[null,null,null,null,"",""]
[null,null,null,null,"",""]
[null,null,null,null,{"$f":"IF(C4143=\"\",\"\",VLOOKUP(C4143,$J$4:$J$10,2,FALSE))","v":""},""]
[null,null,null,null,"",""]
[null,null,null,null,"",""]
[null,null,null,null,"",""]
[null,null,null,null,"",""]
[null,null,null,null,"",""]
[null,null,null,null,"",""]
[null,null,null,null,"",""]
[null,null,null,null,"",""]
[null,null,null,null,"",""]
[null,null,null,null,"",""]
[null,null,null,null,"",""]
[null,null,null,null,"",""]
[null,null,null,null,"",""]
[null,null,null,null,"",""]
[null,null,null,null,"",""]
[null,null,null,null,"",""]
[null,null,null,null,"",""]
[null,null,null,null,"",""]
[null,null,null,null,"",""]
[null,null,null,null,"",""]
[null,null,null,null,"",""]
[null,null,null,null,"",""]
[null,null,null,null,"",""]
[null,null,null,null,"",""]
[null,null,null,null,"",{"$f":"IF(E4168=\"\",\"\",D4168*E4168)","v":""}]
[null,null,null,null,"",""]
[null,null,null,null,"",""]
[null,null,null,null,"",""]
[null,null,null,null,"",""]
[null,null,null,null,"",""]
[null,null,null,null,"",""]
[null,null,null,null,"",""]
[null,null,null,null,"",""]
[null,null,null,null,"",""]
[null,null,null,null,"",""]
[null,null,null,null,"",""]
[null,null,null,null,"",""]
[null,null,null,null,"",""]
[null,null,null,null,"",""]
[null,null,null,null,"",""]
[null,null,null,null,"",""]
[null,null,null,null,"",""]
[null,null,null,null,"",""]
[null,null,null,null,"",""]
[null,null,null,null,"",""]
[null,null,null,null,"",""]
[null,null,null,null,"",""]
[null,null,null,null,"",""]
[null,null,null,null,"",""]
[null,null,null,null,"",""]
[null,null,null,null,"",""]
[null,null,null,null,"",""]
[null,null,null,null,"",""]
[null,null,null,null,"",""]
[null,null,null,null,"",""]
[null,null,null,null,"",""]
[null,null,null,null,"",""]
[null,null,null,null,"",""]
[null,null,null,null,"",""]
[null,null,null,null,"",""]
[null,null,null,null,"",""]
[null,null,null,null,"",""]
[null,null,null,null,"",""]
[null,null,null,null,{"$f":"IF(C4207=\"\",\"\",VLOOKUP(C4207,$J$4:$J$10,2,FALSE))","v":""},""]
[null,null,null,null,"",""]
[null,null,null,null,"",""]
[null,null,null,null,"",""]
[null,null,null,null,"",""]
[null,null,null,null,"",""]
[null,null,null,null,"",""]
[null,null,null,null,"",""]
[null,null,null,null,"",""]
[null,null,null,null,"",""]
[null,null,null,null,"",""]
[null,null,null,null,"",""]
[null,null,null,null,"",""]
[null,null,null,null,"",""]
[null,null,null,null,"",""]
[null,null,null,null,"",""]
[null,null,null,null,"",""]
[null,null,null,null,"",""]
[null,null,null,null,"",""]
[null,null,null,null,"",""]
[null,null,null,null,"",""]
[null,null,null,null,"",""]
[null,null,null,null,"",""]
[null,null,null,null,"",""]
[null,null,null,null,"",""]
[null,null,null,null,"",{"$f":"IF(E4232=\"\",\"\",D4232*E4232)","v":""}]
[null,null,null,null,"",""]
[null,null,null,null,"",""]
[null,null,null,null,"",""]
[null,null,null,null,"",""]
[null,null,null,null,"",""]
[null,null,null,null,"",""]
[null,null,null,null,"",""]
[null,null,null,null,"",""]
[null,null,null,null,"",""]
[null,null,null,null,"",""]
[null,null,null,null,"",""]
[null,null,null,null,"",""]
[null,null,null,null,"",""]
[null,null,null,null,"",""]
[null,null,null,null,"",""]
[null,null,null,null,"",""]
[null,null,null,null,"",""]
[null,null,null,null,"",""]
[null,null,null,null,"",""]
[null,null,null,null,"",""]
[null,null,null,null,"",""]
[null,null,null,null,"",""]
[null,null,null,null,"",""]
[null,null,null,null,"",""]
[null,null,null,null,"",""]
[null,null,null,null,"",""]
[null,null,null,null,"",""]
[null,null,null,null,"",""]
[null,null,null,null,"",""]
[null,null,null,null,"",""]
[null,null,null,null,"",""]
[null,null,null,null,"",""]
[null,null,null,null,"",""]
[null,null,null,null,"",""]
[null,null,null,null,"",""]
[null,null,null,null,"",""]
[null,null,null,null,"",""]
[null,null,null,null,"",""]
[null,null,null,null,{"$f":"IF(C4271=\"\",\"\",VLOOKUP(C4271,$J$4:$J$10,2,FALSE))","v":""},""]
[null,null,null,null,"",""]
[null,null,null,null,"",""]
[null,null,null,null,"",""]
[null,null,null,null,"",""]
[null,null,null,null,"",""]
[null,null,null,null,"",""]
[null,null,null,null,"",""]
[null,null,null,null,"",""]
[null,null,null,null,"",""]
[null,null,null,null,"",""]
[null,null,null,null,"",""]
[null,null,null,null,"",""]
[null,null,null,null,"",""]
[null,null,null,null,"",""]
[null,null,null,null,"",""]
[null,null,null,null,"",""]
[null,null,null,null,"",""]
[null,null,null,null,"",""]
[null,null,null,null,"",""]
[null,null,null,null,"",""]
[null,null,null,null,"",""]
[null,null,null,null,"",""]
[null,null,null,null,"",""]
[null,null,null,null,"",""]
[null,null,null,null,"",{"$f":"IF(E4296=\"\",\"\",D4296*E4296)","v":""}]
[null,null,null,null,"",""]
[null,null,null,null,"",""]
[null,null,null,null,"",""]
[null,null,null,null,"",""]
[null,null,null,null,"",""]
[null,null,null,null,"",""]
[null,null,null,null,"",""]
[null,null,null,null,"",""]
[null,null,null,null,"",""]
[null,null,null,null,"",""]
[null,null,null,null,"",""]
[null,null,null,null,"",""]
[null,null,null,null,"",""]
[null,null,null,null,"",""]
[null,null,null,null,"",""]
[null,null,null,null,"",""]
[null,null,null,null,"",""]
[null,null,null,null,"",""]
[null,null,null,null,"",""]
[null,null,null,null,"",""]
[null,null,null,null,"",""]
[null,null,null,null,"",""]
[null,null,null,null,"",""]
[null,null,null,null,"",""]
[null,null,null,null,"",""]
[null,null,null,null,"",""]
[null,null,null,null,"",""]
[null,null,null,null,"",""]
[null,null,null,null,"",""]
[null,null,null,null,"",""]
[null,null,null,null,"",""]
[null,null,null,null,"",""]
[null,null,null,null,"",""]
[null,null,null,null,"",""]
[null,null,null,null,"",""]
[null,null,null,null,"",""]
[null,null,null,null,"",""]
[null,null,null,null,"",""]
[null,null,null,null,{"$f":"IF(C4335=\"\",\"\",VLOOKUP(C4335,$J$4:$J$10,2,FALSE))","v":""},""]
[null,null,null,null,"",""]
[null,null,null,null,"",""]
[null,null,null,null,"",""]
[null,null,null,null,"",""]
[null,null,null,null,"",""]
[null,null,null,null,"",""]
[null,null,null,null,"",""]
[null,null,null,null,"",""]
[null,null,null,null,"",""]
[null,null,null,null,"",""]
[null,null,null,null,"",""]
[null,null,null,null,"",""]
[null,null,null,null,"",""]
[null,null,null,null,"",""]
[null,null,null,null,"",""]
[null,null,null,null,"",""]
[null,null,null,null,"",""]
[null,null,null,null,"",""]
[null,null,null,null,"",""]
[null,null,null,null,"",""]
[null,null,null,null,"",""]
[null,null,null,null,"",""]
[null,null,null,null,"",""]
[null,null,null,null,"",""]
[null,null,null,null,"",{"$f":"IF(E4360=\"\",\"\",D4360*E4360)","v":""}]
[null,null,null,null,"",""]
[null,null,null,null,"",""]
[null,null,null,null,"",""]
[null,null,null,null,"",""]
[null,null,null,null,"",""]
[null,null,null,null,"",""]
[null,null,null,null,"",""]
[null,null,null,null,"",""]
[null,null,null,null,"",""]
[null,null,null,null,"",""]
[null,null,null,null,"",""]
[null,null,null,null,"",""]
[null,null,null,null,"",""]
[null,null,null,null,"",""]
[null,null,null,null,"",""]
[null,null,null,null,"",""]
[null,null,null,null,"",""]
[null,null,null,null,"",""]
[null,null,null,null,"",""]
[null,null,null,null,"",""]
[null,null,null,null,"",""]
[null,null,null,null,"",""]
[null,null,null,null,"",""]
[null,null,null,null,"",""]
[null,null,null,null,"",""]
[null,null,null,null,"",""]
[null,null,null,null,"",""]
[null,null,null,null,"",""]
[null,null,null,null,"",""]
[null,null,null,null,"",""]
[null,null,null,null,"",""]
[null,null,null,null,"",""]
[null,null,null,null,"",""]
[null,null,null,null,"",""]
[null,null,null,null,"",""]
[null,null,null,null,"",""]
[null,null,null,null,"",""]
[null,null,null,null,"",""]
[null,null,null,null,{"$f":"IF(C4399=\"\",\"\",VLOOKUP(C4399,$J$4:$J$10,2,FALSE))","v":""},""]
[null,null,null,null,"",""]
[null,null,null,null,"",""]
[null,null,null,null,"",""]
[null,null,null,null,"",""]
[null,null,null,null,"",""]
[null,null,null,null,"",""]
[null,null,null,null,"",""]
[null,null,null,null,"",""]
[null,null,null,null,"",""]
[null,null,null,null,"",""]
[null,null,null,null,"",""]
[null,null,null,null,"",""]
[null,null,null,null,"",""]
[null,null,null,null,"",""]
[null,null,null,null,"",""]
[null,null,null,null,"",""]
[null,null,null,null,"",""]
[null,null,null,null,"",""]
[null,null,null,null,"",""]
[null,null,null,null,"",""]
[null,null,null,null,"",""]
[null,null,null,null,"",""]
[null,null,null,null,"",""]
[null,null,null,null,"",""]
[null,null,null,null,"",{"$f":"IF(E4424=\"\",\"\",D4424*E4424)","v":""}]
[null,null,null,null,"",""]
[null,null,null,null,"",""]
[null,null,null,null,"",""]
[null,null,null,null,"",""]
[null,null,null,null,"",""]
[null,null,null,null,"",""]
[null,null,null,null,"",""]
[null,null,null,null,"",""]
[null,null,null,null,"",""]
[null,null,null,null,"",""]
[null,null,null,null,"",""]
[null,null,null,null,"",""]
[null,null,null,null,"",""]
[null,null,null,null,"",""]
[null,null,null,null,"",""]
[null,null,null,null,"",""]
[null,null,null,null,"",""]
[null,null,null,null,"",""]
[null,null,null,null,"",""]
[null,null,null,null,"",""]
[null,null,null,null,"",""]
[null,null,null,null,"",""]
[null,null,null,null,"",""]
[null,null,null,null,"",""]
[null,null,null,null,"",""]
[null,null,null,null,"",""]
[null,null,null,null,"",""]
[null,null,null,null,"",""]
[null,null,null,null,"",""]
[null,null,null,null,"",""]
[null,null,null,null,"",""]
[null,null,null,null,"",""]
[null,null,null,null,"",""]
[null,null,null,null,"",""]
[null,null,null,null,"",""]
[null,null,null,null,"",""]
[null,null,null,null,"",""]
[null,null,null,null,"",""]
[null,null,null,null,{"$f":"IF(C4463=\"\",\"\",VLOOKUP(C4463,$J$4:$J$10,2,FALSE))","v":""},""]
[null,null,null,null,"",""]
[null,null,null,null,"",""]
[null,null,null,null,"",""]
[null,null,null,null,"",""]
[null,null,null,null,"",""]
[null,null,null,null,"",""]
[null,null,null,null,"",""]
[null,null,null,null,"",""]
[null,null,null,null,"",""]
[null,null,null,null,"",""]
[null,null,null,null,"",""]
[null,null,null,null,"",""]
[null,null,null,null,"",""]
[null,null,null,null,"",""]
[null,null,null,null,"",""]
[null,null,null,null,"",""]
[null,null,null,null,"",""]
[null,null,null,null,"",""]
[null,null,null,null,"",""]
[null,null,null,null,"",""]
[null,null,null,null,"",""]
[null,null,null,null,"",""]
[null,null,null,null,"",""]
[null,null,null,null,"",""]
[null,null,null,null,"",{"$f":"IF(E4488=\"\",\"\",D4488*E4488)","v":""}]
[null,null,null,null,"",""]
[null,null,null,null,"",""]
[null,null,null,null,"",""]
[null,null,null,null,"",""]
[null,null,null,null,"",""]
[null,null,null,null,"",""]
[null,null,null,null,"",""]
[null,null,null,null,"",""]
[null,null,null,null,"",""]
[null,null,null,null,"",""]
[null,null,null,null,"",""]
[null,null,null,null,"",""]
[null,null,null,null,"",""]
[null,null,null,null,"",""]
[null,null,null,null,"",""]
[null,null,null,null,"",""]
[null,null,null,null,"",""]
[null,null,null,null,"",""]
[null,null,null,null,"",""]
[null,null,null,null,"",""]
[null,null,null,null,"",""]
[null,null,null,null,"",""]
[null,null,null,null,"",""]
[null,null,null,null,"",""]
[null,null,null,null,"",""]
[null,null,null,null,"",""]
[null,null,null,null,"",""]
[null,null,null,null,"",""]
[null,null,null,null,"",""]
[null,null,null,null,"",""]
[null,null,null,null,"",""]
[null,null,null,null,"",""]
[null,null,null,null,"",""]
[null,null,null,null,"",""]
[null,null,null,null,"",""]
[null,null,null,null,"",""]
[null,null,null,null,"",""]
[null,null,null,null,"",""]
[null,null,null,null,{"$f":"IF(C4527=\"\",\"\",VLOOKUP(C4527,$J$4:$J$10,2,FALSE))","v":""},""]
[null,null,null,null,"",""]
[null,null,null,null,"",""]
[null,null,null,null,"",""]
[null,null,null,null,"",""]
[null,null,null,null,"",""]
[null,null,null,null,"",""]
[null,null,null,null,"",""]
[null,null,null,null,"",""]
[null,null,null,null,"",""]
[null,null,null,null,"",""]
[null,null,null,null,"",""]
[null,null,null,null,"",""]
[null,null,null,null,"",""]
[null,null,null,null,"",""]
[null,null,null,null,"",""]
[null,null,null,null,"",""]
[null,null,null,null,"",""]
[null,null,null,null,"",""]
[null,null,null,null,"",""]
[null,null,null,null,"",""]
[null,null,null,null,"",""]
[null,null,null,null,"",""]
[null,null,null,null,"",""]
[null,null,null,null,"",""]
[null,null,null,null,"",{"$f":"IF(E4552=\"\",\"\",D4552*E4552)","v":""}]
[null,null,null,null,"",""]
[null,null,null,null,"",""]
[null,null,null,null,"",""]
[null,null,null,null,"",""]
[null,null,null,null,"",""]
[null,null,null,null,"",""]
[null,null,null,null,"",""]
[null,null,null,null,"",""]
[null,null,null,null,"",""]
[null,null,null,null,"",""]
[null,null,null,null,"",""]
[null,null,null,null,"",""]
[null,null,null,null,"",""]
[null,null,null,null,"",""]
[null,null,null,null,"",""]
[null,null,null,null,"",""]
[null,null,null,null,"",""]
[null,null,null,null,"",""]
[null,null,null,null,"",""]
[null,null,null,null,"",""]
[null,null,null,null,"",""]
[null,null,null,null,"",""]
[null,null,null,null,"",""]
[null,null,null,null,"",""]
[null,null,null,null,"",""]
[null,null,null,null,"",""]
[null,null,null,null,"",""]
[null,null,null,null,"",""]
[null,null,null,null,"",""]
[null,null,null,null,"",""]
[null,null,null,null,"",""]
[null,null,null,null,"",""]
[null,null,null,null,"",""]
[null,null,null,null,"",""]
[null,null,null,null,"",""]
[null,null,null,null,"",""]
[null,null,null,null,"",""]
[null,null,null,null,"",""]
[null,null,null,null,{"$f":"IF(C4591=\"\",\"\",VLOOKUP(C4591,$J$4:$J$10,2,FALSE))","v":""},""]
[null,null,null,null,"",""]
[null,null,null,null,"",""]
[null,null,null,null,"",""]
[null,null,null,null,"",""]
[null,null,null,null,"",""]
[null,null,null,null,"",""]
[null,null,null,null,"",""]
[null,null,null,null,"",""]
[null,null,null,null,"",""]
[null,null,null,null,"",""]
[null,null,null,null,"",""]
[null,null,null,null,"",""]
[null,null,null,null,"",""]
[null,null,null,null,"",""]
[null,null,null,null,"",""]
[null,null,null,null,"",""]
[null,null,null,null,"",""]
[null,null,null,null,"",""]
[null,null,null,null,"",""]
[null,null,null,null,"",""]
[null,null,null,null,"",""]
[null,null,null,null,"",""]
[null,null,null,null,"",""]
[null,null,null,null,"",""]
[null,null,null,null,"",{"$f":"IF(E4616=\"\",\"\",D4616*E4616)","v":""}]
[null,null,null,null,"",""]
[null,null,null,null,"",""]
[null,null,null,null,"",""]
[null,null,null,null,"",""]
[null,null,null,null,"",""]
[null,null,null,null,"",""]
[null,null,null,null,"",""]
[null,null,null,null,"",""]
[null,null,null,null,"",""]
[null,null,null,null,"",""]
[null,null,null,null,"",""]
[null,null,null,null,"",""]
[null,null,null,null,"",""]
[null,null,null,null,"",""]
[null,null,null,null,"",""]
[null,null,null,null,"",""]
[null,null,null,null,"",""]
[null,null,null,null,"",""]
[null,null,null,null,"",""]
[null,null,null,null,"",""]
[null,null,null,null,"",""]
[null,null,null,null,"",""]
[null,null,null,null,"",""]
[null,null,null,null,"",""]
[null,null,null,null,"",""]
[null,null,null,null,"",""]
[null,null,null,null,"",""]
[null,null,null,null,"",""]
[null,null,null,null,"",""]
[null,null,null,null,"",""]
[null,null,null,null,"",""]
[null,null,null,null,"",""]
[null,null,null,null,"",""]
[null,null,null,null,"",""]
[null,null,null,null,"",""]
[null,null,null,null,"",""]
[null,null,null,null,"",""]
[null,null,null,null,"",""]
[null,null,null,null,{"$f":"IF(C4655=\"\",\"\",VLOOKUP(C4655,$J$4:$J$10,2,FALSE))","v":""},""]
[null,null,null,null,"",""]
[null,null,null,null,"",""]
[null,null,null,null,"",""]
[null,null,null,null,"",""]
[null,null,null,null,"",""]
[null,null,null,null,"",""]
[null,null,null,null,"",""]
[null,null,null,null,"",""]
[null,null,null,null,"",""]
[null,null,null,null,"",""]
[null,null,null,null,"",""]
[null,null,null,null,"",""]
[null,null,null,null,"",""]
[null,null,null,null,"",""]
[null,null,null,null,"",""]
[null,null,null,null,"",""]
[null,null,null,null,"",""]
[null,null,null,null,"",""]
[null,null,null,null,"",""]
[null,null,null,null,"",""]
[null,null,null,null,"",""]
[null,null,null,null,"",""]
[null,null,null,null,"",""]
[null,null,null,null,"",""]
[null,null,null,null,"",{"$f":"IF(E4680=\"\",\"\",D4680*E4680)","v":""}]
[null,null,null,null,"",""]
[null,null,null,null,"",""]
[null,null,null,null,"",""]
[null,null,null,null,"",""]
[null,null,null,null,"",""]
[null,null,null,null,"",""]
[null,null,null,null,"",""]
[null,null,null,null,"",""]
[null,null,null,null,"",""]
[null,null,null,null,"",""]
[null,null,null,null,"",""]
[null,null,null,null,"",""]
[null,null,null,null,"",""]
[null,null,null,null,"",""]
[null,null,null,null,"",""]
[null,null,null,null,"",""]
[null,null,null,null,"",""]
[null,null,null,null,"",""]
[null,null,null,null,"",""]
[null,null,null,null,"",""]
[null,null,null,null,"",""]
[null,null,null,null,"",""]
[null,null,null,null,"",""]
[null,null,null,null,"",""]
[null,null,null,null,"",""]
[null,null,null,null,"",""]
[null,null,null,null,"",""]
[null,null,null,null,"",""]
[null,null,null,null,"",""]
[null,null,null,null,"",""]
[null,null,null,null,"",""]
[null,null,null,null,"",""]
[null,null,null,null,"",""]
[null,null,null,null,"",""]
[null,null,null,null,"",""]
[null,null,null,null,"",""]
[null,null,null,null,"",""]
[null,null,null,null,"",""]
[null,null,null,null,{"$f":"IF(C4719=\"\",\"\",VLOOKUP(C4719,$J$4:$J$10,2,FALSE))","v":""},""]
[null,null,null,null,"",""]
[null,null,null,null,"",""]
[null,null,null,null,"",""]
[null,null,null,null,"",""]
[null,null,null,null,"",""]
[null,null,null,null,"",""]
[null,null,null,null,"",""]
[null,null,null,null,"",""]
[null,null,null,null,"",""]
[null,null,null,null,"",""]
[null,null,null,null,"",""]
[null,null,null,null,"",""]
[null,null,null,null,"",""]
[null,null,null,null,"",""]
[null,null,null,null,"",""]
[null,null,null,null,"",""]
[null,null,null,null,"",""]
[null,null,null,null,"",""]
[null,null,null,null,"",""]
[null,null,null,null,"",""]
[null,null,null,null,"",""]
[null,null,null,null,"",""]
[null,null,null,null,"",""]
[null,null,null,null,"",""]
[null,null,null,null,"",{"$f":"IF(E4744=\"\",\"\",D4744*E4744)","v":""}]
[null,null,null,null,"",""]
[null,null,null,null,"",""]
[null,null,null,null,"",""]
[null,null,null,null,"",""]
[null,null,null,null,"",""]
[null,null,null,null,"",""]
[null,null,null,null,"",""]
[null,null,null,null,"",""]
[null,null,null,null,"",""]
[null,null,null,null,"",""]
[null,null,null,null,"",""]
[null,null,null,null,"",""]
[null,null,null,null,"",""]
[null,null,null,null,"",""]
[null,null,null,null,"",""]
[null,null,null,null,"",""]
[null,null,null,null,"",""]
[null,null,null,null,"",""]
[null,null,null,null,"",""]
[null,null,null,null,"",""]
[null,null,null,null,"",""]
[null,null,null,null,"",""]
[null,null,null,null,"",""]
[null,null,null,null,"",""]
[null,null,null,null,"",""]
[null,null,null,null,"",""]
[null,null,null,null,"",""]
[null,null,null,null,"",""]
[null,null,null,null,"",""]
[null,null,null,null,"",""]
[null,null,null,null,"",""]
[null,null,null,null,"",""]
[null,null,null,null,"",""]
[null,null,null,null,"",""]
[null,null,null,null,"",""]
[null,null,null,null,"",""]
[null,null,null,null,"",""]
[null,null,null,null,"",""]
[null,null,null,null,{"$f":"IF(C4783=\"\",\"\",VLOOKUP(C4783,$J$4:$J$10,2,FALSE))","v":""},""]
[null,null,null,null,"",""]
[null,null,null,null,"",""]
[null,null,null,null,"",""]
[null,null,null,null,"",""]
[null,null,null,null,"",""]
[null,null,null,null,"",""]
[null,null,null,null,"",""]
[null,null,null,null,"",""]
[null,null,null,null,"",""]
[null,null,null,null,"",""]
[null,null,null,null,"",""]
[null,null,null,null,"",""]
[null,null,null,null,"",""]
[null,null,null,null,"",""]
[null,null,null,null,"",""]
[null,null,null,null,"",""]
[null,null,null,null,"",""]
[null,null,null,null,"",""]
[null,null,null,null,"",""]
[null,null,null,null,"",""]
[null,null,null,null,"",""]
[null,null,null,null,"",""]
[null,null,null,null,"",""]
[null,null,null,null,"",""]
[null,null,null,null,"",{"$f":"IF(E4808=\"\",\"\",D4808*E4808)","v":""}]
[null,null,null,null,"",""]
[null,null,null,null,"",""]
[null,null,null,null,"",""]
[null,null,null,null,"",""]
[null,null,null,null,"",""]
[null,null,null,null,"",""]
[null,null,null,null,"",""]
[null,null,null,null,"",""]
[null,null,null,null,"",""]
[null,null,null,null,"",""]
[null,null,null,null,"",""]
[null,null,null,null,"",""]
[null,null,null,null,"",""]
[null,null,null,null,"",""]
[null,null,null,null,"",""]
[null,null,null,null,"",""]
[null,null,null,null,"",""]
[null,null,null,null,"",""]
[null,null,null,null,"",""]
[null,null,null,null,"",""]
[null,null,null,null,"",""]
[null,null,null,null,"",""]
[null,null,null,null,"",""]
[null,null,null,null,"",""]
[null,null,null,null,"",""]
[null,null,null,null,"",""]
[null,null,null,null,"",""]
[null,null,null,null,"",""]
[null,null,null,null,"",""]
[null,null,null,null,"",""]
[null,null,null,null,"",""]
[null,null,null,null,"",""]
[null,null,null,null,"",""]
[null,null,null,null,"",""]
[null,null,null,null,"",""]
[null,null,null,null,"",""]
[null,null,null,null,"",""]
[null,null,null,null,"",""]
[null,null,null,null,{"$f":"IF(C4847=\"\",\"\",VLOOKUP(C4847,$J$4:$J$10,2,FALSE))","v":""},""]
[null,null,null,null,"",""]
[null,null,null,null,"",""]
[null,null,null,null,"",""]
[null,null,null,null,"",""]
[null,null,null,null,"",""]
[null,null,null,null,"",""]
[null,null,null,null,"",""]
[null,null,null,null,"",""]
[null,null,null,null,"",""]
[null,null,null,null,"",""]
[null,null,null,null,"",""]
[null,null,null,null,"",""]
[null,null,null,null,"",""]
[null,null,null,null,"",""]
[null,null,null,null,"",""]
[null,null,null,null,"",""]
[null,null,null,null,"",""]
[null,null,null,null,"",""]
[null,null,null,null,"",""]
[null,null,null,null,"",""]
[null,null,null,null,"",""]
[null,null,null,null,"",""]
[null,null,null,null,"",""]
[null,null,null,null,"",""]
[null,null,null,null,"",{"$f":"IF(E4872=\"\",\"\",D4872*E4872)","v":""}]
[null,null,null,null,"",""]
[null,null,null,null,"",""]
[null,null,null,null,"",""]
[null,null,null,null,"",""]
[null,null,null,null,"",""]
[null,null,null,null,"",""]
[null,null,null,null,"",""]
[null,null,null,null,"",""]
[null,null,null,null,"",""]
[null,null,null,null,"",""]
[null,null,null,null,"",""]
[null,null,null,null,"",""]
[null,null,null,null,"",""]
[null,null,null,null,"",""]
[null,null,null,null,"",""]
[null,null,null,null,"",""]
[null,null,null,null,"",""]
[null,null,null,null,"",""]
[null,null,null,null,"",""]
[null,null,null,null,"",""]
[null,null,null,null,"",""]
[null,null,null,null,"",""]
[null,null,null,null,"",""]
[null,null,null,null,"",""]
[null,null,null,null,"",""]
[null,null,null,null,"",""]
[null,null,null,null,"",""]
[null,null,null,null,"",""]
[null,null,null,null,"",""]
[null,null,null,null,"",""]
[null,null,null,null,"",""]
[null,null,null,null,"",""]
[null,null,null,null,"",""]
[null,null,null,null,"",""]
[null,null,null,null,"",""]
[null,null,null,null,"",""]
[null,null,null,null,"",""]
[null,null,null,null,"",""]
[null,null,null,null,{"$f":"IF(C4911=\"\",\"\",VLOOKUP(C4911,$J$4:$J$10,2,FALSE))","v":""},""]
[null,null,null,null,"",""]
[null,null,null,null,"",""]
[null,null,null,null,"",""]
[null,null,null,null,"",""]
[null,null,null,null,"",""]
[null,null,null,null,"",""]
[null,null,null,null,"",""]
[null,null,null,null,"",""]
[null,null,null,null,"",""]
[null,null,null,null,"",""]
[null,null,null,null,"",""]
[null,null,null,null,"",""]
[null,null,null,null,"",""]
[null,null,null,null,"",""]
[null,null,null,null,"",""]
[null,null,null,null,"",""]
[null,null,null,null,"",""]
[null,null,null,null,"",""]
[null,null,null,null,"",""]
[null,null,null,null,"",""]
[null,null,null,null,"",""]
[null,null,null,null,"",""]
[null,null,null,null,"",""]
[null,null,null,null,"",""]
[null,null,null,null,"",{"$f":"IF(E4936=\"\",\"\",D4936*E4936)","v":""}]
[null,null,null,null,"",""]
[null,null,null,null,"",""]
[null,null,null,null,"",""]
[null,null,null,null,"",""]
[null,null,null,null,"",""]
[null,null,null,null,"",""]
[null,null,null,null,"",""]
[null,null,null,null,"",""]
[null,null,null,null,"",""]
[null,null,null,null,"",""]
[null,null,null,null,"",""]
[null,null,null,null,"",""]
[null,null,null,null,"",""]
[null,null,null,null,"",""]
[null,null,null,null,"",""]
[null,null,null,null,"",""]
[null,null,null,null,"",""]
[null,null,null,null,"",""]
[null,null,null,null,"",""]
[null,null,null,null,"",""]
[null,null,null,null,"",""]
[null,null,null,null,"",""]
[null,null,null,null,"",""]
[null,null,null,null,"",""]
[null,null,null,null,"",""]
[null,null,null,null,"",""]
[null,null,null,null,"",""]
[null,null,null,null,"",""]
[null,null,null,null,"",""]
[null,null,null,null,"",""]
[null,null,null,null,"",""]
[null,null,null,null,"",""]
[null,null,null,null,"",""]
[null,null,null,null,"",""]
[null,null,null,null,"",""]
[null,null,null,null,"",""]
[null,null,null,null,"",""]
[null,null,null,null,"",""]
[null,null,null,null,{"$f":"IF(C4975=\"\",\"\",VLOOKUP(C4975,$J$4:$J$10,2,FALSE))","v":""},""]
[null,null,null,null,"",""]
[null,null,null,null,"",""]
[null,null,null,null,"",""]
[null,null,null,null,"",""]
[null,null,null,null,"",""]
[null,null,null,null,"",""]
[null,null,null,null,"",""]
[null,null,null,null,"",""]
[null,null,null,null,"",""]
[null,null,null,null,"",""]
[null,null,null,null,"",""]
[null,null,null,null,"",""]
[null,null,null,null,"",""]
[null,null,null,null,"",""]
[null,null,null,null,"",""]
[null,null,null,null,"",""]
[null,null,null,null,"",""]
[null,null,null,null,"",""]
[null,null,null,null,"",""]
[null,null,null,null,"",""]
[null,null,null,null,"",""]
[null,null,null,null,"",""]
[null,null,null,null,"",""]
[null,null,null,null,"",""]
[null,null,null,null,"",{"$f":"IF(E5000=\"\",\"\",D5000*E5000)","v":""}]
[null,null,null,null,"",""]
[null,null,null,null,"",""]
[null,null,null,null,"",""]
[null,null,null,null,"",""]
[null,null,null,null,"",""]
[null,null,null,null,"",""]
[null,null,null,null,"",""]
[null,null,null,null,"",""]
[null,null,null,null,"",""]
[null,null,null,null,"",""]
[null,null,null,null,"",""]
[null,null,null,null,"",""]
[null,null,null,null,"",""]
[null,null,null,null,"",""]
[null,null,null,null,"",""]
[null,null,null,null,"",""]
[null,null,null,null,"",""]
[null,null,null,null,"",""]
[null,null,null,null,"",""]
[null,null,null,null,"",""]
[null,null,null,null,"",""]
[null,null,null,null,"",""]
[null,null,null,null,"",""]
[null,null,null,null,"",""]
[null,null,null,null,"",""]
[null,null,null,null,"",""]
[null,null,null,null,"",""]
[null,null,null,null,"",""]
[null,null,null,null,"",""]
[null,null,null,null,"",""]
[null,null,null,null,"",""]
[null,null,null,null,"",""]
[null,null,null,null,"",""]
[null,null,null,null,"",""]
[null,null,null,null,"",""]
[null,null,null,null,"",""]
[null,null,null,null,"",""]
[null,null,null,null,"",""]
[null,null,null,null,{"$f":"IF(C5039=\"\",\"\",VLOOKUP(C5039,$J$4:$J$10,2,FALSE))","v":""},""]
[null,null,null,null,"",""]
[null,null,null,null,"",""]
[null,null,null,null,"",""]
[null,null,null,null,"",""]
[null,null,null,null,"",""]
[null,null,null,null,"",""]
[null,null,null,null,"",""]
[null,null,null,null,"",""]
[null,null,null,null,"",""]
[null,null,null,null,"",""]
[null,null,null,null,"",""]
[null,null,null,null,"",""]
[null,null,null,null,"",""]
[null,null,null,null,"",""]
[null,null,null,null,"",""]
[null,null,null,null,"",""]
[null,null,null,null,"",""]
[null,null,null,null,"",""]
[null,null,null,null,"",""]
[null,null,null,null,"",""]
[null,null,null,null,"",""]
[null,null,null,null,"",""]
[null,null,null,null,"",""]
[null,null,null,null,"",""]
[null,null,null,null,"",{"$f":"IF(E5064=\"\",\"\",D5064*E5064)","v":""}]
[null,null,null,null,"",""]
[null,null,null,null,"",""]
[null,null,null,null,"",""]
[null,null,null,null,"",""]
[null,null,null,null,"",""]
[null,null,null,null,"",""]
[null,null,null,null,"",""]
[null,null,null,null,"",""]
[null,null,null,null,"",""]
[null,null,null,null,"",""]
[null,null,null,null,"",""]
[null,null,null,null,"",""]
[null,null,null,null,"",""]
[null,null,null,null,"",""]
[null,null,null,null,"",""]
[null,null,null,null,"",""]
[null,null,null,null,"",""]
[null,null,null,null,"",""]
[null,null,null,null,"",""]
[null,null,null,null,"",""]
[null,null,null,null,"",""]
[null,null,null,null,"",""]
[null,null,null,null,"",""]
[null,null,null,null,"",""]
[null,null,null,null,"",""]
[null,null,null,null,"",""]
[null,null,null,null,"",""]
[null,null,null,null,"",""]
[null,null,null,null,"",""]
[null,null,null,null,"",""]
[null,null,null,null,"",""]
[null,null,null,null,"",""]
[null,null,null,null,"",""]
[null,null,null,null,"",""]
[null,null,null,null,"",""]
[null,null,null,null,"",""]
[null,null,null,null,"",""]
[null,null,null,null,"",""]
[null,null,null,null,{"$f":"IF(C5103=\"\",\"\",VLOOKUP(C5103,$J$4:$J$10,2,FALSE))","v":""},""]
[null,null,null,null,"",""]
[null,null,null,null,"",""]
[null,null,null,null,"",""]
[null,null,null,null,"",""]
[null,null,null,null,"",""]
[null,null,null,null,"",""]
[null,null,null,null,"",""]
[null,null,null,null,"",""]
[null,null,null,null,"",""]
[null,null,null,null,"",""]
[null,null,null,null,"",""]
[null,null,null,null,"",""]
[null,null,null,null,"",""]
[null,null,null,null,"",""]
[null,null,null,null,"",""]
[null,null,null,null,"",""]
[null,null,null,null,"",""]
[null,null,null,null,"",""]
[null,null,null,null,"",""]
[null,null,null,null,"",""]
[null,null,null,null,"",""]
[null,null,null,null,"",""]
[null,null,null,null,"",""]
[null,null,null,null,"",""]
[null,null,null,null,"",{"$f":"IF(E5128=\"\",\"\",D5128*E5128)","v":""}]
[null,null,null,null,"",""]
[null,null,null,null,"",""]
[null,null,null,null,"",""]
[null,null,null,null,"",""]
[null,null,null,null,"",""]
[null,null,null,null,"",""]
[null,null,null,null,"",""]
[null,null,null,null,"",""]
[null,null,null,null,"",""]
[null,null,null,null,"",""]
[null,null,null,null,"",""]
[null,null,null,null,"",""]
[null,null,null,null,"",""]
[null,null,null,null,"",""]
[null,null,null,null,"",""]
[null,null,null,null,"",""]
[null,null,null,null,"",""]
[null,null,null,null,"",""]
[null,null,null,null,"",""]
[null,null,null,null,"",""]
[null,null,null,null,"",""]
[null,null,null,null,"",""]
[null,null,null,null,"",""]
[null,null,null,null,"",""]
[null,null,null,null,"",""]
[null,null,null,null,"",""]
[null,null,null,null,"",""]
[null,null,null,null,"",""]
[null,null,null,null,"",""]
[null,null,null,null,"",""]
[null,null,null,null,"",""]
[null,null,null,null,"",""]
[null,null,null,null,"",""]
[null,null,null,null,"",""]
[null,null,null,null,"",""]
[null,null,null,null,"",""]
[null,null,null,null,"",""]
[null,null,null,null,"",""]
[null,null,null,null,{"$f":"IF(C5167=\"\",\"\",VLOOKUP(C5167,$J$4:$J$10,2,FALSE))","v":""},""]
[null,null,null,null,"",""]
[null,null,null,null,"",""]
[null,null,null,null,"",""]
[null,null,null,null,"",""]
[null,null,null,null,"",""]
[null,null,null,null,"",""]
[null,null,null,null,"",""]
[null,null,null,null,"",""]
[null,null,null,null,"",""]
[null,null,null,null,"",""]
[null,null,null,null,"",""]
[null,null,null,null,"",""]
[null,null,null,null,"",""]
[null,null,null,null,"",""]
[null,null,null,null,"",""]
[null,null,null,null,"",""]
[null,null,null,null,"",""]
[null,null,null,null,"",""]
[null,null,null,null,"",""]
[null,null,null,null,"",""]
[null,null,null,null,"",""]
[null,null,null,null,"",""]
[null,null,null,null,"",""]
[null,null,null,null,"",""]
[null,null,null,null,"",{"$f":"IF(E5192=\"\",\"\",D5192*E5192)","v":""}]
[null,null,null,null,"",""]
[null,null,null,null,"",""]
[null,null,null,null,"",""]
[null,null,null,null,"",""]
[null,null,null,null,"",""]
[null,null,null,null,"",""]
[null,null,null,null,"",""]
[null,null,null,null,"",""]
[null,null,null,null,"",""]
[null,null,null,null,"",""]
[null,null,null,null,"",""]
[null,null,null,null,"",""]
[null,null,null,null,"",""]
[null,null,null,null,"",""]
[null,null,null,null,"",""]
[null,null,null,null,"",""]
[null,null,null,null,"",""]
[null,null,null,null,"",""]
[null,null,null,null,"",""]
[null,null,null,null,"",""]
[null,null,null,null,"",""]
[null,null,null,null,"",""]
[null,null,null,null,"",""]
[null,null,null,null,"",""]
[null,null,null,null,"",""]
[null,null,null,null,"",""]
[null,null,null,null,"",""]
[null,null,null,null,"",""]
[null,null,null,null,"",""]
[null,null,null,null,"",""]
[null,null,null,null,"",""]
[null,null,null,null,"",""]
[null,null,null,null,"",""]
[null,null,null,null,"",""]
[null,null,null,null,"",""]
[null,null,null,null,"",""]
[null,null,null,null,"",""]
[null,null,null,null,"",""]
[null,null,null,null,{"$f":"IF(C5231=\"\",\"\",VLOOKUP(C5231,$J$4:$J$10,2,FALSE))","v":""},""]
[null,null,null,null,"",""]
[null,null,null,null,"",""]
[null,null,null,null,"",""]
[null,null,null,null,"",""]
[null,null,null,null,"",""]
[null,null,null,null,"",""]
[null,null,null,null,"",""]
[null,null,null,null,"",""]
[null,null,null,null,"",""]
[null,null,null,null,"",""]
[null,null,null,null,"",""]
[null,null,null,null,"",""]
[null,null,null,null,"",""]
[null,null,null,null,"",""]
[null,null,null,null,"",""]
[null,null,null,null,"",""]
[null,null,null,null,"",""]
[null,null,null,null,"",""]
[null,null,null,null,"",""]
[null,null,null,null,"",""]
[null,null,null,null,"",""]
[null,null,null,null,"",""]
[null,null,null,null,"",""]
[null,null,null,null,"",""]
[null,null,null,null,"",{"$f":"IF(E5256=\"\",\"\",D5256*E5256)","v":""}]
[null,null,null,null,"",""]
[null,null,null,null,"",""]
[null,null,null,null,"",""]
[null,null,null,null,"",""]
[null,null,null,null,"",""]
[null,null,null,null,"",""]
[null,null,null,null,"",""]
[null,null,null,null,"",""]
[null,null,null,null,"",""]
[null,null,null,null,"",""]
[null,null,null,null,"",""]
[null,null,null,null,"",""]
[null,null,null,null,"",""]
[null,null,null,null,"",""]
[null,null,null,null,"",""]
[null,null,null,null,"",""]
[null,null,null,null,"",""]
[null,null,null,null,"",""]
[null,null,null,null,"",""]
[null,null,null,null,"",""]
[null,null,null,null,"",""]
[null,null,null,null,"",""]
[null,null,null,null,"",""]
[null,null,null,null,"",""]
[null,null,null,null,"",""]
[null,null,null,null,"",""]
[null,null,null,null,"",""]
[null,null,null,null,"",""]
[null,null,null,null,"",""]
[null,null,null,null,"",""]
[null,null,null,null,"",""]
[null,null,null,null,"",""]
[null,null,null,null,"",""]
[null,null,null,null,"",""]
[null,null,null,null,"",""]
[null,null,null,null,"",""]
[null,null,null,null,"",""]
[null,null,null,null,"",""]
[null,null,null,null,{"$f":"IF(C5295=\"\",\"\",VLOOKUP(C5295,$J$4:$J$10,2,FALSE))","v":""},""]
[null,null,null,null,"",""]
[null,null,null,null,"",""]
[null,null,null,null,"",""]
[null,null,null,null,"",""]
[null,null,null,null,"",""]
[null,null,null,null,"",""]
[null,null,null,null,"",""]
[null,null,null,null,"",""]
[null,null,null,null,"",""]
[null,null,null,null,"",""]
[null,null,null,null,"",""]
[null,null,null,null,"",""]
[null,null,null,null,"",""]
[null,null,null,null,"",""]
[null,null,null,null,"",""]
[null,null,null,null,"",""]
[null,null,null,null,"",""]
[null,null,null,null,"",""]
[null,null,null,null,"",""]
[null,null,null,null,"",""]
[null,null,null,null,"",""]
[null,null,null,null,"",""]
[null,null,null,null,"",""]
[null,null,null,null,"",""]
[null,null,null,null,"",{"$f":"IF(E5320=\"\",\"\",D5320*E5320)","v":""}]
[null,null,null,null,"",""]
[null,null,null,null,"",""]
[null,null,null,null,"",""]
[null,null,null,null,"",""]
[null,null,null,null,"",""]
[null,null,null,null,"",""]
[null,null,null,null,"",""]
[null,null,null,null,"",""]
[null,null,null,null,"",""]
[null,null,null,null,"",""]
[null,null,null,null,"",""]
[null,null,null,null,"",""]
[null,null,null,null,"",""]
[null,null,null,null,"",""]
[null,null,null,null,"",""]
[null,null,null,null,"",""]
[null,null,null,null,"",""]
[null,null,null,null,"",""]
[null,null,null,null,"",""]
[null,null,null,null,"",""]
[null,null,null,null,"",""]
[null,null,null,null,"",""]
[null,null,null,null,"",""]
[null,null,null,null,"",""]
[null,null,null,null,"",""]
[null,null,null,null,"",""]
[null,null,null,null,"",""]
[null,null,null,null,"",""]
[null,null,null,null,"",""]
[null,null,null,null,"",""]
[null,null,null,null,"",""]
[null,null,null,null,"",""]
[null,null,null,null,"",""]
[null,null,null,null,"",""]
[null,null,null,null,"",""]
[null,null,null,null,"",""]
[null,null,null,null,"",""]
[null,null,null,null,"",""]
[null,null,null,null,{"$f":"IF(C5359=\"\",\"\",VLOOKUP(C5359,$J$4:$J$10,2,FALSE))","v":""},""]
[null,null,null,null,"",""]
[null,null,null,null,"",""]
[null,null,null,null,"",""]
[null,null,null,null,"",""]
[null,null,null,null,"",""]
[null,null,null,null,"",""]
[null,null,null,null,"",""]
[null,null,null,null,"",""]
[null,null,null,null,"",""]
[null,null,null,null,"",""]
[null,null,null,null,"",""]
[null,null,null,null,"",""]
[null,null,null,null,"",""]
[null,null,null,null,"",""]
[null,null,null,null,"",""]
[null,null,null,null,"",""]
[null,null,null,null,"",""]
[null,null,null,null,"",""]
[null,null,null,null,"",""]
[null,null,null,null,"",""]
[null,null,null,null,"",""]
[null,null,null,null,"",""]
[null,null,null,null,"",""]
[null,null,null,null,"",""]
[null,null,null,null,"",{"$f":"IF(E5384=\"\",\"\",D5384*E5384)","v":""}]
[null,null,null,null,"",""]
[null,null,null,null,"",""]
[null,null,null,null,"",""]
[null,null,null,null,"",""]
[null,null,null,null,"",""]
[null,null,null,null,"",""]
[null,null,null,null,"",""]
[null,null,null,null,"",""]
[null,null,null,null,"",""]
[null,null,null,null,"",""]
[null,null,null,null,"",""]
[null,null,null,null,"",""]
[null,null,null,null,"",""]
[null,null,null,null,"",""]
[null,null,null,null,"",""]
[null,null,null,null,"",""]
[null,null,null,null,"",""]
[null,null,null,null,"",""]
[null,null,null,null,"",""]
[null,null,null,null,"",""]
[null,null,null,null,"",""]
[null,null,null,null,"",""]
[null,null,null,null,"",""]
[null,null,null,null,"",""]
[null,null,null,null,"",""]
[null,null,null,null,"",""]
[null,null,null,null,"",""]
[null,null,null,null,"",""]
[null,null,null,null,"",""]
[null,null,null,null,"",""]
[null,null,null,null,"",""]
[null,null,null,null,"",""]
[null,null,null,null,"",""]
[null,null,null,null,"",""]
[null,null,null,null,"",""]
[null,null,null,null,"",""]
[null,null,null,null,"",""]
[null,null,null,null,"",""]
[null,null,null,null,{"$f":"IF(C5423=\"\",\"\",VLOOKUP(C5423,$J$4:$J$10,2,FALSE))","v":""},""]
[null,null,null,null,"",""]
[null,null,null,null,"",""]
[null,null,null,null,"",""]
[null,null,null,null,"",""]
[null,null,null,null,"",""]
[null,null,null,null,"",""]
[null,null,null,null,"",""]
[null,null,null,null,"",""]
[null,null,null,null,"",""]
[null,null,null,null,"",""]
[null,null,null,null,"",""]
[null,null,null,null,"",""]
[null,null,null,null,"",""]
[null,null,null,null,"",""]
[null,null,null,null,"",""]
[null,null,null,null,"",""]
[null,null,null,null,"",""]
[null,null,null,null,"",""]
[null,null,null,null,"",""]
[null,null,null,null,"",""]
[null,null,null,null,"",""]
[null,null,null,null,"",""]
[null,null,null,null,"",""]
[null,null,null,null,"",""]
[null,null,null,null,"",{"$f":"IF(E5448=\"\",\"\",D5448*E5448)","v":""}]
[null,null,null,null,"",""]
[null,null,null,null,"",""]
[null,null,null,null,"",""]
[null,null,null,null,"",""]
[null,null,null,null,"",""]
[null,null,null,null,"",""]
[null,null,null,null,"",""]
[null,null,null,null,"",""]
[null,null,null,null,"",""]
[null,null,null,null,"",""]
[null,null,null,null,"",""]
[null,null,null,null,"",""]
[null,null,null,null,"",""]
[null,null,null,null,"",""]
[null,null,null,null,"",""]
[null,null,null,null,"",""]
[null,null,null,null,"",""]
[null,null,null,null,"",""]
[null,null,null,null,"",""]
[null,null,null,null,"",""]
[null,null,null,null,"",""]
[null,null,null,null,"",""]
[null,null,null,null,"",""]
[null,null,null,null,"",""]
[null,null,null,null,"",""]
[null,null,null,null,"",""]
[null,null,null,null,"",""]
[null,null,null,null,"",""]
[null,null,null,null,"",""]
[null,null,null,null,"",""]
[null,null,null,null,"",""]
[null,null,null,null,"",""]
[null,null,null,null,"",""]
[null,null,null,null,"",""]
[null,null,null,null,"",""]
[null,null,null,null,"",""]
[null,null,null,null,"",""]
[null,null,null,null,"",""]
[null,null,null,null,{"$f":"IF(C5487=\"\",\"\",VLOOKUP(C5487,$J$4:$J$10,2,FALSE))","v":""},""]
[null,null,null,null,"",""]
[null,null,null,null,"",""]
[null,null,null,null,"",""]
[null,null,null,null,"",""]
[null,null,null,null,"",""]
[null,null,null,null,"",""]
[null,null,null,null,"",""]
[null,null,null,null,"",""]
[null,null,null,null,"",""]
[null,null,null,null,"",""]
[null,null,null,null,"",""]
[null,null,null,null,"",""]
[null,null,null,null,"",""]
[null,null,null,null,"",""]
[null,null,null,null,"",""]
[null,null,null,null,"",""]
[null,null,null,null,"",""]
[null,null,null,null,"",""]
[null,null,null,null,"",""]
[null,null,null,null,"",""]
[null,null,null,null,"",""]
[null,null,null,null,"",""]
[null,null,null,null,"",""]
[null,null,null,null,"",""]
[null,null,null,null,"",{"$f":"IF(E5512=\"\",\"\",D5512*E5512)","v":""}]
[null,null,null,null,"",""]
[null,null,null,null,"",""]
[null,null,null,null,"",""]
[null,null,null,null,"",""]
[null,null,null,null,"",""]
[null,null,null,null,"",""]
[null,null,null,null,"",""]
[null,null,null,null,"",""]
[null,null,null,null,"",""]
[null,null,null,null,"",""]
[null,null,null,null,"",""]
[null,null,null,null,"",""]
[null,null,null,null,"",""]
[null,null,null,null,"",""]
[null,null,null,null,"",""]
[null,null,null,null,"",""]
[null,null,null,null,"",""]
[null,null,null,null,"",""]
[null,null,null,null,"",""]
[null,null,null,null,"",""]
[null,null,null,null,"",""]
[null,null,null,null,"",""]
[null,null,null,null,"",""]
[null,null,null,null,"",""]
[null,null,null,null,"",""]
[null,null,null,null,"",""]
[null,null,null,null,"",""]
[null,null,null,null,"",""]
[null,null,null,null,"",""]
[null,null,null,null,"",""]
[null,null,null,null,"",""]
[null,null,null,null,"",""]
[null,null,null,null,"",""]
[null,null,null,null,"",""]
[null,null,null,null,"",""]
[null,null,null,null,"",""]
[null,null,null,null,"",""]
[null,null,null,null,"",""]
[null,null,null,null,{"$f":"IF(C5551=\"\",\"\",VLOOKUP(C5551,$J$4:$J$10,2,FALSE))","v":""},""]
[null,null,null,null,"",""]
[null,null,null,null,"",""]
[null,null,null,null,"",""]
[null,null,null,null,"",""]
[null,null,null,null,"",""]
[null,null,null,null,"",""]
[null,null,null,null,"",""]
[null,null,null,null,"",""]
[null,null,null,null,"",""]
[null,null,null,null,"",""]
[null,null,null,null,"",""]
[null,null,null,null,"",""]
[null,null,null,null,"",""]
[null,null,null,null,"",""]
[null,null,null,null,"",""]
[null,null,null,null,"",""]
[null,null,null,null,"",""]
[null,null,null,null,"",""]
[null,null,null,null,"",""]
[null,null,null,null,"",""]
[null,null,null,null,"",""]
[null,null,null,null,"",""]
[null,null,null,null,"",""]
[null,null,null,null,"",""]
[null,null,null,null,"",{"$f":"IF(E5576=\"\",\"\",D5576*E5576)","v":""}]
[null,null,null,null,"",""]
[null,null,null,null,"",""]
[null,null,null,null,"",""]
[null,null,null,null,"",""]
[null,null,null,null,"",""]
[null,null,null,null,"",""]
[null,null,null,null,"",""]
[null,null,null,null,"",""]
[null,null,null,null,"",""]
[null,null,null,null,"",""]
[null,null,null,null,"",""]
[null,null,null,null,"",""]
[null,null,null,null,"",""]
[null,null,null,null,"",""]
[null,null,null,null,"",""]
[null,null,null,null,"",""]
[null,null,null,null,"",""]
[null,null,null,null,"",""]
[null,null,null,null,"",""]
[null,null,null,null,"",""]
[null,null,null,null,"",""]
[null,null,null,null,"",""]
[null,null,null,null,"",""]
[null,null,null,null,"",""]
[null,null,null,null,"",""]
[null,null,null,null,"",""]
[null,null,null,null,"",""]
[null,null,null,null,"",""]
[null,null,null,null,"",""]
[null,null,null,null,"",""]
[null,null,null,null,"",""]
[null,null,null,null,"",""]
[null,null,null,null,"",""]
[null,null,null,null,"",""]
[null,null,null,null,"",""]
[null,null,null,null,"",""]
[null,null,null,null,"",""]
[null,null,null,null,"",""]
[null,null,null,null,{"$f":"IF(C5615=\"\",\"\",VLOOKUP(C5615,$J$4:$J$10,2,FALSE))","v":""},""]
[null,null,null,null,"",""]
[null,null,null,null,"",""]
[null,null,null,null,"",""]
[null,null,null,null,"",""]
[null,null,null,null,"",""]
[null,null,null,null,"",""]
[null,null,null,null,"",""]
[null,null,null,null,"",""]
[null,null,null,null,"",""]
[null,null,null,null,"",""]
[null,null,null,null,"",""]
[null,null,null,null,"",""]
[null,null,null,null,"",""]
[null,null,null,null,"",""]
[null,null,null,null,"",""]
[null,null,null,null,"",""]
[null,null,null,null,"",""]
[null,null,null,null,"",""]
[null,null,null,null,"",""]
[null,null,null,null,"",""]
[null,null,null,null,"",""]
[null,null,null,null,"",""]
[null,null,null,null,"",""]
[null,null,null,null,"",""]
[null,null,null,null,"",{"$f":"IF(E5640=\"\",\"\",D5640*E5640)","v":""}]
[null,null,null,null,"",""]
[null,null,null,null,"",""]
[null,null,null,null,"",""]
[null,null,null,null,"",""]
[null,null,null,null,"",""]
[null,null,null,null,"",""]
[null,null,null,null,"",""]
[null,null,null,null,"",""]
[null,null,null,null,"",""]
[null,null,null,null,"",""]
[null,null,null,null,"",""]
[null,null,null,null,"",""]
[null,null,null,null,"",""]
[null,null,null,null,"",""]
[null,null,null,null,"",""]
[null,null,null,null,"",""]
[null,null,null,null,"",""]
[null,null,null,null,"",""]
[null,null,null,null,"",""]
[null,null,null,null,"",""]
[null,null,null,null,"",""]
[null,null,null,null,"",""]
[null,null,null,null,"",""]
[null,null,null,null,"",""]
[null,null,null,null,"",""]
[null,null,null,null,"",""]
[null,null,null,null,"",""]
[null,null,null,null,"",""]
[null,null,null,null,"",""]
[null,null,null,null,"",""]
[null,null,null,null,"",""]
[null,null,null,null,"",""]
[null,null,null,null,"",""]
[null,null,null,null,"",""]
[null,null,null,null,"",""]
[null,null,null,null,"",""]
[null,null,null,null,"",""]
[null,null,null,null,"",""]
[null,null,null,null,{"$f":"IF(C5679=\"\",\"\",VLOOKUP(C5679,$J$4:$J$10,2,FALSE))","v":""},""]
[null,null,null,null,"",""]
[null,null,null,null,"",""]
[null,null,null,null,"",""]
[null,null,null,null,"",""]
[null,null,null,null,"",""]
[null,null,null,null,"",""]
[null,null,null,null,"",""]
[null,null,null,null,"",""]
[null,null,null,null,"",""]
[null,null,null,null,"",""]
[null,null,null,null,"",""]
[null,null,null,null,"",""]
[null,null,null,null,"",""]
[null,null,null,null,"",""]
[null,null,null,null,"",""]
[null,null,null,null,"",""]
[null,null,null,null,"",""]
[null,null,null,null,"",""]
[null,null,null,null,"",""]
[null,null,null,null,"",""]
[null,null,null,null,"",""]
[null,null,null,null,"",""]
[null,null,null,null,"",""]
[null,null,null,null,"",""]
[null,null,null,null,"",{"$f":"IF(E5704=\"\",\"\",D5704*E5704)","v":""}]
[null,null,null,null,"",""]
[null,null,null,null,"",""]
[null,null,null,null,"",""]
[null,null,null,null,"",""]
[null,null,null,null,"",""]
[null,null,null,null,"",""]
[null,null,null,null,"",""]
[null,null,null,null,"",""]
[null,null,null,null,"",""]
[null,null,null,null,"",""]
[null,null,null,null,"",""]
[null,null,null,null,"",""]
[null,null,null,null,"",""]
[null,null,null,null,"",""]
[null,null,null,null,"",""]
[null,null,null,null,"",""]
[null,null,null,null,"",""]
[null,null,null,null,"",""]
[null,null,null,null,"",""]
[null,null,null,null,"",""]
[null,null,null,null,"",""]
[null,null,null,null,"",""]
[null,null,null,null,"",""]
[null,null,null,null,"",""]
[null,null,null,null,"",""]
[null,null,null,null,"",""]
[null,null,null,null,"",""]
[null,null,null,null,"",""]
[null,null,null,null,"",""]
[null,null,null,null,"",""]
[null,null,null,null,"",""]
[null,null,null,null,"",""]
[null,null,null,null,"",""]
[null,null,null,null,"",""]
[null,null,null,null,"",""]
[null,null,null,null,"",""]
[null,null,null,null,"",""]
[null,null,null,null,"",""]
[null,null,null,null,{"$f":"IF(C5743=\"\",\"\",VLOOKUP(C5743,$J$4:$J$10,2,FALSE))","v":""},""]
[null,null,null,null,"",""]
[null,null,null,null,"",""]
[null,null,null,null,"",""]
[null,null,null,null,"",""]
[null,null,null,null,"",""]
[null,null,null,null,"",""]
[null,null,null,null,"",""]
[null,null,null,null,"",""]
[null,null,null,null,"",""]
[null,null,null,null,"",""]
[null,null,null,null,"",""]
[null,null,null,null,"",""]
[null,null,null,null,"",""]
[null,null,null,null,"",""]
[null,null,null,null,"",""]
[null,null,null,null,"",""]
[null,null,null,null,"",""]
[null,null,null,null,"",""]
[null,null,null,null,"",""]
[null,null,null,null,"",""]
[null,null,null,null,"",""]
[null,null,null,null,"",""]
[null,null,null,null,"",""]
[null,null,null,null,"",""]
[null,null,null,null,"",{"$f":"IF(E5768=\"\",\"\",D5768*E5768)","v":""}]
[null,null,null,null,"",""]
[null,null,null,null,"",""]
[null,null,null,null,"",""]
[null,null,null,null,"",""]
[null,null,null,null,"",""]
[null,null,null,null,"",""]
[null,null,null,null,"",""]
[null,null,null,null,"",""]
[null,null,null,null,"",""]
[null,null,null,null,"",""]
[null,null,null,null,"",""]
[null,null,null,null,"",""]
[null,null,null,null,"",""]
[null,null,null,null,"",""]
[null,null,null,null,"",""]
[null,null,null,null,"",""]
[null,null,null,null,"",""]
[null,null,null,null,"",""]
[null,null,null,null,"",""]
[null,null,null,null,"",""]
[null,null,null,null,"",""]
[null,null,null,null,"",""]
[null,null,null,null,"",""]
[null,null,null,null,"",""]
[null,null,null,null,"",""]
[null,null,null,null,"",""]
[null,null,null,null,"",""]
[null,null,null,null,"",""]
[null,null,null,null,"",""]
[null,null,null,null,"",""]
[null,null,null,null,"",""]
[null,null,null,null,"",""]
[null,null,null,null,"",""]
[null,null,null,null,"",""]
[null,null,null,null,"",""]
[null,null,null,null,"",""]
[null,null,null,null,"",""]
[null,null,null,null,"",""]
[null,null,null,null,{"$f":"IF(C5807=\"\",\"\",VLOOKUP(C5807,$J$4:$J$10,2,FALSE))","v":""},""]
[null,null,null,null,"",""]
[null,null,null,null,"",""]
[null,null,null,null,"",""]
[null,null,null,null,"",""]
[null,null,null,null,"",""]
[null,null,null,null,"",""]
[null,null,null,null,"",""]
[null,null,null,null,"",""]
[null,null,null,null,"",""]
[null,null,null,null,"",""]
[null,null,null,null,"",""]
[null,null,null,null,"",""]
[null,null,null,null,"",""]
[null,null,null,null,"",""]
[null,null,null,null,"",""]
[null,null,null,null,"",""]
[null,null,null,null,"",""]
[null,null,null,null,"",""]
[null,null,null,null,"",""]
[null,null,null,null,"",""]
[null,null,null,null,"",""]
[null,null,null,null,"",""]
[null,null,null,null,"",""]
[null,null,null,null,"",""]
[null,null,null,null,"",{"$f":"IF(E5832=\"\",\"\",D5832*E5832)","v":""}]
[null,null,null,null,"",""]
[null,null,null,null,"",""]
[null,null,null,null,"",""]
[null,null,null,null,"",""]
[null,null,null,null,"",""]
[null,null,null,null,"",""]
[null,null,null,null,"",""]
[null,null,null,null,"",""]
[null,null,null,null,"",""]
[null,null,null,null,"",""]
[null,null,null,null,"",""]
[null,null,null,null,"",""]
[null,null,null,null,"",""]
[null,null,null,null,"",""]
[null,null,null,null,"",""]
[null,null,null,null,"",""]
[null,null,null,null,"",""]
[null,null,null,null,"",""]
[null,null,null,null,"",""]
[null,null,null,null,"",""]
[null,null,null,null,"",""]
[null,null,null,null,"",""]
[null,null,null,null,"",""]
[null,null,null,null,"",""]
[null,null,null,null,"",""]
[null,null,null,null,"",""]
[null,null,null,null,"",""]
[null,null,null,null,"",""]
[null,null,null,null,"",""]
[null,null,null,null,"",""]
[null,null,null,null,"",""]
[null,null,null,null,"",""]
[null,null,null,null,"",""]
[null,null,null,null,"",""]
[null,null,null,null,"",""]
[null,null,null,null,"",""]
[null,null,null,null,"",""]
[null,null,null,null,"",""]
[null,null,null,null,{"$f":"IF(C5871=\"\",\"\",VLOOKUP(C5871,$J$4:$J$10,2,FALSE))","v":""},""]
[null,null,null,null,"",""]
[null,null,null,null,"",""]
[null,null,null,null,"",""]
[null,null,null,null,"",""]
[null,null,null,null,"",""]
[null,null,null,null,"",""]
[null,null,null,null,"",""]
[null,null,null,null,"",""]
[null,null,null,null,"",""]
[null,null,null,null,"",""]
[null,null,null,null,"",""]
[null,null,null,null,"",""]
[null,null,null,null,"",""]
[null,null,null,null,"",""]
[null,null,null,null,"",""]
[null,null,null,null,"",""]
[null,null,null,null,"",""]
[null,null,null,null,"",""]
[null,null,null,null,"",""]
[null,null,null,null,"",""]
[null,null,null,null,"",""]
[null,null,null,null,"",""]
[null,null,null,null,"",""]
[null,null,null,null,"",""]
[null,null,null,null,"",{"$f":"IF(E5896=\"\",\"\",D5896*E5896)","v":""}]
[null,null,null,null,"",""]
[null,null,null,null,"",""]
[null,null,null,null,"",""]
[null,null,null,null,"",""]
[null,null,null,null,"",""]
[null,null,null,null,"",""]
[null,null,null,null,"",""]
[null,null,null,null,"",""]
[null,null,null,null,"",""]
[null,null,null,null,"",""]
[null,null,null,null,"",""]
[null,null,null,null,"",""]
[null,null,null,null,"",""]
[null,null,null,null,"",""]
[null,null,null,null,"",""]
[null,null,null,null,"",""]
[null,null,null,null,"",""]
[null,null,null,null,"",""]
[null,null,null,null,"",""]
[null,null,null,null,"",""]
[null,null,null,null,"",""]
[null,null,null,null,"",""]
[null,null,null,null,"",""]
[null,null,null,null,"",""]
[null,null,null,null,"",""]
[null,null,null,null,"",""]
[null,null,null,null,"",""]
[null,null,null,null,"",""]
[null,null,null,null,"",""]
[null,null,null,null,"",""]
[null,null,null,null,"",""]
[null,null,null,null,"",""]
[null,null,null,null,"",""]
[null,null,null,null,"",""]
[null,null,null,null,"",""]
[null,null,null,null,"",""]
[null,null,null,null,"",""]
[null,null,null,null,"",""]
[null,null,null,null,{"$f":"IF(C5935=\"\",\"\",VLOOKUP(C5935,$J$4:$J$10,2,FALSE))","v":""},""]
[null,null,null,null,"",""]
[null,null,null,null,"",""]
[null,null,null,null,"",""]
[null,null,null,null,"",""]
[null,null,null,null,"",""]
[null,null,null,null,"",""]
[null,null,null,null,"",""]
[null,null,null,null,"",""]
[null,null,null,null,"",""]
[null,null,null,null,"",""]
[null,null,null,null,"",""]
[null,null,null,null,"",""]
[null,null,null,null,"",""]
[null,null,null,null,"",""]
[null,null,null,null,"",""]
[null,null,null,null,"",""]
[null,null,null,null,"",""]
[null,null,null,null,"",""]
[null,null,null,null,"",""]
[null,null,null,null,"",""]
[null,null,null,null,"",""]
[null,null,null,null,"",""]
[null,null,null,null,"",""]
[null,null,null,null,"",""]
[null,null,null,null,"",{"$f":"IF(E5960=\"\",\"\",D5960*E5960)","v":""}]
[null,null,null,null,"",""]
[null,null,null,null,"",""]
[null,null,null,null,"",""]
[null,null,null,null,"",""]
[null,null,null,null,"",""]
[null,null,null,null,"",""]
[null,null,null,null,"",""]
[null,null,null,null,"",""]
[null,null,null,null,"",""]
[null,null,null,null,"",""]
[null,null,null,null,"",""]
[null,null,null,null,"",""]
[null,null,null,null,"",""]
[null,null,null,null,"",""]
[null,null,null,null,"",""]
[null,null,null,null,"",""]
[null,null,null,null,"",""]
[null,null,null,null,"",""]
[null,null,null,null,"",""]
[null,null,null,null,"",""]
[null,null,null,null,"",""]
[null,null,null,null,"",""]
[null,null,null,null,"",""]
[null,null,null,null,"",""]
[null,null,null,null,"",""]
[null,null,null,null,"",""]
[null,null,null,null,"",""]
[null,null,null,null,"",""]
[null,null,null,null,"",""]
[null,null,null,null,"",""]
[null,null,null,null,"",""]
[null,null,null,null,"",""]
[null,null,null,null,"",""]
[null,null,null,null,"",""]
[null,null,null,null,"",""]
[null,null,null,null,"",""]
[null,null,null,null,"",""]
[null,null,null,null,"",""]
[null,null,null,null,{"$f":"IF(C5999=\"\",\"\",VLOOKUP(C5999,$J$4:$J$10,2,FALSE))","v":""},""]
[null,null,null,null,"",""]
[null,null,null,null,"",""]
[null,null,null,null,"",""]
[null,null,null,null,"",""]
[null,null,null,null,"",""]
[null,null,null,null,"",""]
[null,null,null,null,"",""]
[null,null,null,null,"",""]
[null,null,null,null,"",""]
[null,null,null,null,"",""]
[null,null,null,null,"",""]
[null,null,null,null,"",""]
[null,null,null,null,"",""]
[null,null,null,null,"",""]
[null,null,null,null,"",""]
[null,null,null,null,"",""]
[null,null,null,null,"",""]
[null,null,null,null,"",""]
[null,null,null,null,"",""]
[null,null,null,null,"",""]
[null,null,null,null,"",""]
[null,null,null,null,"",""]
[null,null,null,null,"",""]
[null,null,null,null,"",""]
[null,null,null,null,"",{"$f":"IF(E6024=\"\",\"\",D6024*E6024)","v":""}]
[null,null,null,null,"",""]
[null,null,null,null,"",""]
[null,null,null,null,"",""]
[null,null,null,null,"",""]
[null,null,null,null,"",""]
[null,null,null,null,"",""]
[null,null,null,null,"",""]
[null,null,null,null,"",""]
[null,null,null,null,"",""]
[null,null,null,null,"",""]
[null,null,null,null,"",""]
[null,null,null,null,"",""]
[null,null,null,null,"",""]
[null,null,null,null,"",""]
[null,null,null,null,"",""]
[null,null,null,null,"",""]
[null,null,null,null,"",""]
[null,null,null,null,"",""]
[null,null,null,null,"",""]
[null,null,null,null,"",""]
[null,null,null,null,"",""]
[null,null,null,null,"",""]
[null,null,null,null,"",""]
[null,null,null,null,"",""]
[null,null,null,null,"",""]
[null,null,null,null,"",""]
[null,null,null,null,"",""]
[null,null,null,null,"",""]
[null,null,null,null,"",""]
[null,null,null,null,"",""]
[null,null,null,null,"",""]
[null,null,null,null,"",""]
[null,null,null,null,"",""]
[null,null,null,null,"",""]
[null,null,null,null,"",""]
[null,null,null,null,"",""]
[null,null,null,null,"",""]
[null,null,null,null,"",""]
[null,null,null,null,{"$f":"IF(C6063=\"\",\"\",VLOOKUP(C6063,$J$4:$J$10,2,FALSE))","v":""},""]
[null,null,null,null,"",""]
[null,null,null,null,"",""]
[null,null,null,null,"",""]
[null,null,null,null,"",""]
[null,null,null,null,"",""]
[null,null,null,null,"",""]
[null,null,null,null,"",""]
[null,null,null,null,"",""]
[null,null,null,null,"",""]
[null,null,null,null,"",""]
[null,null,null,null,"",""]
[null,null,null,null,"",""]
[null,null,null,null,"",""]
[null,null,null,null,"",""]
[null,null,null,null,"",""]
[null,null,null,null,"",""]
[null,null,null,null,"",""]
[null,null,null,null,"",""]
[null,null,null,null,"",""]
[null,null,null,null,"",""]
[null,null,null,null,"",""]
[null,null,null,null,"",""]
[null,null,null,null,"",""]
[null,null,null,null,"",""]
[null,null,null,null,"",{"$f":"IF(E6088=\"\",\"\",D6088*E6088)","v":""}]
[null,null,null,null,"",""]
[null,null,null,null,"",""]
[null,null,null,null,"",""]
[null,null,null,null,"",""]
[null,null,null,null,"",""]
[null,null,null,null,"",""]
[null,null,null,null,"",""]
[null,null,null,null,"",""]
[null,null,null,null,"",""]
[null,null,null,null,"",""]
[null,null,null,null,"",""]
[null,null,null,null,"",""]
[null,null,null,null,"",""]
[null,null,null,null,"",""]
[null,null,null,null,"",""]
[null,null,null,null,"",""]
[null,null,null,null,"",""]
[null,null,null,null,"",""]
[null,null,null,null,"",""]
[null,null,null,null,"",""]
[null,null,null,null,"",""]
[null,null,null,null,"",""]
[null,null,null,null,"",""]
[null,null,null,null,"",""]
[null,null,null,null,"",""]
[null,null,null,null,"",""]
[null,null,null,null,"",""]
[null,null,null,null,"",""]
[null,null,null,null,"",""]
[null,null,null,null,"",""]
[null,null,null,null,"",""]
[null,null,null,null,"",""]
[null,null,null,null,"",""]
[null,null,null,null,"",""]
[null,null,null,null,"",""]
[null,null,null,null,"",""]
[null,null,null,null,"",""]
[null,null,null,null,"",""]
[null,null,null,null,{"$f":"IF(C6127=\"\",\"\",VLOOKUP(C6127,$J$4:$J$10,2,FALSE))","v":""},""]
[null,null,null,null,"",""]
[null,null,null,null,"",""]
[null,null,null,null,"",""]
[null,null,null,null,"",""]
[null,null,null,null,"",""]
[null,null,null,null,"",""]
[null,null,null,null,"",""]
[null,null,null,null,"",""]
[null,null,null,null,"",""]
[null,null,null,null,"",""]
[null,null,null,null,"",""]
[null,null,null,null,"",""]
[null,null,null,null,"",""]
[null,null,null,null,"",""]
[null,null,null,null,"",""]
[null,null,null,null,"",""]
[null,null,null,null,"",""]
[null,null,null,null,"",""]
[null,null,null,null,"",""]
[null,null,null,null,"",""]
[null,null,null,null,"",""]
[null,null,null,null,"",""]
[null,null,null,null,"",""]
[null,null,null,null,"",""]
[null,null,null,null,"",{"$f":"IF(E6152=\"\",\"\",D6152*E6152)","v":""}]
[null,null,null,null,"",""]
[null,null,null,null,"",""]
[null,null,null,null,"",""]
[null,null,null,null,"",""]
[null,null,null,null,"",""]
[null,null,null,null,"",""]
[null,null,null,null,"",""]
[null,null,null,null,"",""]
[null,null,null,null,"",""]
[null,null,null,null,"",""]
[null,null,null,null,"",""]
[null,null,null,null,"",""]
[null,null,null,null,"",""]
[null,null,null,null,"",""]
[null,null,null,null,"",""]
[null,null,null,null,"",""]
[null,null,null,null,"",""]
[null,null,null,null,"",""]
[null,null,null,null,"",""]
[null,null,null,null,"",""]
[null,null,null,null,"",""]
[null,null,null,null,"",""]
[null,null,null,null,"",""]
[null,null,null,null,"",""]
[null,null,null,null,"",""]
[null,null,null,null,"",""]
[null,null,null,null,"",""]
[null,null,null,null,"",""]
[null,null,null,null,"",""]
[null,null,null,null,"",""]
[null,null,null,null,"",""]
[null,null,null,null,"",""]
[null,null,null,null,"",""]
[null,null,null,null,"",""]
[null,null,null,null,"",""]
[null,null,null,null,"",""]
[null,null,null,null,"",""]
[null,null,null,null,"",""]
[null,null,null,null,{"$f":"IF(C6191=\"\",\"\",VLOOKUP(C6191,$J$4:$J$10,2,FALSE))","v":""},""]
[null,null,null,null,"",""]
[null,null,null,null,"",""]
[null,null,null,null,"",""]
[null,null,null,null,"",""]
[null,null,null,null,"",""]
[null,null,null,null,"",""]
[null,null,null,null,"",""]
[null,null,null,null,"",""]
[null,null,null,null,"",""]
[null,null,null,null,"",""]
[null,null,null,null,"",""]
[null,null,null,null,"",""]
[null,null,null,null,"",""]
[null,null,null,null,"",""]
[null,null,null,null,"",""]
[null,null,null,null,"",""]
[null,null,null,null,"",""]
[null,null,null,null,"",""]
[null,null,null,null,"",""]
[null,null,null,null,"",""]
[null,null,null,null,"",""]
[null,null,null,null,"",""]
[null,null,null,null,"",""]
[null,null,null,null,"",""]
[null,null,null,null,"",{"$f":"IF(E6216=\"\",\"\",D6216*E6216)","v":""}]
[null,null,null,null,"",""]
[null,null,null,null,"",""]
[null,null,null,null,"",""]
[null,null,null,null,"",""]
[null,null,null,null,"",""]
[null,null,null,null,"",""]
[null,null,null,null,"",""]
[null,null,null,null,"",""]
[null,null,null,null,"",""]
[null,null,null,null,"",""]
[null,null,null,null,"",""]
[null,null,null,null,"",""]
[null,null,null,null,"",""]
[null,null,null,null,"",""]
[null,null,null,null,"",""]
[null,null,null,null,"",""]
[null,null,null,null,"",""]
[null,null,null,null,"",""]
[null,null,null,null,"",""]
[null,null,null,null,"",""]
[null,null,null,null,"",""]
[null,null,null,null,"",""]
[null,null,null,null,"",""]
[null,null,null,null,"",""]
[null,null,null,null,"",""]
[null,null,null,null,"",""]
[null,null,null,null,"",""]
[null,null,null,null,"",""]
[null,null,null,null,"",""]
[null,null,null,null,"",""]
[null,null,null,null,"",""]
[null,null,null,null,"",""]
[null,null,null,null,"",""]
[null,null,null,null,"",""]
[null,null,null,null,"",""]
[null,null,null,null,"",""]
[null,null,null,null,"",""]
[null,null,null,null,"",""]
[null,null,null,null,{"$f":"IF(C6255=\"\",\"\",VLOOKUP(C6255,$J$4:$J$10,2,FALSE))","v":""},""]
[null,null,null,null,"",""]
[null,null,null,null,"",""]
[null,null,null,null,"",""]
[null,null,null,null,"",""]
[null,null,null,null,"",""]
[null,null,null,null,"",""]
[null,null,null,null,"",""]
[null,null,null,null,"",""]
[null,null,null,null,"",""]
[null,null,null,null,"",""]
[null,null,null,null,"",""]
[null,null,null,null,"",""]
[null,null,null,null,"",""]
[null,null,null,null,"",""]
[null,null,null,null,"",""]
[null,null,null,null,"",""]
[null,null,null,null,"",""]
[null,null,null,null,"",""]
[null,null,null,null,"",""]
[null,null,null,null,"",""]
[null,null,null,null,"",""]
[null,null,null,null,"",""]
[null,null,null,null,"",""]
[null,null,null,null,"",""]
[null,null,null,null,"",{"$f":"IF(E6280=\"\",\"\",D6280*E6280)","v":""}]
[null,null,null,null,"",""]
[null,null,null,null,"",""]
[null,null,null,null,"",""]
[null,null,null,null,"",""]
[null,null,null,null,"",""]
[null,null,null,null,"",""]
[null,null,null,null,"",""]
[null,null,null,null,"",""]
[null,null,null,null,"",""]
[null,null,null,null,"",""]
[null,null,null,null,"",""]
[null,null,null,null,"",""]
[null,null,null,null,"",""]
[null,null,null,null,"",""]
[null,null,null,null,"",""]
[null,null,null,null,"",""]
[null,null,null,null,"",""]
[null,null,null,null,"",""]
[null,null,null,null,"",""]
[null,null,null,null,"",""]
[null,null,null,null,"",""]
[null,null,null,null,"",""]
[null,null,null,null,"",""]
[null,null,null,null,"",""]
[null,null,null,null,"",""]
[null,null,null,null,"",""]
[null,null,null,null,"",""]
[null,null,null,null,"",""]
[null,null,null,null,"",""]
[null,null,null,null,"",""]
[null,null,null,null,"",""]
[null,null,null,null,"",""]
[null,null,null,null,"",""]
[null,null,null,null,"",""]
[null,null,null,null,"",""]
[null,null,null,null,"",""]
[null,null,null,null,"",""]
[null,null,null,null,"",""]
[null,null,null,null,{"$f":"IF(C6319=\"\",\"\",VLOOKUP(C6319,$J$4:$J$10,2,FALSE))","v":""},""]
[null,null,null,null,"",""]
[null,null,null,null,"",""]
[null,null,null,null,"",""]
[null,null,null,null,"",""]
[null,null,null,null,"",""]
[null,null,null,null,"",""]
[null,null,null,null,"",""]
[null,null,null,null,"",""]
[null,null,null,null,"",""]
[null,null,null,null,"",""]
[null,null,null,null,"",""]
[null,null,null,null,"",""]
[null,null,null,null,"",""]
[null,null,null,null,"",""]
[null,null,null,null,"",""]
[null,null,null,null,"",""]
[null,null,null,null,"",""]
[null,null,null,null,"",""]
[null,null,null,null,"",""]
[null,null,null,null,"",""]
[null,null,null,null,"",""]
[null,null,null,null,"",""]
[null,null,null,null,"",""]
[null,null,null,null,"",""]
[null,null,null,null,"",{"$f":"IF(E6344=\"\",\"\",D6344*E6344)","v":""}]
[null,null,null,null,"",""]
[null,null,null,null,"",""]
[null,null,null,null,"",""]
[null,null,null,null,"",""]
[null,null,null,null,"",""]
[null,null,null,null,"",""]
[null,null,null,null,"",""]
[null,null,null,null,"",""]
[null,null,null,null,"",""]
[null,null,null,null,"",""]
[null,null,null,null,"",""]
[null,null,null,null,"",""]
[null,null,null,null,"",""]
[null,null,null,null,"",""]
[null,null,null,null,"",""]
[null,null,null,null,"",""]
[null,null,null,null,"",""]
[null,null,null,null,"",""]
[null,null,null,null,"",""]
[null,null,null,null,"",""]
[null,null,null,null,"",""]
[null,null,null,null,"",""]
[null,null,null,null,"",""]
[null,null,null,null,"",""]
[null,null,null,null,"",""]
[null,null,null,null,"",""]
[null,null,null,null,"",""]
[null,null,null,null,"",""]
[null,null,null,null,"",""]
[null,null,null,null,"",""]
[null,null,null,null,"",""]
[null,null,null,null,"",""]
[null,null,null,null,"",""]
[null,null,null,null,"",""]
[null,null,null,null,"",""]
[null,null,null,null,"",""]
[null,null,null,null,"",""]
[null,null,null,null,"",""]
[null,null,null,null,{"$f":"IF(C6383=\"\",\"\",VLOOKUP(C6383,$J$4:$J$10,2,FALSE))","v":""},""]
[null,null,null,null,"",""]
[null,null,null,null,"",""]
[null,null,null,null,"",""]
[null,null,null,null,"",""]
[null,null,null,null,"",""]
[null,null,null,null,"",""]
[null,null,null,null,"",""]
[null,null,null,null,"",""]
[null,null,null,null,"",""]
[null,null,null,null,"",""]
[null,null,null,null,"",""]
[null,null,null,null,"",""]
[null,null,null,null,"",""]
[null,null,null,null,"",""]
[null,null,null,null,"",""]
[null,null,null,null,"",""]
[null,null,null,null,"",""]
[null,null,null,null,"",""]
[null,null,null,null,"",""]
[null,null,null,null,"",""]
[null,null,null,null,"",""]
[null,null,null,null,"",""]
[null,null,null,null,"",""]
[null,null,null,null,"",""]
[null,null,null,null,"",{"$f":"IF(E6408=\"\",\"\",D6408*E6408)","v":""}]
[null,null,null,null,"",""]
[null,null,null,null,"",""]
[null,null,null,null,"",""]
[null,null,null,null,"",""]
[null,null,null,null,"",""]
[null,null,null,null,"",""]
[null,null,null,null,"",""]
[null,null,null,null,"",""]
[null,null,null,null,"",""]
[null,null,null,null,"",""]
[null,null,null,null,"",""]
[null,null,null,null,"",""]
[null,null,null,null,"",""]
[null,null,null,null,"",""]
[null,null,null,null,"",""]
[null,null,null,null,"",""]
[null,null,null,null,"",""]
[null,null,null,null,"",""]
[null,null,null,null,"",""]
[null,null,null,null,"",""]
[null,null,null,null,"",""]
[null,null,null,null,"",""]
[null,null,null,null,"",""]
[null,null,null,null,"",""]
[null,null,null,null,"",""]
[null,null,null,null,"",""]
[null,null,null,null,"",""]
[null,null,null,null,"",""]
[null,null,null,null,"",""]
[null,null,null,null,"",""]
[null,null,null,null,"",""]
[null,null,null,null,"",""]
[null,null,null,null,"",""]
[null,null,null,null,"",""]
[null,null,null,null,"",""]
[null,null,null,null,"",""]
[null,null,null,null,"",""]
[null,null,null,null,"",""]
[null,null,null,null,{"$f":"IF(C6447=\"\",\"\",VLOOKUP(C6447,$J$4:$J$10,2,FALSE))","v":""},""]
[null,null,null,null,"",""]
[null,null,null,null,"",""]
[null,null,null,null,"",""]
[null,null,null,null,"",""]
[null,null,null,null,"",""]
[null,null,null,null,"",""]
[null,null,null,null,"",""]
[null,null,null,null,"",""]
[null,null,null,null,"",""]
[null,null,null,null,"",""]
[null,null,null,null,"",""]
[null,null,null,null,"",""]
[null,null,null,null,"",""]
[null,null,null,null,"",""]
[null,null,null,null,"",""]
[null,null,null,null,"",""]
[null,null,null,null,"",""]
[null,null,null,null,"",""]
[null,null,null,null,"",""]
[null,null,null,null,"",""]
[null,null,null,null,"",""]
[null,null,null,null,"",""]
[null,null,null,null,"",""]
[null,null,null,null,"",""]
[null,null,null,null,"",{"$f":"IF(E6472=\"\",\"\",D6472*E6472)","v":""}]
[null,null,null,null,"",""]
[null,null,null,null,"",""]
[null,null,null,null,"",""]
[null,null,null,null,"",""]
[null,null,null,null,"",""]
[null,null,null,null,"",""]
[null,null,null,null,"",""]
[null,null,null,null,"",""]
[null,null,null,null,"",""]
[null,null,null,null,"",""]
[null,null,null,null,"",""]
[null,null,null,null,"",""]
[null,null,null,null,"",""]
[null,null,null,null,"",""]
[null,null,null,null,"",""]
[null,null,null,null,"",""]
[null,null,null,null,"",""]
[null,null,null,null,"",""]
[null,null,null,null,"",""]
[null,null,null,null,"",""]
[null,null,null,null,"",""]
[null,null,null,null,"",""]
[null,null,null,null,"",""]
[null,null,null,null,"",""]
[null,null,null,null,"",""]
[null,null,null,null,"",""]
[null,null,null,null,"",""]
[null,null,null,null,"",""]
[null,null,null,null,"",""]
[null,null,null,null,"",""]
[null,null,null,null,"",""]
[null,null,null,null,"",""]
[null,null,null,null,"",""]
[null,null,null,null,"",""]
[null,null,null,null,"",""]
[null,null,null,null,"",""]
[null,null,null,null,"",""]
[null,null,null,null,"",""]
[null,null,null,null,{"$f":"IF(C6511=\"\",\"\",VLOOKUP(C6511,$J$4:$J$10,2,FALSE))","v":""},""]
[null,null,null,null,"",""]
[null,null,null,null,"",""]
[null,null,null,null,"",""]
[null,null,null,null,"",""]
[null,null,null,null,"",""]
[null,null,null,null,"",""]
[null,null,null,null,"",""]
[null,null,null,null,"",""]
[null,null,null,null,"",""]
[null,null,null,null,"",""]
[null,null,null,null,"",""]
[null,null,null,null,"",""]
[null,null,null,null,"",""]
[null,null,null,null,"",""]
[null,null,null,null,"",""]
[null,null,null,null,"",""]
[null,null,null,null,"",""]
[null,null,null,null,"",""]
[null,null,null,null,"",""]
[null,null,null,null,"",""]
[null,null,null,null,"",""]
[null,null,null,null,"",""]
[null,null,null,null,"",""]
[null,null,null,null,"",""]
[null,null,null,null,"",{"$f":"IF(E6536=\"\",\"\",D6536*E6536)","v":""}]
[null,null,null,null,"",""]
[null,null,null,null,"",""]
[null,null,null,null,"",""]
[null,null,null,null,"",""]
[null,null,null,null,"",""]
[null,null,null,null,"",""]
[null,null,null,null,"",""]
[null,null,null,null,"",""]
[null,null,null,null,"",""]
[null,null,null,null,"",""]
[null,null,null,null,"",""]
[null,null,null,null,"",""]
[null,null,null,null,"",""]
[null,null,null,null,"",""]
[null,null,null,null,"",""]
[null,null,null,null,"",""]
[null,null,null,null,"",""]
[null,null,null,null,"",""]
[null,null,null,null,"",""]
[null,null,null,null,"",""]
[null,null,null,null,"",""]
[null,null,null,null,"",""]
[null,null,null,null,"",""]
[null,null,null,null,"",""]
[null,null,null,null,"",""]
[null,null,null,null,"",""]
[null,null,null,null,"",""]
[null,null,null,null,"",""]
[null,null,null,null,"",""]
[null,null,null,null,"",""]
[null,null,null,null,"",""]
[null,null,null,null,"",""]
[null,null,null,null,"",""]
[null,null,null,null,"",""]
[null,null,null,null,"",""]
[null,null,null,null,"",""]
[null,null,null,null,"",""]
[null,null,null,null,"",""]
[null,null,null,null,{"$f":"IF(C6575=\"\",\"\",VLOOKUP(C6575,$J$4:$J$10,2,FALSE))","v":""},""]
[null,null,null,null,"",""]
[null,null,null,null,"",""]
[null,null,null,null,"",""]
[null,null,null,null,"",""]
[null,null,null,null,"",""]
[null,null,null,null,"",""]
[null,null,null,null,"",""]
[null,null,null,null,"",""]
[null,null,null,null,"",""]
[null,null,null,null,"",""]
[null,null,null,null,"",""]
[null,null,null,null,"",""]
[null,null,null,null,"",""]
[null,null,null,null,"",""]
[null,null,null,null,"",""]
[null,null,null,null,"",""]
[null,null,null,null,"",""]
[null,null,null,null,"",""]
[null,null,null,null,"",""]
[null,null,null,null,"",""]
[null,null,null,null,"",""]
[null,null,null,null,"",""]
[null,null,null,null,"",""]
[null,null,null,null,"",""]
[null,null,null,null,"",{"$f":"IF(E6600=\"\",\"\",D6600*E6600)","v":""}]
[null,null,null,null,"",""]
[null,null,null,null,"",""]
[null,null,null,null,"",""]
[null,null,null,null,"",""]
[null,null,null,null,"",""]
[null,null,null,null,"",""]
[null,null,null,null,"",""]
[null,null,null,null,"",""]
[null,null,null,null,"",""]
[null,null,null,null,"",""]
[null,null,null,null,"",""]
[null,null,null,null,"",""]
[null,null,null,null,"",""]
[null,null,null,null,"",""]
[null,null,null,null,"",""]
[null,null,null,null,"",""]
[null,null,null,null,"",""]
[null,null,null,null,"",""]
[null,null,null,null,"",""]
[null,null,null,null,"",""]
[null,null,null,null,"",""]
[null,null,null,null,"",""]
[null,null,null,null,"",""]
[null,null,null,null,"",""]
[null,null,null,null,"",""]
[null,null,null,null,"",""]
[null,null,null,null,"",""]
[null,null,null,null,"",""]
[null,null,null,null,"",""]
[null,null,null,null,"",""]
[null,null,null,null,"",""]
[null,null,null,null,"",""]
[null,null,null,null,"",""]
[null,null,null,null,"",""]
[null,null,null,null,"",""]
[null,null,null,null,"",""]
[null,null,null,null,"",""]
[null,null,null,null,"",""]
[null,null,null,null,{"$f":"IF(C6639=\"\",\"\",VLOOKUP(C6639,$J$4:$J$10,2,FALSE))","v":""},""]
[null,null,null,null,"",""]
[null,null,null,null,"",""]
[null,null,null,null,"",""]
[null,null,null,null,"",""]
[null,null,null,null,"",""]
[null,null,null,null,"",""]
[null,null,null,null,"",""]
[null,null,null,null,"",""]
[null,null,null,null,"",""]
[null,null,null,null,"",""]
[null,null,null,null,"",""]
[null,null,null,null,"",""]
[null,null,null,null,"",""]
[null,null,null,null,"",""]
[null,null,null,null,"",""]
[null,null,null,null,"",""]
[null,null,null,null,"",""]
[null,null,null,null,"",""]
[null,null,null,null,"",""]
[null,null,null,null,"",""]
[null,null,null,null,"",""]
[null,null,null,null,"",""]
[null,null,null,null,"",""]
[null,null,null,null,"",""]
[null,null,null,null,"",{"$f":"IF(E6664=\"\",\"\",D6664*E6664)","v":""}]
[null,null,null,null,"",""]
[null,null,null,null,"",""]
[null,null,null,null,"",""]
[null,null,null,null,"",""]
[null,null,null,null,"",""]
[null,null,null,null,"",""]
[null,null,null,null,"",""]
[null,null,null,null,"",""]
[null,null,null,null,"",""]
[null,null,null,null,"",""]
[null,null,null,null,"",""]
[null,null,null,null,"",""]
[null,null,null,null,"",""]
[null,null,null,null,"",""]
[null,null,null,null,"",""]
[null,null,null,null,"",""]
[null,null,null,null,"",""]
[null,null,null,null,"",""]
[null,null,null,null,"",""]
[null,null,null,null,"",""]
[null,null,null,null,"",""]
[null,null,null,null,"",""]
[null,null,null,null,"",""]
[null,null,null,null,"",""]
[null,null,null,null,"",""]
[null,null,null,null,"",""]
[null,null,null,null,"",""]
[null,null,null,null,"",""]
[null,null,null,null,"",""]
[null,null,null,null,"",""]
[null,null,null,null,"",""]
[null,null,null,null,"",""]
[null,null,null,null,"",""]
[null,null,null,null,"",""]
[null,null,null,null,"",""]
[null,null,null,null,"",""]
[null,null,null,null,"",""]
[null,null,null,null,"",""]
[null,null,null,null,{"$f":"IF(C6703=\"\",\"\",VLOOKUP(C6703,$J$4:$J$10,2,FALSE))","v":""},""]
[null,null,null,null,"",""]
[null,null,null,null,"",""]
[null,null,null,null,"",""]
[null,null,null,null,"",""]
[null,null,null,null,"",""]
[null,null,null,null,"",""]
[null,null,null,null,"",""]
[null,null,null,null,"",""]
[null,null,null,null,"",""]
[null,null,null,null,"",""]
[null,null,null,null,"",""]
[null,null,null,null,"",""]
[null,null,null,null,"",""]
[null,null,null,null,"",""]
[null,null,null,null,"",""]
[null,null,null,null,"",""]
[null,null,null,null,"",""]
[null,null,null,null,"",""]
[null,null,null,null,"",""]
[null,null,null,null,"",""]
[null,null,null,null,"",""]
[null,null,null,null,"",""]
[null,null,null,null,"",""]
[null,null,null,null,"",""]
[null,null,null,null,"",{"$f":"IF(E6728=\"\",\"\",D6728*E6728)","v":""}]
[null,null,null,null,"",""]
[null,null,null,null,"",""]
[null,null,null,null,"",""]
[null,null,null,null,"",""]
[null,null,null,null,"",""]
[null,null,null,null,"",""]
[null,null,null,null,"",""]
[null,null,null,null,"",""]
[null,null,null,null,"",""]
[null,null,null,null,"",""]
[null,null,null,null,"",""]
[null,null,null,null,"",""]
[null,null,null,null,"",""]
[null,null,null,null,"",""]
[null,null,null,null,"",""]
[null,null,null,null,"",""]
[null,null,null,null,"",""]
[null,null,null,null,"",""]
[null,null,null,null,"",""]
[null,null,null,null,"",""]
[null,null,null,null,"",""]
[null,null,null,null,"",""]
[null,null,null,null,"",""]
[null,null,null,null,"",""]
[null,null,null,null,"",""]
[null,null,null,null,"",""]
[null,null,null,null,"",""]
[null,null,null,null,"",""]
[null,null,null,null,"",""]
[null,null,null,null,"",""]
[null,null,null,null,"",""]
[null,null,null,null,"",""]
[null,null,null,null,"",""]
[null,null,null,null,"",""]
[null,null,null,null,"",""]
[null,null,null,null,"",""]
[null,null,null,null,"",""]
[null,null,null,null,"",""]
[null,null,null,null,{"$f":"IF(C6767=\"\",\"\",VLOOKUP(C6767,$J$4:$J$10,2,FALSE))","v":""},""]
[null,null,null,null,"",""]
[null,null,null,null,"",""]
[null,null,null,null,"",""]
[null,null,null,null,"",""]
[null,null,null,null,"",""]
[null,null,null,null,"",""]
[null,null,null,null,"",""]
[null,null,null,null,"",""]
[null,null,null,null,"",""]
[null,null,null,null,"",""]
[null,null,null,null,"",""]
[null,null,null,null,"",""]
[null,null,null,null,"",""]
[null,null,null,null,"",""]
[null,null,null,null,"",""]
[null,null,null,null,"",""]
[null,null,null,null,"",""]
[null,null,null,null,"",""]
[null,null,null,null,"",""]
[null,null,null,null,"",""]
[null,null,null,null,"",""]
[null,null,null,null,"",""]
[null,null,null,null,"",""]
[null,null,null,null,"",""]
[null,null,null,null,"",{"$f":"IF(E6792=\"\",\"\",D6792*E6792)","v":""}]
[null,null,null,null,"",""]
[null,null,null,null,"",""]
[null,null,null,null,"",""]
[null,null,null,null,"",""]
[null,null,null,null,"",""]
[null,null,null,null,"",""]
[null,null,null,null,"",""]
[null,null,null,null,"",""]
[null,null,null,null,"",""]
[null,null,null,null,"",""]
[null,null,null,null,"",""]
[null,null,null,null,"",""]
[null,null,null,null,"",""]
[null,null,null,null,"",""]
[null,null,null,null,"",""]
[null,null,null,null,"",""]
[null,null,null,null,"",""]
[null,null,null,null,"",""]
[null,null,null,null,"",""]
[null,null,null,null,"",""]
[null,null,null,null,"",""]
[null,null,null,null,"",""]
[null,null,null,null,"",""]
[null,null,null,null,"",""]
[null,null,null,null,"",""]
[null,null,null,null,"",""]
[null,null,null,null,"",""]
[null,null,null,null,"",""]
[null,null,null,null,"",""]
[null,null,null,null,"",""]
[null,null,null,null,"",""]
[null,null,null,null,"",""]
[null,null,null,null,"",""]
[null,null,null,null,"",""]
[null,null,null,null,"",""]
[null,null,null,null,"",""]
[null,null,null,null,"",""]
[null,null,null,null,"",""]
[null,null,null,null,{"$f":"IF(C6831=\"\",\"\",VLOOKUP(C6831,$J$4:$J$10,2,FALSE))","v":""},""]
[null,null,null,null,"",""]
[null,null,null,null,"",""]
[null,null,null,null,"",""]
[null,null,null,null,"",""]
[null,null,null,null,"",""]
[null,null,null,null,"",""]
[null,null,null,null,"",""]
[null,null,null,null,"",""]
[null,null,null,null,"",""]
[null,null,null,null,"",""]
[null,null,null,null,"",""]
[null,null,null,null,"",""]
[null,null,null,null,"",""]
[null,null,null,null,"",""]
[null,null,null,null,"",""]
[null,null,null,null,"",""]
[null,null,null,null,"",""]
[null,null,null,null,"",""]
[null,null,null,null,"",""]
[null,null,null,null,"",""]
[null,null,null,null,"",""]
[null,null,null,null,"",""]
[null,null,null,null,"",""]
[null,null,null,null,"",""]
[null,null,null,null,"",{"$f":"IF(E6856=\"\",\"\",D6856*E6856)","v":""}]
[null,null,null,null,"",""]
[null,null,null,null,"",""]
[null,null,null,null,"",""]
[null,null,null,null,"",""]
[null,null,null,null,"",""]
[null,null,null,null,"",""]
[null,null,null,null,"",""]
[null,null,null,null,"",""]
[null,null,null,null,"",""]
[null,null,null,null,"",""]
[null,null,null,null,"",""]
[null,null,null,null,"",""]
[null,null,null,null,"",""]
[null,null,null,null,"",""]
[null,null,null,null,"",""]
[null,null,null,null,"",""]
[null,null,null,null,"",""]
[null,null,null,null,"",""]
[null,null,null,null,"",""]
[null,null,null,null,"",""]
[null,null,null,null,"",""]
[null,null,null,null,"",""]
[null,null,null,null,"",""]
[null,null,null,null,"",""]
[null,null,null,null,"",""]
[null,null,null,null,"",""]
[null,null,null,null,"",""]
[null,null,null,null,"",""]
[null,null,null,null,"",""]
[null,null,null,null,"",""]
[null,null,null,null,"",""]
[null,null,null,null,"",""]
[null,null,null,null,"",""]
[null,null,null,null,"",""]
[null,null,null,null,"",""]
[null,null,null,null,"",""]
[null,null,null,null,"",""]
[null,null,null,null,"",""]
[null,null,null,null,{"$f":"IF(C6895=\"\",\"\",VLOOKUP(C6895,$J$4:$J$10,2,FALSE))","v":""},""]
[null,null,null,null,"",""]
[null,null,null,null,"",""]
[null,null,null,null,"",""]
[null,null,null,null,"",""]
[null,null,null,null,"",""]
[null,null,null,null,"",""]
[null,null,null,null,"",""]
[null,null,null,null,"",""]
[null,null,null,null,"",""]
[null,null,null,null,"",""]
[null,null,null,null,"",""]
[null,null,null,null,"",""]
[null,null,null,null,"",""]
[null,null,null,null,"",""]
[null,null,null,null,"",""]
[null,null,null,null,"",""]
[null,null,null,null,"",""]
[null,null,null,null,"",""]
[null,null,null,null,"",""]
[null,null,null,null,"",""]
[null,null,null,null,"",""]
[null,null,null,null,"",""]
[null,null,null,null,"",""]
[null,null,null,null,"",""]
[null,null,null,null,"",{"$f":"IF(E6920=\"\",\"\",D6920*E6920)","v":""}]
[null,null,null,null,"",""]
[null,null,null,null,"",""]
[null,null,null,null,"",""]
[null,null,null,null,"",""]
[null,null,null,null,"",""]
[null,null,null,null,"",""]
[null,null,null,null,"",""]
[null,null,null,null,"",""]
[null,null,null,null,"",""]
[null,null,null,null,"",""]
[null,null,null,null,"",""]
[null,null,null,null,"",""]
[null,null,null,null,"",""]
[null,null,null,null,"",""]
[null,null,null,null,"",""]
[null,null,null,null,"",""]
[null,null,null,null,"",""]
[null,null,null,null,"",""]
[null,null,null,null,"",""]
[null,null,null,null,"",""]
[null,null,null,null,"",""]
[null,null,null,null,"",""]
[null,null,null,null,"",""]
[null,null,null,null,"",""]
[null,null,null,null,"",""]
[null,null,null,null,"",""]
[null,null,null,null,"",""]
[null,null,null,null,"",""]
[null,null,null,null,"",""]
[null,null,null,null,"",""]
[null,null,null,null,"",""]
[null,null,null,null,"",""]
[null,null,null,null,"",""]
[null,null,null,null,"",""]
[null,null,null,null,"",""]
[null,null,null,null,"",""]
[null,null,null,null,"",""]
[null,null,null,null,"",""]
[null,null,null,null,{"$f":"IF(C6959=\"\",\"\",VLOOKUP(C6959,$J$4:$J$10,2,FALSE))","v":""},""]
[null,null,null,null,"",""]
[null,null,null,null,"",""]
[null,null,null,null,"",""]
[null,null,null,null,"",""]
[null,null,null,null,"",""]
[null,null,null,null,"",""]
[null,null,null,null,"",""]
[null,null,null,null,"",""]
[null,null,null,null,"",""]
[null,null,null,null,"",""]
[null,null,null,null,"",""]
[null,null,null,null,"",""]
[null,null,null,null,"",""]
[null,null,null,null,"",""]
[null,null,null,null,"",""]
[null,null,null,null,"",""]
[null,null,null,null,"",""]
[null,null,null,null,"",""]
[null,null,null,null,"",""]
[null,null,null,null,"",""]
[null,null,null,null,"",""]
[null,null,null,null,"",""]
[null,null,null,null,"",""]
[null,null,null,null,"",""]
[null,null,null,null,"",{"$f":"IF(E6984=\"\",\"\",D6984*E6984)","v":""}]
[null,null,null,null,"",""]
[null,null,null,null,"",""]
[null,null,null,null,"",""]
[null,null,null,null,"",""]
[null,null,null,null,"",""]
[null,null,null,null,"",""]
[null,null,null,null,"",""]
[null,null,null,null,"",""]
[null,null,null,null,"",""]
[null,null,null,null,"",""]
[null,null,null,null,"",""]
[null,null,null,null,"",""]
[null,null,null,null,"",""]
[null,null,null,null,"",""]
[null,null,null,null,"",""]
[null,null,null,null,"",""]
[null,null,null,null,"",""]
[null,null,null,null,"",""]
[null,null,null,null,"",""]
[null,null,null,null,"",""]
[null,null,null,null,"",""]
[null,null,null,null,"",""]
[null,null,null,null,"",""]
[null,null,null,null,"",""]
[null,null,null,null,"",""]
[null,null,null,null,"",""]
[null,null,null,null,"",""]
[null,null,null,null,"",""]
[null,null,null,null,"",""]
[null,null,null,null,"",""]
[null,null,null,null,"",""]
[null,null,null,null,"",""]
[null,null,null,null,"",""]
[null,null,null,null,"",""]
[null,null,null,null,"",""]
[null,null,null,null,"",""]
[null,null,null,null,"",""]
[null,null,null,null,"",""]
[null,null,null,null,{"$f":"IF(C7023=\"\",\"\",VLOOKUP(C7023,$J$4:$J$10,2,FALSE))","v":""},""]
[null,null,null,null,"",""]
[null,null,null,null,"",""]
[null,null,null,null,"",""]
[null,null,null,null,"",""]
[null,null,null,null,"",""]
[null,null,null,null,"",""]
[null,null,null,null,"",""]
[null,null,null,null,"",""]
[null,null,null,null,"",""]
[null,null,null,null,"",""]
[null,null,null,null,"",""]
[null,null,null,null,"",""]
[null,null,null,null,"",""]
[null,null,null,null,"",""]
[null,null,null,null,"",""]
[null,null,null,null,"",""]
[null,null,null,null,"",""]
[null,null,null,null,"",""]
[null,null,null,null,"",""]
[null,null,null,null,"",""]
[null,null,null,null,"",""]
[null,null,null,null,"",""]
[null,null,null,null,"",""]
[null,null,null,null,"",""]
[null,null,null,null,"",{"$f":"IF(E7048=\"\",\"\",D7048*E7048)","v":""}]
[null,null,null,null,"",""]
[null,null,null,null,"",""]
[null,null,null,null,"",""]
[null,null,null,null,"",""]
[null,null,null,null,"",""]
[null,null,null,null,"",""]
[null,null,null,null,"",""]
[null,null,null,null,"",""]
[null,null,null,null,"",""]
[null,null,null,null,"",""]
[null,null,null,null,"",""]
[null,null,null,null,"",""]
[null,null,null,null,"",""]
[null,null,null,null,"",""]
[null,null,null,null,"",""]
[null,null,null,null,"",""]
[null,null,null,null,"",""]
[null,null,null,null,"",""]
[null,null,null,null,"",""]
[null,null,null,null,"",""]
[null,null,null,null,"",""]
[null,null,null,null,"",""]
[null,null,null,null,"",""]
[null,null,null,null,"",""]
[null,null,null,null,"",""]
[null,null,null,null,"",""]
[null,null,null,null,"",""]
[null,null,null,null,"",""]
[null,null,null,null,"",""]
[null,null,null,null,"",""]
[null,null,null,null,"",""]
[null,null,null,null,"",""]
[null,null,null,null,"",""]
[null,null,null,null,"",""]
[null,null,null,null,"",""]
[null,null,null,null,"",""]
[null,null,null,null,"",""]
[null,null,null,null,"",""]
[null,null,null,null,{"$f":"IF(C7087=\"\",\"\",VLOOKUP(C7087,$J$4:$J$10,2,FALSE))","v":""},""]
[null,null,null,null,"",""]
[null,null,null,null,"",""]
[null,null,null,null,"",""]
[null,null,null,null,"",""]
[null,null,null,null,"",""]
[null,null,null,null,"",""]
[null,null,null,null,"",""]
[null,null,null,null,"",""]
[null,null,null,null,"",""]
[null,null,null,null,"",""]
[null,null,null,null,"",""]
[null,null,null,null,"",""]
[null,null,null,null,"",""]
[null,null,null,null,"",""]
[null,null,null,null,"",""]
[null,null,null,null,"",""]
[null,null,null,null,"",""]
[null,null,null,null,"",""]
[null,null,null,null,"",""]
[null,null,null,null,"",""]
[null,null,null,null,"",""]
[null,null,null,null,"",""]
[null,null,null,null,"",""]
[null,null,null,null,"",""]
[null,null,null,null,"",{"$f":"IF(E7112=\"\",\"\",D7112*E7112)","v":""}]
[null,null,null,null,"",""]
[null,null,null,null,"",""]
[null,null,null,null,"",""]
[null,null,null,null,"",""]
[null,null,null,null,"",""]
[null,null,null,null,"",""]
[null,null,null,null,"",""]
[null,null,null,null,"",""]
[null,null,null,null,"",""]
[null,null,null,null,"",""]
[null,null,null,null,"",""]
[null,null,null,null,"",""]
[null,null,null,null,"",""]
[null,null,null,null,"",""]
[null,null,null,null,"",""]
[null,null,null,null,"",""]
[null,null,null,null,"",""]
[null,null,null,null,"",""]
[null,null,null,null,"",""]
[null,null,null,null,"",""]
[null,null,null,null,"",""]
[null,null,null,null,"",""]
[null,null,null,null,"",""]
[null,null,null,null,"",""]
[null,null,null,null,"",""]
[null,null,null,null,"",""]
[null,null,null,null,"",""]
[null,null,null,null,"",""]
[null,null,null,null,"",""]
[null,null,null,null,"",""]
[null,null,null,null,"",""]
[null,null,null,null,"",""]
[null,null,null,null,"",""]
[null,null,null,null,"",""]
[null,null,null,null,"",""]
[null,null,null,null,"",""]
[null,null,null,null,"",""]
[null,null,null,null,"",""]
[null,null,null,null,{"$f":"IF(C7151=\"\",\"\",VLOOKUP(C7151,$J$4:$J$10,2,FALSE))","v":""},""]
[null,null,null,null,"",""]
[null,null,null,null,"",""]
[null,null,null,null,"",""]
[null,null,null,null,"",""]
[null,null,null,null,"",""]
[null,null,null,null,"",""]
[null,null,null,null,"",""]
[null,null,null,null,"",""]
[null,null,null,null,"",""]
[null,null,null,null,"",""]
[null,null,null,null,"",""]
[null,null,null,null,"",""]
[null,null,null,null,"",""]
[null,null,null,null,"",""]
[null,null,null,null,"",""]
[null,null,null,null,"",""]
[null,null,null,null,"",""]
[null,null,null,null,"",""]
[null,null,null,null,"",""]
[null,null,null,null,"",""]
[null,null,null,null,"",""]
[null,null,null,null,"",""]
[null,null,null,null,"",""]
[null,null,null,null,"",""]
[null,null,null,null,"",{"$f":"IF(E7176=\"\",\"\",D7176*E7176)","v":""}]
[null,null,null,null,"",""]
[null,null,null,null,"",""]
[null,null,null,null,"",""]
[null,null,null,null,"",""]
[null,null,null,null,"",""]
[null,null,null,null,"",""]
[null,null,null,null,"",""]
[null,null,null,null,"",""]
[null,null,null,null,"",""]
[null,null,null,null,"",""]
[null,null,null,null,"",""]
[null,null,null,null,"",""]
[null,null,null,null,"",""]
[null,null,null,null,"",""]
[null,null,null,null,"",""]
[null,null,null,null,"",""]
[null,null,null,null,"",""]
[null,null,null,null,"",""]
[null,null,null,null,"",""]
[null,null,null,null,"",""]
[null,null,null,null,"",""]
[null,null,null,null,"",""]
[null,null,null,null,"",""]
[null,null,null,null,"",""]
[null,null,null,null,"",""]
[null,null,null,null,"",""]
[null,null,null,null,"",""]
[null,null,null,null,"",""]
[null,null,null,null,"",""]
[null,null,null,null,"",""]
[null,null,null,null,"",""]
[null,null,null,null,"",""]
[null,null,null,null,"",""]
[null,null,null,null,"",""]
[null,null,null,null,"",""]
[null,null,null,null,"",""]
[null,null,null,null,"",""]
[null,null,null,null,"",""]
[null,null,null,null,{"$f":"IF(C7215=\"\",\"\",VLOOKUP(C7215,$J$4:$J$10,2,FALSE))","v":""},""]
[null,null,null,null,"",""]
[null,null,null,null,"",""]
[null,null,null,null,"",""]
[null,null,null,null,"",""]
[null,null,null,null,"",""]
[null,null,null,null,"",""]
[null,null,null,null,"",""]
[null,null,null,null,"",""]
[null,null,null,null,"",""]
[null,null,null,null,"",""]
[null,null,null,null,"",""]
[null,null,null,null,"",""]
[null,null,null,null,"",""]
[null,null,null,null,"",""]
[null,null,null,null,"",""]
[null,null,null,null,"",""]
[null,null,null,null,"",""]
[null,null,null,null,"",""]
[null,null,null,null,"",""]
[null,null,null,null,"",""]
[null,null,null,null,"",""]
[null,null,null,null,"",""]
[null,null,null,null,"",""]
[null,null,null,null,"",""]
[null,null,null,null,"",{"$f":"IF(E7240=\"\",\"\",D7240*E7240)","v":""}]
[null,null,null,null,"",""]
[null,null,null,null,"",""]
[null,null,null,null,"",""]
[null,null,null,null,"",""]
[null,null,null,null,"",""]
[null,null,null,null,"",""]
[null,null,null,null,"",""]
[null,null,null,null,"",""]
[null,null,null,null,"",""]
[null,null,null,null,"",""]
[null,null,null,null,"",""]
[null,null,null,null,"",""]
[null,null,null,null,"",""]
[null,null,null,null,"",""]
[null,null,null,null,"",""]
[null,null,null,null,"",""]
[null,null,null,null,"",""]
[null,null,null,null,"",""]
[null,null,null,null,"",""]
[null,null,null,null,"",""]
[null,null,null,null,"",""]
[null,null,null,null,"",""]
[null,null,null,null,"",""]
[null,null,null,null,"",""]
[null,null,null,null,"",""]
[null,null,null,null,"",""]
[null,null,null,null,"",""]
[null,null,null,null,"",""]
[null,null,null,null,"",""]
[null,null,null,null,"",""]
[null,null,null,null,"",""]
[null,null,null,null,"",""]
[null,null,null,null,"",""]
[null,null,null,null,"",""]
[null,null,null,null,"",""]
[null,null,null,null,"",""]
[null,null,null,null,"",""]
[null,null,null,null,"",""]
[null,null,null,null,{"$f":"IF(C7279=\"\",\"\",VLOOKUP(C7279,$J$4:$J$10,2,FALSE))","v":""},""]
[null,null,null,null,"",""]
[null,null,null,null,"",""]
[null,null,null,null,"",""]
[null,null,null,null,"",""]
[null,null,null,null,"",""]
[null,null,null,null,"",""]
[null,null,null,null,"",""]
[null,null,null,null,"",""]
[null,null,null,null,"",""]
[null,null,null,null,"",""]
[null,null,null,null,"",""]
[null,null,null,null,"",""]
[null,null,null,null,"",""]
[null,null,null,null,"",""]
[null,null,null,null,"",""]
[null,null,null,null,"",""]
[null,null,null,null,"",""]
[null,null,null,null,"",""]
[null,null,null,null,"",""]
[null,null,null,null,"",""]
[null,null,null,null,"",""]
[null,null,null,null,"",""]
[null,null,null,null,"",""]
[null,null,null,null,"",""]
[null,null,null,null,"",{"$f":"IF(E7304=\"\",\"\",D7304*E7304)","v":""}]
[null,null,null,null,"",""]
[null,null,null,null,"",""]
[null,null,null,null,"",""]
[null,null,null,null,"",""]
[null,null,null,null,"",""]
[null,null,null,null,"",""]
[null,null,null,null,"",""]
[null,null,null,null,"",""]
[null,null,null,null,"",""]
[null,null,null,null,"",""]
[null,null,null,null,"",""]
[null,null,null,null,"",""]
[null,null,null,null,"",""]
[null,null,null,null,"",""]
[null,null,null,null,"",""]
[null,null,null,null,"",""]
[null,null,null,null,"",""]
[null,null,null,null,"",""]
[null,null,null,null,"",""]
[null,null,null,null,"",""]
[null,null,null,null,"",""]
[null,null,null,null,"",""]
[null,null,null,null,"",""]
[null,null,null,null,"",""]
[null,null,null,null,"",""]
[null,null,null,null,"",""]
[null,null,null,null,"",""]
[null,null,null,null,"",""]
[null,null,null,null,"",""]
[null,null,null,null,"",""]
[null,null,null,null,"",""]
[null,null,null,null,"",""]
[null,null,null,null,"",""]
[null,null,null,null,"",""]
[null,null,null,null,"",""]
[null,null,null,null,"",""]
[null,null,null,null,"",""]
[null,null,null,null,"",""]
[null,null,null,null,{"$f":"IF(C7343=\"\",\"\",VLOOKUP(C7343,$J$4:$J$10,2,FALSE))","v":""},""]
[null,null,null,null,"",""]
[null,null,null,null,"",""]
[null,null,null,null,"",""]
[null,null,null,null,"",""]
[null,null,null,null,"",""]
[null,null,null,null,"",""]
[null,null,null,null,"",""]
[null,null,null,null,"",""]
[null,null,null,null,"",""]
[null,null,null,null,"",""]
[null,null,null,null,"",""]
[null,null,null,null,"",""]
[null,null,null,null,"",""]
[null,null,null,null,"",""]
[null,null,null,null,"",""]
[null,null,null,null,"",""]
[null,null,null,null,"",""]
[null,null,null,null,"",""]
[null,null,null,null,"",""]
[null,null,null,null,"",""]
[null,null,null,null,"",""]
[null,null,null,null,"",""]
[null,null,null,null,"",""]
[null,null,null,null,"",""]
[null,null,null,null,"",{"$f":"IF(E7368=\"\",\"\",D7368*E7368)","v":""}]
[null,null,null,null,"",""]
[null,null,null,null,"",""]
[null,null,null,null,"",""]
[null,null,null,null,"",""]
[null,null,null,null,"",""]
[null,null,null,null,"",""]
[null,null,null,null,"",""]
[null,null,null,null,"",""]
[null,null,null,null,"",""]
[null,null,null,null,"",""]
[null,null,null,null,"",""]
[null,null,null,null,"",""]
[null,null,null,null,"",""]
[null,null,null,null,"",""]
[null,null,null,null,"",""]
[null,null,null,null,"",""]
[null,null,null,null,"",""]
[null,null,null,null,"",""]
[null,null,null,null,"",""]
[null,null,null,null,"",""]
[null,null,null,null,"",""]
[null,null,null,null,"",""]
[null,null,null,null,"",""]
[null,null,null,null,"",""]
[null,null,null,null,"",""]
[null,null,null,null,"",""]
[null,null,null,null,"",""]
[null,null,null,null,"",""]
[null,null,null,null,"",""]
[null,null,null,null,"",""]
[null,null,null,null,"",""]
[null,null,null,null,"",""]
[null,null,null,null,"",""]
[null,null,null,null,"",""]
[null,null,null,null,"",""]
[null,null,null,null,"",""]
[null,null,null,null,"",""]
[null,null,null,null,"",""]
[null,null,null,null,{"$f":"IF(C7407=\"\",\"\",VLOOKUP(C7407,$J$4:$J$10,2,FALSE))","v":""},""]
[null,null,null,null,"",""]
[null,null,null,null,"",""]
[null,null,null,null,"",""]
[null,null,null,null,"",""]
[null,null,null,null,"",""]
[null,null,null,null,"",""]
[null,null,null,null,"",""]
[null,null,null,null,"",""]
[null,null,null,null,"",""]
[null,null,null,null,"",""]
[null,null,null,null,"",""]
[null,null,null,null,"",""]
[null,null,null,null,"",""]
[null,null,null,null,"",""]
[null,null,null,null,"",""]
[null,null,null,null,"",""]
[null,null,null,null,"",""]
[null,null,null,null,"",""]
[null,null,null,null,"",""]
[null,null,null,null,"",""]
[null,null,null,null,"",""]
[null,null,null,null,"",""]
[null,null,null,null,"",""]
[null,null,null,null,"",""]
[null,null,null,null,"",{"$f":"IF(E7432=\"\",\"\",D7432*E7432)","v":""}]
[null,null,null,null,"",""]
[null,null,null,null,"",""]
[null,null,null,null,"",""]
[null,null,null,null,"",""]
[null,null,null,null,"",""]
[null,null,null,null,"",""]
[null,null,null,null,"",""]
[null,null,null,null,"",""]
[null,null,null,null,"",""]
[null,null,null,null,"",""]
[null,null,null,null,"",""]
[null,null,null,null,"",""]
[null,null,null,null,"",""]
[null,null,null,null,"",""]
[null,null,null,null,"",""]
[null,null,null,null,"",""]
[null,null,null,null,"",""]
[null,null,null,null,"",""]
[null,null,null,null,"",""]
[null,null,null,null,"",""]
[null,null,null,null,"",""]
[null,null,null,null,"",""]
[null,null,null,null,"",""]
[null,null,null,null,"",""]
[null,null,null,null,"",""]
[null,null,null,null,"",""]
[null,null,null,null,"",""]
[null,null,null,null,"",""]
[null,null,null,null,"",""]
[null,null,null,null,"",""]
[null,null,null,null,"",""]
[null,null,null,null,"",""]
[null,null,null,null,"",""]
[null,null,null,null,"",""]
[null,null,null,null,"",""]
[null,null,null,null,"",""]
[null,null,null,null,"",""]
[null,null,null,null,"",""]
[null,null,null,null,{"$f":"IF(C7471=\"\",\"\",VLOOKUP(C7471,$J$4:$J$10,2,FALSE))","v":""},""]
[null,null,null,null,"",""]
[null,null,null,null,"",""]
[null,null,null,null,"",""]
[null,null,null,null,"",""]
[null,null,null,null,"",""]
[null,null,null,null,"",""]
[null,null,null,null,"",""]
[null,null,null,null,"",""]
[null,null,null,null,"",""]
[null,null,null,null,"",""]
[null,null,null,null,"",""]
[null,null,null,null,"",""]
[null,null,null,null,"",""]
[null,null,null,null,"",""]
[null,null,null,null,"",""]
[null,null,null,null,"",""]
[null,null,null,null,"",""]
[null,null,null,null,"",""]
[null,null,null,null,"",""]
[null,null,null,null,"",""]
[null,null,null,null,"",""]
[null,null,null,null,"",""]
[null,null,null,null,"",""]
[null,null,null,null,"",""]
[null,null,null,null,"",{"$f":"IF(E7496=\"\",\"\",D7496*E7496)","v":""}]
[null,null,null,null,"",""]
[null,null,null,null,"",""]
[null,null,null,null,"",""]
[null,null,null,null,"",""]
[null,null,null,null,"",""]
[null,null,null,null,"",""]
[null,null,null,null,"",""]
[null,null,null,null,"",""]
[null,null,null,null,"",""]
[null,null,null,null,"",""]
[null,null,null,null,"",""]
[null,null,null,null,"",""]
[null,null,null,null,"",""]
[null,null,null,null,"",""]
[null,null,null,null,"",""]
[null,null,null,null,"",""]
[null,null,null,null,"",""]
[null,null,null,null,"",""]
[null,null,null,null,"",""]
[null,null,null,null,"",""]
[null,null,null,null,"",""]
[null,null,null,null,"",""]
[null,null,null,null,"",""]
[null,null,null,null,"",""]
[null,null,null,null,"",""]
[null,null,null,null,"",""]
[null,null,null,null,"",""]
[null,null,null,null,"",""]
[null,null,null,null,"",""]
[null,null,null,null,"",""]
[null,null,null,null,"",""]
[null,null,null,null,"",""]
[null,null,null,null,"",""]
[null,null,null,null,"",""]
[null,null,null,null,"",""]
[null,null,null,null,"",""]
[null,null,null,null,"",""]
[null,null,null,null,"",""]
[null,null,null,null,{"$f":"IF(C7535=\"\",\"\",VLOOKUP(C7535,$J$4:$J$10,2,FALSE))","v":""},""]
[null,null,null,null,"",""]
[null,null,null,null,"",""]
[null,null,null,null,"",""]
[null,null,null,null,"",""]
[null,null,null,null,"",""]
[null,null,null,null,"",""]
[null,null,null,null,"",""]
[null,null,null,null,"",""]
[null,null,null,null,"",""]
[null,null,null,null,"",""]
[null,null,null,null,"",""]
[null,null,null,null,"",""]
[null,null,null,null,"",""]
[null,null,null,null,"",""]
[null,null,null,null,"",""]
[null,null,null,null,"",""]
[null,null,null,null,"",""]
[null,null,null,null,"",""]
[null,null,null,null,"",""]
[null,null,null,null,"",""]
[null,null,null,null,"",""]
[null,null,null,null,"",""]
[null,null,null,null,"",""]
[null,null,null,null,"",""]
[null,null,null,null,"",{"$f":"IF(E7560=\"\",\"\",D7560*E7560)","v":""}]
[null,null,null,null,"",""]
[null,null,null,null,"",""]
[null,null,null,null,"",""]
[null,null,null,null,"",""]
[null,null,null,null,"",""]
[null,null,null,null,"",""]
[null,null,null,null,"",""]
[null,null,null,null,"",""]
[null,null,null,null,"",""]
[null,null,null,null,"",""]
[null,null,null,null,"",""]
[null,null,null,null,"",""]
[null,null,null,null,"",""]
[null,null,null,null,"",""]
[null,null,null,null,"",""]
[null,null,null,null,"",""]
[null,null,null,null,"",""]
[null,null,null,null,"",""]
[null,null,null,null,"",""]
[null,null,null,null,"",""]
[null,null,null,null,"",""]
[null,null,null,null,"",""]
[null,null,null,null,"",""]
[null,null,null,null,"",""]
[null,null,null,null,"",""]
[null,null,null,null,"",""]
[null,null,null,null,"",""]
[null,null,null,null,"",""]
[null,null,null,null,"",""]
[null,null,null,null,"",""]
[null,null,null,null,"",""]
[null,null,null,null,"",""]
[null,null,null,null,"",""]
[null,null,null,null,"",""]
[null,null,null,null,"",""]
[null,null,null,null,"",""]
[null,null,null,null,"",""]
[null,null,null,null,"",""]
[null,null,null,null,{"$f":"IF(C7599=\"\",\"\",VLOOKUP(C7599,$J$4:$J$10,2,FALSE))","v":""},""]
[null,null,null,null,"",""]
[null,null,null,null,"",""]
[null,null,null,null,"",""]
[null,null,null,null,"",""]
[null,null,null,null,"",""]
[null,null,null,null,"",""]
[null,null,null,null,"",""]
[null,null,null,null,"",""]
[null,null,null,null,"",""]
[null,null,null,null,"",""]
[null,null,null,null,"",""]
[null,null,null,null,"",""]
[null,null,null,null,"",""]
[null,null,null,null,"",""]
[null,null,null,null,"",""]
[null,null,null,null,"",""]
[null,null,null,null,"",""]
[null,null,null,null,"",""]
[null,null,null,null,"",""]
[null,null,null,null,"",""]
[null,null,null,null,"",""]
[null,null,null,null,"",""]
[null,null,null,null,"",""]
[null,null,null,null,"",""]
[null,null,null,null,"",{"$f":"IF(E7624=\"\",\"\",D7624*E7624)","v":""}]
[null,null,null,null,"",""]
[null,null,null,null,"",""]
[null,null,null,null,"",""]
[null,null,null,null,"",""]
[null,null,null,null,"",""]
[null,null,null,null,"",""]
[null,null,null,null,"",""]
[null,null,null,null,"",""]
[null,null,null,null,"",""]
[null,null,null,null,"",""]
[null,null,null,null,"",""]
[null,null,null,null,"",""]
[null,null,null,null,"",""]
[null,null,null,null,"",""]
[null,null,null,null,"",""]
[null,null,null,null,"",""]
[null,null,null,null,"",""]
[null,null,null,null,"",""]
[null,null,null,null,"",""]
[null,null,null,null,"",""]
[null,null,null,null,"",""]
[null,null,null,null,"",""]
[null,null,null,null,"",""]
[null,null,null,null,"",""]
[null,null,null,null,"",""]
[null,null,null,null,"",""]
[null,null,null,null,"",""]
[null,null,null,null,"",""]
[null,null,null,null,"",""]
[null,null,null,null,"",""]
[null,null,null,null,"",""]
[null,null,null,null,"",""]
[null,null,null,null,"",""]
[null,null,null,null,"",""]
[null,null,null,null,"",""]
[null,null,null,null,"",""]
[null,null,null,null,"",""]
[null,null,null,null,"",""]
[null,null,null,null,{"$f":"IF(C7663=\"\",\"\",VLOOKUP(C7663,$J$4:$J$10,2,FALSE))","v":""},""]
[null,null,null,null,"",""]
[null,null,null,null,"",""]
[null,null,null,null,"",""]
[null,null,null,null,"",""]
[null,null,null,null,"",""]
[null,null,null,null,"",""]
[null,null,null,null,"",""]
[null,null,null,null,"",""]
[null,null,null,null,"",""]
[null,null,null,null,"",""]
[null,null,null,null,"",""]
[null,null,null,null,"",""]
[null,null,null,null,"",""]
[null,null,null,null,"",""]
[null,null,null,null,"",""]
[null,null,null,null,"",""]
[null,null,null,null,"",""]
[null,null,null,null,"",""]
[null,null,null,null,"",""]
[null,null,null,null,"",""]
[null,null,null,null,"",""]
[null,null,null,null,"",""]
[null,null,null,null,"",""]
[null,null,null,null,"",""]
[null,null,null,null,"",{"$f":"IF(E7688=\"\",\"\",D7688*E7688)","v":""}]
[null,null,null,null,"",""]
[null,null,null,null,"",""]
[null,null,null,null,"",""]
[null,null,null,null,"",""]
[null,null,null,null,"",""]
[null,null,null,null,"",""]
[null,null,null,null,"",""]
[null,null,null,null,"",""]
[null,null,null,null,"",""]
[null,null,null,null,"",""]
[null,null,null,null,"",""]
[null,null,null,null,"",""]
[null,null,null,null,"",""]
[null,null,null,null,"",""]
[null,null,null,null,"",""]
[null,null,null,null,"",""]
[null,null,null,null,"",""]
[null,null,null,null,"",""]
[null,null,null,null,"",""]
[null,null,null,null,"",""]
[null,null,null,null,"",""]
[null,null,null,null,"",""]
[null,null,null,null,"",""]
[null,null,null,null,"",""]
[null,null,null,null,"",""]
[null,null,null,null,"",""]
[null,null,null,null,"",""]
[null,null,null,null,"",""]
[null,null,null,null,"",""]
[null,null,null,null,"",""]
[null,null,null,null,"",""]
[null,null,null,null,"",""]
[null,null,null,null,"",""]
[null,null,null,null,"",""]
[null,null,null,null,"",""]
[null,null,null,null,"",""]
[null,null,null,null,"",""]
[null,null,null,null,"",""]
[null,null,null,null,{"$f":"IF(C7727=\"\",\"\",VLOOKUP(C7727,$J$4:$J$10,2,FALSE))","v":""},""]
[null,null,null,null,"",""]
[null,null,null,null,"",""]
[null,null,null,null,"",""]
[null,null,null,null,"",""]
[null,null,null,null,"",""]
[null,null,null,null,"",""]
[null,null,null,null,"",""]
[null,null,null,null,"",""]
[null,null,null,null,"",""]
[null,null,null,null,"",""]
[null,null,null,null,"",""]
[null,null,null,null,"",""]
[null,null,null,null,"",""]
[null,null,null,null,"",""]
[null,null,null,null,"",""]
[null,null,null,null,"",""]
[null,null,null,null,"",""]
[null,null,null,null,"",""]
[null,null,null,null,"",""]
[null,null,null,null,"",""]
[null,null,null,null,"",""]
[null,null,null,null,"",""]
[null,null,null,null,"",""]
[null,null,null,null,"",""]
[null,null,null,null,"",{"$f":"IF(E7752=\"\",\"\",D7752*E7752)","v":""}]
[null,null,null,null,"",""]
[null,null,null,null,"",""]
[null,null,null,null,"",""]
[null,null,null,null,"",""]
[null,null,null,null,"",""]
[null,null,null,null,"",""]
[null,null,null,null,"",""]
[null,null,null,null,"",""]
[null,null,null,null,"",""]
[null,null,null,null,"",""]
[null,null,null,null,"",""]
[null,null,null,null,"",""]
[null,null,null,null,"",""]
[null,null,null,null,"",""]
[null,null,null,null,"",""]
[null,null,null,null,"",""]
[null,null,null,null,"",""]
[null,null,null,null,"",""]
[null,null,null,null,"",""]
[null,null,null,null,"",""]
[null,null,null,null,"",""]
[null,null,null,null,"",""]
[null,null,null,null,"",""]
[null,null,null,null,"",""]
[null,null,null,null,"",""]
[null,null,null,null,"",""]
[null,null,null,null,"",""]
[null,null,null,null,"",""]
[null,null,null,null,"",""]
[null,null,null,null,"",""]
[null,null,null,null,"",""]
[null,null,null,null,"",""]
[null,null,null,null,"",""]
[null,null,null,null,"",""]
[null,null,null,null,"",""]
[null,null,null,null,"",""]
[null,null,null,null,"",""]
[null,null,null,null,"",""]
[null,null,null,null,{"$f":"IF(C7791=\"\",\"\",VLOOKUP(C7791,$J$4:$J$10,2,FALSE))","v":""},""]
[null,null,null,null,"",""]
[null,null,null,null,"",""]
[null,null,null,null,"",""]
[null,null,null,null,"",""]
[null,null,null,null,"",""]
[null,null,null,null,"",""]
[null,null,null,null,"",""]
[null,null,null,null,"",""]
[null,null,null,null,"",""]
[null,null,null,null,"",""]
[null,null,null,null,"",""]
[null,null,null,null,"",""]
[null,null,null,null,"",""]
[null,null,null,null,"",""]
[null,null,null,null,"",""]
[null,null,null,null,"",""]
[null,null,null,null,"",""]
[null,null,null,null,"",""]
[null,null,null,null,"",""]
[null,null,null,null,"",""]
[null,null,null,null,"",""]
[null,null,null,null,"",""]
[null,null,null,null,"",""]
[null,null,null,null,"",""]
[null,null,null,null,"",{"$f":"IF(E7816=\"\",\"\",D7816*E7816)","v":""}]
[null,null,null,null,"",""]
[null,null,null,null,"",""]
[null,null,null,null,"",""]
[null,null,null,null,"",""]
[null,null,null,null,"",""]
[null,null,null,null,"",""]
[null,null,null,null,"",""]
[null,null,null,null,"",""]
[null,null,null,null,"",""]
[null,null,null,null,"",""]
[null,null,null,null,"",""]
[null,null,null,null,"",""]
[null,null,null,null,"",""]
[null,null,null,null,"",""]
[null,null,null,null,"",""]
[null,null,null,null,"",""]
[null,null,null,null,"",""]
[null,null,null,null,"",""]
[null,null,null,null,"",""]
[null,null,null,null,"",""]
[null,null,null,null,"",""]
[null,null,null,null,"",""]
[null,null,null,null,"",""]
[null,null,null,null,"",""]
[null,null,null,null,"",""]
[null,null,null,null,"",""]
[null,null,null,null,"",""]
[null,null,null,null,"",""]
[null,null,null,null,"",""]
[null,null,null,null,"",""]
[null,null,null,null,"",""]
[null,null,null,null,"",""]
[null,null,null,null,"",""]
[null,null,null,null,"",""]
[null,null,null,null,"",""]
[null,null,null,null,"",""]
[null,null,null,null,"",""]
[null,null,null,null,"",""]
[null,null,null,null,{"$f":"IF(C7855=\"\",\"\",VLOOKUP(C7855,$J$4:$J$10,2,FALSE))","v":""},""]
[null,null,null,null,"",""]
[null,null,null,null,"",""]
[null,null,null,null,"",""]
[null,null,null,null,"",""]
[null,null,null,null,"",""]
[null,null,null,null,"",""]
[null,null,null,null,"",""]
[null,null,null,null,"",""]
[null,null,null,null,"",""]
[null,null,null,null,"",""]
[null,null,null,null,"",""]
[null,null,null,null,"",""]
[null,null,null,null,"",""]
[null,null,null,null,"",""]
[null,null,null,null,"",""]
[null,null,null,null,"",""]
[null,null,null,null,"",""]
[null,null,null,null,"",""]
[null,null,null,null,"",""]
[null,null,null,null,"",""]
[null,null,null,null,"",""]
[null,null,null,null,"",""]
[null,null,null,null,"",""]
[null,null,null,null,"",""]
[null,null,null,null,"",{"$f":"IF(E7880=\"\",\"\",D7880*E7880)","v":""}]
[null,null,null,null,"",""]
[null,null,null,null,"",""]
[null,null,null,null,"",""]
[null,null,null,null,"",""]
[null,null,null,null,"",""]
[null,null,null,null,"",""]
[null,null,null,null,"",""]
[null,null,null,null,"",""]
[null,null,null,null,"",""]
[null,null,null,null,"",""]
[null,null,null,null,"",""]
[null,null,null,null,"",""]
[null,null,null,null,"",""]
[null,null,null,null,"",""]
[null,null,null,null,"",""]
[null,null,null,null,"",""]
[null,null,null,null,"",""]
[null,null,null,null,"",""]
[null,null,null,null,"",""]
[null,null,null,null,"",""]
[null,null,null,null,"",""]
[null,null,null,null,"",""]
[null,null,null,null,"",""]
[null,null,null,null,"",""]
[null,null,null,null,"",""]
[null,null,null,null,"",""]
[null,null,null,null,"",""]
[null,null,null,null,"",""]
[null,null,null,null,"",""]
[null,null,null,null,"",""]
[null,null,null,null,"",""]
[null,null,null,null,"",""]
[null,null,null,null,"",""]
[null,null,null,null,"",""]
[null,null,null,null,"",""]
[null,null,null,null,"",""]
[null,null,null,null,"",""]
[null,null,null,null,"",""]
[null,null,null,null,{"$f":"IF(C7919=\"\",\"\",VLOOKUP(C7919,$J$4:$J$10,2,FALSE))","v":""},""]
[null,null,null,null,"",""]
[null,null,null,null,"",""]
[null,null,null,null,"",""]
[null,null,null,null,"",""]
[null,null,null,null,"",""]
[null,null,null,null,"",""]
[null,null,null,null,"",""]
[null,null,null,null,"",""]
[null,null,null,null,"",""]
[null,null,null,null,"",""]
[null,null,null,null,"",""]
[null,null,null,null,"",""]
[null,null,null,null,"",""]
[null,null,null,null,"",""]
[null,null,null,null,"",""]
[null,null,null,null,"",""]
[null,null,null,null,"",""]
[null,null,null,null,"",""]
[null,null,null,null,"",""]
[null,null,null,null,"",""]
[null,null,null,null,"",""]
[null,null,null,null,"",""]
[null,null,null,null,"",""]
[null,null,null,null,"",""]
[null,null,null,null,"",{"$f":"IF(E7944=\"\",\"\",D7944*E7944)","v":""}]
[null,null,null,null,"",""]
[null,null,null,null,"",""]
[null,null,null,null,"",""]
[null,null,null,null,"",""]
[null,null,null,null,"",""]
[null,null,null,null,"",""]
[null,null,null,null,"",""]
[null,null,null,null,"",""]
[null,null,null,null,"",""]
[null,null,null,null,"",""]
[null,null,null,null,"",""]
[null,null,null,null,"",""]
[null,null,null,null,"",""]
[null,null,null,null,"",""]
[null,null,null,null,"",""]
[null,null,null,null,"",""]
[null,null,null,null,"",""]
[null,null,null,null,"",""]
[null,null,null,null,"",""]
[null,null,null,null,"",""]
[null,null,null,null,"",""]
[null,null,null,null,"",""]
[null,null,null,null,"",""]
[null,null,null,null,"",""]
[null,null,null,null,"",""]
[null,null,null,null,"",""]
[null,null,null,null,"",""]
[null,null,null,null,"",""]
[null,null,null,null,"",""]
[null,null,null,null,"",""]
[null,null,null,null,"",""]
[null,null,null,null,"",""]
[null,null,null,null,"",""]
[null,null,null,null,"",""]
[null,null,null,null,"",""]
[null,null,null,null,"",""]
[null,null,null,null,"",""]
[null,null,null,null,"",""]
[null,null,null,null,{"$f":"IF(C7983=\"\",\"\",VLOOKUP(C7983,$J$4:$J$10,2,FALSE))","v":""},""]
[null,null,null,null,"",""]
[null,null,null,null,"",""]
[null,null,null,null,"",""]
[null,null,null,null,"",""]
[null,null,null,null,"",""]
[null,null,null,null,"",""]
[null,null,null,null,"",""]
[null,null,null,null,"",""]
[null,null,null,null,"",""]
[null,null,null,null,"",""]
[null,null,null,null,"",""]
[null,null,null,null,"",""]
[null,null,null,null,"",""]
[null,null,null,null,"",""]
[null,null,null,null,"",""]
[null,null,null,null,"",""]
[null,null,null,null,"",""]
[null,null,null,null,"",""]
[null,null,null,null,"",""]
[null,null,null,null,"",""]
[null,null,null,null,"",""]
[null,null,null,null,"",""]
[null,null,null,null,"",""]
[null,null,null,null,"",""]
[null,null,null,null,"",{"$f":"IF(E8008=\"\",\"\",D8008*E8008)","v":""}]
[null,null,null,null,"",""]
[null,null,null,null,"",""]
[null,null,null,null,"",""]
[null,null,null,null,"",""]
[null,null,null,null,"",""]
[null,null,null,null,"",""]
[null,null,null,null,"",""]
[null,null,null,null,"",""]
[null,null,null,null,"",""]
[null,null,null,null,"",""]
[null,null,null,null,"",""]
[null,null,null,null,"",""]
[null,null,null,null,"",""]
[null,null,null,null,"",""]
[null,null,null,null,"",""]
[null,null,null,null,"",""]
[null,null,null,null,"",""]
[null,null,null,null,"",""]
[null,null,null,null,"",""]
[null,null,null,null,"",""]
[null,null,null,null,"",""]
[null,null,null,null,"",""]
[null,null,null,null,"",""]
[null,null,null,null,"",""]
[null,null,null,null,"",""]
[null,null,null,null,"",""]
[null,null,null,null,"",""]
[null,null,null,null,"",""]
[null,null,null,null,"",""]
[null,null,null,null,"",""]
[null,null,null,null,"",""]
[null,null,null,null,"",""]
[null,null,null,null,"",""]
[null,null,null,null,"",""]
[null,null,null,null,"",""]
[null,null,null,null,"",""]
[null,null,null,null,"",""]
[null,null,null,null,"",""]
[null,null,null,null,{"$f":"IF(C8047=\"\",\"\",VLOOKUP(C8047,$J$4:$J$10,2,FALSE))","v":""},""]
[null,null,null,null,"",""]
[null,null,null,null,"",""]
[null,null,null,null,"",""]
[null,null,null,null,"",""]
[null,null,null,null,"",""]
[null,null,null,null,"",""]
[null,null,null,null,"",""]
[null,null,null,null,"",""]
[null,null,null,null,"",""]
[null,null,null,null,"",""]
[null,null,null,null,"",""]
[null,null,null,null,"",""]
[null,null,null,null,"",""]
[null,null,null,null,"",""]
[null,null,null,null,"",""]
[null,null,null,null,"",""]
[null,null,null,null,"",""]
[null,null,null,null,"",""]
[null,null,null,null,"",""]
[null,null,null,null,"",""]
[null,null,null,null,"",""]
[null,null,null,null,"",""]
[null,null,null,null,"",""]
[null,null,null,null,"",""]
[null,null,null,null,"",{"$f":"IF(E8072=\"\",\"\",D8072*E8072)","v":""}]
[null,null,null,null,"",""]
[null,null,null,null,"",""]
[null,null,null,null,"",""]
[null,null,null,null,"",""]
[null,null,null,null,"",""]
[null,null,null,null,"",""]
[null,null,null,null,"",""]
[null,null,null,null,"",""]
[null,null,null,null,"",""]
[null,null,null,null,"",""]
[null,null,null,null,"",""]
[null,null,null,null,"",""]
[null,null,null,null,"",""]
[null,null,null,null,"",""]
[null,null,null,null,"",""]
[null,null,null,null,"",""]
[null,null,null,null,"",""]
[null,null,null,null,"",""]
[null,null,null,null,"",""]
[null,null,null,null,"",""]
[null,null,null,null,"",""]
[null,null,null,null,"",""]
[null,null,null,null,"",""]
[null,null,null,null,"",""]
[null,null,null,null,"",""]
[null,null,null,null,"",""]
[null,null,null,null,"",""]
[null,null,null,null,"",""]
[null,null,null,null,"",""]
[null,null,null,null,"",""]
[null,null,null,null,"",""]
[null,null,null,null,"",""]
[null,null,null,null,"",""]
[null,null,null,null,"",""]
[null,null,null,null,"",""]
[null,null,null,null,"",""]
[null,null,null,null,"",""]
[null,null,null,null,"",""]
[null,null,null,null,{"$f":"IF(C8111=\"\",\"\",VLOOKUP(C8111,$J$4:$J$10,2,FALSE))","v":""},""]
[null,null,null,null,"",""]
[null,null,null,null,"",""]
[null,null,null,null,"",""]
[null,null,null,null,"",""]
[null,null,null,null,"",""]
[null,null,null,null,"",""]
[null,null,null,null,"",""]
[null,null,null,null,"",""]
[null,null,null,null,"",""]
[null,null,null,null,"",""]
[null,null,null,null,"",""]
[null,null,null,null,"",""]
[null,null,null,null,"",""]
[null,null,null,null,"",""]
[null,null,null,null,"",""]
[null,null,null,null,"",""]
[null,null,null,null,"",""]
[null,null,null,null,"",""]
[null,null,null,null,"",""]
[null,null,null,null,"",""]
[null,null,null,null,"",""]
[null,null,null,null,"",""]
[null,null,null,null,"",""]
[null,null,null,null,"",""]
[null,null,null,null,"",{"$f":"IF(E8136=\"\",\"\",D8136*E8136)","v":""}]
[null,null,null,null,"",""]
[null,null,null,null,"",""]
[null,null,null,null,"",""]
[null,null,null,null,"",""]
[null,null,null,null,"",""]
[null,null,null,null,"",""]
[null,null,null,null,"",""]
[null,null,null,null,"",""]
[null,null,null,null,"",""]
[null,null,null,null,"",""]
[null,null,null,null,"",""]
[null,null,null,null,"",""]
[null,null,null,null,"",""]
[null,null,null,null,"",""]
[null,null,null,null,"",""]
[null,null,null,null,"",""]
[null,null,null,null,"",""]
[null,null,null,null,"",""]
[null,null,null,null,"",""]
[null,null,null,null,"",""]
[null,null,null,null,"",""]
[null,null,null,null,"",""]
[null,null,null,null,"",""]
[null,null,null,null,"",""]
[null,null,null,null,"",""]
[null,null,null,null,"",""]
[null,null,null,null,"",""]
[null,null,null,null,"",""]
[null,null,null,null,"",""]
[null,null,null,null,"",""]
[null,null,null,null,"",""]
[null,null,null,null,"",""]
[null,null,null,null,"",""]
[null,null,null,null,"",""]
[null,null,null,null,"",""]
[null,null,null,null,"",""]
[null,null,null,null,"",""]
[null,null,null,null,"",""]
[null,null,null,null,{"$f":"IF(C8175=\"\",\"\",VLOOKUP(C8175,$J$4:$J$10,2,FALSE))","v":""},""]
[null,null,null,null,"",""]
[null,null,null,null,"",""]
[null,null,null,null,"",""]
[null,null,null,null,"",""]
[null,null,null,null,"",""]
[null,null,null,null,"",""]
[null,null,null,null,"",""]
[null,null,null,null,"",""]
[null,null,null,null,"",""]
[null,null,null,null,"",""]
[null,null,null,null,"",""]
[null,null,null,null,"",""]
[null,null,null,null,"",""]
[null,null,null,null,"",""]
[null,null,null,null,"",""]
[null,null,null,null,"",""]
[null,null,null,null,"",""]
[null,null,null,null,"",""]
[null,null,null,null,"",""]
[null,null,null,null,"",""]
[null,null,null,null,"",""]
[null,null,null,null,"",""]
[null,null,null,null,"",""]
[null,null,null,null,"",""]
[null,null,null,null,"",{"$f":"IF(E8200=\"\",\"\",D8200*E8200)","v":""}]
[null,null,null,null,"",""]
[null,null,null,null,"",""]
[null,null,null,null,"",""]
[null,null,null,null,"",""]
[null,null,null,null,"",""]
[null,null,null,null,"",""]
[null,null,null,null,"",""]
[null,null,null,null,"",""]
[null,null,null,null,"",""]
[null,null,null,null,"",""]
[null,null,null,null,"",""]
[null,null,null,null,"",""]
[null,null,null,null,"",""]
[null,null,null,null,"",""]
[null,null,null,null,"",""]
[null,null,null,null,"",""]
[null,null,null,null,"",""]
[null,null,null,null,"",""]
[null,null,null,null,"",""]
[null,null,null,null,"",""]
[null,null,null,null,"",""]
[null,null,null,null,"",""]
[null,null,null,null,"",""]
[null,null,null,null,"",""]
[null,null,null,null,"",""]
[null,null,null,null,"",""]
[null,null,null,null,"",""]
[null,null,null,null,"",""]
[null,null,null,null,"",""]
[null,null,null,null,"",""]
[null,null,null,null,"",""]
[null,null,null,null,"",""]
[null,null,null,null,"",""]
[null,null,null,null,"",""]
[null,null,null,null,"",""]
[null,null,null,null,"",""]
[null,null,null,null,"",""]
[null,null,null,null,"",""]
[null,null,null,null,{"$f":"IF(C8239=\"\",\"\",VLOOKUP(C8239,$J$4:$J$10,2,FALSE))","v":""},""]
[null,null,null,null,"",""]
[null,null,null,null,"",""]
[null,null,null,null,"",""]
[null,null,null,null,"",""]
[null,null,null,null,"",""]
[null,null,null,null,"",""]
[null,null,null,null,"",""]
[null,null,null,null,"",""]
[null,null,null,null,"",""]
[null,null,null,null,"",""]
[null,null,null,null,"",""]
[null,null,null,null,"",""]
[null,null,null,null,"",""]
[null,null,null,null,"",""]
[null,null,null,null,"",""]
[null,null,null,null,"",""]
[null,null,null,null,"",""]
[null,null,null,null,"",""]
[null,null,null,null,"",""]
[null,null,null,null,"",""]
[null,null,null,null,"",""]
[null,null,null,null,"",""]
[null,null,null,null,"",""]
[null,null,null,null,"",""]
[null,null,null,null,"",{"$f":"IF(E8264=\"\",\"\",D8264*E8264)","v":""}]
[null,null,null,null,"",""]
[null,null,null,null,"",""]
[null,null,null,null,"",""]
[null,null,null,null,"",""]
[null,null,null,null,"",""]
[null,null,null,null,"",""]
[null,null,null,null,"",""]
[null,null,null,null,"",""]
[null,null,null,null,"",""]
[null,null,null,null,"",""]
[null,null,null,null,"",""]
[null,null,null,null,"",""]
[null,null,null,null,"",""]
[null,null,null,null,"",""]
[null,null,null,null,"",""]
[null,null,null,null,"",""]
[null,null,null,null,"",""]
[null,null,null,null,"",""]
[null,null,null,null,"",""]
[null,null,null,null,"",""]
[null,null,null,null,"",""]
[null,null,null,null,"",""]
[null,null,null,null,"",""]
[null,null,null,null,"",""]
[null,null,null,null,"",""]
[null,null,null,null,"",""]
[null,null,null,null,"",""]
[null,null,null,null,"",""]
[null,null,null,null,"",""]
[null,null,null,null,"",""]
[null,null,null,null,"",""]
[null,null,null,null,"",""]
[null,null,null,null,"",""]
[null,null,null,null,"",""]
[null,null,null,null,"",""]
[null,null,null,null,"",""]
[null,null,null,null,"",""]
[null,null,null,null,"",""]
[null,null,null,null,{"$f":"IF(C8303=\"\",\"\",VLOOKUP(C8303,$J$4:$J$10,2,FALSE))","v":""},""]
[null,null,null,null,"",""]
[null,null,null,null,"",""]
[null,null,null,null,"",""]
[null,null,null,null,"",""]
[null,null,null,null,"",""]
[null,null,null,null,"",""]
[null,null,null,null,"",""]
[null,null,null,null,"",""]
[null,null,null,null,"",""]
[null,null,null,null,"",""]
[null,null,null,null,"",""]
[null,null,null,null,"",""]
[null,null,null,null,"",""]
[null,null,null,null,"",""]
[null,null,null,null,"",""]
[null,null,null,null,"",""]
[null,null,null,null,"",""]
[null,null,null,null,"",""]
[null,null,null,null,"",""]
[null,null,null,null,"",""]
[null,null,null,null,"",""]
[null,null,null,null,"",""]
[null,null,null,null,"",""]
[null,null,null,null,"",""]
[null,null,null,null,"",{"$f":"IF(E8328=\"\",\"\",D8328*E8328)","v":""}]
[null,null,null,null,"",""]
[null,null,null,null,"",""]
[null,null,null,null,"",""]
[null,null,null,null,"",""]
[null,null,null,null,"",""]
[null,null,null,null,"",""]
[null,null,null,null,"",""]
[null,null,null,null,"",""]
[null,null,null,null,"",""]
[null,null,null,null,"",""]
[null,null,null,null,"",""]
[null,null,null,null,"",""]
[null,null,null,null,"",""]
[null,null,null,null,"",""]
[null,null,null,null,"",""]
[null,null,null,null,"",""]
[null,null,null,null,"",""]
[null,null,null,null,"",""]
[null,null,null,null,"",""]
[null,null,null,null,"",""]
[null,null,null,null,"",""]
[null,null,null,null,"",""]
[null,null,null,null,"",""]
[null,null,null,null,"",""]
[null,null,null,null,"",""]
[null,null,null,null,"",""]
[null,null,null,null,"",""]
[null,null,null,null,"",""]
[null,null,null,null,"",""]
[null,null,null,null,"",""]
[null,null,null,null,"",""]
[null,null,null,null,"",""]
[null,null,null,null,"",""]
[null,null,null,null,"",""]
[null,null,null,null,"",""]
[null,null,null,null,"",""]
[null,null,null,null,"",""]
[null,null,null,null,"",""]
[null,null,null,null,{"$f":"IF(C8367=\"\",\"\",VLOOKUP(C8367,$J$4:$J$10,2,FALSE))","v":""},""]
[null,null,null,null,"",""]
[null,null,null,null,"",""]
[null,null,null,null,"",""]
[null,null,null,null,"",""]
[null,null,null,null,"",""]
[null,null,null,null,"",""]
[null,null,null,null,"",""]
[null,null,null,null,"",""]
[null,null,null,null,"",""]
[null,null,null,null,"",""]
[null,null,null,null,"",""]
[null,null,null,null,"",""]
[null,null,null,null,"",""]
[null,null,null,null,"",""]
[null,null,null,null,"",""]
[null,null,null,null,"",""]
[null,null,null,null,"",""]
[null,null,null,null,"",""]
[null,null,null,null,"",""]
[null,null,null,null,"",""]
[null,null,null,null,"",""]
[null,null,null,null,"",""]
[null,null,null,null,"",""]
[null,null,null,null,"",""]
[null,null,null,null,"",{"$f":"IF(E8392=\"\",\"\",D8392*E8392)","v":""}]
[null,null,null,null,"",""]
[null,null,null,null,"",""]
[null,null,null,null,"",""]
[null,null,null,null,"",""]
[null,null,null,null,"",""]
[null,null,null,null,"",""]
[null,null,null,null,"",""]
[null,null,null,null,"",""]
[null,null,null,null,"",""]
[null,null,null,null,"",""]
[null,null,null,null,"",""]
[null,null,null,null,"",""]
[null,null,null,null,"",""]
[null,null,null,null,"",""]
[null,null,null,null,"",""]
[null,null,null,null,"",""]
[null,null,null,null,"",""]
[null,null,null,null,"",""]
[null,null,null,null,"",""]
[null,null,null,null,"",""]
[null,null,null,null,"",""]
[null,null,null,null,"",""]
[null,null,null,null,"",""]
[null,null,null,null,"",""]
[null,null,null,null,"",""]
[null,null,null,null,"",""]
[null,null,null,null,"",""]
[null,null,null,null,"",""]
[null,null,null,null,"",""]
[null,null,null,null,"",""]
[null,null,null,null,"",""]
[null,null,null,null,"",""]
[null,null,null,null,"",""]
[null,null,null,null,"",""]
[null,null,null,null,"",""]
[null,null,null,null,"",""]
[null,null,null,null,"",""]
[null,null,null,null,"",""]
[null,null,null,null,{"$f":"IF(C8431=\"\",\"\",VLOOKUP(C8431,$J$4:$J$10,2,FALSE))","v":""},""]
[null,null,null,null,"",""]
[null,null,null,null,"",""]
[null,null,null,null,"",""]
[null,null,null,null,"",""]
[null,null,null,null,"",""]
[null,null,null,null,"",""]
[null,null,null,null,"",""]
[null,null,null,null,"",""]
[null,null,null,null,"",""]
[null,null,null,null,"",""]
[null,null,null,null,"",""]
[null,null,null,null,"",""]
[null,null,null,null,"",""]
[null,null,null,null,"",""]
[null,null,null,null,"",""]
[null,null,null,null,"",""]
[null,null,null,null,"",""]
[null,null,null,null,"",""]
[null,null,null,null,"",""]
[null,null,null,null,"",""]
[null,null,null,null,"",""]
[null,null,null,null,"",""]
[null,null,null,null,"",""]
[null,null,null,null,"",""]
[null,null,null,null,"",{"$f":"IF(E8456=\"\",\"\",D8456*E8456)","v":""}]
[null,null,null,null,"",""]
[null,null,null,null,"",""]
[null,null,null,null,"",""]
[null,null,null,null,"",""]
[null,null,null,null,"",""]
[null,null,null,null,"",""]
[null,null,null,null,"",""]
[null,null,null,null,"",""]
[null,null,null,null,"",""]
[null,null,null,null,"",""]
[null,null,null,null,"",""]
[null,null,null,null,"",""]
[null,null,null,null,"",""]
[null,null,null,null,"",""]
[null,null,null,null,"",""]
[null,null,null,null,"",""]
[null,null,null,null,"",""]
[null,null,null,null,"",""]
[null,null,null,null,"",""]
[null,null,null,null,"",""]
[null,null,null,null,"",""]
[null,null,null,null,"",""]
[null,null,null,null,"",""]
[null,null,null,null,"",""]
[null,null,null,null,"",""]
[null,null,null,null,"",""]
[null,null,null,null,"",""]
[null,null,null,null,"",""]
[null,null,null,null,"",""]
[null,null,null,null,"",""]
[null,null,null,null,"",""]
[null,null,null,null,"",""]
[null,null,null,null,"",""]
[null,null,null,null,"",""]
[null,null,null,null,"",""]
[null,null,null,null,"",""]
[null,null,null,null,"",""]
[null,null,null,null,"",""]
[null,null,null,null,{"$f":"IF(C8495=\"\",\"\",VLOOKUP(C8495,$J$4:$J$10,2,FALSE))","v":""},""]
[null,null,null,null,"",""]
[null,null,null,null,"",""]
[null,null,null,null,"",""]
[null,null,null,null,"",""]
[null,null,null,null,"",""]
[null,null,null,null,"",""]
[null,null,null,null,"",""]
[null,null,null,null,"",""]
[null,null,null,null,"",""]
[null,null,null,null,"",""]
[null,null,null,null,"",""]
[null,null,null,null,"",""]
[null,null,null,null,"",""]
[null,null,null,null,"",""]
[null,null,null,null,"",""]
[null,null,null,null,"",""]
[null,null,null,null,"",""]
[null,null,null,null,"",""]
[null,null,null,null,"",""]
[null,null,null,null,"",""]
[null,null,null,null,"",""]
[null,null,null,null,"",""]
[null,null,null,null,"",""]
[null,null,null,null,"",""]
[null,null,null,null,"",{"$f":"IF(E8520=\"\",\"\",D8520*E8520)","v":""}]
[null,null,null,null,"",""]
[null,null,null,null,"",""]
[null,null,null,null,"",""]
[null,null,null,null,"",""]
[null,null,null,null,"",""]
[null,null,null,null,"",""]
[null,null,null,null,"",""]
[null,null,null,null,"",""]
[null,null,null,null,"",""]
[null,null,null,null,"",""]
[null,null,null,null,"",""]
[null,null,null,null,"",""]
[null,null,null,null,"",""]
[null,null,null,null,"",""]
[null,null,null,null,"",""]
[null,null,null,null,"",""]
[null,null,null,null,"",""]
[null,null,null,null,"",""]
[null,null,null,null,"",""]
[null,null,null,null,"",""]
[null,null,null,null,"",""]
[null,null,null,null,"",""]
[null,null,null,null,"",""]
[null,null,null,null,"",""]
[null,null,null,null,"",""]
[null,null,null,null,"",""]
[null,null,null,null,"",""]
[null,null,null,null,"",""]
[null,null,null,null,"",""]
[null,null,null,null,"",""]
[null,null,null,null,"",""]
[null,null,null,null,"",""]
[null,null,null,null,"",""]
[null,null,null,null,"",""]
[null,null,null,null,"",""]
[null,null,null,null,"",""]
[null,null,null,null,"",""]
[null,null,null,null,"",""]
[null,null,null,null,{"$f":"IF(C8559=\"\",\"\",VLOOKUP(C8559,$J$4:$J$10,2,FALSE))","v":""},""]
[null,null,null,null,"",""]
[null,null,null,null,"",""]
[null,null,null,null,"",""]
[null,null,null,null,"",""]
[null,null,null,null,"",""]
[null,null,null,null,"",""]
[null,null,null,null,"",""]
[null,null,null,null,"",""]
[null,null,null,null,"",""]
[null,null,null,null,"",""]
[null,null,null,null,"",""]
[null,null,null,null,"",""]
[null,null,null,null,"",""]
[null,null,null,null,"",""]
[null,null,null,null,"",""]
[null,null,null,null,"",""]
[null,null,null,null,"",""]
[null,null,null,null,"",""]
[null,null,null,null,"",""]
[null,null,null,null,"",""]
[null,null,null,null,"",""]
[null,null,null,null,"",""]
[null,null,null,null,"",""]
[null,null,null,null,"",""]
[null,null,null,null,"",{"$f":"IF(E8584=\"\",\"\",D8584*E8584)","v":""}]
[null,null,null,null,"",""]
[null,null,null,null,"",""]
[null,null,null,null,"",""]
[null,null,null,null,"",""]
[null,null,null,null,"",""]
[null,null,null,null,"",""]
[null,null,null,null,"",""]
[null,null,null,null,"",""]
[null,null,null,null,"",""]
[null,null,null,null,"",""]
[null,null,null,null,"",""]
[null,null,null,null,"",""]
[null,null,null,null,"",""]
[null,null,null,null,"",""]
[null,null,null,null,"",""]
[null,null,null,null,"",""]
[null,null,null,null,"",""]
[null,null,null,null,"",""]
[null,null,null,null,"",""]
[null,null,null,null,"",""]
[null,null,null,null,"",""]
[null,null,null,null,"",""]
[null,null,null,null,"",""]
[null,null,null,null,"",""]
[null,null,null,null,"",""]
[null,null,null,null,"",""]
[null,null,null,null,"",""]
[null,null,null,null,"",""]
[null,null,null,null,"",""]
[null,null,null,null,"",""]
[null,null,null,null,"",""]
[null,null,null,null,"",""]
[null,null,null,null,"",""]
[null,null,null,null,"",""]
[null,null,null,null,"",""]
[null,null,null,null,"",""]
[null,null,null,null,"",""]
[null,null,null,null,"",""]
[null,null,null,null,{"$f":"IF(C8623=\"\",\"\",VLOOKUP(C8623,$J$4:$J$10,2,FALSE))","v":""},""]
[null,null,null,null,"",""]
[null,null,null,null,"",""]
[null,null,null,null,"",""]
[null,null,null,null,"",""]
[null,null,null,null,"",""]
[null,null,null,null,"",""]
[null,null,null,null,"",""]
[null,null,null,null,"",""]
[null,null,null,null,"",""]
[null,null,null,null,"",""]
[null,null,null,null,"",""]
[null,null,null,null,"",""]
[null,null,null,null,"",""]
[null,null,null,null,"",""]
[null,null,null,null,"",""]
[null,null,null,null,"",""]
[null,null,null,null,"",""]
[null,null,null,null,"",""]
[null,null,null,null,"",""]
[null,null,null,null,"",""]
[null,null,null,null,"",""]
[null,null,null,null,"",""]
[null,null,null,null,"",""]
[null,null,null,null,"",""]
[null,null,null,null,"",{"$f":"IF(E8648=\"\",\"\",D8648*E8648)","v":""}]
[null,null,null,null,"",""]
[null,null,null,null,"",""]
[null,null,null,null,"",""]
[null,null,null,null,"",""]
[null,null,null,null,"",""]
[null,null,null,null,"",""]
[null,null,null,null,"",""]
[null,null,null,null,"",""]
[null,null,null,null,"",""]
[null,null,null,null,"",""]
[null,null,null,null,"",""]
[null,null,null,null,"",""]
[null,null,null,null,"",""]
[null,null,null,null,"",""]
[null,null,null,null,"",""]
[null,null,null,null,"",""]
[null,null,null,null,"",""]
[null,null,null,null,"",""]
[null,null,null,null,"",""]
[null,null,null,null,"",""]
[null,null,null,null,"",""]
[null,null,null,null,"",""]
[null,null,null,null,"",""]
[null,null,null,null,"",""]
[null,null,null,null,"",""]
[null,null,null,null,"",""]
[null,null,null,null,"",""]
[null,null,null,null,"",""]
[null,null,null,null,"",""]
[null,null,null,null,"",""]
[null,null,null,null,"",""]
[null,null,null,null,"",""]
[null,null,null,null,"",""]
[null,null,null,null,"",""]
[null,null,null,null,"",""]
[null,null,null,null,"",""]
[null,null,null,null,"",""]
[null,null,null,null,"",""]
[null,null,null,null,{"$f":"IF(C8687=\"\",\"\",VLOOKUP(C8687,$J$4:$J$10,2,FALSE))","v":""},""]
[null,null,null,null,"",""]
[null,null,null,null,"",""]
[null,null,null,null,"",""]
[null,null,null,null,"",""]
[null,null,null,null,"",""]
[null,null,null,null,"",""]
[null,null,null,null,"",""]
[null,null,null,null,"",""]
[null,null,null,null,"",""]
[null,null,null,null,"",""]
[null,null,null,null,"",""]
[null,null,null,null,"",""]
[null,null,null,null,"",""]
[null,null,null,null,"",""]
[null,null,null,null,"",""]
[null,null,null,null,"",""]
[null,null,null,null,"",""]
[null,null,null,null,"",""]
[null,null,null,null,"",""]
[null,null,null,null,"",""]
[null,null,null,null,"",""]
[null,null,null,null,"",""]
[null,null,null,null,"",""]
[null,null,null,null,"",""]
[null,null,null,null,"",{"$f":"IF(E8712=\"\",\"\",D8712*E8712)","v":""}]
[null,null,null,null,"",""]
[null,null,null,null,"",""]
[null,null,null,null,"",""]
[null,null,null,null,"",""]
[null,null,null,null,"",""]
[null,null,null,null,"",""]
[null,null,null,null,"",""]
[null,null,null,null,"",""]
[null,null,null,null,"",""]
[null,null,null,null,"",""]
[null,null,null,null,"",""]
[null,null,null,null,"",""]
[null,null,null,null,"",""]
[null,null,null,null,"",""]
[null,null,null,null,"",""]
[null,null,null,null,"",""]
[null,null,null,null,"",""]
[null,null,null,null,"",""]
[null,null,null,null,"",""]
[null,null,null,null,"",""]
[null,null,null,null,"",""]
[null,null,null,null,"",""]
[null,null,null,null,"",""]
[null,null,null,null,"",""]
[null,null,null,null,"",""]
[null,null,null,null,"",""]
[null,null,null,null,"",""]
[null,null,null,null,"",""]
[null,null,null,null,"",""]
[null,null,null,null,"",""]
[null,null,null,null,"",""]
[null,null,null,null,"",""]
[null,null,null,null,"",""]
[null,null,null,null,"",""]
[null,null,null,null,"",""]
[null,null,null,null,"",""]
[null,null,null,null,"",""]
[null,null,null,null,"",""]
[null,null,null,null,{"$f":"IF(C8751=\"\",\"\",VLOOKUP(C8751,$J$4:$J$10,2,FALSE))","v":""},""]
[null,null,null,null,"",""]
[null,null,null,null,"",""]
[null,null,null,null,"",""]
[null,null,null,null,"",""]
[null,null,null,null,"",""]
[null,null,null,null,"",""]
[null,null,null,null,"",""]
[null,null,null,null,"",""]
[null,null,null,null,"",""]
[null,null,null,null,"",""]
[null,null,null,null,"",""]
[null,null,null,null,"",""]
[null,null,null,null,"",""]
[null,null,null,null,"",""]
[null,null,null,null,"",""]
[null,null,null,null,"",""]
[null,null,null,null,"",""]
[null,null,null,null,"",""]
[null,null,null,null,"",""]
[null,null,null,null,"",""]
[null,null,null,null,"",""]
[null,null,null,null,"",""]
[null,null,null,null,"",""]
[null,null,null,null,"",""]
[null,null,null,null,"",{"$f":"IF(E8776=\"\",\"\",D8776*E8776)","v":""}]
[null,null,null,null,"",""]
[null,null,null,null,"",""]
[null,null,null,null,"",""]
[null,null,null,null,"",""]
[null,null,null,null,"",""]
[null,null,null,null,"",""]
[null,null,null,null,"",""]
[null,null,null,null,"",""]
[null,null,null,null,"",""]
[null,null,null,null,"",""]
[null,null,null,null,"",""]
[null,null,null,null,"",""]
[null,null,null,null,"",""]
[null,null,null,null,"",""]
[null,null,null,null,"",""]
[null,null,null,null,"",""]
[null,null,null,null,"",""]
[null,null,null,null,"",""]
[null,null,null,null,"",""]
[null,null,null,null,"",""]
[null,null,null,null,"",""]
[null,null,null,null,"",""]
[null,null,null,null,"",""]
[null,null,null,null,"",""]
[null,null,null,null,"",""]
[null,null,null,null,"",""]
[null,null,null,null,"",""]
[null,null,null,null,"",""]
[null,null,null,null,"",""]
[null,null,null,null,"",""]
[null,null,null,null,"",""]
[null,null,null,null,"",""]
[null,null,null,null,"",""]
[null,null,null,null,"",""]
[null,null,null,null,"",""]
[null,null,null,null,"",""]
[null,null,null,null,"",""]
[null,null,null,null,"",""]
[null,null,null,null,{"$f":"IF(C8815=\"\",\"\",VLOOKUP(C8815,$J$4:$J$10,2,FALSE))","v":""},""]
[null,null,null,null,"",""]
[null,null,null,null,"",""]
[null,null,null,null,"",""]
[null,null,null,null,"",""]
[null,null,null,null,"",""]
[null,null,null,null,"",""]
[null,null,null,null,"",""]
[null,null,null,null,"",""]
[null,null,null,null,"",""]
[null,null,null,null,"",""]
[null,null,null,null,"",""]
[null,null,null,null,"",""]
[null,null,null,null,"",""]
[null,null,null,null,"",""]
[null,null,null,null,"",""]
[null,null,null,null,"",""]
[null,null,null,null,"",""]
[null,null,null,null,"",""]
[null,null,null,null,"",""]
[null,null,null,null,"",""]
[null,null,null,null,"",""]
[null,null,null,null,"",""]
[null,null,null,null,"",""]
[null,null,null,null,"",""]
[null,null,null,null,"",{"$f":"IF(E8840=\"\",\"\",D8840*E8840)","v":""}]
[null,null,null,null,"",""]
[null,null,null,null,"",""]
[null,null,null,null,"",""]
[null,null,null,null,"",""]
[null,null,null,null,"",""]
[null,null,null,null,"",""]
[null,null,null,null,"",""]
[null,null,null,null,"",""]
[null,null,null,null,"",""]
[null,null,null,null,"",""]
[null,null,null,null,"",""]
[null,null,null,null,"",""]
[null,null,null,null,"",""]
[null,null,null,null,"",""]
[null,null,null,null,"",""]
[null,null,null,null,"",""]
[null,null,null,null,"",""]
[null,null,null,null,"",""]
[null,null,null,null,"",""]
[null,null,null,null,"",""]
[null,null,null,null,"",""]
[null,null,null,null,"",""]
[null,null,null,null,"",""]
[null,null,null,null,"",""]
[null,null,null,null,"",""]
[null,null,null,null,"",""]
[null,null,null,null,"",""]
[null,null,null,null,"",""]
[null,null,null,null,"",""]
[null,null,null,null,"",""]
[null,null,null,null,"",""]
[null,null,null,null,"",""]
[null,null,null,null,"",""]
[null,null,null,null,"",""]
[null,null,null,null,"",""]
[null,null,null,null,"",""]
[null,null,null,null,"",""]
[null,null,null,null,"",""]
[null,null,null,null,{"$f":"IF(C8879=\"\",\"\",VLOOKUP(C8879,$J$4:$J$10,2,FALSE))","v":""},""]
[null,null,null,null,"",""]
[null,null,null,null,"",""]
[null,null,null,null,"",""]
[null,null,null,null,"",""]
[null,null,null,null,"",""]
[null,null,null,null,"",""]
[null,null,null,null,"",""]
[null,null,null,null,"",""]
[null,null,null,null,"",""]
[null,null,null,null,"",""]
[null,null,null,null,"",""]
[null,null,null,null,"",""]
[null,null,null,null,"",""]
[null,null,null,null,"",""]
[null,null,null,null,"",""]
[null,null,null,null,"",""]
[null,null,null,null,"",""]
[null,null,null,null,"",""]
[null,null,null,null,"",""]
[null,null,null,null,"",""]
[null,null,null,null,"",""]
[null,null,null,null,"",""]
[null,null,null,null,"",""]
[null,null,null,null,"",""]
[null,null,null,null,"",{"$f":"IF(E8904=\"\",\"\",D8904*E8904)","v":""}]
[null,null,null,null,"",""]
[null,null,null,null,"",""]
[null,null,null,null,"",""]
[null,null,null,null,"",""]
[null,null,null,null,"",""]
[null,null,null,null,"",""]
[null,null,null,null,"",""]
[null,null,null,null,"",""]
[null,null,null,null,"",""]
[null,null,null,null,"",""]
[null,null,null,null,"",""]
[null,null,null,null,"",""]
[null,null,null,null,"",""]
[null,null,null,null,"",""]
[null,null,null,null,"",""]
[null,null,null,null,"",""]
[null,null,null,null,"",""]
[null,null,null,null,"",""]
[null,null,null,null,"",""]
[null,null,null,null,"",""]
[null,null,null,null,"",""]
[null,null,null,null,"",""]
[null,null,null,null,"",""]
[null,null,null,null,"",""]
[null,null,null,null,"",""]
[null,null,null,null,"",""]
[null,null,null,null,"",""]
[null,null,null,null,"",""]
[null,null,null,null,"",""]
[null,null,null,null,"",""]
[null,null,null,null,"",""]
[null,null,null,null,"",""]
[null,null,null,null,"",""]
[null,null,null,null,"",""]
[null,null,null,null,"",""]
[null,null,null,null,"",""]
[null,null,null,null,"",""]
[null,null,null,null,"",""]
[null,null,null,null,{"$f":"IF(C8943=\"\",\"\",VLOOKUP(C8943,$J$4:$J$10,2,FALSE))","v":""},""]
[null,null,null,null,"",""]
[null,null,null,null,"",""]
[null,null,null,null,"",""]
[null,null,null,null,"",""]
[null,null,null,null,"",""]
[null,null,null,null,"",""]
[null,null,null,null,"",""]
[null,null,null,null,"",""]
[null,null,null,null,"",""]
[null,null,null,null,"",""]
[null,null,null,null,"",""]
[null,null,null,null,"",""]
[null,null,null,null,"",""]
[null,null,null,null,"",""]
[null,null,null,null,"",""]
[null,null,null,null,"",""]
[null,null,null,null,"",""]
[null,null,null,null,"",""]
[null,null,null,null,"",""]
[null,null,null,null,"",""]
[null,null,null,null,"",""]
[null,null,null,null,"",""]
[null,null,null,null,"",""]
[null,null,null,null,"",""]
[null,null,null,null,"",{"$f":"IF(E8968=\"\",\"\",D8968*E8968)","v":""}]
[null,null,null,null,"",""]
[null,null,null,null,"",""]
[null,null,null,null,"",""]
[null,null,null,null,"",""]
[null,null,null,null,"",""]
[null,null,null,null,"",""]
[null,null,null,null,"",""]
[null,null,null,null,"",""]
[null,null,null,null,"",""]
[null,null,null,null,"",""]
[null,null,null,null,"",""]
[null,null,null,null,"",""]
[null,null,null,null,"",""]
[null,null,null,null,"",""]
[null,null,null,null,"",""]
[null,null,null,null,"",""]
[null,null,null,null,"",""]
[null,null,null,null,"",""]
[null,null,null,null,"",""]
[null,null,null,null,"",""]
[null,null,null,null,"",""]
[null,null,null,null,"",""]
[null,null,null,null,"",""]
[null,null,null,null,"",""]
[null,null,null,null,"",""]
[null,null,null,null,"",""]
[null,null,null,null,"",""]
[null,null,null,null,"",""]
[null,null,null,null,"",""]
[null,null,null,null,"",""]
[null,null,null,null,"",""]
[null,null,null,null,"",""]
[null,null,null,null,"",""]
[null,null,null,null,"",""]
[null,null,null,null,"",""]
[null,null,null,null,"",""]
[null,null,null,null,"",""]
[null,null,null,null,"",""]
[null,null,null,null,{"$f":"IF(C9007=\"\",\"\",VLOOKUP(C9007,$J$4:$J$10,2,FALSE))","v":""},""]
[null,null,null,null,"",""]
[null,null,null,null,"",""]
[null,null,null,null,"",""]
[null,null,null,null,"",""]
[null,null,null,null,"",""]
[null,null,null,null,"",""]
[null,null,null,null,"",""]
[null,null,null,null,"",""]
[null,null,null,null,"",""]
[null,null,null,null,"",""]
[null,null,null,null,"",""]
[null,null,null,null,"",""]
[null,null,null,null,"",""]
[null,null,null,null,"",""]
[null,null,null,null,"",""]
[null,null,null,null,"",""]
[null,null,null,null,"",""]
[null,null,null,null,"",""]
[null,null,null,null,"",""]
[null,null,null,null,"",""]
[null,null,null,null,"",""]
[null,null,null,null,"",""]
[null,null,null,null,"",""]
[null,null,null,null,"",""]
[null,null,null,null,"",{"$f":"IF(E9032=\"\",\"\",D9032*E9032)","v":""}]
[null,null,null,null,"",""]
[null,null,null,null,"",""]
[null,null,null,null,"",""]
[null,null,null,null,"",""]
[null,null,null,null,"",""]
[null,null,null,null,"",""]
[null,null,null,null,"",""]
[null,null,null,null,"",""]
[null,null,null,null,"",""]
[null,null,null,null,"",""]
[null,null,null,null,"",""]
[null,null,null,null,"",""]
[null,null,null,null,"",""]
[null,null,null,null,"",""]
[null,null,null,null,"",""]
[null,null,null,null,"",""]
[null,null,null,null,"",""]
[null,null,null,null,"",""]
[null,null,null,null,"",""]
[null,null,null,null,"",""]
[null,null,null,null,"",""]
[null,null,null,null,"",""]
[null,null,null,null,"",""]
[null,null,null,null,"",""]
[null,null,null,null,"",""]
[null,null,null,null,"",""]
[null,null,null,null,"",""]
[null,null,null,null,"",""]
[null,null,null,null,"",""]
[null,null,null,null,"",""]
[null,null,null,null,"",""]
[null,null,null,null,"",""]
[null,null,null,null,"",""]
[null,null,null,null,"",""]
[null,null,null,null,"",""]
[null,null,null,null,"",""]
[null,null,null,null,"",""]
[null,null,null,null,"",""]
[null,null,null,null,{"$f":"IF(C9071=\"\",\"\",VLOOKUP(C9071,$J$4:$J$10,2,FALSE))","v":""},""]
[null,null,null,null,"",""]
[null,null,null,null,"",""]
[null,null,null,null,"",""]
[null,null,null,null,"",""]
[null,null,null,null,"",""]
[null,null,null,null,"",""]
[null,null,null,null,"",""]
[null,null,null,null,"",""]
[null,null,null,null,"",""]
[null,null,null,null,"",""]
[null,null,null,null,"",""]
[null,null,null,null,"",""]
[null,null,null,null,"",""]
[null,null,null,null,"",""]
[null,null,null,null,"",""]
[null,null,null,null,"",""]
[null,null,null,null,"",""]
[null,null,null,null,"",""]
[null,null,null,null,"",""]
[null,null,null,null,"",""]
[null,null,null,null,"",""]
[null,null,null,null,"",""]
[null,null,null,null,"",""]
[null,null,null,null,"",""]
[null,null,null,null,"",{"$f":"IF(E9096=\"\",\"\",D9096*E9096)","v":""}]
[null,null,null,null,"",""]
[null,null,null,null,"",""]
[null,null,null,null,"",""]
[null,null,null,null,"",""]
[null,null,null,null,"",""]
[null,null,null,null,"",""]
[null,null,null,null,"",""]
[null,null,null,null,"",""]
[null,null,null,null,"",""]
[null,null,null,null,"",""]
[null,null,null,null,"",""]
[null,null,null,null,"",""]
[null,null,null,null,"",""]
[null,null,null,null,"",""]
[null,null,null,null,"",""]
[null,null,null,null,"",""]
[null,null,null,null,"",""]
[null,null,null,null,"",""]
[null,null,null,null,"",""]
[null,null,null,null,"",""]
[null,null,null,null,"",""]
[null,null,null,null,"",""]
[null,null,null,null,"",""]
[null,null,null,null,"",""]
[null,null,null,null,"",""]
[null,null,null,null,"",""]
[null,null,null,null,"",""]
[null,null,null,null,"",""]
[null,null,null,null,"",""]
[null,null,null,null,"",""]
[null,null,null,null,"",""]
[null,null,null,null,"",""]
[null,null,null,null,"",""]
[null,null,null,null,"",""]
[null,null,null,null,"",""]
[null,null,null,null,"",""]
[null,null,null,null,"",""]
[null,null,null,null,"",""]
[null,null,null,null,{"$f":"IF(C9135=\"\",\"\",VLOOKUP(C9135,$J$4:$J$10,2,FALSE))","v":""},""]
[null,null,null,null,"",""]
[null,null,null,null,"",""]
[null,null,null,null,"",""]
[null,null,null,null,"",""]
[null,null,null,null,"",""]
[null,null,null,null,"",""]
[null,null,null,null,"",""]
[null,null,null,null,"",""]
[null,null,null,null,"",""]
[null,null,null,null,"",""]
[null,null,null,null,"",""]
[null,null,null,null,"",""]
[null,null,null,null,"",""]
[null,null,null,null,"",""]
[null,null,null,null,"",""]
[null,null,null,null,"",""]
[null,null,null,null,"",""]
[null,null,null,null,"",""]
[null,null,null,null,"",""]
[null,null,null,null,"",""]
[null,null,null,null,"",""]
[null,null,null,null,"",""]
[null,null,null,null,"",""]
[null,null,null,null,"",""]
[null,null,null,null,"",{"$f":"IF(E9160=\"\",\"\",D9160*E9160)","v":""}]
[null,null,null,null,"",""]
[null,null,null,null,"",""]
[null,null,null,null,"",""]
[null,null,null,null,"",""]
[null,null,null,null,"",""]
[null,null,null,null,"",""]
[null,null,null,null,"",""]
[null,null,null,null,"",""]
[null,null,null,null,"",""]
[null,null,null,null,"",""]
[null,null,null,null,"",""]
[null,null,null,null,"",""]
[null,null,null,null,"",""]
[null,null,null,null,"",""]
[null,null,null,null,"",""]
[null,null,null,null,"",""]
[null,null,null,null,"",""]
[null,null,null,null,"",""]
[null,null,null,null,"",""]
[null,null,null,null,"",""]
[null,null,null,null,"",""]
[null,null,null,null,"",""]
[null,null,null,null,"",""]
[null,null,null,null,"",""]
[null,null,null,null,"",""]
[null,null,null,null,"",""]
[null,null,null,null,"",""]
[null,null,null,null,"",""]
[null,null,null,null,"",""]
[null,null,null,null,"",""]
[null,null,null,null,"",""]
[null,null,null,null,"",""]
[null,null,null,null,"",""]
[null,null,null,null,"",""]
[null,null,null,null,"",""]
[null,null,null,null,"",""]
[null,null,null,null,"",""]
[null,null,null,null,"",""]
[null,null,null,null,{"$f":"IF(C9199=\"\",\"\",VLOOKUP(C9199,$J$4:$J$10,2,FALSE))","v":""},""]
[null,null,null,null,"",""]
[null,null,null,null,"",""]
[null,null,null,null,"",""]
[null,null,null,null,"",""]
[null,null,null,null,"",""]
[null,null,null,null,"",""]
[null,null,null,null,"",""]
[null,null,null,null,"",""]
[null,null,null,null,"",""]
[null,null,null,null,"",""]
[null,null,null,null,"",""]
[null,null,null,null,"",""]
[null,null,null,null,"",""]
[null,null,null,null,"",""]
[null,null,null,null,"",""]
[null,null,null,null,"",""]
[null,null,null,null,"",""]
[null,null,null,null,"",""]
[null,null,null,null,"",""]
[null,null,null,null,"",""]
[null,null,null,null,"",""]
[null,null,null,null,"",""]
[null,null,null,null,"",""]
[null,null,null,null,"",""]
[null,null,null,null,"",{"$f":"IF(E9224=\"\",\"\",D9224*E9224)","v":""}]
[null,null,null,null,"",""]
[null,null,null,null,"",""]
[null,null,null,null,"",""]
[null,null,null,null,"",""]
[null,null,null,null,"",""]
[null,null,null,null,"",""]
[null,null,null,null,"",""]
[null,null,null,null,"",""]
[null,null,null,null,"",""]
[null,null,null,null,"",""]
[null,null,null,null,"",""]
[null,null,null,null,"",""]
[null,null,null,null,"",""]
[null,null,null,null,"",""]
[null,null,null,null,"",""]
[null,null,null,null,"",""]
[null,null,null,null,"",""]
[null,null,null,null,"",""]
[null,null,null,null,"",""]
[null,null,null,null,"",""]
[null,null,null,null,"",""]
[null,null,null,null,"",""]
[null,null,null,null,"",""]
[null,null,null,null,"",""]
[null,null,null,null,"",""]
[null,null,null,null,"",""]
[null,null,null,null,"",""]
[null,null,null,null,"",""]
[null,null,null,null,"",""]
[null,null,null,null,"",""]
[null,null,null,null,"",""]
[null,null,null,null,"",""]
[null,null,null,null,"",""]
[null,null,null,null,"",""]
[null,null,null,null,"",""]
[null,null,null,null,"",""]
[null,null,null,null,"",""]
[null,null,null,null,"",""]
[null,null,null,null,{"$f":"IF(C9263=\"\",\"\",VLOOKUP(C9263,$J$4:$J$10,2,FALSE))","v":""},""]
[null,null,null,null,"",""]
[null,null,null,null,"",""]
[null,null,null,null,"",""]
[null,null,null,null,"",""]
[null,null,null,null,"",""]
[null,null,null,null,"",""]
[null,null,null,null,"",""]
[null,null,null,null,"",""]
[null,null,null,null,"",""]
[null,null,null,null,"",""]
[null,null,null,null,"",""]
[null,null,null,null,"",""]
[null,null,null,null,"",""]
[null,null,null,null,"",""]
[null,null,null,null,"",""]
[null,null,null,null,"",""]
[null,null,null,null,"",""]
[null,null,null,null,"",""]
[null,null,null,null,"",""]
[null,null,null,null,"",""]
[null,null,null,null,"",""]
[null,null,null,null,"",""]
[null,null,null,null,"",""]
[null,null,null,null,"",""]
[null,null,null,null,"",{"$f":"IF(E9288=\"\",\"\",D9288*E9288)","v":""}]
[null,null,null,null,"",""]
[null,null,null,null,"",""]
[null,null,null,null,"",""]
[null,null,null,null,"",""]
[null,null,null,null,"",""]
[null,null,null,null,"",""]
[null,null,null,null,"",""]
[null,null,null,null,"",""]
[null,null,null,null,"",""]
[null,null,null,null,"",""]
[null,null,null,null,"",""]
[null,null,null,null,"",""]
[null,null,null,null,"",""]
[null,null,null,null,"",""]
[null,null,null,null,"",""]
[null,null,null,null,"",""]
[null,null,null,null,"",""]
[null,null,null,null,"",""]
[null,null,null,null,"",""]
[null,null,null,null,"",""]
[null,null,null,null,"",""]
[null,null,null,null,"",""]
[null,null,null,null,"",""]
[null,null,null,null,"",""]
[null,null,null,null,"",""]
[null,null,null,null,"",""]
[null,null,null,null,"",""]
[null,null,null,null,"",""]
[null,null,null,null,"",""]
[null,null,null,null,"",""]
[null,null,null,null,"",""]
[null,null,null,null,"",""]
[null,null,null,null,"",""]
[null,null,null,null,"",""]
[null,null,null,null,"",""]
[null,null,null,null,"",""]
[null,null,null,null,"",""]
[null,null,null,null,"",""]
[null,null,null,null,{"$f":"IF(C9327=\"\",\"\",VLOOKUP(C9327,$J$4:$J$10,2,FALSE))","v":""},""]
[null,null,null,null,"",""]
[null,null,null,null,"",""]
[null,null,null,null,"",""]
[null,null,null,null,"",""]
[null,null,null,null,"",""]
[null,null,null,null,"",""]
[null,null,null,null,"",""]
[null,null,null,null,"",""]
[null,null,null,null,"",""]
[null,null,null,null,"",""]
[null,null,null,null,"",""]
[null,null,null,null,"",""]
[null,null,null,null,"",""]
[null,null,null,null,"",""]
[null,null,null,null,"",""]
[null,null,null,null,"",""]
[null,null,null,null,"",""]
[null,null,null,null,"",""]
[null,null,null,null,"",""]
[null,null,null,null,"",""]
[null,null,null,null,"",""]
[null,null,null,null,"",""]
[null,null,null,null,"",""]
[null,null,null,null,"",""]
[null,null,null,null,"",{"$f":"IF(E9352=\"\",\"\",D9352*E9352)","v":""}]
[null,null,null,null,"",""]
[null,null,null,null,"",""]
[null,null,null,null,"",""]
[null,null,null,null,"",""]
[null,null,null,null,"",""]
[null,null,null,null,"",""]
[null,null,null,null,"",""]
[null,null,null,null,"",""]
[null,null,null,null,"",""]
[null,null,null,null,"",""]
[null,null,null,null,"",""]
[null,null,null,null,"",""]
[null,null,null,null,"",""]
[null,null,null,null,"",""]
[null,null,null,null,"",""]
[null,null,null,null,"",""]
[null,null,null,null,"",""]
[null,null,null,null,"",""]
[null,null,null,null,"",""]
[null,null,null,null,"",""]
[null,null,null,null,"",""]
[null,null,null,null,"",""]
[null,null,null,null,"",""]
[null,null,null,null,"",""]
[null,null,null,null,"",""]
[null,null,null,null,"",""]
[null,null,null,null,"",""]
[null,null,null,null,"",""]
[null,null,null,null,"",""]
[null,null,null,null,"",""]
[null,null,null,null,"",""]
[null,null,null,null,"",""]
[null,null,null,null,"",""]
[null,null,null,null,"",""]
[null,null,null,null,"",""]
[null,null,null,null,"",""]
[null,null,null,null,"",""]
[null,null,null,null,"",""]
[null,null,null,null,{"$f":"IF(C9391=\"\",\"\",VLOOKUP(C9391,$J$4:$J$10,2,FALSE))","v":""},""]
[null,null,null,null,"",""]
[null,null,null,null,"",""]
[null,null,null,null,"",""]
[null,null,null,null,"",""]
[null,null,null,null,"",""]
[null,null,null,null,"",""]
[null,null,null,null,"",""]
[null,null,null,null,"",""]
[null,null,null,null,"",""]
[null,null,null,null,"",""]
[null,null,null,null,"",""]
[null,null,null,null,"",""]
[null,null,null,null,"",""]
[null,null,null,null,"",""]
[null,null,null,null,"",""]
[null,null,null,null,"",""]
[null,null,null,null,"",""]
[null,null,null,null,"",""]
[null,null,null,null,"",""]
[null,null,null,null,"",""]
[null,null,null,null,"",""]
[null,null,null,null,"",""]
[null,null,null,null,"",""]
[null,null,null,null,"",""]
[null,null,null,null,"",{"$f":"IF(E9416=\"\",\"\",D9416*E9416)","v":""}]
[null,null,null,null,"",""]
[null,null,null,null,"",""]
[null,null,null,null,"",""]
[null,null,null,null,"",""]
[null,null,null,null,"",""]
[null,null,null,null,"",""]
[null,null,null,null,"",""]
[null,null,null,null,"",""]
[null,null,null,null,"",""]
[null,null,null,null,"",""]
[null,null,null,null,"",""]
[null,null,null,null,"",""]
[null,null,null,null,"",""]
[null,null,null,null,"",""]
[null,null,null,null,"",""]
[null,null,null,null,"",""]
[null,null,null,null,"",""]
[null,null,null,null,"",""]
[null,null,null,null,"",""]
[null,null,null,null,"",""]
[null,null,null,null,"",""]
[null,null,null,null,"",""]
[null,null,null,null,"",""]
[null,null,null,null,"",""]
[null,null,null,null,"",""]
[null,null,null,null,"",""]
[null,null,null,null,"",""]
[null,null,null,null,"",""]
[null,null,null,null,"",""]
[null,null,null,null,"",""]
[null,null,null,null,"",""]
[null,null,null,null,"",""]
[null,null,null,null,"",""]
[null,null,null,null,"",""]
[null,null,null,null,"",""]
[null,null,null,null,"",""]
[null,null,null,null,"",""]
[null,null,null,null,"",""]
[null,null,null,null,{"$f":"IF(C9455=\"\",\"\",VLOOKUP(C9455,$J$4:$J$10,2,FALSE))","v":""},""]
[null,null,null,null,"",""]
[null,null,null,null,"",""]
[null,null,null,null,"",""]
[null,null,null,null,"",""]
[null,null,null,null,"",""]
[null,null,null,null,"",""]
[null,null,null,null,"",""]
[null,null,null,null,"",""]
[null,null,null,null,"",""]
[null,null,null,null,"",""]
[null,null,null,null,"",""]
[null,null,null,null,"",""]
[null,null,null,null,"",""]
[null,null,null,null,"",""]
[null,null,null,null,"",""]
[null,null,null,null,"",""]
[null,null,null,null,"",""]
[null,null,null,null,"",""]
[null,null,null,null,"",""]
[null,null,null,null,"",""]
[null,null,null,null,"",""]
[null,null,null,null,"",""]
[null,null,null,null,"",""]
[null,null,null,null,"",""]
[null,null,null,null,"",{"$f":"IF(E9480=\"\",\"\",D9480*E9480)","v":""}]
[null,null,null,null,"",""]
[null,null,null,null,"",""]
[null,null,null,null,"",""]
[null,null,null,null,"",""]
[null,null,null,null,"",""]
[null,null,null,null,"",""]
[null,null,null,null,"",""]
[null,null,null,null,"",""]
[null,null,null,null,"",""]
[null,null,null,null,"",""]
[null,null,null,null,"",""]
[null,null,null,null,"",""]
[null,null,null,null,"",""]
[null,null,null,null,"",""]
[null,null,null,null,"",""]
[null,null,null,null,"",""]
[null,null,null,null,"",""]
[null,null,null,null,"",""]
[null,null,null,null,"",""]
[null,null,null,null,"",""]
[null,null,null,null,"",""]
[null,null,null,null,"",""]
[null,null,null,null,"",""]
[null,null,null,null,"",""]
[null,null,null,null,"",""]
[null,null,null,null,"",""]
[null,null,null,null,"",""]
[null,null,null,null,"",""]
[null,null,null,null,"",""]
[null,null,null,null,"",""]
[null,null,null,null,"",""]
[null,null,null,null,"",""]
[null,null,null,null,"",""]
[null,null,null,null,"",""]
[null,null,null,null,"",""]
[null,null,null,null,"",""]
[null,null,null,null,"",""]
[null,null,null,null,"",""]
[null,null,null,null,{"$f":"IF(C9519=\"\",\"\",VLOOKUP(C9519,$J$4:$J$10,2,FALSE))","v":""},""]
[null,null,null,null,"",""]
[null,null,null,null,"",""]
[null,null,null,null,"",""]
[null,null,null,null,"",""]
[null,null,null,null,"",""]
[null,null,null,null,"",""]
[null,null,null,null,"",""]
[null,null,null,null,"",""]
[null,null,null,null,"",""]
[null,null,null,null,"",""]
[null,null,null,null,"",""]
[null,null,null,null,"",""]
[null,null,null,null,"",""]
[null,null,null,null,"",""]
[null,null,null,null,"",""]
[null,null,null,null,"",""]
[null,null,null,null,"",""]
[null,null,null,null,"",""]
[null,null,null,null,"",""]
[null,null,null,null,"",""]
[null,null,null,null,"",""]
[null,null,null,null,"",""]
[null,null,null,null,"",""]
[null,null,null,null,"",""]
[null,null,null,null,"",{"$f":"IF(E9544=\"\",\"\",D9544*E9544)","v":""}]
[null,null,null,null,"",""]
[null,null,null,null,"",""]
[null,null,null,null,"",""]
[null,null,null,null,"",""]
[null,null,null,null,"",""]
[null,null,null,null,"",""]
[null,null,null,null,"",""]
[null,null,null,null,"",""]
[null,null,null,null,"",""]
[null,null,null,null,"",""]
[null,null,null,null,"",""]
[null,null,null,null,"",""]
[null,null,null,null,"",""]
[null,null,null,null,"",""]
[null,null,null,null,"",""]
[null,null,null,null,"",""]
[null,null,null,null,"",""]
[null,null,null,null,"",""]
[null,null,null,null,"",""]
[null,null,null,null,"",""]
[null,null,null,null,"",""]
[null,null,null,null,"",""]
[null,null,null,null,"",""]
[null,null,null,null,"",""]
[null,null,null,null,"",""]
[null,null,null,null,"",""]
[null,null,null,null,"",""]
[null,null,null,null,"",""]
[null,null,null,null,"",""]
[null,null,null,null,"",""]
[null,null,null,null,"",""]
[null,null,null,null,"",""]
[null,null,null,null,"",""]
[null,null,null,null,"",""]
[null,null,null,null,"",""]
[null,null,null,null,"",""]
[null,null,null,null,"",""]
[null,null,null,null,"",""]
[null,null,null,null,{"$f":"IF(C9583=\"\",\"\",VLOOKUP(C9583,$J$4:$J$10,2,FALSE))","v":""},""]
[null,null,null,null,"",""]
[null,null,null,null,"",""]
[null,null,null,null,"",""]
[null,null,null,null,"",""]
[null,null,null,null,"",""]
[null,null,null,null,"",""]
[null,null,null,null,"",""]
[null,null,null,null,"",""]
[null,null,null,null,"",""]
[null,null,null,null,"",""]
[null,null,null,null,"",""]
[null,null,null,null,"",""]
[null,null,null,null,"",""]
[null,null,null,null,"",""]
[null,null,null,null,"",""]
[null,null,null,null,"",""]
[null,null,null,null,"",""]
[null,null,null,null,"",""]
[null,null,null,null,"",""]
[null,null,null,null,"",""]
[null,null,null,null,"",""]
[null,null,null,null,"",""]
[null,null,null,null,"",""]
[null,null,null,null,"",""]
[null,null,null,null,"",{"$f":"IF(E9608=\"\",\"\",D9608*E9608)","v":""}]
[null,null,null,null,"",""]
[null,null,null,null,"",""]
[null,null,null,null,"",""]
[null,null,null,null,"",""]
[null,null,null,null,"",""]
[null,null,null,null,"",""]
[null,null,null,null,"",""]
[null,null,null,null,"",""]
[null,null,null,null,"",""]
[null,null,null,null,"",""]
[null,null,null,null,"",""]
[null,null,null,null,"",""]
[null,null,null,null,"",""]
[null,null,null,null,"",""]
[null,null,null,null,"",""]
[null,null,null,null,"",""]
[null,null,null,null,"",""]
[null,null,null,null,"",""]
[null,null,null,null,"",""]
[null,null,null,null,"",""]
[null,null,null,null,"",""]
[null,null,null,null,"",""]
[null,null,null,null,"",""]
[null,null,null,null,"",""]
[null,null,null,null,"",""]
[null,null,null,null,"",""]
[null,null,null,null,"",""]
[null,null,null,null,"",""]
[null,null,null,null,"",""]
[null,null,null,null,"",""]
[null,null,null,null,"",""]
[null,null,null,null,"",""]
[null,null,null,null,"",""]
[null,null,null,null,"",""]
[null,null,null,null,"",""]
[null,null,null,null,"",""]
[null,null,null,null,"",""]
[null,null,null,null,"",""]
[null,null,null,null,{"$f":"IF(C9647=\"\",\"\",VLOOKUP(C9647,$J$4:$J$10,2,FALSE))","v":""},""]
[null,null,null,null,"",""]
[null,null,null,null,"",""]
[null,null,null,null,"",""]
[null,null,null,null,"",""]
[null,null,null,null,"",""]
[null,null,null,null,"",""]
[null,null,null,null,"",""]
[null,null,null,null,"",""]
[null,null,null,null,"",""]
[null,null,null,null,"",""]
[null,null,null,null,"",""]
[null,null,null,null,"",""]
[null,null,null,null,"",""]
[null,null,null,null,"",""]
[null,null,null,null,"",""]
[null,null,null,null,"",""]
[null,null,null,null,"",""]
[null,null,null,null,"",""]
[null,null,null,null,"",""]
[null,null,null,null,"",""]
[null,null,null,null,"",""]
[null,null,null,null,"",""]
[null,null,null,null,"",""]
[null,null,null,null,"",""]
[null,null,null,null,"",{"$f":"IF(E9672=\"\",\"\",D9672*E9672)","v":""}]
[null,null,null,null,"",""]
[null,null,null,null,"",""]
[null,null,null,null,"",""]
[null,null,null,null,"",""]
[null,null,null,null,"",""]
[null,null,null,null,"",""]
[null,null,null,null,"",""]
[null,null,null,null,"",""]
[null,null,null,null,"",""]
[null,null,null,null,"",""]
[null,null,null,null,"",""]
[null,null,null,null,"",""]
[null,null,null,null,"",""]
[null,null,null,null,"",""]
[null,null,null,null,"",""]
[null,null,null,null,"",""]
[null,null,null,null,"",""]
[null,null,null,null,"",""]
[null,null,null,null,"",""]
[null,null,null,null,"",""]
[null,null,null,null,"",""]
[null,null,null,null,"",""]
[null,null,null,null,"",""]
[null,null,null,null,"",""]
[null,null,null,null,"",""]
[null,null,null,null,"",""]
[null,null,null,null,"",""]
[null,null,null,null,"",""]
[null,null,null,null,"",""]
[null,null,null,null,"",""]
[null,null,null,null,"",""]
[null,null,null,null,"",""]
[null,null,null,null,"",""]
[null,null,null,null,"",""]
[null,null,null,null,"",""]
[null,null,null,null,"",""]
[null,null,null,null,"",""]
[null,null,null,null,"",""]
[null,null,null,null,{"$f":"IF(C9711=\"\",\"\",VLOOKUP(C9711,$J$4:$J$10,2,FALSE))","v":""},""]
[null,null,null,null,"",""]
[null,null,null,null,"",""]
[null,null,null,null,"",""]
[null,null,null,null,"",""]
[null,null,null,null,"",""]
[null,null,null,null,"",""]
[null,null,null,null,"",""]
[null,null,null,null,"",""]
[null,null,null,null,"",""]
[null,null,null,null,"",""]
[null,null,null,null,"",""]
[null,null,null,null,"",""]
[null,null,null,null,"",""]
[null,null,null,null,"",""]
[null,null,null,null,"",""]
[null,null,null,null,"",""]
[null,null,null,null,"",""]
[null,null,null,null,"",""]
[null,null,null,null,"",""]
[null,null,null,null,"",""]
[null,null,null,null,"",""]
[null,null,null,null,"",""]
[null,null,null,null,"",""]
[null,null,null,null,"",""]
[null,null,null,null,"",{"$f":"IF(E9736=\"\",\"\",D9736*E9736)","v":""}]
[null,null,null,null,"",""]
[null,null,null,null,"",""]
[null,null,null,null,"",""]
[null,null,null,null,"",""]
[null,null,null,null,"",""]
[null,null,null,null,"",""]
[null,null,null,null,"",""]
[null,null,null,null,"",""]
[null,null,null,null,"",""]
[null,null,null,null,"",""]
[null,null,null,null,"",""]
[null,null,null,null,"",""]
[null,null,null,null,"",""]
[null,null,null,null,"",""]
[null,null,null,null,"",""]
[null,null,null,null,"",""]
[null,null,null,null,"",""]
[null,null,null,null,"",""]
[null,null,null,null,"",""]
[null,null,null,null,"",""]
[null,null,null,null,"",""]
[null,null,null,null,"",""]
[null,null,null,null,"",""]
[null,null,null,null,"",""]
[null,null,null,null,"",""]
[null,null,null,null,"",""]
[null,null,null,null,"",""]
[null,null,null,null,"",""]
[null,null,null,null,"",""]
[null,null,null,null,"",""]
[null,null,null,null,"",""]
[null,null,null,null,"",""]
[null,null,null,null,"",""]
[null,null,null,null,"",""]
[null,null,null,null,"",""]
[null,null,null,null,"",""]
[null,null,null,null,"",""]
[null,null,null,null,"",""]
[null,null,null,null,{"$f":"IF(C9775=\"\",\"\",VLOOKUP(C9775,$J$4:$J$10,2,FALSE))","v":""},""]
[null,null,null,null,"",""]
[null,null,null,null,"",""]
[null,null,null,null,"",""]
[null,null,null,null,"",""]
[null,null,null,null,"",""]
[null,null,null,null,"",""]
[null,null,null,null,"",""]
[null,null,null,null,"",""]
[null,null,null,null,"",""]
[null,null,null,null,"",""]
[null,null,null,null,"",""]
[null,null,null,null,"",""]
[null,null,null,null,"",""]
[null,null,null,null,"",""]
[null,null,null,null,"",""]
[null,null,null,null,"",""]
[null,null,null,null,"",""]
[null,null,null,null,"",""]
[null,null,null,null,"",""]
[null,null,null,null,"",""]
[null,null,null,null,"",""]
[null,null,null,null,"",""]
[null,null,null,null,"",""]
[null,null,null,null,"",""]
[null,null,null,null,"",{"$f":"IF(E9800=\"\",\"\",D9800*E9800)","v":""}]
[null,null,null,null,"",""]
[null,null,null,null,"",""]
[null,null,null,null,"",""]
[null,null,null,null,"",""]
[null,null,null,null,"",""]
[null,null,null,null,"",""]
[null,null,null,null,"",""]
[null,null,null,null,"",""]
[null,null,null,null,"",""]
[null,null,null,null,"",""]
[null,null,null,null,"",""]
[null,null,null,null,"",""]
[null,null,null,null,"",""]
[null,null,null,null,"",""]
[null,null,null,null,"",""]
[null,null,null,null,"",""]
[null,null,null,null,"",""]
[null,null,null,null,"",""]
[null,null,null,null,"",""]
[null,null,null,null,"",""]
[null,null,null,null,"",""]
[null,null,null,null,"",""]
[null,null,null,null,"",""]
[null,null,null,null,"",""]
[null,null,null,null,"",""]
[null,null,null,null,"",""]
[null,null,null,null,"",""]
[null,null,null,null,"",""]
[null,null,null,null,"",""]
[null,null,null,null,"",""]
[null,null,null,null,"",""]
[null,null,null,null,"",""]
[null,null,null,null,"",""]
[null,null,null,null,"",""]
[null,null,null,null,"",""]
[null,null,null,null,"",""]
[null,null,null,null,"",""]
[null,null,null,null,"",""]
[null,null,null,null,{"$f":"IF(C9839=\"\",\"\",VLOOKUP(C9839,$J$4:$J$10,2,FALSE))","v":""},""]
[null,null,null,null,"",""]
[null,null,null,null,"",""]
[null,null,null,null,"",""]
[null,null,null,null,"",""]
[null,null,null,null,"",""]
[null,null,null,null,"",""]
[null,null,null,null,"",""]
[null,null,null,null,"",""]
[null,null,null,null,"",""]
[null,null,null,null,"",""]
[null,null,null,null,"",""]
[null,null,null,null,"",""]
[null,null,null,null,"",""]
[null,null,null,null,"",""]
[null,null,null,null,"",""]
[null,null,null,null,"",""]
[null,null,null,null,"",""]
[null,null,null,null,"",""]
[null,null,null,null,"",""]
[null,null,null,null,"",""]
[null,null,null,null,"",""]
[null,null,null,null,"",""]
[null,null,null,null,"",""]
[null,null,null,null,"",""]
[null,null,null,null,"",{"$f":"IF(E9864=\"\",\"\",D9864*E9864)","v":""}]
[null,null,null,null,"",""]
[null,null,null,null,"",""]
[null,null,null,null,"",""]
[null,null,null,null,"",""]
[null,null,null,null,"",""]
[null,null,null,null,"",""]
[null,null,null,null,"",""]
[null,null,null,null,"",""]
[null,null,null,null,"",""]
[null,null,null,null,"",""]
[null,null,null,null,"",""]
[null,null,null,null,"",""]
[null,null,null,null,"",""]
[null,null,null,null,"",""]
[null,null,null,null,"",""]
[null,null,null,null,"",""]
[null,null,null,null,"",""]
[null,null,null,null,"",""]
[null,null,null,null,"",""]
[null,null,null,null,"",""]
[null,null,null,null,"",""]
[null,null,null,null,"",""]
[null,null,null,null,"",""]
[null,null,null,null,"",""]
[null,null,null,null,"",""]
[null,null,null,null,"",""]
[null,null,null,null,"",""]
[null,null,null,null,"",""]
[null,null,null,null,"",""]
[null,null,null,null,"",""]
[null,null,null,null,"",""]
[null,null,null,null,"",""]
[null,null,null,null,"",""]
[null,null,null,null,"",""]
[null,null,null,null,"",""]
[null,null,null,null,"",""]
[null,null,null,null,"",""]
[null,null,null,null,"",""]
[null,null,null,null,{"$f":"IF(C9903=\"\",\"\",VLOOKUP(C9903,$J$4:$J$10,2,FALSE))","v":""},""]
[null,null,null,null,"",""]
[null,null,null,null,"",""]
[null,null,null,null,"",""]
[null,null,null,null,"",""]
[null,null,null,null,"",""]
[null,null,null,null,"",""]
[null,null,null,null,"",""]
[null,null,null,null,"",""]
[null,null,null,null,"",""]
[null,null,null,null,"",""]
[null,null,null,null,"",""]
[null,null,null,null,"",""]
[null,null,null,null,"",""]
[null,null,null,null,"",""]
[null,null,null,null,"",""]
[null,null,null,null,"",""]
[null,null,null,null,"",""]
[null,null,null,null,"",""]
[null,null,null,null,"",""]
[null,null,null,null,"",""]
[null,null,null,null,"",""]
[null,null,null,null,"",""]
[null,null,null,null,"",""]
[null,null,null,null,"",""]
[null,null,null,null,"",{"$f":"IF(E9928=\"\",\"\",D9928*E9928)","v":""}]
[null,null,null,null,"",""]
[null,null,null,null,"",""]
[null,null,null,null,"",""]
[null,null,null,null,"",""]
[null,null,null,null,"",""]
[null,null,null,null,"",""]
[null,null,null,null,"",""]
[null,null,null,null,"",""]
[null,null,null,null,"",""]
[null,null,null,null,"",""]
[null,null,null,null,"",""]
[null,null,null,null,"",""]
[null,null,null,null,"",""]
[null,null,null,null,"",""]
[null,null,null,null,"",""]
[null,null,null,null,"",""]
[null,null,null,null,"",""]
[null,null,null,null,"",""]
[null,null,null,null,"",""]
[null,null,null,null,"",""]
[null,null,null,null,"",""]
[null,null,null,null,"",""]
[null,null,null,null,"",""]
[null,null,null,null,"",""]
[null,null,null,null,"",""]
[null,null,null,null,"",""]
[null,null,null,null,"",""]
[null,null,null,null,"",""]
[null,null,null,null,"",""]
[null,null,null,null,"",""]
[null,null,null,null,"",""]
[null,null,null,null,"",""]
[null,null,null,null,"",""]
[null,null,null,null,"",""]
[null,null,null,null,"",""]
[null,null,null,null,"",""]
[null,null,null,null,"",""]
[null,null,null,null,"",""]
[null,null,null,null,{"$f":"IF(C9967=\"\",\"\",VLOOKUP(C9967,$J$4:$J$10,2,FALSE))","v":""},""]
[null,null,null,null,"",""]
[null,null,null,null,"",""]
[null,null,null,null,"",""]
[null,null,null,null,"",""]
[null,null,null,null,"",""]
[null,null,null,null,"",""]
[null,null,null,null,"",""]
[null,null,null,null,"",""]
[null,null,null,null,"",""]
[null,null,null,null,"",""]
[null,null,null,null,"",""]
[null,null,null,null,"",""]
[null,null,null,null,"",""]
[null,null,null,null,"",""]
[null,null,null,null,"",""]
[null,null,null,null,"",""]
[null,null,null,null,"",""]
[null,null,null,null,"",""]
[null,null,null,null,"",""]
[null,null,null,null,"",""]
[null,null,null,null,"",""]
[null,null,null,null,"",""]
[null,null,null,null,"",""]
[null,null,null,null,"",""]
[null,null,null,null,"",{"$f":"IF(E9992=\"\",\"\",D9992*E9992)","v":""}]
[null,null,null,null,"",""]
[null,null,null,null,"",""]
[null,null,null,null,"",""]
[null,null,null,null,"",""]
[null,null,null,null,"",""]
[null,null,null,null,"",""]
[null,null,null,null,"",""]
[null,null,null,null,"",""]
[null,null,null,null,"",""]
[null,null,null,null,"",""]
[null,null,null,null,"",""]

{"sheet":"売上高分析","index":6,"n_rows":46,"n_cols":29,"rows_kept":46,"cut":false,"hidden":false,"merged":[[36,19,36,21],[1,0,1,2],[1,4,1,6],[13,0,13,2],[25,19,25,21]]}
["売上高分析"]
["時間帯別売上高",null,null,null,"商品別売上高",null,null,null,"商品別時間帯別売上高",null,null,null,null,null,null,null,null,null,null,"客層別時間帯別売上高"]
["時間帯",{"$f":"IF(損益分岐点売上高・投資!B10=\"\",\"\",損益分岐点売上高・投資!B10)","v":"2023-11-03"},{"$f":"IF(損益分岐点売上高・投資!B11=\"\",\"\",損益分岐点売上高・投資!B11)","v":"2023-11-04"},null,"商品名",{"$f":"IF(損益分岐点売上高・投資!B10=\"\",\"\",損益分岐点売上高・投資!B10)","v":"2023-11-03"},{"$f":"IF(損益分岐点売上高・投資!B11=\"\",\"\",損益分岐点売上高・投資!B11)","v":"2023-11-04"},null,{"$f":"IF(損益分岐点売上高・投資!B10=\"\",\"\",損益分岐点売上高・投資!B10)","v":"2023-11-03"},"10時前","10時","11時","12時","13時","14時","15時","16時以降","合計",null,{"$f":"IF(損益分岐点売上高・投資!B10=\"\",\"\",損益分岐点売上高・投資!B10)","v":"2023-11-03"},"10時前","10時","11時","12時","13時","14時","15時","16時以降","合計"]
["10時前",{"$f":"IF(A4=\"\",\"\",SUMIFS(日記帳!$F$4:$F$10003,日記帳!$B$4:$B$10003,\">=0\",日記帳!$B$4:$B$10003,\"<=9:59:59\",日記帳!$A$4:$A$10003,B$3))","v":0},{"$f":"IF(A4=\"\",\"\",SUMIFS(日記帳!$F$4:$F$10003,日記帳!$B$4:$B$10003,\">=0\",日記帳!$B$4:$B$10003,\"<=9:59:59\",日記帳!$A$4:$A$10003,C$3))","v":0},null,{"$f":"IF(日記帳!J4=\"\",\"\",日記帳!J4)","v":"醤油ラーメン"},{"$f":"IF($E4=\"\",\"\",SUMIFS(日記帳!$F$4:$F$10003,日記帳!$C$4:$C$10003,$E4,日記帳!$A$4:$A$10003,F$3))","v":0},{"$f":"IF($E4=\"\",\"\",SUMIFS(日記帳!$F$4:$F$10003,日記帳!$C$4:$C$10003,$E4,日記帳!$A$4:$A$10003,G$3))","v":0},null,{"$f":"IF(日記帳!J4=\"\",\"\",日記帳!J4)","v":"醤油ラーメン"},{"$f":"IF($I4=\"\",\"\",SUMIFS(日記帳!$F$4:$F$10003,日記帳!$C$4:$C$10003,$I4,日記帳!$A$4:$A$10003,$I$3,日記帳!$B$4:$B$10003,\"<=9:59:59\" ))","v":0},{"$f":"IF($I4=\"\",\"\",SUMIFS(日記帳!$F$4:$F$10003,日記帳!$C$4:$C$10003,$I4,日記帳!$A$4:$A$10003,$I$3,日記帳!$B$4:$B$10003,\">=10:00:00\",日記帳!$B$4:$B$10003,\"<=10:59:59\"))","v":0},{"$f":"IF($I4=\"\",\"\",SUMIFS(日記帳!$F$4:$F$10003,日記帳!$C$4:$C$10003,$I4,日記帳!$A$4:$A$10003,$I$3,日記帳!$B$4:$B$10003,\">=11:00:00\",日記帳!$B$4:$B$10003,\"<=11:59:59\"))","v":0},{"$f":"IF($I4=\"\",\"\",SUMIFS(日記帳!$F$4:$F$10003,日記帳!$C$4:$C$10003,$I4,日記帳!$A$4:$A$10003,$I$3,日記帳!$B$4:$B$10003,\">=12:00:00\",日記帳!$B$4:$B$10003,\"<=12:59:59\"))","v":0},{"$f":"IF($I4=\"\",\"\",SUMIFS(日記帳!$F$4:$F$10003,日記帳!$C$4:$C$10003,$I4,日記帳!$A$4:$A$10003,$I$3,日記帳!$B$4:$B$10003,\">=13:00:00\",日記帳!$B$4:$B$10003,\"<=13:59:59\"))","v":0},{"$f":"IF($I4=\"\",\"\",SUMIFS(日記帳!$F$4:$F$10003,日記帳!$C$4:$C$10003,$I4,日記帳!$A$4:$A$10003,$I$3,日記帳!$B$4:$B$10003,\">=14:00:00\",日記帳!$B$4:$B$10003,\"<=14:59:59\"))","v":0},{"$f":"IF($I4=\"\",\"\",SUMIFS(日記帳!$F$4:$F$10003,日記帳!$C$4:$C$10003,$I4,日記帳!$A$4:$A$10003,$I$3,日記帳!$B$4:$B$10003,\">=15:00:00\",日記帳!$B$4:$B$10003,\"<=15:59:59\"))","v":0},{"$f":"IF($I4=\"\",\"\",SUMIFS(日記帳!$F$4:$F$10003,日記帳!$C$4:$C$10003,$I4,日記帳!$A$4:$A$10003,$I$3,日記帳!$B$4:$B$10003,\">=16:00:00\",日記帳!$B$4:$B$10003,\"<=23:59:59\"))","v":0},{"$f":"SUM(J4:Q4)","v":0},null,{"$f":"IF(日記帳!K4=\"\",\"\",日記帳!K4)","v":"中学生以下"},{"$f":"IF($T4=\"\",\"\",SUMIFS(日記帳!$F$4:$F$10003,日記帳!$G$4:$G$10003,$T4,日記帳!$A$4:$A$10003,$T$3,日記帳!$B$4:$B$10003,\"<=9:59:59\" ))","v":0},{"$f":"IF($T4=\"\",\"\",SUMIFS(日記帳!$F$4:$F$10003,日記帳!$G$4:$G$10003,$T4,日記帳!$A$4:$A$10003,$T$3,日記帳!$B$4:$B$10003,\">=10:00:00\",日記帳!$B$4:$B$10003,\"<=10:59:59\"))","v":0},{"$f":"IF($T4=\"\",\"\",SUMIFS(日記帳!$F$4:$F$10003,日記帳!$G$4:$G$10003,$T4,日記帳!$A$4:$A$10003,$T$3,日記帳!$B$4:$B$10003,\">=11:00:00\",日記帳!$B$4:$B$10003,\"<=11:59:59\"))","v":0},{"$f":"IF($T4=\"\",\"\",SUMIFS(日記帳!$F$4:$F$10003,日記帳!$G$4:$G$10003,$T4,日記帳!$A$4:$A$10003,$T$3,日記帳!$B$4:$B$10003,\">=12:00:00\",日記帳!$B$4:$B$10003,\"<=12:59:59\"))","v":0},{"$f":"IF($T4=\"\",\"\",SUMIFS(日記帳!$F$4:$F$10003,日記帳!$G$4:$G$10003,$T4,日記帳!$A$4:$A$10003,$T$3,日記帳!$B$4:$B$10003,\">=13:00:00\",日記帳!$B$4:$B$10003,\"<=13:59:59\"))","v":0},{"$f":"IF($T4=\"\",\"\",SUMIFS(日記帳!$F$4:$F$10003,日記帳!$G$4:$G$10003,$T4,日記帳!$A$4:$A$10003,$T$3,日記帳!$B$4:$B$10003,\">=14:00:00\",日記帳!$B$4:$B$10003,\"<=14:59:59\"))","v":0},{"$f":"IF($T4=\"\",\"\",SUMIFS(日記帳!$F$4:$F$10003,日記帳!$G$4:$G$10003,$T4,日記帳!$A$4:$A$10003,$T$3,日記帳!$B$4:$B$10003,\">=15:00:00\",日記帳!$B$4:$B$10003,\"<=15:59:59\"))","v":0},{"$f":"IF($T4=\"\",\"\",SUMIFS(日記帳!$F$4:$F$10003,日記帳!$G$4:$G$10003,$T4,日記帳!$A$4:$A$10003,$T$3,日記帳!$B$4:$B$10003,\">=16:00:00\",日記帳!$B$4:$B$10003,\"<=23:59:59\"))","v":0},{"$f":"SUM(U4:AB4)","v":0}]
["10時",{"$f":"IF(A5=\"\",\"\",SUMIFS(日記帳!$F$4:$F$10003,日記帳!$B$4:$B$10003,\">=10：00：00\",日記帳!$B$4:$B$10003,\"<=10:59:59\",日記帳!$A$4:$A$10003,B$3))","v":0},{"$f":"IF(A5=\"\",\"\",SUMIFS(日記帳!$F$4:$F$10003,日記帳!$B$4:$B$10003,\">=10：00：00\",日記帳!$B$4:$B$10003,\"<=10:59:59\",日記帳!$A$4:$A$10003,C$3))","v":0},null,{"$f":"IF(日記帳!J5=\"\",\"\",日記帳!J5)","v":"ねぎ醤油ラーメン"},{"$f":"IF($E5=\"\",\"\",SUMIFS(日記帳!$F$4:$F$10003,日記帳!$C$4:$C$10003,$E5,日記帳!$A$4:$A$10003,F$3))","v":0},{"$f":"IF($E5=\"\",\"\",SUMIFS(日記帳!$F$4:$F$10003,日記帳!$C$4:$C$10003,$E5,日記帳!$A$4:$A$10003,G$3))","v":0},null,{"$f":"IF(日記帳!J5=\"\",\"\",日記帳!J5)","v":"ねぎ醤油ラーメン"},{"$f":"IF($I5=\"\",\"\",SUMIFS(日記帳!$F$4:$F$10003,日記帳!$C$4:$C$10003,$I5,日記帳!$A$4:$A$10003,$I$3,日記帳!$B$4:$B$10003,\"<=9:59:59\" ))","v":0},{"$f":"IF($I5=\"\",\"\",SUMIFS(日記帳!$F$4:$F$10003,日記帳!$C$4:$C$10003,$I5,日記帳!$A$4:$A$10003,$I$3,日記帳!$B$4:$B$10003,\">=10:00:00\",日記帳!$B$4:$B$10003,\"<=10:59:59\"))","v":0},{"$f":"IF($I5=\"\",\"\",SUMIFS(日記帳!$F$4:$F$10003,日記帳!$C$4:$C$10003,$I5,日記帳!$A$4:$A$10003,$I$3,日記帳!$B$4:$B$10003,\">=11:00:00\",日記帳!$B$4:$B$10003,\"<=11:59:59\"))","v":0},{"$f":"IF($I5=\"\",\"\",SUMIFS(日記帳!$F$4:$F$10003,日記帳!$C$4:$C$10003,$I5,日記帳!$A$4:$A$10003,$I$3,日記帳!$B$4:$B$10003,\">=12:00:00\",日記帳!$B$4:$B$10003,\"<=12:59:59\"))","v":0},{"$f":"IF($I5=\"\",\"\",SUMIFS(日記帳!$F$4:$F$10003,日記帳!$C$4:$C$10003,$I5,日記帳!$A$4:$A$10003,$I$3,日記帳!$B$4:$B$10003,\">=13:00:00\",日記帳!$B$4:$B$10003,\"<=13:59:59\"))","v":0},{"$f":"IF($I5=\"\",\"\",SUMIFS(日記帳!$F$4:$F$10003,日記帳!$C$4:$C$10003,$I5,日記帳!$A$4:$A$10003,$I$3,日記帳!$B$4:$B$10003,\">=14:00:00\",日記帳!$B$4:$B$10003,\"<=14:59:59\"))","v":0},{"$f":"IF($I5=\"\",\"\",SUMIFS(日記帳!$F$4:$F$10003,日記帳!$C$4:$C$10003,$I5,日記帳!$A$4:$A$10003,$I$3,日記帳!$B$4:$B$10003,\">=15:00:00\",日記帳!$B$4:$B$10003,\"<=15:59:59\"))","v":0},{"$f":"IF($I5=\"\",\"\",SUMIFS(日記帳!$F$4:$F$10003,日記帳!$C$4:$C$10003,$I5,日記帳!$A$4:$A$10003,$I$3,日記帳!$B$4:$B$10003,\">=16:00:00\",日記帳!$B$4:$B$10003,\"<=23:59:59\"))","v":0},{"$f":"SUM(J5:Q5)","v":0},null,{"$f":"IF(日記帳!K5=\"\",\"\",日記帳!K5)","v":"高校生"},{"$f":"IF($T5=\"\",\"\",SUMIFS(日記帳!$F$4:$F$10003,日記帳!$G$4:$G$10003,$T5,日記帳!$A$4:$A$10003,$T$3,日記帳!$B$4:$B$10003,\"<=9:59:59\" ))","v":0},{"$f":"IF($T5=\"\",\"\",SUMIFS(日記帳!$F$4:$F$10003,日記帳!$G$4:$G$10003,$T5,日記帳!$A$4:$A$10003,$T$3,日記帳!$B$4:$B$10003,\">=10:00:00\",日記帳!$B$4:$B$10003,\"<=10:59:59\"))","v":0},{"$f":"IF($T5=\"\",\"\",SUMIFS(日記帳!$F$4:$F$10003,日記帳!$G$4:$G$10003,$T5,日記帳!$A$4:$A$10003,$T$3,日記帳!$B$4:$B$10003,\">=11:00:00\",日記帳!$B$4:$B$10003,\"<=11:59:59\"))","v":0},{"$f":"IF($T5=\"\",\"\",SUMIFS(日記帳!$F$4:$F$10003,日記帳!$G$4:$G$10003,$T5,日記帳!$A$4:$A$10003,$T$3,日記帳!$B$4:$B$10003,\">=12:00:00\",日記帳!$B$4:$B$10003,\"<=12:59:59\"))","v":0},{"$f":"IF($T5=\"\",\"\",SUMIFS(日記帳!$F$4:$F$10003,日記帳!$G$4:$G$10003,$T5,日記帳!$A$4:$A$10003,$T$3,日記帳!$B$4:$B$10003,\">=13:00:00\",日記帳!$B$4:$B$10003,\"<=13:59:59\"))","v":0},{"$f":"IF($T5=\"\",\"\",SUMIFS(日記帳!$F$4:$F$10003,日記帳!$G$4:$G$10003,$T5,日記帳!$A$4:$A$10003,$T$3,日記帳!$B$4:$B$10003,\">=14:00:00\",日記帳!$B$4:$B$10003,\"<=14:59:59\"))","v":0},{"$f":"IF($T5=\"\",\"\",SUMIFS(日記帳!$F$4:$F$10003,日記帳!$G$4:$G$10003,$T5,日記帳!$A$4:$A$10003,$T$3,日記帳!$B$4:$B$10003,\">=15:00:00\",日記帳!$B$4:$B$10003,\"<=15:59:59\"))","v":0},{"$f":"IF($T5=\"\",\"\",SUMIFS(日記帳!$F$4:$F$10003,日記帳!$G$4:$G$10003,$T5,日記帳!$A$4:$A$10003,$T$3,日記帳!$B$4:$B$10003,\">=16:00:00\",日記帳!$B$4:$B$10003,\"<=23:59:59\"))","v":0},{"$f":"SUM(U5:AB5)","v":0}]
["11時",{"$f":"IF(A6=\"\",\"\",SUMIFS(日記帳!$F$4:$F$10003,日記帳!$B$4:$B$10003,\">=11:00:00\",日記帳!$B$4:$B$10003,\"<=11:59:59\",日記帳!$A$4:$A$10003,B$3))","v":0},{"$f":"IF(A6=\"\",\"\",SUMIFS(日記帳!$F$4:$F$10003,日記帳!$B$4:$B$10003,\">=11:00:00\",日記帳!$B$4:$B$10003,\"<=11:59:59\",日記帳!$A$4:$A$10003,C$3))","v":0},null,{"$f":"IF(日記帳!J6=\"\",\"\",日記帳!J6)","v":""},{"$f":"IF($E6=\"\",\"\",SUMIFS(日記帳!$F$4:$F$10003,日記帳!$C$4:$C$10003,$E6,日記帳!$A$4:$A$10003,F$3))","v":""},{"$f":"IF($E6=\"\",\"\",SUMIFS(日記帳!$F$4:$F$10003,日記帳!$C$4:$C$10003,$E6,日記帳!$A$4:$A$10003,G$3))","v":""},null,{"$f":"IF(日記帳!J6=\"\",\"\",日記帳!J6)","v":""},null,{"$f":"IF($I6=\"\",\"\",SUMIFS(日記帳!$F$4:$F$10003,日記帳!$C$4:$C$10003,$I6,日記帳!$A$4:$A$10003,$I$3,日記帳!#REF!,K$3 ))","v":""},{"$f":"IF($I6=\"\",\"\",SUMIFS(日記帳!$F$4:$F$10003,日記帳!$C$4:$C$10003,$I6,日記帳!$A$4:$A$10003,$I$3,日記帳!#REF!,L$3 ))","v":""},{"$f":"IF($I6=\"\",\"\",SUMIFS(日記帳!$F$4:$F$10003,日記帳!$C$4:$C$10003,$I6,日記帳!$A$4:$A$10003,$I$3,日記帳!#REF!,M$3 ))","v":""},{"$f":"IF($I6=\"\",\"\",SUMIFS(日記帳!$F$4:$F$10003,日記帳!$C$4:$C$10003,$I6,日記帳!$A$4:$A$10003,$I$3,日記帳!#REF!,N$3 ))","v":""},{"$f":"IF($I6=\"\",\"\",SUMIFS(日記帳!$F$4:$F$10003,日記帳!$C$4:$C$10003,$I6,日記帳!$A$4:$A$10003,$I$3,日記帳!#REF!,O$3 ))","v":""},{"$f":"IF($I6=\"\",\"\",SUMIFS(日記帳!$F$4:$F$10003,日記帳!$C$4:$C$10003,$I6,日記帳!$A$4:$A$10003,$I$3,日記帳!#REF!,P$3 ))","v":""},{"$f":"IF($I6=\"\",\"\",SUMIFS(日記帳!$F$4:$F$10003,日記帳!$C$4:$C$10003,$I6,日記帳!$A$4:$A$10003,$I$3,日記帳!#REF!,Q$3 ))","v":""},0,null,{"$f":"IF(日記帳!K6=\"\",\"\",日記帳!K6)","v":"大学生"},{"$f":"IF($T6=\"\",\"\",SUMIFS(日記帳!$F$4:$F$10003,日記帳!$G$4:$G$10003,$T6,日記帳!$A$4:$A$10003,$T$3,日記帳!$B$4:$B$10003,\"<=9:59:59\" ))","v":0},{"$f":"IF($T6=\"\",\"\",SUMIFS(日記帳!$F$4:$F$10003,日記帳!$G$4:$G$10003,$T6,日記帳!$A$4:$A$10003,$T$3,日記帳!$B$4:$B$10003,\">=10:00:00\",日記帳!$B$4:$B$10003,\"<=10:59:59\"))","v":0},{"$f":"IF($T6=\"\",\"\",SUMIFS(日記帳!$F$4:$F$10003,日記帳!$G$4:$G$10003,$T6,日記帳!$A$4:$A$10003,$T$3,日記帳!$B$4:$B$10003,\">=11:00:00\",日記帳!$B$4:$B$10003,\"<=11:59:59\"))","v":0},{"$f":"IF($T6=\"\",\"\",SUMIFS(日記帳!$F$4:$F$10003,日記帳!$G$4:$G$10003,$T6,日記帳!$A$4:$A$10003,$T$3,日記帳!$B$4:$B$10003,\">=12:00:00\",日記帳!$B$4:$B$10003,\"<=12:59:59\"))","v":0},{"$f":"IF($T6=\"\",\"\",SUMIFS(日記帳!$F$4:$F$10003,日記帳!$G$4:$G$10003,$T6,日記帳!$A$4:$A$10003,$T$3,日記帳!$B$4:$B$10003,\">=13:00:00\",日記帳!$B$4:$B$10003,\"<=13:59:59\"))","v":0},{"$f":"IF($T6=\"\",\"\",SUMIFS(日記帳!$F$4:$F$10003,日記帳!$G$4:$G$10003,$T6,日記帳!$A$4:$A$10003,$T$3,日記帳!$B$4:$B$10003,\">=14:00:00\",日記帳!$B$4:$B$10003,\"<=14:59:59\"))","v":0},{"$f":"IF($T6=\"\",\"\",SUMIFS(日記帳!$F$4:$F$10003,日記帳!$G$4:$G$10003,$T6,日記帳!$A$4:$A$10003,$T$3,日記帳!$B$4:$B$10003,\">=15:00:00\",日記帳!$B$4:$B$10003,\"<=15:59:59\"))","v":0},{"$f":"IF($T6=\"\",\"\",SUMIFS(日記帳!$F$4:$F$10003,日記帳!$G$4:$G$10003,$T6,日記帳!$A$4:$A$10003,$T$3,日記帳!$B$4:$B$10003,\">=16:00:00\",日記帳!$B$4:$B$10003,\"<=23:59:59\"))","v":0},0]
["12時",{"$f":"IF(A7=\"\",\"\",SUMIFS(日記帳!$F$4:$F$10003,日記帳!$B$4:$B$10003,\">=12:00:00\",日記帳!$B$4:$B$10003,\"<=12:59:59\",日記帳!$A$4:$A$10003,B$3))","v":0},{"$f":"IF(A7=\"\",\"\",SUMIFS(日記帳!$F$4:$F$10003,日記帳!$B$4:$B$10003,\">=12:00:00\",日記帳!$B$4:$B$10003,\"<=12:59:59\",日記帳!$A$4:$A$10003,C$3))","v":0},null,{"$f":"IF(日記帳!J7=\"\",\"\",日記帳!J7)","v":""},{"$f":"IF($E7=\"\",\"\",SUMIFS(日記帳!$F$4:$F$10003,日記帳!$C$4:$C$10003,$E7,日記帳!$A$4:$A$10003,F$3))","v":""},{"$f":"IF($E7=\"\",\"\",SUMIFS(日記帳!$F$4:$F$10003,日記帳!$C$4:$C$10003,$E7,日記帳!$A$4:$A$10003,G$3))","v":""},null,{"$f":"IF(日記帳!J7=\"\",\"\",日記帳!J7)","v":""},null,{"$f":"IF($I7=\"\",\"\",SUMIFS(日記帳!$F$4:$F$10003,日記帳!$C$4:$C$10003,$I7,日記帳!$A$4:$A$10003,$I$3,日記帳!#REF!,K$3 ))","v":""},{"$f":"IF($I7=\"\",\"\",SUMIFS(日記帳!$F$4:$F$10003,日記帳!$C$4:$C$10003,$I7,日記帳!$A$4:$A$10003,$I$3,日記帳!#REF!,L$3 ))","v":""},{"$f":"IF($I7=\"\",\"\",SUMIFS(日記帳!$F$4:$F$10003,日記帳!$C$4:$C$10003,$I7,日記帳!$A$4:$A$10003,$I$3,日記帳!#REF!,M$3 ))","v":""},{"$f":"IF($I7=\"\",\"\",SUMIFS(日記帳!$F$4:$F$10003,日記帳!$C$4:$C$10003,$I7,日記帳!$A$4:$A$10003,$I$3,日記帳!#REF!,N$3 ))","v":""},{"$f":"IF($I7=\"\",\"\",SUMIFS(日記帳!$F$4:$F$10003,日記帳!$C$4:$C$10003,$I7,日記帳!$A$4:$A$10003,$I$3,日記帳!#REF!,O$3 ))","v":""},{"$f":"IF($I7=\"\",\"\",SUMIFS(日記帳!$F$4:$F$10003,日記帳!$C$4:$C$10003,$I7,日記帳!$A$4:$A$10003,$I$3,日記帳!#REF!,P$3 ))","v":""},{"$f":"IF($I7=\"\",\"\",SUMIFS(日記帳!$F$4:$F$10003,日記帳!$C$4:$C$10003,$I7,日記帳!$A$4:$A$10003,$I$3,日記帳!#REF!,Q$3 ))","v":""},0,null,{"$f":"IF(日記帳!K7=\"\",\"\",日記帳!K7)","v":"地域の方"},{"$f":"IF($T7=\"\",\"\",SUMIFS(日記帳!$F$4:$F$10003,日記帳!$G$4:$G$10003,$T7,日記帳!$A$4:$A$10003,$T$3,日記帳!$B$4:$B$10003,\"<=9:59:59\" ))","v":0},{"$f":"IF($T7=\"\",\"\",SUMIFS(日記帳!$F$4:$F$10003,日記帳!$G$4:$G$10003,$T7,日記帳!$A$4:$A$10003,$T$3,日記帳!$B$4:$B$10003,\">=10:00:00\",日記帳!$B$4:$B$10003,\"<=10:59:59\"))","v":0},{"$f":"IF($T7=\"\",\"\",SUMIFS(日記帳!$F$4:$F$10003,日記帳!$G$4:$G$10003,$T7,日記帳!$A$4:$A$10003,$T$3,日記帳!$B$4:$B$10003,\">=11:00:00\",日記帳!$B$4:$B$10003,\"<=11:59:59\"))","v":0},{"$f":"IF($T7=\"\",\"\",SUMIFS(日記帳!$F$4:$F$10003,日記帳!$G$4:$G$10003,$T7,日記帳!$A$4:$A$10003,$T$3,日記帳!$B$4:$B$10003,\">=12:00:00\",日記帳!$B$4:$B$10003,\"<=12:59:59\"))","v":0},{"$f":"IF($T7=\"\",\"\",SUMIFS(日記帳!$F$4:$F$10003,日記帳!$G$4:$G$10003,$T7,日記帳!$A$4:$A$10003,$T$3,日記帳!$B$4:$B$10003,\">=13:00:00\",日記帳!$B$4:$B$10003,\"<=13:59:59\"))","v":0},{"$f":"IF($T7=\"\",\"\",SUMIFS(日記帳!$F$4:$F$10003,日記帳!$G$4:$G$10003,$T7,日記帳!$A$4:$A$10003,$T$3,日記帳!$B$4:$B$10003,\">=14:00:00\",日記帳!$B$4:$B$10003,\"<=14:59:59\"))","v":0},{"$f":"IF($T7=\"\",\"\",SUMIFS(日記帳!$F$4:$F$10003,日記帳!$G$4:$G$10003,$T7,日記帳!$A$4:$A$10003,$T$3,日記帳!$B$4:$B$10003,\">=15:00:00\",日記帳!$B$4:$B$10003,\"<=15:59:59\"))","v":0},{"$f":"IF($T7=\"\",\"\",SUMIFS(日記帳!$F$4:$F$10003,日記帳!$G$4:$G$10003,$T7,日記帳!$A$4:$A$10003,$T$3,日記帳!$B$4:$B$10003,\">=16:00:00\",日記帳!$B$4:$B$10003,\"<=23:59:59\"))","v":0},0]
["13時",{"$f":"IF(A8=\"\",\"\",SUMIFS(日記帳!$F$4:$F$10003,日記帳!$B$4:$B$10003,\">=13:00:00\",日記帳!$B$4:$B$10003,\"<=13:59:59\",日記帳!$A$4:$A$10003,B$3))","v":0},{"$f":"IF(A8=\"\",\"\",SUMIFS(日記帳!$F$4:$F$10003,日記帳!$B$4:$B$10003,\">=13:00:00\",日記帳!$B$4:$B$10003,\"<=13:59:59\",日記帳!$A$4:$A$10003,C$3))","v":0},null,{"$f":"IF(日記帳!J8=\"\",\"\",日記帳!J8)","v":""},{"$f":"IF($E8=\"\",\"\",SUMIFS(日記帳!$F$4:$F$10003,日記帳!$C$4:$C$10003,$E8,日記帳!$A$4:$A$10003,F$3))","v":""},{"$f":"IF($E8=\"\",\"\",SUMIFS(日記帳!$F$4:$F$10003,日記帳!$C$4:$C$10003,$E8,日記帳!$A$4:$A$10003,G$3))","v":""},null,{"$f":"IF(日記帳!J8=\"\",\"\",日記帳!J8)","v":""},null,{"$f":"IF($I8=\"\",\"\",SUMIFS(日記帳!$F$4:$F$10003,日記帳!$C$4:$C$10003,$I8,日記帳!$A$4:$A$10003,$I$3,日記帳!#REF!,K$3 ))","v":""},{"$f":"IF($I8=\"\",\"\",SUMIFS(日記帳!$F$4:$F$10003,日記帳!$C$4:$C$10003,$I8,日記帳!$A$4:$A$10003,$I$3,日記帳!#REF!,L$3 ))","v":""},{"$f":"IF($I8=\"\",\"\",SUMIFS(日記帳!$F$4:$F$10003,日記帳!$C$4:$C$10003,$I8,日記帳!$A$4:$A$10003,$I$3,日記帳!#REF!,M$3 ))","v":""},{"$f":"IF($I8=\"\",\"\",SUMIFS(日記帳!$F$4:$F$10003,日記帳!$C$4:$C$10003,$I8,日記帳!$A$4:$A$10003,$I$3,日記帳!#REF!,N$3 ))","v":""},{"$f":"IF($I8=\"\",\"\",SUMIFS(日記帳!$F$4:$F$10003,日記帳!$C$4:$C$10003,$I8,日記帳!$A$4:$A$10003,$I$3,日記帳!#REF!,O$3 ))","v":""},{"$f":"IF($I8=\"\",\"\",SUMIFS(日記帳!$F$4:$F$10003,日記帳!$C$4:$C$10003,$I8,日記帳!$A$4:$A$10003,$I$3,日記帳!#REF!,P$3 ))","v":""},{"$f":"IF($I8=\"\",\"\",SUMIFS(日記帳!$F$4:$F$10003,日記帳!$C$4:$C$10003,$I8,日記帳!$A$4:$A$10003,$I$3,日記帳!#REF!,Q$3 ))","v":""},0,null,{"$f":"IF(日記帳!U8=\"\",\"\",日記帳!U8)","v":""},{"$f":"IF($T8=\"\",\"\",SUMIFS(日記帳!$F$4:$F$10003,日記帳!$G$4:$G$10003,$T8,日記帳!$A$4:$A$10003,$T$3,日記帳!$B$4:$B$10003,\"<=9:59:59\" ))","v":""},{"$f":"IF($T8=\"\",\"\",SUMIFS(日記帳!$F$4:$F$10003,日記帳!$G$4:$G$10003,$T8,日記帳!$A$4:$A$10003,$T$3,日記帳!$B$4:$B$10003,\">=10:00:00\",日記帳!$B$4:$B$10003,\"<=10:59:59\"))","v":""},{"$f":"IF($T8=\"\",\"\",SUMIFS(日記帳!$F$4:$F$10003,日記帳!$G$4:$G$10003,$T8,日記帳!$A$4:$A$10003,$T$3,日記帳!$B$4:$B$10003,\">=11:00:00\",日記帳!$B$4:$B$10003,\"<=11:59:59\"))","v":""},{"$f":"IF($T8=\"\",\"\",SUMIFS(日記帳!$F$4:$F$10003,日記帳!$G$4:$G$10003,$T8,日記帳!$A$4:$A$10003,$T$3,日記帳!$B$4:$B$10003,\">=12:00:00\",日記帳!$B$4:$B$10003,\"<=12:59:59\"))","v":""},{"$f":"IF($T8=\"\",\"\",SUMIFS(日記帳!$F$4:$F$10003,日記帳!$G$4:$G$10003,$T8,日記帳!$A$4:$A$10003,$T$3,日記帳!$B$4:$B$10003,\">=13:00:00\",日記帳!$B$4:$B$10003,\"<=13:59:59\"))","v":""},{"$f":"IF($T8=\"\",\"\",SUMIFS(日記帳!$F$4:$F$10003,日記帳!$G$4:$G$10003,$T8,日記帳!$A$4:$A$10003,$T$3,日記帳!$B$4:$B$10003,\">=14:00:00\",日記帳!$B$4:$B$10003,\"<=14:59:59\"))","v":""},{"$f":"IF($T8=\"\",\"\",SUMIFS(日記帳!$F$4:$F$10003,日記帳!$G$4:$G$10003,$T8,日記帳!$A$4:$A$10003,$T$3,日記帳!$B$4:$B$10003,\">=15:00:00\",日記帳!$B$4:$B$10003,\"<=15:59:59\"))","v":""},{"$f":"IF($T8=\"\",\"\",SUMIFS(日記帳!$F$4:$F$10003,日記帳!$G$4:$G$10003,$T8,日記帳!$A$4:$A$10003,$T$3,日記帳!$B$4:$B$10003,\">=16:00:00\",日記帳!$B$4:$B$10003,\"<=23:59:59\"))","v":""},0]
["14時",{"$f":"IF(A9=\"\",\"\",SUMIFS(日記帳!$F$4:$F$10003,日記帳!$B$4:$B$10003,\">=14:00:00\",日記帳!$B$4:$B$10003,\"<=14:59:59\",日記帳!$A$4:$A$10003,B$3))","v":0},{"$f":"IF(A9=\"\",\"\",SUMIFS(日記帳!$F$4:$F$10003,日記帳!$B$4:$B$10003,\">=14:00:00\",日記帳!$B$4:$B$10003,\"<=14:59:59\",日記帳!$A$4:$A$10003,C$3))","v":0},null,{"$f":"IF(日記帳!J9=\"\",\"\",日記帳!J9)","v":""},{"$f":"IF($E9=\"\",\"\",SUMIFS(日記帳!$F$4:$F$10003,日記帳!$C$4:$C$10003,$E9,日記帳!$A$4:$A$10003,F$3))","v":""},{"$f":"IF($E9=\"\",\"\",SUMIFS(日記帳!$F$4:$F$10003,日記帳!$C$4:$C$10003,$E9,日記帳!$A$4:$A$10003,G$3))","v":""},null,{"$f":"IF(日記帳!J9=\"\",\"\",日記帳!J9)","v":""},null,{"$f":"IF($I9=\"\",\"\",SUMIFS(日記帳!$F$4:$F$10003,日記帳!$C$4:$C$10003,$I9,日記帳!$A$4:$A$10003,$I$3,日記帳!#REF!,K$3 ))","v":""},{"$f":"IF($I9=\"\",\"\",SUMIFS(日記帳!$F$4:$F$10003,日記帳!$C$4:$C$10003,$I9,日記帳!$A$4:$A$10003,$I$3,日記帳!#REF!,L$3 ))","v":""},{"$f":"IF($I9=\"\",\"\",SUMIFS(日記帳!$F$4:$F$10003,日記帳!$C$4:$C$10003,$I9,日記帳!$A$4:$A$10003,$I$3,日記帳!#REF!,M$3 ))","v":""},{"$f":"IF($I9=\"\",\"\",SUMIFS(日記帳!$F$4:$F$10003,日記帳!$C$4:$C$10003,$I9,日記帳!$A$4:$A$10003,$I$3,日記帳!#REF!,N$3 ))","v":""},{"$f":"IF($I9=\"\",\"\",SUMIFS(日記帳!$F$4:$F$10003,日記帳!$C$4:$C$10003,$I9,日記帳!$A$4:$A$10003,$I$3,日記帳!#REF!,O$3 ))","v":""},{"$f":"IF($I9=\"\",\"\",SUMIFS(日記帳!$F$4:$F$10003,日記帳!$C$4:$C$10003,$I9,日記帳!$A$4:$A$10003,$I$3,日記帳!#REF!,P$3 ))","v":""},{"$f":"IF($I9=\"\",\"\",SUMIFS(日記帳!$F$4:$F$10003,日記帳!$C$4:$C$10003,$I9,日記帳!$A$4:$A$10003,$I$3,日記帳!#REF!,Q$3 ))","v":""},0,null,{"$f":"IF(日記帳!U9=\"\",\"\",日記帳!U9)","v":""},{"$f":"IF($T9=\"\",\"\",SUMIFS(日記帳!$F$4:$F$10003,日記帳!$G$4:$G$10003,$T9,日記帳!$A$4:$A$10003,$T$3,日記帳!$B$4:$B$10003,\"<=9:59:59\" ))","v":""},{"$f":"IF($T9=\"\",\"\",SUMIFS(日記帳!$F$4:$F$10003,日記帳!$G$4:$G$10003,$T9,日記帳!$A$4:$A$10003,$T$3,日記帳!$B$4:$B$10003,\">=10:00:00\",日記帳!$B$4:$B$10003,\"<=10:59:59\"))","v":""},{"$f":"IF($T9=\"\",\"\",SUMIFS(日記帳!$F$4:$F$10003,日記帳!$G$4:$G$10003,$T9,日記帳!$A$4:$A$10003,$T$3,日記帳!$B$4:$B$10003,\">=11:00:00\",日記帳!$B$4:$B$10003,\"<=11:59:59\"))","v":""},{"$f":"IF($T9=\"\",\"\",SUMIFS(日記帳!$F$4:$F$10003,日記帳!$G$4:$G$10003,$T9,日記帳!$A$4:$A$10003,$T$3,日記帳!$B$4:$B$10003,\">=12:00:00\",日記帳!$B$4:$B$10003,\"<=12:59:59\"))","v":""},{"$f":"IF($T9=\"\",\"\",SUMIFS(日記帳!$F$4:$F$10003,日記帳!$G$4:$G$10003,$T9,日記帳!$A$4:$A$10003,$T$3,日記帳!$B$4:$B$10003,\">=13:00:00\",日記帳!$B$4:$B$10003,\"<=13:59:59\"))","v":""},{"$f":"IF($T9=\"\",\"\",SUMIFS(日記帳!$F$4:$F$10003,日記帳!$G$4:$G$10003,$T9,日記帳!$A$4:$A$10003,$T$3,日記帳!$B$4:$B$10003,\">=14:00:00\",日記帳!$B$4:$B$10003,\"<=14:59:59\"))","v":""},{"$f":"IF($T9=\"\",\"\",SUMIFS(日記帳!$F$4:$F$10003,日記帳!$G$4:$G$10003,$T9,日記帳!$A$4:$A$10003,$T$3,日記帳!$B$4:$B$10003,\">=15:00:00\",日記帳!$B$4:$B$10003,\"<=15:59:59\"))","v":""},{"$f":"IF($T9=\"\",\"\",SUMIFS(日記帳!$F$4:$F$10003,日記帳!$G$4:$G$10003,$T9,日記帳!$A$4:$A$10003,$T$3,日記帳!$B$4:$B$10003,\">=16:00:00\",日記帳!$B$4:$B$10003,\"<=23:59:59\"))","v":""},0]
["15時",{"$f":"IF(A10=\"\",\"\",SUMIFS(日記帳!$F$4:$F$10003,日記帳!$B$4:$B$10003,\">=15:00:00\",日記帳!$B$4:$B$10003,\"<=15:59:59\",日記帳!$A$4:$A$10003,B$3))","v":0},{"$f":"IF(A10=\"\",\"\",SUMIFS(日記帳!$F$4:$F$10003,日記帳!$B$4:$B$10003,\">=15:00:00\",日記帳!$B$4:$B$10003,\"<=15:59:59\",日記帳!$A$4:$A$10003,C$3))","v":0},null,null,null,null,null,null,null,null,null,null,null,null,null,null,0,null,null,{"$f":"IF($T10=\"\",\"\",SUMIFS(日記帳!$F$4:$F$10003,日記帳!$G$4:$G$10003,$T10,日記帳!$A$4:$A$10003,$T$3,日記帳!$B$4:$B$10003,\"<=9:59:59\" ))","v":""},{"$f":"IF($T10=\"\",\"\",SUMIFS(日記帳!$F$4:$F$10003,日記帳!$G$4:$G$10003,$T10,日記帳!$A$4:$A$10003,$T$3,日記帳!$B$4:$B$10003,\">=10:00:00\",日記帳!$B$4:$B$10003,\"<=10:59:59\"))","v":""},{"$f":"IF($T10=\"\",\"\",SUMIFS(日記帳!$F$4:$F$10003,日記帳!$G$4:$G$10003,$T10,日記帳!$A$4:$A$10003,$T$3,日記帳!$B$4:$B$10003,\">=11:00:00\",日記帳!$B$4:$B$10003,\"<=11:59:59\"))","v":""},{"$f":"IF($T10=\"\",\"\",SUMIFS(日記帳!$F$4:$F$10003,日記帳!$G$4:$G$10003,$T10,日記帳!$A$4:$A$10003,$T$3,日記帳!$B$4:$B$10003,\">=12:00:00\",日記帳!$B$4:$B$10003,\"<=12:59:59\"))","v":""},{"$f":"IF($T10=\"\",\"\",SUMIFS(日記帳!$F$4:$F$10003,日記帳!$G$4:$G$10003,$T10,日記帳!$A$4:$A$10003,$T$3,日記帳!$B$4:$B$10003,\">=13:00:00\",日記帳!$B$4:$B$10003,\"<=13:59:59\"))","v":""},{"$f":"IF($T10=\"\",\"\",SUMIFS(日記帳!$F$4:$F$10003,日記帳!$G$4:$G$10003,$T10,日記帳!$A$4:$A$10003,$T$3,日記帳!$B$4:$B$10003,\">=14:00:00\",日記帳!$B$4:$B$10003,\"<=14:59:59\"))","v":""},{"$f":"IF($T10=\"\",\"\",SUMIFS(日記帳!$F$4:$F$10003,日記帳!$G$4:$G$10003,$T10,日記帳!$A$4:$A$10003,$T$3,日記帳!$B$4:$B$10003,\">=15:00:00\",日記帳!$B$4:$B$10003,\"<=15:59:59\"))","v":""},{"$f":"IF($T10=\"\",\"\",SUMIFS(日記帳!$F$4:$F$10003,日記帳!$G$4:$G$10003,$T10,日記帳!$A$4:$A$10003,$T$3,日記帳!$B$4:$B$10003,\">=16:00:00\",日記帳!$B$4:$B$10003,\"<=23:59:59\"))","v":""},0]
["16時以降",{"$f":"IF(A11=\"\",\"\",SUMIFS(日記帳!$F$4:$F$10003,日記帳!$B$4:$B$10003,\">=16:00:00\",日記帳!$B$4:$B$10003,\"<=23:59:59\",日記帳!$A$4:$A$10003,B$3))","v":0},{"$f":"IF(A11=\"\",\"\",SUMIFS(日記帳!$F$4:$F$10003,日記帳!$B$4:$B$10003,\">=16:00:00\",日記帳!$B$4:$B$10003,\"<=23:59:59\",日記帳!$A$4:$A$10003,C$3))","v":0},null,{"$f":"IF(日記帳!J10=\"\",\"\",日記帳!J10)","v":""},{"$f":"IF($E11=\"\",\"\",SUMIFS(日記帳!$F$4:$F$10003,日記帳!$C$4:$C$10003,$E11,日記帳!$A$4:$A$10003,F$3))","v":""},{"$f":"IF($E11=\"\",\"\",SUMIFS(日記帳!$F$4:$F$10003,日記帳!$C$4:$C$10003,$E11,日記帳!$A$4:$A$10003,G$3))","v":""},null,{"$f":"IF(日記帳!J10=\"\",\"\",日記帳!J10)","v":""},null,{"$f":"IF($I11=\"\",\"\",SUMIFS(日記帳!$F$4:$F$10003,日記帳!$C$4:$C$10003,$I11,日記帳!$A$4:$A$10003,$I$3,日記帳!#REF!,K$3 ))","v":""},{"$f":"IF($I11=\"\",\"\",SUMIFS(日記帳!$F$4:$F$10003,日記帳!$C$4:$C$10003,$I11,日記帳!$A$4:$A$10003,$I$3,日記帳!#REF!,L$3 ))","v":""},{"$f":"IF($I11=\"\",\"\",SUMIFS(日記帳!$F$4:$F$10003,日記帳!$C$4:$C$10003,$I11,日記帳!$A$4:$A$10003,$I$3,日記帳!#REF!,M$3 ))","v":""},{"$f":"IF($I11=\"\",\"\",SUMIFS(日記帳!$F$4:$F$10003,日記帳!$C$4:$C$10003,$I11,日記帳!$A$4:$A$10003,$I$3,日記帳!#REF!,N$3 ))","v":""},{"$f":"IF($I11=\"\",\"\",SUMIFS(日記帳!$F$4:$F$10003,日記帳!$C$4:$C$10003,$I11,日記帳!$A$4:$A$10003,$I$3,日記帳!#REF!,O$3 ))","v":""},{"$f":"IF($I11=\"\",\"\",SUMIFS(日記帳!$F$4:$F$10003,日記帳!$C$4:$C$10003,$I11,日記帳!$A$4:$A$10003,$I$3,日記帳!#REF!,P$3 ))","v":""},{"$f":"IF($I11=\"\",\"\",SUMIFS(日記帳!$F$4:$F$10003,日記帳!$C$4:$C$10003,$I11,日記帳!$A$4:$A$10003,$I$3,日記帳!#REF!,Q$3 ))","v":""},0,null,{"$f":"IF(日記帳!U10=\"\",\"\",日記帳!U10)","v":""},{"$f":"IF($T11=\"\",\"\",SUMIFS(日記帳!$F$4:$F$10003,日記帳!$G$4:$G$10003,$T11,日記帳!$A$4:$A$10003,$T$3,日記帳!$B$4:$B$10003,\"<=9:59:59\" ))","v":""},{"$f":"IF($T11=\"\",\"\",SUMIFS(日記帳!$F$4:$F$10003,日記帳!$G$4:$G$10003,$T11,日記帳!$A$4:$A$10003,$T$3,日記帳!$B$4:$B$10003,\">=10:00:00\",日記帳!$B$4:$B$10003,\"<=10:59:59\"))","v":""},{"$f":"IF($T11=\"\",\"\",SUMIFS(日記帳!$F$4:$F$10003,日記帳!$G$4:$G$10003,$T11,日記帳!$A$4:$A$10003,$T$3,日記帳!$B$4:$B$10003,\">=11:00:00\",日記帳!$B$4:$B$10003,\"<=11:59:59\"))","v":""},{"$f":"IF($T11=\"\",\"\",SUMIFS(日記帳!$F$4:$F$10003,日記帳!$G$4:$G$10003,$T11,日記帳!$A$4:$A$10003,$T$3,日記帳!$B$4:$B$10003,\">=12:00:00\",日記帳!$B$4:$B$10003,\"<=12:59:59\"))","v":""},{"$f":"IF($T11=\"\",\"\",SUMIFS(日記帳!$F$4:$F$10003,日記帳!$G$4:$G$10003,$T11,日記帳!$A$4:$A$10003,$T$3,日記帳!$B$4:$B$10003,\">=13:00:00\",日記帳!$B$4:$B$10003,\"<=13:59:59\"))","v":""},{"$f":"IF($T11=\"\",\"\",SUMIFS(日記帳!$F$4:$F$10003,日記帳!$G$4:$G$10003,$T11,日記帳!$A$4:$A$10003,$T$3,日記帳!$B$4:$B$10003,\">=14:00:00\",日記帳!$B$4:$B$10003,\"<=14:59:59\"))","v":""},{"$f":"IF($T11=\"\",\"\",SUMIFS(日記帳!$F$4:$F$10003,日記帳!$G$4:$G$10003,$T11,日記帳!$A$4:$A$10003,$T$3,日記帳!$B$4:$B$10003,\">=15:00:00\",日記帳!$B$4:$B$10003,\"<=15:59:59\"))","v":""},{"$f":"IF($T11=\"\",\"\",SUMIFS(日記帳!$F$4:$F$10003,日記帳!$G$4:$G$10003,$T11,日記帳!$A$4:$A$10003,$T$3,日記帳!$B$4:$B$10003,\">=16:00:00\",日記帳!$B$4:$B$10003,\"<=23:59:59\"))","v":""},0]
["合計",{"$f":"IF(B$3=\"\",\"\",SUM(B4:B11))","v":0},{"$f":"IF(C$3=\"\",\"\",SUM(C4:C11))","v":0},null,"合計",{"$f":"IF(F$3=\"\",\"\",SUM(F4:F11))","v":0},{"$f":"IF(G$3=\"\",\"\",SUM(G4:G11))","v":0},null,"合計",{"$f":"SUM(J4:J11)","v":0},{"$f":"SUM(K4:K11)","v":0},{"$f":"SUM(L4:L11)","v":0},0,0,0,0,0,{"$f":"SUM(R4:R11)","v":0},null,"合計",{"$f":"SUM(U4:U11)","v":0},{"$f":"SUM(V4:V11)","v":0},{"$f":"SUM(W4:W11)","v":0},0,0,0,0,0,{"$f":"SUM(AC4:AC11)","v":0}]
[]
["客層別売上高",null,null,null,null,null,null,null,"商品別時間帯別売上高",null,null,null,null,null,null,null,null,null,null,"客層別時間帯別売上高"]
["客層",{"$f":"IF(損益分岐点売上高・投資!B10=\"\",\"\",損益分岐点売上高・投資!B10)","v":"2023-11-03"},{"$f":"IF(損益分岐点売上高・投資!B11=\"\",\"\",損益分岐点売上高・投資!B11)","v":"2023-11-04"},null,null,null,null,null,{"$f":"IF(損益分岐点売上高・投資!B11=\"\",\"\",損益分岐点売上高・投資!B11)","v":"2023-11-04"},"10時前","10時","11時","12時","13時","14時","15時","16時以降","合計",null,{"$f":"IF(損益分岐点売上高・投資!B11=\"\",\"\",損益分岐点売上高・投資!B11)","v":"2023-11-04"},"10時前","10時","11時","12時","13時","14時","15時","16時以降","合計"]
[{"$f":"IF(日記帳!$K4=\"\",\"\",日記帳!K4)","v":"中学生以下"},{"$f":"IF($A16=\"\",\"\",SUMIFS(日記帳!$F$4:$F$10003,日記帳!$G$4:$G$10003,$A16,日記帳!$A$4:$A$10003,B$15))","v":0},{"$f":"IF($A16=\"\",\"\",SUMIFS(日記帳!$F$4:$F$10003,日記帳!$G$4:$G$10003,$A16,日記帳!$A$4:$A$10003,C$15))","v":0},null,null,null,null,null,{"$f":"IF(日記帳!J4=\"\",\"\",日記帳!J4)","v":"醤油ラーメン"},{"$f":"IF($I16=\"\",\"\",SUMIFS(日記帳!$F$4:$F$10003,日記帳!$C$4:$C$10003,$I16,日記帳!$A$4:$A$10003,$I$15,日記帳!$B$4:$B$10003,\"<=9:59:59\" ))","v":0},{"$f":"IF($I16=\"\",\"\",SUMIFS(日記帳!$F$4:$F$10003,日記帳!$C$4:$C$10003,$I16,日記帳!$A$4:$A$10003,$I$15,日記帳!$B$4:$B$10003,\">=10:00:00\",日記帳!$B$4:$B$10003,\"<=10:59:59\"))","v":0},{"$f":"IF($I16=\"\",\"\",SUMIFS(日記帳!$F$4:$F$10003,日記帳!$C$4:$C$10003,$I16,日記帳!$A$4:$A$10003,$I$15,日記帳!$B$4:$B$10003,\">=11:00:00\",日記帳!$B$4:$B$10003,\"<=11:59:59\"))","v":0},{"$f":"IF($I16=\"\",\"\",SUMIFS(日記帳!$F$4:$F$10003,日記帳!$C$4:$C$10003,$I16,日記帳!$A$4:$A$10003,$I$15,日記帳!$B$4:$B$10003,\">=12:00:00\",日記帳!$B$4:$B$10003,\"<=12:59:59\"))","v":0},{"$f":"IF($I16=\"\",\"\",SUMIFS(日記帳!$F$4:$F$10003,日記帳!$C$4:$C$10003,$I16,日記帳!$A$4:$A$10003,$I$15,日記帳!$B$4:$B$10003,\">=13:00:00\",日記帳!$B$4:$B$10003,\"<=13:59:59\"))","v":0},{"$f":"IF($I16=\"\",\"\",SUMIFS(日記帳!$F$4:$F$10003,日記帳!$C$4:$C$10003,$I16,日記帳!$A$4:$A$10003,$I$15,日記帳!$B$4:$B$10003,\">=14:00:00\",日記帳!$B$4:$B$10003,\"<=14:59:59\"))","v":0},{"$f":"IF($I16=\"\",\"\",SUMIFS(日記帳!$F$4:$F$10003,日記帳!$C$4:$C$10003,$I16,日記帳!$A$4:$A$10003,$I$15,日記帳!$B$4:$B$10003,\">=15:00:00\",日記帳!$B$4:$B$10003,\"<=15:59:59\"))","v":0},{"$f":"IF($I16=\"\",\"\",SUMIFS(日記帳!$F$4:$F$10003,日記帳!$C$4:$C$10003,$I16,日記帳!$A$4:$A$10003,$I$15,日記帳!$B$4:$B$10003,\">=16:00:00\",日記帳!$B$4:$B$10003,\"<=23:59:59\"))","v":0},{"$f":"SUM(J16:Q16)","v":0},null,{"$f":"IF(日記帳!K4=\"\",\"\",日記帳!K4)","v":"中学生以下"},{"$f":"IF($T16=\"\",\"\",SUMIFS(日記帳!$F$4:$F$10003,日記帳!$G$4:$G$10003,$T16,日記帳!$A$4:$A$10003,$T$15,日記帳!$B$4:$B$10003,\"<=9:59:59\" ))","v":0},{"$f":"IF($T16=\"\",\"\",SUMIFS(日記帳!$F$4:$F$10003,日記帳!$G$4:$G$10003,$T16,日記帳!$A$4:$A$10003,$T$15,日記帳!$B$4:$B$10003,\">=10:00:00\",日記帳!$B$4:$B$10003,\"<=10:59:59\"))","v":0},{"$f":"IF($T16=\"\",\"\",SUMIFS(日記帳!$F$4:$F$10003,日記帳!$G$4:$G$10003,$T16,日記帳!$A$4:$A$10003,$T$15,日記帳!$B$4:$B$10003,\">=11:00:00\",日記帳!$B$4:$B$10003,\"<=11:59:59\"))","v":0},{"$f":"IF($T16=\"\",\"\",SUMIFS(日記帳!$F$4:$F$10003,日記帳!$G$4:$G$10003,$T16,日記帳!$A$4:$A$10003,$T$15,日記帳!$B$4:$B$10003,\">=12:00:00\",日記帳!$B$4:$B$10003,\"<=12:59:59\"))","v":0},{"$f":"IF($T16=\"\",\"\",SUMIFS(日記帳!$F$4:$F$10003,日記帳!$G$4:$G$10003,$T16,日記帳!$A$4:$A$10003,$T$15,日記帳!$B$4:$B$10003,\">=13:00:00\",日記帳!$B$4:$B$10003,\"<=13:59:59\"))","v":0},{"$f":"IF($T16=\"\",\"\",SUMIFS(日記帳!$F$4:$F$10003,日記帳!$G$4:$G$10003,$T16,日記帳!$A$4:$A$10003,$T$15,日記帳!$B$4:$B$10003,\">=14:00:00\",日記帳!$B$4:$B$10003,\"<=14:59:59\"))","v":0},{"$f":"IF($T16=\"\",\"\",SUMIFS(日記帳!$F$4:$F$10003,日記帳!$G$4:$G$10003,$T16,日記帳!$A$4:$A$10003,$T$15,日記帳!$B$4:$B$10003,\">=15:00:00\",日記帳!$B$4:$B$10003,\"<=15:59:59\"))","v":0},{"$f":"IF($T16=\"\",\"\",SUMIFS(日記帳!$F$4:$F$10003,日記帳!$G$4:$G$10003,$T16,日記帳!$A$4:$A$10003,$T$15,日記帳!$B$4:$B$10003,\">=16:00:00\",日記帳!$B$4:$B$10003,\"<=23:59:59\"))","v":0},{"$f":"SUM(U16:AB16)","v":0}]
[{"$f":"IF(日記帳!$K5=\"\",\"\",日記帳!K5)","v":"高校生"},{"$f":"IF($A17=\"\",\"\",SUMIFS(日記帳!$F$4:$F$10003,日記帳!$G$4:$G$10003,$A17,日記帳!$A$4:$A$10003,B$15))","v":0},{"$f":"IF($A17=\"\",\"\",SUMIFS(日記帳!$F$4:$F$10003,日記帳!$G$4:$G$10003,$A17,日記帳!$A$4:$A$10003,C$15))","v":0},null,null,null,null,null,{"$f":"IF(日記帳!J5=\"\",\"\",日記帳!J5)","v":"ねぎ醤油ラーメン"},{"$f":"IF($I17=\"\",\"\",SUMIFS(日記帳!$F$4:$F$10003,日記帳!$C$4:$C$10003,$I17,日記帳!$A$4:$A$10003,$I$15,日記帳!$B$4:$B$10003,\"<=9:59:59\" ))","v":0},{"$f":"IF($I17=\"\",\"\",SUMIFS(日記帳!$F$4:$F$10003,日記帳!$C$4:$C$10003,$I17,日記帳!$A$4:$A$10003,$I$15,日記帳!$B$4:$B$10003,\">=10:00:00\",日記帳!$B$4:$B$10003,\"<=10:59:59\"))","v":0},{"$f":"IF($I17=\"\",\"\",SUMIFS(日記帳!$F$4:$F$10003,日記帳!$C$4:$C$10003,$I17,日記帳!$A$4:$A$10003,$I$15,日記帳!$B$4:$B$10003,\">=11:00:00\",日記帳!$B$4:$B$10003,\"<=11:59:59\"))","v":0},{"$f":"IF($I17=\"\",\"\",SUMIFS(日記帳!$F$4:$F$10003,日記帳!$C$4:$C$10003,$I17,日記帳!$A$4:$A$10003,$I$15,日記帳!$B$4:$B$10003,\">=12:00:00\",日記帳!$B$4:$B$10003,\"<=12:59:59\"))","v":0},{"$f":"IF($I17=\"\",\"\",SUMIFS(日記帳!$F$4:$F$10003,日記帳!$C$4:$C$10003,$I17,日記帳!$A$4:$A$10003,$I$15,日記帳!$B$4:$B$10003,\">=13:00:00\",日記帳!$B$4:$B$10003,\"<=13:59:59\"))","v":0},{"$f":"IF($I17=\"\",\"\",SUMIFS(日記帳!$F$4:$F$10003,日記帳!$C$4:$C$10003,$I17,日記帳!$A$4:$A$10003,$I$15,日記帳!$B$4:$B$10003,\">=14:00:00\",日記帳!$B$4:$B$10003,\"<=14:59:59\"))","v":0},{"$f":"IF($I17=\"\",\"\",SUMIFS(日記帳!$F$4:$F$10003,日記帳!$C$4:$C$10003,$I17,日記帳!$A$4:$A$10003,$I$15,日記帳!$B$4:$B$10003,\">=15:00:00\",日記帳!$B$4:$B$10003,\"<=15:59:59\"))","v":0},{"$f":"IF($I17=\"\",\"\",SUMIFS(日記帳!$F$4:$F$10003,日記帳!$C$4:$C$10003,$I17,日記帳!$A$4:$A$10003,$I$15,日記帳!$B$4:$B$10003,\">=16:00:00\",日記帳!$B$4:$B$10003,\"<=23:59:59\"))","v":0},{"$f":"SUM(J17:Q17)","v":0},null,{"$f":"IF(日記帳!K5=\"\",\"\",日記帳!K5)","v":"高校生"},{"$f":"IF($T17=\"\",\"\",SUMIFS(日記帳!$F$4:$F$10003,日記帳!$G$4:$G$10003,$T17,日記帳!$A$4:$A$10003,$T$15,日記帳!$B$4:$B$10003,\"<=9:59:59\" ))","v":0},{"$f":"IF($T17=\"\",\"\",SUMIFS(日記帳!$F$4:$F$10003,日記帳!$G$4:$G$10003,$T17,日記帳!$A$4:$A$10003,$T$15,日記帳!$B$4:$B$10003,\">=10:00:00\",日記帳!$B$4:$B$10003,\"<=10:59:59\"))","v":0},{"$f":"IF($T17=\"\",\"\",SUMIFS(日記帳!$F$4:$F$10003,日記帳!$G$4:$G$10003,$T17,日記帳!$A$4:$A$10003,$T$15,日記帳!$B$4:$B$10003,\">=11:00:00\",日記帳!$B$4:$B$10003,\"<=11:59:59\"))","v":0},{"$f":"IF($T17=\"\",\"\",SUMIFS(日記帳!$F$4:$F$10003,日記帳!$G$4:$G$10003,$T17,日記帳!$A$4:$A$10003,$T$15,日記帳!$B$4:$B$10003,\">=12:00:00\",日記帳!$B$4:$B$10003,\"<=12:59:59\"))","v":0},{"$f":"IF($T17=\"\",\"\",SUMIFS(日記帳!$F$4:$F$10003,日記帳!$G$4:$G$10003,$T17,日記帳!$A$4:$A$10003,$T$15,日記帳!$B$4:$B$10003,\">=13:00:00\",日記帳!$B$4:$B$10003,\"<=13:59:59\"))","v":0},{"$f":"IF($T17=\"\",\"\",SUMIFS(日記帳!$F$4:$F$10003,日記帳!$G$4:$G$10003,$T17,日記帳!$A$4:$A$10003,$T$15,日記帳!$B$4:$B$10003,\">=14:00:00\",日記帳!$B$4:$B$10003,\"<=14:59:59\"))","v":0},{"$f":"IF($T17=\"\",\"\",SUMIFS(日記帳!$F$4:$F$10003,日記帳!$G$4:$G$10003,$T17,日記帳!$A$4:$A$10003,$T$15,日記帳!$B$4:$B$10003,\">=15:00:00\",日記帳!$B$4:$B$10003,\"<=15:59:59\"))","v":0},{"$f":"IF($T17=\"\",\"\",SUMIFS(日記帳!$F$4:$F$10003,日記帳!$G$4:$G$10003,$T17,日記帳!$A$4:$A$10003,$T$15,日記帳!$B$4:$B$10003,\">=16:00:00\",日記帳!$B$4:$B$10003,\"<=23:59:59\"))","v":0},{"$f":"SUM(U17:AB17)","v":0}]
[{"$f":"IF(日記帳!$K6=\"\",\"\",日記帳!K6)","v":"大学生"},{"$f":"IF($A18=\"\",\"\",SUMIFS(日記帳!$F$4:$F$10003,日記帳!$G$4:$G$10003,$A18,日記帳!$A$4:$A$10003,B$15))","v":0},{"$f":"IF($A18=\"\",\"\",SUMIFS(日記帳!$F$4:$F$10003,日記帳!$G$4:$G$10003,$A18,日記帳!$A$4:$A$10003,C$15))","v":0},null,null,null,null,null,{"$f":"IF(日記帳!J6=\"\",\"\",日記帳!J6)","v":""},null,{"$f":"IF($I18=\"\",\"\",SUMIFS(日記帳!$F$4:$F$10003,日記帳!$C$4:$C$10003,$I18,日記帳!$A$4:$A$10003,$I$15,日記帳!#REF!,K$15 ))","v":""},{"$f":"IF($I18=\"\",\"\",SUMIFS(日記帳!$F$4:$F$10003,日記帳!$C$4:$C$10003,$I18,日記帳!$A$4:$A$10003,$I$15,日記帳!#REF!,L$15 ))","v":""},{"$f":"IF($I18=\"\",\"\",SUMIFS(日記帳!$F$4:$F$10003,日記帳!$C$4:$C$10003,$I18,日記帳!$A$4:$A$10003,$I$15,日記帳!#REF!,M$15 ))","v":""},{"$f":"IF($I18=\"\",\"\",SUMIFS(日記帳!$F$4:$F$10003,日記帳!$C$4:$C$10003,$I18,日記帳!$A$4:$A$10003,$I$15,日記帳!#REF!,N$15 ))","v":""},{"$f":"IF($I18=\"\",\"\",SUMIFS(日記帳!$F$4:$F$10003,日記帳!$C$4:$C$10003,$I18,日記帳!$A$4:$A$10003,$I$15,日記帳!#REF!,O$15 ))","v":""},{"$f":"IF($I18=\"\",\"\",SUMIFS(日記帳!$F$4:$F$10003,日記帳!$C$4:$C$10003,$I18,日記帳!$A$4:$A$10003,$I$15,日記帳!#REF!,P$15 ))","v":""},{"$f":"IF($I18=\"\",\"\",SUMIFS(日記帳!$F$4:$F$10003,日記帳!$C$4:$C$10003,$I18,日記帳!$A$4:$A$10003,$I$15,日記帳!#REF!,Q$15 ))","v":""},0,null,{"$f":"IF(日記帳!K6=\"\",\"\",日記帳!K6)","v":"大学生"},{"$f":"IF($T18=\"\",\"\",SUMIFS(日記帳!$F$4:$F$10003,日記帳!$G$4:$G$10003,$T18,日記帳!$A$4:$A$10003,$T$15,日記帳!$B$4:$B$10003,\"<=9:59:59\" ))","v":0},{"$f":"IF($T18=\"\",\"\",SUMIFS(日記帳!$F$4:$F$10003,日記帳!$G$4:$G$10003,$T18,日記帳!$A$4:$A$10003,$T$15,日記帳!$B$4:$B$10003,\">=10:00:00\",日記帳!$B$4:$B$10003,\"<=10:59:59\"))","v":0},{"$f":"IF($T18=\"\",\"\",SUMIFS(日記帳!$F$4:$F$10003,日記帳!$G$4:$G$10003,$T18,日記帳!$A$4:$A$10003,$T$15,日記帳!$B$4:$B$10003,\">=11:00:00\",日記帳!$B$4:$B$10003,\"<=11:59:59\"))","v":0},{"$f":"IF($T18=\"\",\"\",SUMIFS(日記帳!$F$4:$F$10003,日記帳!$G$4:$G$10003,$T18,日記帳!$A$4:$A$10003,$T$15,日記帳!$B$4:$B$10003,\">=12:00:00\",日記帳!$B$4:$B$10003,\"<=12:59:59\"))","v":0},{"$f":"IF($T18=\"\",\"\",SUMIFS(日記帳!$F$4:$F$10003,日記帳!$G$4:$G$10003,$T18,日記帳!$A$4:$A$10003,$T$15,日記帳!$B$4:$B$10003,\">=13:00:00\",日記帳!$B$4:$B$10003,\"<=13:59:59\"))","v":0},{"$f":"IF($T18=\"\",\"\",SUMIFS(日記帳!$F$4:$F$10003,日記帳!$G$4:$G$10003,$T18,日記帳!$A$4:$A$10003,$T$15,日記帳!$B$4:$B$10003,\">=14:00:00\",日記帳!$B$4:$B$10003,\"<=14:59:59\"))","v":0},{"$f":"IF($T18=\"\",\"\",SUMIFS(日記帳!$F$4:$F$10003,日記帳!$G$4:$G$10003,$T18,日記帳!$A$4:$A$10003,$T$15,日記帳!$B$4:$B$10003,\">=15:00:00\",日記帳!$B$4:$B$10003,\"<=15:59:59\"))","v":0},{"$f":"IF($T18=\"\",\"\",SUMIFS(日記帳!$F$4:$F$10003,日記帳!$G$4:$G$10003,$T18,日記帳!$A$4:$A$10003,$T$15,日記帳!$B$4:$B$10003,\">=16:00:00\",日記帳!$B$4:$B$10003,\"<=23:59:59\"))","v":0},0]
[{"$f":"IF(日記帳!$K7=\"\",\"\",日記帳!K7)","v":"地域の方"},{"$f":"IF($A19=\"\",\"\",SUMIFS(日記帳!$F$4:$F$10003,日記帳!$G$4:$G$10003,$A19,日記帳!$A$4:$A$10003,B$15))","v":0},{"$f":"IF($A19=\"\",\"\",SUMIFS(日記帳!$F$4:$F$10003,日記帳!$G$4:$G$10003,$A19,日記帳!$A$4:$A$10003,C$15))","v":0},null,null,null,null,null,{"$f":"IF(日記帳!J7=\"\",\"\",日記帳!J7)","v":""},null,{"$f":"IF($I19=\"\",\"\",SUMIFS(日記帳!$F$4:$F$10003,日記帳!$C$4:$C$10003,$I19,日記帳!$A$4:$A$10003,$I$15,日記帳!#REF!,K$15 ))","v":""},{"$f":"IF($I19=\"\",\"\",SUMIFS(日記帳!$F$4:$F$10003,日記帳!$C$4:$C$10003,$I19,日記帳!$A$4:$A$10003,$I$15,日記帳!#REF!,L$15 ))","v":""},{"$f":"IF($I19=\"\",\"\",SUMIFS(日記帳!$F$4:$F$10003,日記帳!$C$4:$C$10003,$I19,日記帳!$A$4:$A$10003,$I$15,日記帳!#REF!,M$15 ))","v":""},{"$f":"IF($I19=\"\",\"\",SUMIFS(日記帳!$F$4:$F$10003,日記帳!$C$4:$C$10003,$I19,日記帳!$A$4:$A$10003,$I$15,日記帳!#REF!,N$15 ))","v":""},{"$f":"IF($I19=\"\",\"\",SUMIFS(日記帳!$F$4:$F$10003,日記帳!$C$4:$C$10003,$I19,日記帳!$A$4:$A$10003,$I$15,日記帳!#REF!,O$15 ))","v":""},{"$f":"IF($I19=\"\",\"\",SUMIFS(日記帳!$F$4:$F$10003,日記帳!$C$4:$C$10003,$I19,日記帳!$A$4:$A$10003,$I$15,日記帳!#REF!,P$15 ))","v":""},{"$f":"IF($I19=\"\",\"\",SUMIFS(日記帳!$F$4:$F$10003,日記帳!$C$4:$C$10003,$I19,日記帳!$A$4:$A$10003,$I$15,日記帳!#REF!,Q$15 ))","v":""},0,null,{"$f":"IF(日記帳!K7=\"\",\"\",日記帳!K7)","v":"地域の方"},{"$f":"IF($T19=\"\",\"\",SUMIFS(日記帳!$F$4:$F$10003,日記帳!$G$4:$G$10003,$T19,日記帳!$A$4:$A$10003,$T$15,日記帳!$B$4:$B$10003,\"<=9:59:59\" ))","v":0},{"$f":"IF($T19=\"\",\"\",SUMIFS(日記帳!$F$4:$F$10003,日記帳!$G$4:$G$10003,$T19,日記帳!$A$4:$A$10003,$T$15,日記帳!$B$4:$B$10003,\">=10:00:00\",日記帳!$B$4:$B$10003,\"<=10:59:59\"))","v":0},{"$f":"IF($T19=\"\",\"\",SUMIFS(日記帳!$F$4:$F$10003,日記帳!$G$4:$G$10003,$T19,日記帳!$A$4:$A$10003,$T$15,日記帳!$B$4:$B$10003,\">=11:00:00\",日記帳!$B$4:$B$10003,\"<=11:59:59\"))","v":0},{"$f":"IF($T19=\"\",\"\",SUMIFS(日記帳!$F$4:$F$10003,日記帳!$G$4:$G$10003,$T19,日記帳!$A$4:$A$10003,$T$15,日記帳!$B$4:$B$10003,\">=12:00:00\",日記帳!$B$4:$B$10003,\"<=12:59:59\"))","v":0},{"$f":"IF($T19=\"\",\"\",SUMIFS(日記帳!$F$4:$F$10003,日記帳!$G$4:$G$10003,$T19,日記帳!$A$4:$A$10003,$T$15,日記帳!$B$4:$B$10003,\">=13:00:00\",日記帳!$B$4:$B$10003,\"<=13:59:59\"))","v":0},{"$f":"IF($T19=\"\",\"\",SUMIFS(日記帳!$F$4:$F$10003,日記帳!$G$4:$G$10003,$T19,日記帳!$A$4:$A$10003,$T$15,日記帳!$B$4:$B$10003,\">=14:00:00\",日記帳!$B$4:$B$10003,\"<=14:59:59\"))","v":0},{"$f":"IF($T19=\"\",\"\",SUMIFS(日記帳!$F$4:$F$10003,日記帳!$G$4:$G$10003,$T19,日記帳!$A$4:$A$10003,$T$15,日記帳!$B$4:$B$10003,\">=15:00:00\",日記帳!$B$4:$B$10003,\"<=15:59:59\"))","v":0},{"$f":"IF($T19=\"\",\"\",SUMIFS(日記帳!$F$4:$F$10003,日記帳!$G$4:$G$10003,$T19,日記帳!$A$4:$A$10003,$T$15,日記帳!$B$4:$B$10003,\">=16:00:00\",日記帳!$B$4:$B$10003,\"<=23:59:59\"))","v":0},0]
[{"$f":"IF(日記帳!$K8=\"\",\"\",日記帳!K8)","v":""},{"$f":"IF($A20=\"\",\"\",SUMIFS(日記帳!$F$4:$F$10003,日記帳!$G$4:$G$10003,$A20,日記帳!$A$4:$A$10003,B$15))","v":""},{"$f":"IF($A20=\"\",\"\",SUMIFS(日記帳!$F$4:$F$10003,日記帳!$G$4:$G$10003,$A20,日記帳!$A$4:$A$10003,C$15))","v":""},null,null,null,null,null,{"$f":"IF(日記帳!J8=\"\",\"\",日記帳!J8)","v":""},null,{"$f":"IF($I20=\"\",\"\",SUMIFS(日記帳!$F$4:$F$10003,日記帳!$C$4:$C$10003,$I20,日記帳!$A$4:$A$10003,$I$15,日記帳!#REF!,K$15 ))","v":""},{"$f":"IF($I20=\"\",\"\",SUMIFS(日記帳!$F$4:$F$10003,日記帳!$C$4:$C$10003,$I20,日記帳!$A$4:$A$10003,$I$15,日記帳!#REF!,L$15 ))","v":""},{"$f":"IF($I20=\"\",\"\",SUMIFS(日記帳!$F$4:$F$10003,日記帳!$C$4:$C$10003,$I20,日記帳!$A$4:$A$10003,$I$15,日記帳!#REF!,M$15 ))","v":""},{"$f":"IF($I20=\"\",\"\",SUMIFS(日記帳!$F$4:$F$10003,日記帳!$C$4:$C$10003,$I20,日記帳!$A$4:$A$10003,$I$15,日記帳!#REF!,N$15 ))","v":""},{"$f":"IF($I20=\"\",\"\",SUMIFS(日記帳!$F$4:$F$10003,日記帳!$C$4:$C$10003,$I20,日記帳!$A$4:$A$10003,$I$15,日記帳!#REF!,O$15 ))","v":""},{"$f":"IF($I20=\"\",\"\",SUMIFS(日記帳!$F$4:$F$10003,日記帳!$C$4:$C$10003,$I20,日記帳!$A$4:$A$10003,$I$15,日記帳!#REF!,P$15 ))","v":""},{"$f":"IF($I20=\"\",\"\",SUMIFS(日記帳!$F$4:$F$10003,日記帳!$C$4:$C$10003,$I20,日記帳!$A$4:$A$10003,$I$15,日記帳!#REF!,Q$15 ))","v":""},0,null,{"$f":"IF(日記帳!U8=\"\",\"\",日記帳!U8)","v":""},{"$f":"IF($T20=\"\",\"\",SUMIFS(日記帳!$F$4:$F$10003,日記帳!$G$4:$G$10003,$T20,日記帳!$A$4:$A$10003,$T$15,日記帳!$B$4:$B$10003,\"<=9:59:59\" ))","v":""},{"$f":"IF($T20=\"\",\"\",SUMIFS(日記帳!$F$4:$F$10003,日記帳!$G$4:$G$10003,$T20,日記帳!$A$4:$A$10003,$T$15,日記帳!$B$4:$B$10003,\">=10:00:00\",日記帳!$B$4:$B$10003,\"<=10:59:59\"))","v":""},{"$f":"IF($T20=\"\",\"\",SUMIFS(日記帳!$F$4:$F$10003,日記帳!$G$4:$G$10003,$T20,日記帳!$A$4:$A$10003,$T$15,日記帳!$B$4:$B$10003,\">=11:00:00\",日記帳!$B$4:$B$10003,\"<=11:59:59\"))","v":""},{"$f":"IF($T20=\"\",\"\",SUMIFS(日記帳!$F$4:$F$10003,日記帳!$G$4:$G$10003,$T20,日記帳!$A$4:$A$10003,$T$15,日記帳!$B$4:$B$10003,\">=12:00:00\",日記帳!$B$4:$B$10003,\"<=12:59:59\"))","v":""},{"$f":"IF($T20=\"\",\"\",SUMIFS(日記帳!$F$4:$F$10003,日記帳!$G$4:$G$10003,$T20,日記帳!$A$4:$A$10003,$T$15,日記帳!$B$4:$B$10003,\">=13:00:00\",日記帳!$B$4:$B$10003,\"<=13:59:59\"))","v":""},{"$f":"IF($T20=\"\",\"\",SUMIFS(日記帳!$F$4:$F$10003,日記帳!$G$4:$G$10003,$T20,日記帳!$A$4:$A$10003,$T$15,日記帳!$B$4:$B$10003,\">=14:00:00\",日記帳!$B$4:$B$10003,\"<=14:59:59\"))","v":""},{"$f":"IF($T20=\"\",\"\",SUMIFS(日記帳!$F$4:$F$10003,日記帳!$G$4:$G$10003,$T20,日記帳!$A$4:$A$10003,$T$15,日記帳!$B$4:$B$10003,\">=15:00:00\",日記帳!$B$4:$B$10003,\"<=15:59:59\"))","v":""},{"$f":"IF($T20=\"\",\"\",SUMIFS(日記帳!$F$4:$F$10003,日記帳!$G$4:$G$10003,$T20,日記帳!$A$4:$A$10003,$T$15,日記帳!$B$4:$B$10003,\">=16:00:00\",日記帳!$B$4:$B$10003,\"<=23:59:59\"))","v":""},0]
[{"$f":"IF(日記帳!$K9=\"\",\"\",日記帳!K9)","v":""},{"$f":"IF($A21=\"\",\"\",SUMIFS(日記帳!$F$4:$F$10003,日記帳!$G$4:$G$10003,$A21,日記帳!$A$4:$A$10003,B$15))","v":""},{"$f":"IF($A21=\"\",\"\",SUMIFS(日記帳!$F$4:$F$10003,日記帳!$G$4:$G$10003,$A21,日記帳!$A$4:$A$10003,C$15))","v":""},null,null,null,null,null,{"$f":"IF(日記帳!J9=\"\",\"\",日記帳!J9)","v":""},null,{"$f":"IF($I21=\"\",\"\",SUMIFS(日記帳!$F$4:$F$10003,日記帳!$C$4:$C$10003,$I21,日記帳!$A$4:$A$10003,$I$15,日記帳!#REF!,K$15 ))","v":""},{"$f":"IF($I21=\"\",\"\",SUMIFS(日記帳!$F$4:$F$10003,日記帳!$C$4:$C$10003,$I21,日記帳!$A$4:$A$10003,$I$15,日記帳!#REF!,L$15 ))","v":""},{"$f":"IF($I21=\"\",\"\",SUMIFS(日記帳!$F$4:$F$10003,日記帳!$C$4:$C$10003,$I21,日記帳!$A$4:$A$10003,$I$15,日記帳!#REF!,M$15 ))","v":""},{"$f":"IF($I21=\"\",\"\",SUMIFS(日記帳!$F$4:$F$10003,日記帳!$C$4:$C$10003,$I21,日記帳!$A$4:$A$10003,$I$15,日記帳!#REF!,N$15 ))","v":""},{"$f":"IF($I21=\"\",\"\",SUMIFS(日記帳!$F$4:$F$10003,日記帳!$C$4:$C$10003,$I21,日記帳!$A$4:$A$10003,$I$15,日記帳!#REF!,O$15 ))","v":""},{"$f":"IF($I21=\"\",\"\",SUMIFS(日記帳!$F$4:$F$10003,日記帳!$C$4:$C$10003,$I21,日記帳!$A$4:$A$10003,$I$15,日記帳!#REF!,P$15 ))","v":""},{"$f":"IF($I21=\"\",\"\",SUMIFS(日記帳!$F$4:$F$10003,日記帳!$C$4:$C$10003,$I21,日記帳!$A$4:$A$10003,$I$15,日記帳!#REF!,Q$15 ))","v":""},0,null,{"$f":"IF(日記帳!U9=\"\",\"\",日記帳!U9)","v":""},{"$f":"IF($T21=\"\",\"\",SUMIFS(日記帳!$F$4:$F$10003,日記帳!$G$4:$G$10003,$T21,日記帳!$A$4:$A$10003,$T$15,日記帳!$B$4:$B$10003,\"<=9:59:59\" ))","v":""},{"$f":"IF($T21=\"\",\"\",SUMIFS(日記帳!$F$4:$F$10003,日記帳!$G$4:$G$10003,$T21,日記帳!$A$4:$A$10003,$T$15,日記帳!$B$4:$B$10003,\">=10:00:00\",日記帳!$B$4:$B$10003,\"<=10:59:59\"))","v":""},{"$f":"IF($T21=\"\",\"\",SUMIFS(日記帳!$F$4:$F$10003,日記帳!$G$4:$G$10003,$T21,日記帳!$A$4:$A$10003,$T$15,日記帳!$B$4:$B$10003,\">=11:00:00\",日記帳!$B$4:$B$10003,\"<=11:59:59\"))","v":""},{"$f":"IF($T21=\"\",\"\",SUMIFS(日記帳!$F$4:$F$10003,日記帳!$G$4:$G$10003,$T21,日記帳!$A$4:$A$10003,$T$15,日記帳!$B$4:$B$10003,\">=12:00:00\",日記帳!$B$4:$B$10003,\"<=12:59:59\"))","v":""},{"$f":"IF($T21=\"\",\"\",SUMIFS(日記帳!$F$4:$F$10003,日記帳!$G$4:$G$10003,$T21,日記帳!$A$4:$A$10003,$T$15,日記帳!$B$4:$B$10003,\">=13:00:00\",日記帳!$B$4:$B$10003,\"<=13:59:59\"))","v":""},{"$f":"IF($T21=\"\",\"\",SUMIFS(日記帳!$F$4:$F$10003,日記帳!$G$4:$G$10003,$T21,日記帳!$A$4:$A$10003,$T$15,日記帳!$B$4:$B$10003,\">=14:00:00\",日記帳!$B$4:$B$10003,\"<=14:59:59\"))","v":""},{"$f":"IF($T21=\"\",\"\",SUMIFS(日記帳!$F$4:$F$10003,日記帳!$G$4:$G$10003,$T21,日記帳!$A$4:$A$10003,$T$15,日記帳!$B$4:$B$10003,\">=15:00:00\",日記帳!$B$4:$B$10003,\"<=15:59:59\"))","v":""},{"$f":"IF($T21=\"\",\"\",SUMIFS(日記帳!$F$4:$F$10003,日記帳!$G$4:$G$10003,$T21,日記帳!$A$4:$A$10003,$T$15,日記帳!$B$4:$B$10003,\">=16:00:00\",日記帳!$B$4:$B$10003,\"<=23:59:59\"))","v":""},0]
[{"$f":"IF(日記帳!$K10=\"\",\"\",日記帳!K10)","v":""},{"$f":"IF($A22=\"\",\"\",SUMIFS(日記帳!$F$4:$F$10003,日記帳!$G$4:$G$10003,$A22,日記帳!$A$4:$A$10003,B$15))","v":""},{"$f":"IF($A22=\"\",\"\",SUMIFS(日記帳!$F$4:$F$10003,日記帳!$G$4:$G$10003,$A22,日記帳!$A$4:$A$10003,C$15))","v":""},null,null,null,null,null,{"$f":"IF(日記帳!J10=\"\",\"\",日記帳!J10)","v":""},null,{"$f":"IF($I22=\"\",\"\",SUMIFS(日記帳!$F$4:$F$10003,日記帳!$C$4:$C$10003,$I22,日記帳!$A$4:$A$10003,$I$15,日記帳!#REF!,K$15 ))","v":""},{"$f":"IF($I22=\"\",\"\",SUMIFS(日記帳!$F$4:$F$10003,日記帳!$C$4:$C$10003,$I22,日記帳!$A$4:$A$10003,$I$15,日記帳!#REF!,L$15 ))","v":""},{"$f":"IF($I22=\"\",\"\",SUMIFS(日記帳!$F$4:$F$10003,日記帳!$C$4:$C$10003,$I22,日記帳!$A$4:$A$10003,$I$15,日記帳!#REF!,M$15 ))","v":""},{"$f":"IF($I22=\"\",\"\",SUMIFS(日記帳!$F$4:$F$10003,日記帳!$C$4:$C$10003,$I22,日記帳!$A$4:$A$10003,$I$15,日記帳!#REF!,N$15 ))","v":""},{"$f":"IF($I22=\"\",\"\",SUMIFS(日記帳!$F$4:$F$10003,日記帳!$C$4:$C$10003,$I22,日記帳!$A$4:$A$10003,$I$15,日記帳!#REF!,O$15 ))","v":""},{"$f":"IF($I22=\"\",\"\",SUMIFS(日記帳!$F$4:$F$10003,日記帳!$C$4:$C$10003,$I22,日記帳!$A$4:$A$10003,$I$15,日記帳!#REF!,P$15 ))","v":""},{"$f":"IF($I22=\"\",\"\",SUMIFS(日記帳!$F$4:$F$10003,日記帳!$C$4:$C$10003,$I22,日記帳!$A$4:$A$10003,$I$15,日記帳!#REF!,Q$15 ))","v":""},0,null,{"$f":"IF(日記帳!U10=\"\",\"\",日記帳!U10)","v":""},{"$f":"IF($T22=\"\",\"\",SUMIFS(日記帳!$F$4:$F$10003,日記帳!$G$4:$G$10003,$T22,日記帳!$A$4:$A$10003,$T$15,日記帳!$B$4:$B$10003,\"<=9:59:59\" ))","v":""},{"$f":"IF($T22=\"\",\"\",SUMIFS(日記帳!$F$4:$F$10003,日記帳!$G$4:$G$10003,$T22,日記帳!$A$4:$A$10003,$T$15,日記帳!$B$4:$B$10003,\">=10:00:00\",日記帳!$B$4:$B$10003,\"<=10:59:59\"))","v":""},{"$f":"IF($T22=\"\",\"\",SUMIFS(日記帳!$F$4:$F$10003,日記帳!$G$4:$G$10003,$T22,日記帳!$A$4:$A$10003,$T$15,日記帳!$B$4:$B$10003,\">=11:00:00\",日記帳!$B$4:$B$10003,\"<=11:59:59\"))","v":""},{"$f":"IF($T22=\"\",\"\",SUMIFS(日記帳!$F$4:$F$10003,日記帳!$G$4:$G$10003,$T22,日記帳!$A$4:$A$10003,$T$15,日記帳!$B$4:$B$10003,\">=12:00:00\",日記帳!$B$4:$B$10003,\"<=12:59:59\"))","v":""},{"$f":"IF($T22=\"\",\"\",SUMIFS(日記帳!$F$4:$F$10003,日記帳!$G$4:$G$10003,$T22,日記帳!$A$4:$A$10003,$T$15,日記帳!$B$4:$B$10003,\">=13:00:00\",日記帳!$B$4:$B$10003,\"<=13:59:59\"))","v":""},{"$f":"IF($T22=\"\",\"\",SUMIFS(日記帳!$F$4:$F$10003,日記帳!$G$4:$G$10003,$T22,日記帳!$A$4:$A$10003,$T$15,日記帳!$B$4:$B$10003,\">=14:00:00\",日記帳!$B$4:$B$10003,\"<=14:59:59\"))","v":""},{"$f":"IF($T22=\"\",\"\",SUMIFS(日記帳!$F$4:$F$10003,日記帳!$G$4:$G$10003,$T22,日記帳!$A$4:$A$10003,$T$15,日記帳!$B$4:$B$10003,\">=15:00:00\",日記帳!$B$4:$B$10003,\"<=15:59:59\"))","v":""},{"$f":"IF($T22=\"\",\"\",SUMIFS(日記帳!$F$4:$F$10003,日記帳!$G$4:$G$10003,$T22,日記帳!$A$4:$A$10003,$T$15,日記帳!$B$4:$B$10003,\">=16:00:00\",日記帳!$B$4:$B$10003,\"<=23:59:59\"))","v":""},0]
["合計",{"$f":"IF(B$15=\"\",\"\",SUM(B16:B22))","v":0},{"$f":"IF(C$15=\"\",\"\",SUM(C16:C22))","v":0},null,null,null,null,null,"合計",{"$f":"SUM(J15:J22)","v":0},{"$f":"SUM(K16:K22)","v":0},0,0,0,0,0,{"$f":"SUM(Q16:Q22)","v":0},0,null,"合計",{"$f":"SUM(U16:U22)","v":0},{"$f":"SUM(V16:V22)","v":0},0,0,0,0,0,0,{"$f":"SUM(AC16:AC22)","v":0}]
[]
[]
[null,null,null,null,null,null,null,null,null,null,null,null,null,null,null,null,null,null,null,"客層別商品別売上高　1日目"]
[null,null,null,null,null,null,null,null,null,null,null,null,null,null,null,null,null,null,null,{"$f":"IF(損益分岐点売上高・投資!B10=\"\",\"\",損益分岐点売上高・投資!B10)","v":"2023-11-03"},{"$f":"IF(パネル!Q17=\"\",\"\",パネル!Q17)","v":"醤油ラーメン"},{"$f":"IF(パネル!Q18=\"\",\"\",パネル!Q18)","v":"ねぎ醤油ラーメン"},"計"]
[null,null,null,null,null,null,null,null,null,null,null,null,null,null,null,null,null,null,null,{"$f":"IF(日記帳!$K4=\"\",\"\",日記帳!K4)","v":"中学生以下"},{"$f":"IF($T28=\"\",\"\",SUMIFS(日記帳!$F$4:$F$10003,日記帳!$G$4:$G$10003,$T28,日記帳!$C$4:$C$10003,U$27,日記帳!$A$4:$A$10003,$T$27))","v":0},{"$f":"IF($T28=\"\",\"\",SUMIFS(日記帳!$F$4:$F$10003,日記帳!$G$4:$G$10003,$T28,日記帳!$C$4:$C$10003,V$27,日記帳!$A$4:$A$10003,$T$27))","v":0},{"$f":"IF(T28=\"\",\"\",U28+V28)","v":0}]
[null,null,null,null,null,null,null,null,null,null,null,null,null,null,null,null,null,null,null,{"$f":"IF(日記帳!$K5=\"\",\"\",日記帳!K5)","v":"高校生"},{"$f":"IF($T29=\"\",\"\",SUMIFS(日記帳!$F$4:$F$10003,日記帳!$G$4:$G$10003,$T29,日記帳!$C$4:$C$10003,U$27,日記帳!$A$4:$A$10003,$T$27))","v":0},{"$f":"IF($T29=\"\",\"\",SUMIFS(日記帳!$F$4:$F$10003,日記帳!$G$4:$G$10003,$T29,日記帳!$C$4:$C$10003,V$27,日記帳!$A$4:$A$10003,$T$27))","v":0},{"$f":"IF(T29=\"\",\"\",U29+V29)","v":0}]
[null,null,null,null,null,null,null,null,null,null,null,null,null,null,null,null,null,null,null,{"$f":"IF(日記帳!$K6=\"\",\"\",日記帳!K6)","v":"大学生"},{"$f":"IF($T30=\"\",\"\",SUMIFS(日記帳!$F$4:$F$10003,日記帳!$G$4:$G$10003,$T30,日記帳!$C$4:$C$10003,U$27,日記帳!$A$4:$A$10003,$T$27))","v":0},{"$f":"IF($T30=\"\",\"\",SUMIFS(日記帳!$F$4:$F$10003,日記帳!$G$4:$G$10003,$T30,日記帳!$C$4:$C$10003,V$27,日記帳!$A$4:$A$10003,$T$27))","v":0},0]
[null,null,null,null,null,null,null,null,null,null,null,null,null,null,null,null,null,null,null,{"$f":"IF(日記帳!$K7=\"\",\"\",日記帳!K7)","v":"地域の方"},{"$f":"IF($T31=\"\",\"\",SUMIFS(日記帳!$F$4:$F$10003,日記帳!$G$4:$G$10003,$T31,日記帳!$C$4:$C$10003,U$27,日記帳!$A$4:$A$10003,$T$27))","v":0},{"$f":"IF($T31=\"\",\"\",SUMIFS(日記帳!$F$4:$F$10003,日記帳!$G$4:$G$10003,$T31,日記帳!$C$4:$C$10003,V$27,日記帳!$A$4:$A$10003,$T$27))","v":0},0]
[null,null,null,null,null,null,null,null,null,null,null,null,null,null,null,null,null,null,null,{"$f":"IF(日記帳!$K8=\"\",\"\",日記帳!K8)","v":""},{"$f":"IF($T32=\"\",\"\",SUMIFS(日記帳!$F$4:$F$10003,日記帳!$G$4:$G$10003,$T32,日記帳!$C$4:$C$10003,U$27,日記帳!$A$4:$A$10003,$T$27))","v":""},{"$f":"IF($T32=\"\",\"\",SUMIFS(日記帳!$F$4:$F$10003,日記帳!$G$4:$G$10003,$T32,日記帳!$C$4:$C$10003,V$27,日記帳!$A$4:$A$10003,$T$27))","v":""},""]
[null,null,null,null,null,null,null,null,null,null,null,null,null,null,null,null,null,null,null,{"$f":"IF(日記帳!$K9=\"\",\"\",日記帳!K9)","v":""},{"$f":"IF($T33=\"\",\"\",SUMIFS(日記帳!$F$4:$F$10003,日記帳!$G$4:$G$10003,$T33,日記帳!$C$4:$C$10003,U$27,日記帳!$A$4:$A$10003,$T$27))","v":""},{"$f":"IF($T33=\"\",\"\",SUMIFS(日記帳!$F$4:$F$10003,日記帳!$G$4:$G$10003,$T33,日記帳!$C$4:$C$10003,V$27,日記帳!$A$4:$A$10003,$T$27))","v":""},""]
[null,null,null,null,null,null,null,null,null,null,null,null,null,null,null,null,null,null,null,{"$f":"IF(日記帳!$K10=\"\",\"\",日記帳!K10)","v":""},{"$f":"IF($T34=\"\",\"\",SUMIFS(日記帳!$F$4:$F$10003,日記帳!$G$4:$G$10003,$T34,日記帳!$C$4:$C$10003,U$27,日記帳!$A$4:$A$10003,$T$27))","v":""},{"$f":"IF($T34=\"\",\"\",SUMIFS(日記帳!$F$4:$F$10003,日記帳!$G$4:$G$10003,$T34,日記帳!$C$4:$C$10003,V$27,日記帳!$A$4:$A$10003,$T$27))","v":""},""]
[null,null,null,null,null,null,null,null,null,null,null,null,null,null,null,null,null,null,null,"合計",{"$f":"IF(U$15=\"\",\"\",SUM(U28:U34))","v":0},{"$f":"IF(V$15=\"\",\"\",SUM(V28:V34))","v":0},{"$f":"SUM(W28:W34)","v":0}]
[]
[null,null,null,null,null,null,null,null,null,null,null,null,null,null,null,null,null,null,null,"客層別商品別売上高　２日目"]
[null,null,null,null,null,null,null,null,null,null,null,null,null,null,null,null,null,null,null,{"$f":"IF(損益分岐点売上高・投資!B11=\"\",\"\",損益分岐点売上高・投資!B11)","v":"2023-11-04"},{"$f":"IF(パネル!Q17=\"\",\"\",パネル!Q17)","v":"醤油ラーメン"},{"$f":"IF(パネル!Q18=\"\",\"\",パネル!Q18)","v":"ねぎ醤油ラーメン"},"計"]
[null,null,null,null,null,null,null,null,null,null,null,null,null,null,null,null,null,null,null,{"$f":"IF(日記帳!$K4=\"\",\"\",日記帳!K4)","v":"中学生以下"},{"$f":"IF($T39=\"\",\"\",SUMIFS(日記帳!$F$4:$F$10003,日記帳!$G$4:$G$10003,$T39,日記帳!$C$4:$C$10003,U$38,日記帳!$A$4:$A$10003,$T$38))","v":0},{"$f":"IF($T39=\"\",\"\",SUMIFS(日記帳!$F$4:$F$10003,日記帳!$G$4:$G$10003,$T39,日記帳!$C$4:$C$10003,V$38,日記帳!$A$4:$A$10003,$T$38))","v":0},{"$f":"IF(T39=\"\",\"\",U39+V39)","v":0}]
[null,null,null,null,null,null,null,null,null,null,null,null,null,null,null,null,null,null,null,{"$f":"IF(日記帳!$K5=\"\",\"\",日記帳!K5)","v":"高校生"},{"$f":"IF($T40=\"\",\"\",SUMIFS(日記帳!$F$4:$F$10003,日記帳!$G$4:$G$10003,$T40,日記帳!$C$4:$C$10003,U$38,日記帳!$A$4:$A$10003,$T$38))","v":0},{"$f":"IF($T40=\"\",\"\",SUMIFS(日記帳!$F$4:$F$10003,日記帳!$G$4:$G$10003,$T40,日記帳!$C$4:$C$10003,V$38,日記帳!$A$4:$A$10003,$T$38))","v":0},{"$f":"IF(T40=\"\",\"\",U40+V40)","v":0}]
[null,null,null,null,null,null,null,null,null,null,null,null,null,null,null,null,null,null,null,{"$f":"IF(日記帳!$K6=\"\",\"\",日記帳!K6)","v":"大学生"},{"$f":"IF($T41=\"\",\"\",SUMIFS(日記帳!$F$4:$F$10003,日記帳!$G$4:$G$10003,$T41,日記帳!$C$4:$C$10003,U$38,日記帳!$A$4:$A$10003,$T$38))","v":0},{"$f":"IF($T41=\"\",\"\",SUMIFS(日記帳!$F$4:$F$10003,日記帳!$G$4:$G$10003,$T41,日記帳!$C$4:$C$10003,V$38,日記帳!$A$4:$A$10003,$T$38))","v":0},0]
[null,null,null,null,null,null,null,null,null,null,null,null,null,null,null,null,null,null,null,{"$f":"IF(日記帳!$K7=\"\",\"\",日記帳!K7)","v":"地域の方"},{"$f":"IF($T42=\"\",\"\",SUMIFS(日記帳!$F$4:$F$10003,日記帳!$G$4:$G$10003,$T42,日記帳!$C$4:$C$10003,U$38,日記帳!$A$4:$A$10003,$T$38))","v":0},{"$f":"IF($T42=\"\",\"\",SUMIFS(日記帳!$F$4:$F$10003,日記帳!$G$4:$G$10003,$T42,日記帳!$C$4:$C$10003,V$38,日記帳!$A$4:$A$10003,$T$38))","v":0},0]
[null,null,null,null,null,null,null,null,null,null,null,null,null,null,null,null,null,null,null,{"$f":"IF(日記帳!$K8=\"\",\"\",日記帳!K8)","v":""},{"$f":"IF($T43=\"\",\"\",SUMIFS(日記帳!$F$4:$F$10003,日記帳!$G$4:$G$10003,$T43,日記帳!$C$4:$C$10003,U$38,日記帳!$A$4:$A$10003,$T$38))","v":""},{"$f":"IF($T43=\"\",\"\",SUMIFS(日記帳!$F$4:$F$10003,日記帳!$G$4:$G$10003,$T43,日記帳!$C$4:$C$10003,V$38,日記帳!$A$4:$A$10003,$T$38))","v":""},""]
[null,null,null,null,null,null,null,null,null,null,null,null,null,null,null,null,null,null,null,{"$f":"IF(日記帳!$K9=\"\",\"\",日記帳!K9)","v":""},{"$f":"IF($T44=\"\",\"\",SUMIFS(日記帳!$F$4:$F$10003,日記帳!$G$4:$G$10003,$T44,日記帳!$C$4:$C$10003,U$38,日記帳!$A$4:$A$10003,$T$38))","v":""},{"$f":"IF($T44=\"\",\"\",SUMIFS(日記帳!$F$4:$F$10003,日記帳!$G$4:$G$10003,$T44,日記帳!$C$4:$C$10003,V$38,日記帳!$A$4:$A$10003,$T$38))","v":""},""]
[null,null,null,null,null,null,null,null,null,null,null,null,null,null,null,null,null,null,null,{"$f":"IF(日記帳!$K10=\"\",\"\",日記帳!K10)","v":""},{"$f":"IF($T45=\"\",\"\",SUMIFS(日記帳!$F$4:$F$10003,日記帳!$G$4:$G$10003,$T45,日記帳!$C$4:$C$10003,U$38,日記帳!$A$4:$A$10003,$T$38))","v":""},{"$f":"IF($T45=\"\",\"\",SUMIFS(日記帳!$F$4:$F$10003,日記帳!$G$4:$G$10003,$T45,日記帳!$C$4:$C$10003,V$38,日記帳!$A$4:$A$10003,$T$38))","v":""},""]
[null,null,null,null,null,null,null,null,null,null,null,null,null,null,null,null,null,null,null,"合計",{"$f":"IF(U$15=\"\",\"\",SUM(U39:U45))","v":0},{"$f":"IF(V$15=\"\",\"\",SUM(V39:V45))","v":0},{"$f":"SUM(W39:W45)","v":0}]

{"sheet":"現金出納帳","index":7,"n_rows":16,"n_cols":21,"rows_kept":16,"cut":false,"hidden":false,"merged":[[1,0,1,5],[1,7,1,18]]}
[]
["現　　金　　出　　納　　帳",null,null,null,null,null,null,"残高照会（実際額）",null,null,null,null,null,null,null,null,null,null,null,"現金出納帳","現金過不足"]
["月","日","摘　　　　　　　　　　　　要","収　　入","支　　出","残　　高",null,"円",1,5,10,50,100,500,1000,2000,5000,10000,"合　計","帳簿残高","過不足"]
[11,2,"出資金",{"$f":"IF(損益分岐点売上高・投資!Y2=\"\",\"\",損益分岐点売上高・投資!Y3)","v":183000},null,{"$f":"IF(D4=\"\",\"\",D4-E4)","v":183000},null,{"$f":"IF(損益分岐点売上高・投資!B10=\"\",\"\",損益分岐点売上高・投資!B10)","v":"2023-11-03"},null,null,null,null,null,null,null,null,null,null,{"$f":"$I$3*I4+$J$3*J4+$K$3*K4+$L$3*L4+$M$3*M4+$N$3*N4+$O$3*O4+$P$3*P4+$Q$3*Q4+$R$3*R4","v":0},{"$f":"F10","v":114360},{"$f":"S4-T4","v":-114360}]
[null,"〃","追加出資",{"$f":"IF(損益分岐点売上高・投資!Y4=\"\",\"\",損益分岐点売上高・投資!Y4)","v":0},null,{"$f":"IF(F4=\"\",\"\",F4+D5-E5)","v":183000},null,{"$f":"IF(損益分岐点売上高・投資!B11=\"\",\"\",損益分岐点売上高・投資!B11)","v":"2023-11-04"},null,null,null,null,null,null,null,null,null,null,{"$f":"$I$3*I5+$J$3*J5+$K$3*K5+$L$3*L5+$M$3*M5+$N$3*N5+$O$3*O5+$P$3*P5+$Q$3*Q5+$R$3*R5","v":0},{"$f":"F14","v":114360},{"$f":"S5-T5","v":-114360}]
[null,"〃","諸経費等支出",null,{"$f":"IF(D4=\"\",\"\",支出項目!C53)","v":68640},{"$f":"IF(F5=\"\",\"\",F5+D6-E6)","v":114360},null,"⇒文化祭の終わりに毎日つり銭のコインとお札の枚数を上の表に入力して、現金出納帳の残高金額を合わせてください。"]
[11,3,"売上収入",{"$f":"売上高分析!B12","v":0},null,{"$f":"IF(F6=\"\",\"\",F6+D7-E7)","v":114360},null,"過不足があれば原因を調査して金額をゼロにしてください。"]
[null,"〃","追加出資",{"$f":"損益分岐点売上高・投資!Y5","v":0},null,114360,null,"現金出納帳に日付を入力してください。"]
[null,"〃","諸経費等支出",null,{"$f":"支出項目!D53","v":0},114360]
[null,"〃","過不足調整",null,null,{"$f":"IF(F9=\"\",\"\",F9+D10-E10)","v":114360}]
[null,4,"売上収入",{"$f":"売上高分析!C12","v":0},null,114360]
[null,"〃","追加出資",{"$f":"損益分岐点売上高・投資!Y6","v":0},null,114360]
[null,"〃","諸経費等支出",null,{"$f":"支出項目!E53","v":0},114360]
[null,"〃","過不足調整",null,null,114360]
[null,"〃","残　　　高",null,{"$f":"IF(F14=\"\",\"\",F14)","v":114360}]
[null,null,null,{"$f":"IF(D4=\"\",\"\",SUM(D4:D15))","v":183000},{"$f":"IF(E6=\"\",\"\",SUM(E4:E15))","v":183000}]

{"sheet":"損益計算書","index":8,"n_rows":7,"n_cols":6,"rows_kept":7,"cut":false,"hidden":false,"merged":[]}
["　　　　　　　　　　　　　　損益計算書　　　　　（単位：円）"]
[{"$f":"IF(損益分岐点売上高・投資!E1=\"\",\"\",損益分岐点売上高・投資!E1)","v":"自家製ラーメン"},{"$f":"IF(損益分岐点売上高・投資!B2=\"\",\"\",損益分岐点売上高・投資!B2)","v":"2024年11月３日～2024年11月４日"},null,"利益処分（単位：円）"]
["売 上 高",{"$f":"SUM(売上高分析!B12:C12)","v":0},null,"営業利益",{"$f":"B7","v":-68640},"円"]
["変 動 費",{"$f":"支出項目!F30","v":0},null,{"$f":"支出項目!A47","v":"払い戻し"},{"$f":"支出項目!F47","v":0},"円"]
["貢献利益",{"$f":"B3-B4","v":0},null,{"$f":"支出項目!A48","v":"お花"},{"$f":"支出項目!F48","v":0},"円"]
["固 定 費",{"$f":"支出項目!F44","v":68640},null,{"$f":"支出項目!A49","v":"お菓子"},{"$f":"支出項目!F49","v":0},"円"]
["営業利益",{"$f":"B5-B6","v":-68640},null,"処分後営業利益",{"$f":"E3-E4-E5-E6","v":-68640},"円"]

{"sheet":"予算実績比較","index":9,"n_rows":43,"n_cols":14,"rows_kept":43,"cut":false,"hidden":false,"merged":[[29,1,29,5],[30,1,30,5],[5,1,5,5],[28,1,28,5],[42,1,42,5]]}
[null,"実績",null,null,null,null,null,null,null,"予算実績比較損益計算書"]
[null,null,null,null,null,null,null,null,null,null,"予算","実績","差異","実績＋協賛品原価"]
[null,"売上に関する項目：販売実績",null,null,null,null,null,null,null,"売上高",{"$f":"予算!J3","v":337500},{"$f":"損益計算書!B3","v":0},{"$f":"L3-K3","v":-337500},{"$f":"損益計算書!B3","v":0}]
[null,"1日目売上高",{"$f":"日記帳!K21","v":0},"杯",{"$f":"G4/C4","v":{"$error":"#DIV/0!"}},"円／杯",{"$f":"売上高分析!B12","v":0},"円",null,"変動費",{"$f":"予算!J4","v":114703},{"$f":"損益計算書!B4","v":0},{"$f":"K4-L4","v":114703},{"$f":"損益計算書!B4+予算!I29","v":0}]
[null,"２日目売上高",{"$f":"日記帳!L21","v":0},"杯",{"$f":"G5/C5","v":{"$error":"#DIV/0!"}},"円／杯",{"$f":"売上高分析!C12","v":0},"円",null,"貢献利益",{"$f":"予算!J5","v":222797},{"$f":"損益計算書!B5","v":0},{"$f":"L5-K5","v":-222797},{"$f":"N3-N4","v":0}]
[null,"合　　　　　計",null,null,null,null,{"$f":"G4+G5","v":0},"円",null,"固定費",{"$f":"予算!J6","v":68640},{"$f":"損益計算書!B6","v":68640},0,{"$f":"損益計算書!B6","v":68640}]
[null,"材料費等に関する項目：原価実績（変動費）",null,null,null,null,null,null,null,"営業利益",{"$f":"予算!J7","v":154157},{"$f":"損益計算書!B7","v":-68640},{"$f":"L7-K7","v":-222797},{"$f":"N5-N6","v":-68640}]
["No.","費　目","数　量","協賛","単　価",null,"金　　　　額",null,null,"差異分析","消費税は変動費の一部としています。"]
[1,{"$f":"IF(支出項目!A3=\"\",\"\",支出項目!A3)","v":"生ラーメン細麺5人前"},null,{"$f":"IF(AND(予算!D8=\"〇\",予算実績比較!G9=0),\"〇\",\"\")","v":""},{"$f":"IF(C9=\"\",\"\",G9/C9)","v":""},"円",{"$f":"支出項目!F3","v":0},"円",null,"項     目","予算","数量差異","価格差異","実績"]
[2,{"$f":"IF(支出項目!A4=\"\",\"\",支出項目!A4)","v":"ごく太メンマ"},null,{"$f":"IF(AND(予算!D9=\"〇\",予算実績比較!G10=0),\"〇\",\"\")","v":""},{"$f":"IF(C10=\"\",\"\",G10/C10)","v":""},"円",{"$f":"支出項目!F4","v":0},"円",null,{"$f":"B4","v":"1日目売上高"},{"$f":"予算!F3","v":175000},{"$f":"IF(OR(J10=\"\",K10=0),\"\",(予算実績比較!C4-予算!C3)*予算!E3)","v":-175000},{"$f":"IF(J10=\"\",\"\",N10-(K10+L10))","v":0},{"$f":"G4","v":0}]
[3,{"$f":"IF(支出項目!A5=\"\",\"\",支出項目!A5)","v":"冷凍ホウレンソウ"},null,{"$f":"IF(AND(予算!D10=\"〇\",予算実績比較!G11=0),\"〇\",\"\")","v":""},"","円",{"$f":"支出項目!F5","v":0},"円",null,{"$f":"B5","v":"２日目売上高"},{"$f":"予算!F4","v":162500},{"$f":"IF(OR(J11=\"\",K11=0),\"\",(予算実績比較!C5-予算!C4)*予算!E4)","v":-162500},{"$f":"IF(J11=\"\",\"\",N11-(K11+L11))","v":0},{"$f":"G5","v":0}]
[4,{"$f":"IF(支出項目!A6=\"\",\"\",支出項目!A6)","v":"上級本醸造しょうゆ1.8L"},null,{"$f":"IF(AND(予算!D11=\"〇\",予算実績比較!G12=0),\"〇\",\"\")","v":""},"","円",{"$f":"支出項目!F6","v":0},"円",null,{"$f":"B9","v":"生ラーメン細麺5人前"},{"$f":"予算!F8","v":27860},{"$f":"IF(OR(C9=\"\",J12=\"\",K12=0),\"\",(予算!C8-予算実績比較!C9)*予算!E8)","v":""},{"$f":"IF(OR(C9=\"\",J12=\"\",K12=0),\"\",(K12+L12)-N12)","v":""},{"$f":"G9","v":0}]
[5,{"$f":"IF(支出項目!A7=\"\",\"\",支出項目!A7)","v":"日の出業務料理酒1.5L"},null,{"$f":"IF(AND(予算!D12=\"〇\",予算実績比較!G13=0),\"〇\",\"\")","v":""},"","円",{"$f":"支出項目!F7","v":0},"円",null,{"$f":"B10","v":"ごく太メンマ"},{"$f":"予算!F9","v":18468},{"$f":"IF(OR(C10=\"\",J13=\"\",K13=0),\"\",(予算!C9-予算実績比較!C10)*予算!E9)","v":""},{"$f":"IF(OR(C10=\"\",J13=\"\",K13=0),\"\",(K13+L13)-N13)","v":""},{"$f":"G10","v":0}]
[6,{"$f":"IF(支出項目!A8=\"\",\"\",支出項目!A8)","v":"青ネギ冷凍"},null,{"$f":"IF(AND(予算!D13=\"〇\",予算実績比較!G14=0),\"〇\",\"\")","v":""},"","円",{"$f":"支出項目!F8","v":0},"円",null,"冷凍ホウレンソウ",{"$f":"予算!F10","v":4032},{"$f":"IF(OR(C11=\"\",J14=\"\",K14=0),\"\",(予算!C10-予算実績比較!C11)*予算!E10)","v":""},"",0]
[7,{"$f":"IF(支出項目!A9=\"\",\"\",支出項目!A9)","v":"しょうが"},null,{"$f":"IF(AND(予算!D14=\"〇\",予算実績比較!G15=0),\"〇\",\"\")","v":""},"","円",{"$f":"支出項目!F9","v":0},"円",null,"上級本醸造しょうゆ1.8L",{"$f":"予算!F11","v":2024},{"$f":"IF(OR(C12=\"\",J15=\"\",K15=0),\"\",(予算!C11-予算実績比較!C12)*予算!E11)","v":""},"",0]
[8,{"$f":"IF(支出項目!A10=\"\",\"\",支出項目!A10)","v":"E-2Rどんぶり"},null,{"$f":"IF(AND(予算!D15=\"〇\",予算実績比較!G16=0),\"〇\",\"\")","v":""},"","円",{"$f":"支出項目!F10","v":0},"円",null,"日の出業務料理酒1.5L",{"$f":"予算!F12","v":2380},{"$f":"IF(OR(C13=\"\",J16=\"\",K16=0),\"\",(予算!C12-予算実績比較!C13)*予算!E12)","v":""},"",0]
[9,{"$f":"IF(支出項目!A11=\"\",\"\",支出項目!A11)","v":"アスペン元禄バシ５００膳"},null,{"$f":"IF(AND(予算!D16=\"〇\",予算実績比較!G17=0),\"〇\",\"\")","v":""},"","円",{"$f":"支出項目!F11","v":0},"円",null,"青ネギ冷凍",{"$f":"予算!F13","v":3456},{"$f":"IF(OR(C14=\"\",J17=\"\",K17=0),\"\",(予算!C13-予算実績比較!C14)*予算!E13)","v":""},"",0]
[10,{"$f":"IF(支出項目!A12=\"\",\"\",支出項目!A12)","v":"豚肩ロース"},null,{"$f":"IF(AND(予算!D17=\"〇\",予算実績比較!G18=0),\"〇\",\"\")","v":""},"","円",{"$f":"支出項目!F12","v":0},"円",null,"しょうが",{"$f":"予算!F14","v":2000},{"$f":"IF(OR(C15=\"\",J18=\"\",K18=0),\"\",(予算!C14-予算実績比較!C15)*予算!E14)","v":""},"",0]
[11,{"$f":"IF(支出項目!A13=\"\",\"\",支出項目!A13)","v":"チャッカマン"},null,{"$f":"IF(AND(予算!D18=\"〇\",予算実績比較!G19=0),\"〇\",\"\")","v":""},"","円",{"$f":"支出項目!F13","v":0},"円",null,"E-2Rどんぶり",{"$f":"予算!F15","v":11625},{"$f":"IF(OR(C16=\"\",J19=\"\",K19=0),\"\",(予算!C15-予算実績比較!C16)*予算!E15)","v":""},"",0]
[12,{"$f":"IF(支出項目!A14=\"\",\"\",支出項目!A14)","v":"たわし"},null,{"$f":"IF(AND(予算!D19=\"〇\",予算実績比較!G20=0),\"〇\",\"\")","v":""},"","円",{"$f":"支出項目!F14","v":0},"円",null,"アスペン元禄バシ５００膳",{"$f":"予算!F16","v":1970},{"$f":"IF(OR(C17=\"\",J20=\"\",K20=0),\"\",(予算!C16-予算実績比較!C17)*予算!E16)","v":""},"",0]
[13,{"$f":"IF(支出項目!A15=\"\",\"\",支出項目!A15)","v":"鳥丸ガラスープの素"},null,{"$f":"IF(AND(予算!D20=\"〇\",予算実績比較!G21=0),\"〇\",\"\")","v":""},"","円",{"$f":"支出項目!F15","v":0},"円",null,"豚肩ロース",{"$f":"予算!F17","v":18000},{"$f":"IF(OR(C18=\"\",J21=\"\",K21=0),\"\",(予算!C17-予算実績比較!C18)*予算!E17)","v":""},"",0]
[14,{"$f":"IF(支出項目!A16=\"\",\"\",支出項目!A16)","v":"キッチンタイマー"},null,{"$f":"IF(AND(予算!D21=\"〇\",予算実績比較!G22=0),\"〇\",\"\")","v":""},"","円",{"$f":"支出項目!F16","v":0},"円",null,"チャッカマン",{"$f":"予算!F18","v":0},{"$f":"IF(OR(C19=\"\",J22=\"\",K22=0),\"\",(予算!C18-予算実績比較!C19)*予算!E18)","v":""},"",0]
[15,{"$f":"IF(支出項目!A17=\"\",\"\",支出項目!A17)","v":"キッチンペーパー、軍手、ゴム手袋、衛生費"},null,{"$f":"IF(AND(予算!D22=\"〇\",予算実績比較!G23=0),\"〇\",\"\")","v":""},"","円",{"$f":"支出項目!F17","v":0},"円",null,"たわし",{"$f":"予算!F19","v":730},{"$f":"IF(OR(C20=\"\",J23=\"\",K23=0),\"\",(予算!C19-予算実績比較!C20)*予算!E19)","v":""},"",0]
[16,{"$f":"IF(支出項目!A18=\"\",\"\",支出項目!A18)","v":"長ネギ"},null,{"$f":"IF(AND(予算!D23=\"〇\",予算実績比較!G24=0),\"〇\",\"\")","v":""},"","円",{"$f":"支出項目!F18","v":0},"円",null,"鳥丸ガラスープの素",{"$f":"予算!F20","v":15252},{"$f":"IF(OR(C21=\"\",J24=\"\",K24=0),\"\",(予算!C20-予算実績比較!C21)*予算!E20)","v":""},"",0]
[17,{"$f":"IF(支出項目!A19=\"\",\"\",支出項目!A19)","v":""},null,{"$f":"IF(AND(予算!D24=\"〇\",予算実績比較!G25=0),\"〇\",\"\")","v":""},"","円",{"$f":"支出項目!F19","v":""},"円",null,"キッチンタイマー",{"$f":"予算!F21","v":0},{"$f":"IF(OR(C22=\"\",J25=\"\",K25=0),\"\",(予算!C21-予算実績比較!C22)*予算!E21)","v":""},"",0]
[18,{"$f":"IF(支出項目!A20=\"\",\"\",支出項目!A20)","v":""},null,{"$f":"IF(AND(予算!D25=\"〇\",予算実績比較!G26=0),\"〇\",\"\")","v":""},"","円",{"$f":"支出項目!F20","v":""},"円",null,{"$f":"B23","v":"キッチンペーパー、軍手、ゴム手袋、衛生費"},{"$f":"予算!F22","v":4106},{"$f":"IF(OR(C23=\"\",J26=\"\",K26=0),\"\",(予算!C22-予算実績比較!C23)*予算!E22)","v":""},"",0]
[19,{"$f":"IF(支出項目!A21=\"\",\"\",支出項目!A21)","v":""},null,{"$f":"IF(AND(予算!D26=\"〇\",予算実績比較!G27=0),\"〇\",\"\")","v":""},"","円",{"$f":"支出項目!F21","v":""},"円",null,"長ネギ",{"$f":"予算!F23","v":2800},{"$f":"IF(OR(C24=\"\",J27=\"\",K27=0),\"\",(予算!C23-予算実績比較!C24)*予算!E23)","v":""},"",0]
[20,{"$f":"IF(支出項目!A22=\"\",\"\",支出項目!A22)","v":""},null,{"$f":"IF(AND(予算!D27=\"〇\",予算実績比較!G28=0),\"〇\",\"\")","v":""},"","円",{"$f":"支出項目!F22","v":""},"円",null,"",{"$f":"予算!F24","v":""},{"$f":"IF(OR(C25=\"\",J28=\"\",K28=0),\"\",(予算!C24-予算実績比較!C25)*予算!E24)","v":""},"",""]
[null,"小    計",null,null,null,null,{"$f":"SUM(G9:G28)","v":0},"円",null,{"$f":"B26","v":""},{"$f":"予算!F25","v":""},{"$f":"IF(OR(C26=\"\",J29=\"\",K29=0),\"\",(予算!C25-予算実績比較!C26)*予算!E25)","v":""},"",""]
[null,"消   費  税",null,null,null,null,{"$f":"支出項目!F29","v":0},"円",null,"",{"$f":"予算!F26","v":""},{"$f":"IF(OR(C27=\"\",J30=\"\",K30=0),\"\",(予算!C26-予算実績比較!C27)*予算!E26)","v":""},"",""]
[null,"合    計",null,null,null,null,{"$f":"G29+G30","v":0},"円",null,"",{"$f":"予算!F27","v":""},{"$f":"IF(OR(C28=\"\",J31=\"\",K31=0),\"\",(予算!C27-予算実績比較!C28)*予算!E27)","v":""},"",""]
[null,null,null,null,null,null,null,null,null,{"$f":"B35","v":"ガスボンベLPG"},{"$f":"予算!F32","v":31680},{"$f":"IF(OR(C35=\"\",J32=\"\",K32=0),\"\",(予算!C32-予算実績比較!C35)*予算!E32)","v":23760},{"$f":"IF(OR(C35=\"\",J32=\"\",K32=0),\"\",(K32+L32)-N32)","v":23760},{"$f":"G35","v":31680}]
[null,"レンタル品等に関する項目：原価実績（固定費）",null,null,null,null,null,null,null,{"$f":"B36","v":"ガスコンロ特大"},{"$f":"予算!F33","v":18480},{"$f":"IF(OR(C36=\"\",J33=\"\",K33=0),\"\",(予算!C33-予算実績比較!C36)*予算!E33)","v":6160},{"$f":"IF(OR(C36=\"\",J33=\"\",K33=0),\"\",(K33+L33)-N33)","v":6160},{"$f":"G36","v":18480}]
["No.","費　目","数　量","協賛","単　価",null,"金　　　　額",null,null,"寸胴鍋45L",{"$f":"予算!F34","v":18480},{"$f":"IF(OR(C37=\"\",J34=\"\",K34=0),\"\",(予算!C34-予算実績比較!C37)*予算!E34)","v":6160},6160,18480]
[1,{"$f":"IF(支出項目!A33=\"\",\"\",支出項目!A33)","v":"ガスボンベLPG"},1,{"$f":"IF(AND(予算!D32=\"〇\",予算実績比較!G35=0),\"〇\",\"\")","v":""},{"$f":"IF(C35=\"\",\"\",G35/C35)","v":31680},"円",{"$f":"支出項目!F33","v":31680},"円",null,"",{"$f":"予算!F35","v":""},{"$f":"IF(OR(C38=\"\",J35=\"\",K35=0),\"\",(予算!C35-予算実績比較!C38)*予算!E35)","v":""},"",""]
[2,{"$f":"IF(支出項目!A34=\"\",\"\",支出項目!A34)","v":"ガスコンロ特大"},2,{"$f":"IF(AND(予算!D33=\"〇\",予算実績比較!G36=0),\"〇\",\"\")","v":""},9240,"円",{"$f":"支出項目!F34","v":18480},"円",null,"",{"$f":"予算!F36","v":""},{"$f":"IF(OR(C39=\"\",J36=\"\",K36=0),\"\",(予算!C36-予算実績比較!C39)*予算!E36)","v":""},"",""]
[3,{"$f":"IF(支出項目!A35=\"\",\"\",支出項目!A35)","v":"寸胴鍋45L"},2,{"$f":"IF(AND(予算!D34=\"〇\",予算実績比較!G37=0),\"〇\",\"\")","v":""},9240,"円",{"$f":"支出項目!F35","v":18480},"円",null,{"$f":"B40","v":""},{"$f":"予算!F37","v":""},{"$f":"IF(OR(C40=\"\",J37=\"\",K37=0),\"\",(予算!C37-予算実績比較!C40)*予算!E37)","v":""},"",{"$f":"G40","v":""}]
[4,{"$f":"IF(支出項目!A36=\"\",\"\",支出項目!A36)","v":""},0,{"$f":"IF(AND(予算!D35=\"〇\",予算実績比較!G38=0),\"〇\",\"\")","v":""},{"$error":"#VALUE!"},"円",{"$f":"支出項目!F36","v":""},"円",null,"",{"$f":"予算!F38","v":""},{"$f":"IF(OR(C41=\"\",J38=\"\",K38=0),\"\",(予算!C38-予算実績比較!C41)*予算!E38)","v":""},"",""]
[5,{"$f":"IF(支出項目!A37=\"\",\"\",支出項目!A37)","v":""},0,{"$f":"IF(AND(予算!D36=\"〇\",予算実績比較!G39=0),\"〇\",\"\")","v":""},{"$error":"#VALUE!"},"円",{"$f":"支出項目!F37","v":""},"円",null,"",{"$f":"予算!F39","v":""},{"$f":"IF(OR(C42=\"\",J39=\"\",K39=0),\"\",(予算!C39-予算実績比較!C42)*予算!E39)","v":""},"",""]
[6,{"$f":"IF(支出項目!A38=\"\",\"\",支出項目!A38)","v":""},null,{"$f":"IF(AND(予算!D37=\"〇\",予算実績比較!G40=0),\"〇\",\"\")","v":""},"","円",{"$f":"支出項目!F38","v":""},"円",null,{"$f":"B43","v":"合　　　計"},{"$f":"SUM(K10:K11)-SUM(K12:K39)","v":154157},{"$f":"SUM(L10:L39)","v":-301420},{"$f":"SUM(M10:M39)","v":36080},{"$f":"SUM(N10:N11)-SUM(N12:N39)","v":-68640}]
[7,{"$f":"IF(支出項目!A39=\"\",\"\",支出項目!A39)","v":""},null,{"$f":"IF(AND(予算!D38=\"〇\",予算実績比較!G41=0),\"〇\",\"\")","v":""},"","円",{"$f":"支出項目!F39","v":""},"円",null,"消費税・協賛品は差異分析の対象から外しています。"]
[8,{"$f":"IF(支出項目!A40=\"\",\"\",支出項目!A40)","v":""},null,{"$f":"IF(AND(予算!D39=\"〇\",予算実績比較!G42=0),\"〇\",\"\")","v":""},"","円",{"$f":"支出項目!F40","v":""},"円"]
[null,"合　　　計",null,null,null,null,{"$f":"SUM(G35:G42)","v":68640},"円"]